Workbook

Sheet INTRO
C1: The current version should be used in countries endemic for Loasis
B2: PC Joint Reporting Form v.3.1 (L)
B4: The purpose of this template Joint Reporting Form (JRF) - available as an Excel file - is to provide national health authorities and data managers with a standardized tool to address these reporting challenges, facilitate integration and thereby further contribute to improving overall programme management. This template aims to standardize national reporting of programme implementation outcomes, improve availability and coordination of preventive chemotherapy data across the World Health Organization regions. National authorities are requested to complete this form for submission to the World Health Organization any time before 15 August of the current year for reporting data on PC interventions implemented during the previous year.
B6: Structure of the application (worksheets):
B8: INTRO | C8: This worksheet includes guides on how to complete the joint reporting form and information about status of PC for endemic diseases in the country
B9: COUNTRY_INFO | C9: This worksheet includes information about administrative structure of the country, population by age group, status of endemicity for each disease, population requiring PC, planned interventions and interventions implemented
B10: MDA1, MDA4, MDA3, T1, T2 and T3 | C10: These worksheets include information about endemic districts targeted for treatment with specified PC medicines, treatment plan, and number of people who received treatment by age group
B11: DISTRICT | C11: This worksheet includes summary of people treated by disease at the level of implementation. If data by gender is available, it requires to enter.
B12: SUMMARY | C12: This worksheet includes summary of people treated by disease and by PC intervention. Before generating the report (run macros) please select the disease for which you need the report. Follow the same rule to generate various reports. This worksheet should be printed and submitted as a Joint Report (see the instruction for submission in the SUMMARY worksheet).
B14: Instruction for data entry
B16: Most of the cells in the above-mentioned worksheets include formula that are calculated automatically according to the treatment policy recommended by WHO for each disease. See the link http://www.who.int/neglected_diseases/preventive_chemotherapy/pct_manual/en/index.html
B18: Please enter your data into the cells according to their colour code:
C20: White - cell is not protected. Please enter the value of the requested indicator.
C22: Yellow - cell is protected and includes name of indicator. No data entry required.
C24: Orange - cell is not protected and includes a drop-down menu. Please select the value from the drop-down list.
C27: Green - cell is not protected and includes formula. Please change the value only if your data are different from those that are calculated automatically.
C30: Blue - cell is protected and includes formula. No data entry required.
B32: Country data
B34: COUNTRY | E34: Angola
B36: Year of reporting data | E36: 2018
B38: Is country endemic for lymphatic filariasis (LF)? | E38: Endemic
B40: Is country endemic for onchocerciasis (ONCHO)? | E40: Endemic
B42: Is country endemic for soil-transmitted helminthiases (STH)? | E42: Endemic
B44: Is country endemic for schistosomiasis (SCH)? | E44: Endemic
B46: How many administrative units in the country? | E46: 164
B47: If demographical data at the second administrative level are not available by age group, please enter the proportion (%) of population by age group in the country. If data are available, please leave these cells blank.
B48: 1-4 years age | C48: Preschool-age children (PreSAC) | E48: 0.16
B49: 5-14 years age | C49: School-age children (SAC) | E49: 0.279
B50: 15 years + | C50: Adults | E50: 0.527

Sheet COUNTRY_INFO
A1: COUNTRY INFORMATION
A2: Administrative structure, population by age group, endemicity status, planned interventions and interventions implemented
A4: TOTAL | D4: =SUM(D$9:D$1000) -> 31574739.83 | E4: =SUM(E$9:E$1000) -> 5051954 | F4: =SUM(F$9:F$1000) -> 8809349 | G4: =SUM(G$9:G$1000) -> 16639888 | M4: =SUM(M$9:M$1000) -> 2458994.614 | N4: =SUM(N$9:N$1000) -> 5932675.568 | O4: =SUM(O$9:O$1000) -> 13101317 | P4: =SUM(P$9:P$1000) -> 7602968.27
A6: Country administrative structure | D6: Population | H6: Endemicity | M6: Population requiring PC | Q6: Number of treatment rounds planned for the year | U6: PC implemented | AA6: PZQ Nombre de personnes traitées
A7: Country | B7: Province/State | C7: District | D7: Total | E7: PreSAC | F7: SAC | G7: Adults | H7: LF | I7: Oncho | J7: STH | K7: SCH | L7: Loa | M7: LF | N7: Oncho | O7: STH | P7: SCH | Q7: LF | R7: Oncho | S7: STH | T7: SCH | U7: ROUND 1 | V7: ROUND2 | W7: IU_ID | X7: IU_Name | Y7: x | Z7: 2017 | AA7: 2018 | AB7: 2019 | AG7: x | AH7: x | AI7: x | AJ7: x | AK7: x | AL7: x | AM7: x | AN7: x | AO7: x | AP7: x | AQ7: x | AR7: x | AS7: x | AT7: x
A9: =IF(INTRO!$E$34<>0,INTRO!$E$34,"") -> Angola | B9: BENGO | C9: AMBRIZ | D9: 26648.82354 | E9: =IF(INTRO!$E$48="","",ROUND($D9*INTRO!$E$48,0)) -> 4264 | F9: =IF(INTRO!$E$49="","",ROUND($D9*INTRO!$E$49,0)) -> 7435 | G9: =IF(INTRO!$E$50="","",ROUND($D9*INTRO!$E$50,0)) -> 14044 | H9: 0 | I9: 4 | J9: 3 | K9: 2 | L9: 1 | M9: =IF(INTRO!$E$38="Endemic", IF($H9>0, IF($H9=4,"Unknown", IF($H9=99,"Stopped", $D9)), 0),"Not required") -> 0 | N9: =IF(INTRO!$E$40="Endemic", IF($I9>0, IF($I9=4,"Unknown",IF($I9=99,"Stopped", $D9)), 0),"Not required") -> Unknown | O9: =IF(INTRO!$E$42="Endemic", IF(AND($J9>1,$J9<5), IF($J9=4, "Unknown", E9+F9), 0),"Not required") -> 11699 | P9: =IF(INTRO!$E$44="Endemic", IF(AND($K9>0,$K9<5), IF($K9=4,"Unknown", IF($K9=1, $F9*0.33, IF($K9=2, $F9*0.5+$G9*0.2, SUM(F9:G9)))), 0),"Not required") -> 6526.3 | Q9: 0 | R9: 0 | S9: 0 | T9: 0 | W9: 2049 | X9: AMBRIZ | Z9: 2063 | AA9: 0 | AB9: 5683
A10: =IF(INTRO!$E$34<>0,INTRO!$E$34,"") -> Angola | B10: BENGO | C10: BULA ATUMBA | D10: 15786.07221 | E10: =IF(INTRO!$E$48="","",ROUND($D10*INTRO!$E$48,0)) -> 2526 | F10: =IF(INTRO!$E$49="","",ROUND($D10*INTRO!$E$49,0)) -> 4404 | G10: =IF(INTRO!$E$50="","",ROUND($D10*INTRO!$E$50,0)) -> 8319 | H10: 0 | I10: 4 | J10: 3 | K10: 2 | L10: 1 | M10: =IF(INTRO!$E$38="Endemic", IF($H10>0, IF($H10=4,"Unknown", IF($H10=99,"Stopped", $D10)), 0),"Not required") -> 0 | N10: =IF(INTRO!$E$40="Endemic", IF($I10>0, IF($I10=4,"Unknown",IF($I10=99,"Stopped", $D10)), 0),"Not required") -> Unknown | O10: =IF(INTRO!$E$42="Endemic", IF(AND($J10>1,$J10<5), IF($J10=4, "Unknown", E10+F10), 0),"Not required") -> 6930 | P10: =IF(INTRO!$E$44="Endemic", IF(AND($K10>0,$K10<5), IF($K10=4,"Unknown", IF($K10=1, $F10*0.33, IF($K10=2, $F10*0.5+$G10*0.2, SUM(F10:G10)))), 0),"Not required") -> 3865.8 | Q10: 0 | R10: 0 | S10: 0 | T10: 0 | W10: 2088 | X10: BULA ATUMBA | Z10: 1496 | AA10: 0 | AB10: 0
A11: =IF(INTRO!$E$34<>0,INTRO!$E$34,"") -> Angola | B11: BENGO | C11: DANDE | D11: 261100.2732 | E11: =IF(INTRO!$E$48="","",ROUND($D11*INTRO!$E$48,0)) -> 41776 | F11: =IF(INTRO!$E$49="","",ROUND($D11*INTRO!$E$49,0)) -> 72847 | G11: =IF(INTRO!$E$50="","",ROUND($D11*INTRO!$E$50,0)) -> 137600 | H11: 0 | I11: 4 | J11: 3 | K11: 2 | L11: 1 | M11: =IF(INTRO!$E$38="Endemic", IF($H11>0, IF($H11=4,"Unknown", IF($H11=99,"Stopped", $D11)), 0),"Not required") -> 0 | N11: =IF(INTRO!$E$40="Endemic", IF($I11>0, IF($I11=4,"Unknown",IF($I11=99,"Stopped", $D11)), 0),"Not required") -> Unknown | O11: =IF(INTRO!$E$42="Endemic", IF(AND($J11>1,$J11<5), IF($J11=4, "Unknown", E11+F11), 0),"Not required") -> 114623 | P11: =IF(INTRO!$E$44="Endemic", IF(AND($K11>0,$K11<5), IF($K11=4,"Unknown", IF($K11=1, $F11*0.33, IF($K11=2, $F11*0.5+$G11*0.2, SUM(F11:G11)))), 0),"Not required") -> 63943.5 | Q11: 0 | R11: 0 | S11: 0 | T11: 0 | W11: 2050 | X11: DANDE | Z11: 88000 | AA11: 0 | AB11: 16448
A12: =IF(INTRO!$E$34<>0,INTRO!$E$34,"") -> Angola | B12: BENGO | C12: DEMBOS | D12: 35268.15507 | E12: =IF(INTRO!$E$48="","",ROUND($D12*INTRO!$E$48,0)) -> 5643 | F12: =IF(INTRO!$E$49="","",ROUND($D12*INTRO!$E$49,0)) -> 9840 | G12: =IF(INTRO!$E$50="","",ROUND($D12*INTRO!$E$50,0)) -> 18586 | H12: 0 | I12: 4 | J12: 3 | K12: 2 | L12: 1 | M12: =IF(INTRO!$E$38="Endemic", IF($H12>0, IF($H12=4,"Unknown", IF($H12=99,"Stopped", $D12)), 0),"Not required") -> 0 | N12: =IF(INTRO!$E$40="Endemic", IF($I12>0, IF($I12=4,"Unknown",IF($I12=99,"Stopped", $D12)), 0),"Not required") -> Unknown | O12: =IF(INTRO!$E$42="Endemic", IF(AND($J12>1,$J12<5), IF($J12=4, "Unknown", E12+F12), 0),"Not required") -> 15483 | P12: =IF(INTRO!$E$44="Endemic", IF(AND($K12>0,$K12<5), IF($K12=4,"Unknown", IF($K12=1, $F12*0.33, IF($K12=2, $F12*0.5+$G12*0.2, SUM(F12:G12)))), 0),"Not required") -> 8637.2 | Q12: 0 | R12: 0 | S12: 0 | T12: 0 | W12: 2089 | X12: DEMBOS | Z12: 4837 | AA12: 0 | AB12: 0
A13: =IF(INTRO!$E$34<>0,INTRO!$E$34,"") -> Angola | B13: BENGO | C13: NAMBUANGONGO | D13: 71436.25941 | E13: =IF(INTRO!$E$48="","",ROUND($D13*INTRO!$E$48,0)) -> 11430 | F13: =IF(INTRO!$E$49="","",ROUND($D13*INTRO!$E$49,0)) -> 19931 | G13: =IF(INTRO!$E$50="","",ROUND($D13*INTRO!$E$50,0)) -> 37647 | H13: 1 | I13: 4 | J13: 3 | K13: 2 | L13: 1 | M13: =IF(INTRO!$E$38="Endemic", IF($H13>0, IF($H13=4,"Unknown", IF($H13=99,"Stopped", $D13)), 0),"Not required") -> 71436.25941 | N13: =IF(INTRO!$E$40="Endemic", IF($I13>0, IF($I13=4,"Unknown",IF($I13=99,"Stopped", $D13)), 0),"Not required") -> Unknown | O13: =IF(INTRO!$E$42="Endemic", IF(AND($J13>1,$J13<5), IF($J13=4, "Unknown", E13+F13), 0),"Not required") -> 31361 | P13: =IF(INTRO!$E$44="Endemic", IF(AND($K13>0,$K13<5), IF($K13=4,"Unknown", IF($K13=1, $F13*0.33, IF($K13=2, $F13*0.5+$G13*0.2, SUM(F13:G13)))), 0),"Not required") -> 17494.9 | Q13: 0 | R13: 0 | S13: 0 | T13: 0 | W13: 2053 | X13: NAMBUANGONGO | Z13: 5478 | AA13: 0 | AB13: 0
A14: =IF(INTRO!$E$34<>0,INTRO!$E$34,"") -> Angola | B14: BENGO | C14: PANGO ALUQUEM | D14: 8220.397047 | E14: =IF(INTRO!$E$48="","",ROUND($D14*INTRO!$E$48,0)) -> 1315 | F14: =IF(INTRO!$E$49="","",ROUND($D14*INTRO!$E$49,0)) -> 2293 | G14: =IF(INTRO!$E$50="","",ROUND($D14*INTRO!$E$50,0)) -> 4332 | H14: 0 | I14: 4 | J14: 3 | K14: 2 | L14: 1 | M14: =IF(INTRO!$E$38="Endemic", IF($H14>0, IF($H14=4,"Unknown", IF($H14=99,"Stopped", $D14)), 0),"Not required") -> 0 | N14: =IF(INTRO!$E$40="Endemic", IF($I14>0, IF($I14=4,"Unknown",IF($I14=99,"Stopped", $D14)), 0),"Not required") -> Unknown | O14: =IF(INTRO!$E$42="Endemic", IF(AND($J14>1,$J14<5), IF($J14=4, "Unknown", E14+F14), 0),"Not required") -> 3608 | P14: =IF(INTRO!$E$44="Endemic", IF(AND($K14>0,$K14<5), IF($K14=4,"Unknown", IF($K14=1, $F14*0.33, IF($K14=2, $F14*0.5+$G14*0.2, SUM(F14:G14)))), 0),"Not required") -> 2012.9 | Q14: 0 | R14: 0 | S14: 0 | T14: 0 | W14: 2096 | X14: PANGO ALUQUEM | Z14: 1341 | AA14: 0 | AB14: 1965
A15: =IF(INTRO!$E$34<>0,INTRO!$E$34,"") -> Angola | B15: BENGUELA | C15: BAIA FARTA | D15: 126533.805 | E15: =IF(INTRO!$E$48="","",ROUND($D15*INTRO!$E$48,0)) -> 20245 | F15: =IF(INTRO!$E$49="","",ROUND($D15*INTRO!$E$49,0)) -> 35303 | G15: =IF(INTRO!$E$50="","",ROUND($D15*INTRO!$E$50,0)) -> 66683 | H15: 0 | I15: 4 | J15: 2 | K15: 2 | L15: 4 | M15: =IF(INTRO!$E$38="Endemic", IF($H15>0, IF($H15=4,"Unknown", IF($H15=99,"Stopped", $D15)), 0),"Not required") -> 0 | N15: =IF(INTRO!$E$40="Endemic", IF($I15>0, IF($I15=4,"Unknown",IF($I15=99,"Stopped", $D15)), 0),"Not required") -> Unknown | O15: =IF(INTRO!$E$42="Endemic", IF(AND($J15>1,$J15<5), IF($J15=4, "Unknown", E15+F15), 0),"Not required") -> 55548 | P15: =IF(INTRO!$E$44="Endemic", IF(AND($K15>0,$K15<5), IF($K15=4,"Unknown", IF($K15=1, $F15*0.33, IF($K15=2, $F15*0.5+$G15*0.2, SUM(F15:G15)))), 0),"Not required") -> 30988.1 | Q15: 0 | R15: 0 | S15: 0 | T15: 0 | W15: 2054 | X15: BAIA FARTA | Z15: 9928 | AA15: 35002 | AB15: 0
A16: =IF(INTRO!$E$34<>0,INTRO!$E$34,"") -> Angola | B16: BENGUELA | C16: BALOMBO | D16: 127852.6355 | E16: =IF(INTRO!$E$48="","",ROUND($D16*INTRO!$E$48,0)) -> 20456 | F16: =IF(INTRO!$E$49="","",ROUND($D16*INTRO!$E$49,0)) -> 35671 | G16: =IF(INTRO!$E$50="","",ROUND($D16*INTRO!$E$50,0)) -> 67378 | H16: 0 | I16: 4 | J16: 2 | K16: 2 | L16: 1 | M16: =IF(INTRO!$E$38="Endemic", IF($H16>0, IF($H16=4,"Unknown", IF($H16=99,"Stopped", $D16)), 0),"Not required") -> 0 | N16: =IF(INTRO!$E$40="Endemic", IF($I16>0, IF($I16=4,"Unknown",IF($I16=99,"Stopped", $D16)), 0),"Not required") -> Unknown | O16: =IF(INTRO!$E$42="Endemic", IF(AND($J16>1,$J16<5), IF($J16=4, "Unknown", E16+F16), 0),"Not required") -> 56127 | P16: =IF(INTRO!$E$44="Endemic", IF(AND($K16>0,$K16<5), IF($K16=4,"Unknown", IF($K16=1, $F16*0.33, IF($K16=2, $F16*0.5+$G16*0.2, SUM(F16:G16)))), 0),"Not required") -> 31311.1 | Q16: 0 | R16: 0 | S16: 0 | T16: 0 | W16: 2055 | X16: BALOMBO | Z16: 35680 | AA16: 40200 | AB16: 0
A17: =IF(INTRO!$E$34<>0,INTRO!$E$34,"") -> Angola | B17: BENGUELA | C17: BENGUELA | D17: 659151.2348 | E17: =IF(INTRO!$E$48="","",ROUND($D17*INTRO!$E$48,0)) -> 105464 | F17: =IF(INTRO!$E$49="","",ROUND($D17*INTRO!$E$49,0)) -> 183903 | G17: =IF(INTRO!$E$50="","",ROUND($D17*INTRO!$E$50,0)) -> 347373 | H17: 0 | I17: 4 | J17: 2 | K17: 2 | L17: 4 | M17: =IF(INTRO!$E$38="Endemic", IF($H17>0, IF($H17=4,"Unknown", IF($H17=99,"Stopped", $D17)), 0),"Not required") -> 0 | N17: =IF(INTRO!$E$40="Endemic", IF($I17>0, IF($I17=4,"Unknown",IF($I17=99,"Stopped", $D17)), 0),"Not required") -> Unknown | O17: =IF(INTRO!$E$42="Endemic", IF(AND($J17>1,$J17<5), IF($J17=4, "Unknown", E17+F17), 0),"Not required") -> 289367 | P17: =IF(INTRO!$E$44="Endemic", IF(AND($K17>0,$K17<5), IF($K17=4,"Unknown", IF($K17=1, $F17*0.33, IF($K17=2, $F17*0.5+$G17*0.2, SUM(F17:G17)))), 0),"Not required") -> 161426.1 | Q17: 0 | R17: 0 | S17: 0 | T17: 0 | W17: 2056 | X17: BENGUELA | Z17: 6407 | AA17: 35001 | AB17: 0
A18: =IF(INTRO!$E$34<>0,INTRO!$E$34,"") -> Angola | B18: BENGUELA | C18: BOCOIO | D18: 193230.9574 | E18: =IF(INTRO!$E$48="","",ROUND($D18*INTRO!$E$48,0)) -> 30917 | F18: =IF(INTRO!$E$49="","",ROUND($D18*INTRO!$E$49,0)) -> 53911 | G18: =IF(INTRO!$E$50="","",ROUND($D18*INTRO!$E$50,0)) -> 101833 | H18: 0 | I18: 4 | J18: 2 | K18: 2 | L18: 1 | M18: =IF(INTRO!$E$38="Endemic", IF($H18>0, IF($H18=4,"Unknown", IF($H18=99,"Stopped", $D18)), 0),"Not required") -> 0 | N18: =IF(INTRO!$E$40="Endemic", IF($I18>0, IF($I18=4,"Unknown",IF($I18=99,"Stopped", $D18)), 0),"Not required") -> Unknown | O18: =IF(INTRO!$E$42="Endemic", IF(AND($J18>1,$J18<5), IF($J18=4, "Unknown", E18+F18), 0),"Not required") -> 84828 | P18: =IF(INTRO!$E$44="Endemic", IF(AND($K18>0,$K18<5), IF($K18=4,"Unknown", IF($K18=1, $F18*0.33, IF($K18=2, $F18*0.5+$G18*0.2, SUM(F18:G18)))), 0),"Not required") -> 47322.1 | Q18: 0 | R18: 0 | S18: 0 | T18: 0 | W18: 2057 | X18: BOCOIO | Z18: 21080 | AA18: 34999 | AB18: 0
A19: =IF(INTRO!$E$34<>0,INTRO!$E$34,"") -> Angola | B19: BENGUELA | C19: CAIMBAMBO | D19: 106583.5608 | E19: =IF(INTRO!$E$48="","",ROUND($D19*INTRO!$E$48,0)) -> 17053 | F19: =IF(INTRO!$E$49="","",ROUND($D19*INTRO!$E$49,0)) -> 29737 | G19: =IF(INTRO!$E$50="","",ROUND($D19*INTRO!$E$50,0)) -> 56170 | H19: 0 | I19: 4 | J19: 2 | K19: 2 | L19: 4 | M19: =IF(INTRO!$E$38="Endemic", IF($H19>0, IF($H19=4,"Unknown", IF($H19=99,"Stopped", $D19)), 0),"Not required") -> 0 | N19: =IF(INTRO!$E$40="Endemic", IF($I19>0, IF($I19=4,"Unknown",IF($I19=99,"Stopped", $D19)), 0),"Not required") -> Unknown | O19: =IF(INTRO!$E$42="Endemic", IF(AND($J19>1,$J19<5), IF($J19=4, "Unknown", E19+F19), 0),"Not required") -> 46790 | P19: =IF(INTRO!$E$44="Endemic", IF(AND($K19>0,$K19<5), IF($K19=4,"Unknown", IF($K19=1, $F19*0.33, IF($K19=2, $F19*0.5+$G19*0.2, SUM(F19:G19)))), 0),"Not required") -> 26102.5 | Q19: 0 | R19: 0 | S19: 0 | T19: 0 | W19: 2061 | X19: CAIMBAMBO | Z19: 27726 | AA19: 35300 | AB19: 0
A20: =IF(INTRO!$E$34<>0,INTRO!$E$34,"") -> Angola | B20: BENGUELA | C20: CATUMBELA | D20: 206278.4617 | E20: =IF(INTRO!$E$48="","",ROUND($D20*INTRO!$E$48,0)) -> 33005 | F20: =IF(INTRO!$E$49="","",ROUND($D20*INTRO!$E$49,0)) -> 57552 | G20: =IF(INTRO!$E$50="","",ROUND($D20*INTRO!$E$50,0)) -> 108709 | H20: 0 | I20: 4 | J20: 2 | K20: 2 | L20: 4 | M20: =IF(INTRO!$E$38="Endemic", IF($H20>0, IF($H20=4,"Unknown", IF($H20=99,"Stopped", $D20)), 0),"Not required") -> 0 | N20: =IF(INTRO!$E$40="Endemic", IF($I20>0, IF($I20=4,"Unknown",IF($I20=99,"Stopped", $D20)), 0),"Not required") -> Unknown | O20: =IF(INTRO!$E$42="Endemic", IF(AND($J20>1,$J20<5), IF($J20=4, "Unknown", E20+F20), 0),"Not required") -> 90557 | P20: =IF(INTRO!$E$44="Endemic", IF(AND($K20>0,$K20<5), IF($K20=4,"Unknown", IF($K20=1, $F20*0.33, IF($K20=2, $F20*0.5+$G20*0.2, SUM(F20:G20)))), 0),"Not required") -> 50517.8 | Q20: 0 | R20: 0 | S20: 0 | T20: 0 | W20: 2216 | X20: CATUMBELA | Z20: 27972 | AA20: 34899 | AB20: 0
A21: =IF(INTRO!$E$34<>0,INTRO!$E$34,"") -> Angola | B21: BENGUELA | C21: CHONGOROI | D21: 102406.4821 | E21: =IF(INTRO!$E$48="","",ROUND($D21*INTRO!$E$48,0)) -> 16385 | F21: =IF(INTRO!$E$49="","",ROUND($D21*INTRO!$E$49,0)) -> 28571 | G21: =IF(INTRO!$E$50="","",ROUND($D21*INTRO!$E$50,0)) -> 53968 | H21: 0 | I21: 4 | J21: 2 | K21: 2 | L21: 4 | M21: =IF(INTRO!$E$38="Endemic", IF($H21>0, IF($H21=4,"Unknown", IF($H21=99,"Stopped", $D21)), 0),"Not required") -> 0 | N21: =IF(INTRO!$E$40="Endemic", IF($I21>0, IF($I21=4,"Unknown",IF($I21=99,"Stopped", $D21)), 0),"Not required") -> Unknown | O21: =IF(INTRO!$E$42="Endemic", IF(AND($J21>1,$J21<5), IF($J21=4, "Unknown", E21+F21), 0),"Not required") -> 44956 | P21: =IF(INTRO!$E$44="Endemic", IF(AND($K21>0,$K21<5), IF($K21=4,"Unknown", IF($K21=1, $F21*0.33, IF($K21=2, $F21*0.5+$G21*0.2, SUM(F21:G21)))), 0),"Not required") -> 25079.1 | Q21: 0 | R21: 0 | S21: 0 | T21: 0 | W21: 2058 | X21: CHONGOROI | Z21: 732 | AA21: 33100 | AB21: 0
A22: =IF(INTRO!$E$34<>0,INTRO!$E$34,"") -> Angola | B22: BENGUELA | C22: CUBAL | D22: 358609.2478 | E22: =IF(INTRO!$E$48="","",ROUND($D22*INTRO!$E$48,0)) -> 57377 | F22: =IF(INTRO!$E$49="","",ROUND($D22*INTRO!$E$49,0)) -> 100052 | G22: =IF(INTRO!$E$50="","",ROUND($D22*INTRO!$E$50,0)) -> 188987 | H22: 0 | I22: 4 | J22: 2 | K22: 2 | L22: 4 | M22: =IF(INTRO!$E$38="Endemic", IF($H22>0, IF($H22=4,"Unknown", IF($H22=99,"Stopped", $D22)), 0),"Not required") -> 0 | N22: =IF(INTRO!$E$40="Endemic", IF($I22>0, IF($I22=4,"Unknown",IF($I22=99,"Stopped", $D22)), 0),"Not required") -> Unknown | O22: =IF(INTRO!$E$42="Endemic", IF(AND($J22>1,$J22<5), IF($J22=4, "Unknown", E22+F22), 0),"Not required") -> 157429 | P22: =IF(INTRO!$E$44="Endemic", IF(AND($K22>0,$K22<5), IF($K22=4,"Unknown", IF($K22=1, $F22*0.33, IF($K22=2, $F22*0.5+$G22*0.2, SUM(F22:G22)))), 0),"Not required") -> 87823.4 | Q22: 0 | R22: 0 | S22: 0 | T22: 0 | W22: 2059 | X22: CUBAL | Z22: 20096 | AA22: 35800 | AB22: 0
A23: =IF(INTRO!$E$34<>0,INTRO!$E$34,"") -> Angola | B23: BENGUELA | C23: GANDA | D23: 276304.3704 | E23: =IF(INTRO!$E$48="","",ROUND($D23*INTRO!$E$48,0)) -> 44209 | F23: =IF(INTRO!$E$49="","",ROUND($D23*INTRO!$E$49,0)) -> 77089 | G23: =IF(INTRO!$E$50="","",ROUND($D23*INTRO!$E$50,0)) -> 145612 | H23: 0 | I23: 4 | J23: 2 | K23: 2 | L23: 4 | M23: =IF(INTRO!$E$38="Endemic", IF($H23>0, IF($H23=4,"Unknown", IF($H23=99,"Stopped", $D23)), 0),"Not required") -> 0 | N23: =IF(INTRO!$E$40="Endemic", IF($I23>0, IF($I23=4,"Unknown",IF($I23=99,"Stopped", $D23)), 0),"Not required") -> Unknown | O23: =IF(INTRO!$E$42="Endemic", IF(AND($J23>1,$J23<5), IF($J23=4, "Unknown", E23+F23), 0),"Not required") -> 121298 | P23: =IF(INTRO!$E$44="Endemic", IF(AND($K23>0,$K23<5), IF($K23=4,"Unknown", IF($K23=1, $F23*0.33, IF($K23=2, $F23*0.5+$G23*0.2, SUM(F23:G23)))), 0),"Not required") -> 67666.9 | Q23: 0 | R23: 0 | S23: 0 | T23: 0 | W23: 2060 | X23: GANDA | Z23: 5598 | AA23: 39900 | AB23: 0
A24: =IF(INTRO!$E$34<>0,INTRO!$E$34,"") -> Angola | B24: BENGUELA | C24: LOBITO | D24: 461214.0238 | E24: =IF(INTRO!$E$48="","",ROUND($D24*INTRO!$E$48,0)) -> 73794 | F24: =IF(INTRO!$E$49="","",ROUND($D24*INTRO!$E$49,0)) -> 128679 | G24: =IF(INTRO!$E$50="","",ROUND($D24*INTRO!$E$50,0)) -> 243060 | H24: 1 | I24: 4 | J24: 2 | K24: 2 | L24: 1 | M24: =IF(INTRO!$E$38="Endemic", IF($H24>0, IF($H24=4,"Unknown", IF($H24=99,"Stopped", $D24)), 0),"Not required") -> 461214.0238 | N24: =IF(INTRO!$E$40="Endemic", IF($I24>0, IF($I24=4,"Unknown",IF($I24=99,"Stopped", $D24)), 0),"Not required") -> Unknown | O24: =IF(INTRO!$E$42="Endemic", IF(AND($J24>1,$J24<5), IF($J24=4, "Unknown", E24+F24), 0),"Not required") -> 202473 | P24: =IF(INTRO!$E$44="Endemic", IF(AND($K24>0,$K24<5), IF($K24=4,"Unknown", IF($K24=1, $F24*0.33, IF($K24=2, $F24*0.5+$G24*0.2, SUM(F24:G24)))), 0),"Not required") -> 112951.5 | Q24: 0 | R24: 0 | S24: 0 | T24: 0 | W24: 2062 | X24: LOBITO | Z24: 15322 | AA24: 35000 | AB24: 0
A25: =IF(INTRO!$E$34<>0,INTRO!$E$34,"") -> Angola | B25: BIE | C25: ANDULO | D25: 302909.7805 | E25: =IF(INTRO!$E$48="","",ROUND($D25*INTRO!$E$48,0)) -> 48466 | F25: =IF(INTRO!$E$49="","",ROUND($D25*INTRO!$E$49,0)) -> 84512 | G25: =IF(INTRO!$E$50="","",ROUND($D25*INTRO!$E$50,0)) -> 159633 | H25: 0 | I25: 1 | J25: 2 | K25: 2 | L25: 1 | M25: =IF(INTRO!$E$38="Endemic", IF($H25>0, IF($H25=4,"Unknown", IF($H25=99,"Stopped", $D25)), 0),"Not required") -> 0 | N25: =IF(INTRO!$E$40="Endemic", IF($I25>0, IF($I25=4,"Unknown",IF($I25=99,"Stopped", $D25)), 0),"Not required") -> 302909.7805 | O25: =IF(INTRO!$E$42="Endemic", IF(AND($J25>1,$J25<5), IF($J25=4, "Unknown", E25+F25), 0),"Not required") -> 132978 | P25: =IF(INTRO!$E$44="Endemic", IF(AND($K25>0,$K25<5), IF($K25=4,"Unknown", IF($K25=1, $F25*0.33, IF($K25=2, $F25*0.5+$G25*0.2, SUM(F25:G25)))), 0),"Not required") -> 74182.6 | Q25: 0 | R25: 0 | S25: 1 | T25: 1 | U25: T1 (PZQ+ALB/MBD) | W25: 2063 | X25: ANDULO | Z25: 71788 | AA25: 51331 | AB25: 62351
A26: =IF(INTRO!$E$34<>0,INTRO!$E$34,"") -> Angola | B26: BIE | C26: CAMACUPA | D26: 181782.7111 | E26: =IF(INTRO!$E$48="","",ROUND($D26*INTRO!$E$48,0)) -> 29085 | F26: =IF(INTRO!$E$49="","",ROUND($D26*INTRO!$E$49,0)) -> 50717 | G26: =IF(INTRO!$E$50="","",ROUND($D26*INTRO!$E$50,0)) -> 95799 | H26: 0 | I26: 1 | J26: 2 | K26: 2 | L26: 1 | M26: =IF(INTRO!$E$38="Endemic", IF($H26>0, IF($H26=4,"Unknown", IF($H26=99,"Stopped", $D26)), 0),"Not required") -> 0 | N26: =IF(INTRO!$E$40="Endemic", IF($I26>0, IF($I26=4,"Unknown",IF($I26=99,"Stopped", $D26)), 0),"Not required") -> 181782.7111 | O26: =IF(INTRO!$E$42="Endemic", IF(AND($J26>1,$J26<5), IF($J26=4, "Unknown", E26+F26), 0),"Not required") -> 79802 | P26: =IF(INTRO!$E$44="Endemic", IF(AND($K26>0,$K26<5), IF($K26=4,"Unknown", IF($K26=1, $F26*0.33, IF($K26=2, $F26*0.5+$G26*0.2, SUM(F26:G26)))), 0),"Not required") -> 44518.3 | Q26: 0 | R26: 0 | S26: 1 | T26: 1 | U26: T1 (PZQ+ALB/MBD) | W26: 2066 | X26: CAMACUPA | Z26: 56800 | AA26: 52167 | AB26: 42452
A27: =IF(INTRO!$E$34<>0,INTRO!$E$34,"") -> Angola | B27: BIE | C27: CATABOLA | D27: 148580.8019 | E27: =IF(INTRO!$E$48="","",ROUND($D27*INTRO!$E$48,0)) -> 23773 | F27: =IF(INTRO!$E$49="","",ROUND($D27*INTRO!$E$49,0)) -> 41454 | G27: =IF(INTRO!$E$50="","",ROUND($D27*INTRO!$E$50,0)) -> 78302 | H27: 0 | I27: 1 | J27: 2 | K27: 2 | L27: 1 | M27: =IF(INTRO!$E$38="Endemic", IF($H27>0, IF($H27=4,"Unknown", IF($H27=99,"Stopped", $D27)), 0),"Not required") -> 0 | N27: =IF(INTRO!$E$40="Endemic", IF($I27>0, IF($I27=4,"Unknown",IF($I27=99,"Stopped", $D27)), 0),"Not required") -> 148580.8019 | O27: =IF(INTRO!$E$42="Endemic", IF(AND($J27>1,$J27<5), IF($J27=4, "Unknown", E27+F27), 0),"Not required") -> 65227 | P27: =IF(INTRO!$E$44="Endemic", IF(AND($K27>0,$K27<5), IF($K27=4,"Unknown", IF($K27=1, $F27*0.33, IF($K27=2, $F27*0.5+$G27*0.2, SUM(F27:G27)))), 0),"Not required") -> 36387.4 | Q27: 0 | R27: 0 | S27: 1 | T27: 1 | U27: T1 (PZQ+ALB/MBD) | W27: 2067 | X27: CATABOLA | Z27: 45784 | AA27: 50394 | AB27: 30152
A28: =IF(INTRO!$E$34<>0,INTRO!$E$34,"") -> Angola | B28: BIE | C28: CHINGUAR | D28: 151794.5712 | E28: =IF(INTRO!$E$48="","",ROUND($D28*INTRO!$E$48,0)) -> 24287 | F28: =IF(INTRO!$E$49="","",ROUND($D28*INTRO!$E$49,0)) -> 42351 | G28: =IF(INTRO!$E$50="","",ROUND($D28*INTRO!$E$50,0)) -> 79996 | H28: 0 | I28: 1 | J28: 2 | K28: 2 | L28: 1 | M28: =IF(INTRO!$E$38="Endemic", IF($H28>0, IF($H28=4,"Unknown", IF($H28=99,"Stopped", $D28)), 0),"Not required") -> 0 | N28: =IF(INTRO!$E$40="Endemic", IF($I28>0, IF($I28=4,"Unknown",IF($I28=99,"Stopped", $D28)), 0),"Not required") -> 151794.5712 | O28: =IF(INTRO!$E$42="Endemic", IF(AND($J28>1,$J28<5), IF($J28=4, "Unknown", E28+F28), 0),"Not required") -> 66638 | P28: =IF(INTRO!$E$44="Endemic", IF(AND($K28>0,$K28<5), IF($K28=4,"Unknown", IF($K28=1, $F28*0.33, IF($K28=2, $F28*0.5+$G28*0.2, SUM(F28:G28)))), 0),"Not required") -> 37174.7 | Q28: 0 | R28: 0 | S28: 1 | T28: 1 | U28: T1 (PZQ+ALB/MBD) | W28: 2064 | X28: CHINGUAR | Z28: 39338 | AA28: 44876 | AB28: 42080
A29: =IF(INTRO!$E$34<>0,INTRO!$E$34,"") -> Angola | B29: BIE | C29: CHITEMBO | D29: 91703.30454 | E29: =IF(INTRO!$E$48="","",ROUND($D29*INTRO!$E$48,0)) -> 14673 | F29: =IF(INTRO!$E$49="","",ROUND($D29*INTRO!$E$49,0)) -> 25585 | G29: =IF(INTRO!$E$50="","",ROUND($D29*INTRO!$E$50,0)) -> 48328 | H29: 0 | I29: 4 | J29: 2 | K29: 2 | L29: 1 | M29: =IF(INTRO!$E$38="Endemic", IF($H29>0, IF($H29=4,"Unknown", IF($H29=99,"Stopped", $D29)), 0),"Not required") -> 0 | N29: =IF(INTRO!$E$40="Endemic", IF($I29>0, IF($I29=4,"Unknown",IF($I29=99,"Stopped", $D29)), 0),"Not required") -> Unknown | O29: =IF(INTRO!$E$42="Endemic", IF(AND($J29>1,$J29<5), IF($J29=4, "Unknown", E29+F29), 0),"Not required") -> 40258 | P29: =IF(INTRO!$E$44="Endemic", IF(AND($K29>0,$K29<5), IF($K29=4,"Unknown", IF($K29=1, $F29*0.33, IF($K29=2, $F29*0.5+$G29*0.2, SUM(F29:G29)))), 0),"Not required") -> 22458.1 | Q29: 0 | R29: 0 | S29: 1 | T29: 1 | U29: T1 (PZQ+ALB/MBD) | W29: 2065 | X29: CHITEMBO | Z29: 30091 | AA29: 28673 | AB29: 29781
A30: =IF(INTRO!$E$34<>0,INTRO!$E$34,"") -> Angola | B30: BIE | C30: CUEMBA | D30: 66836.77947 | E30: =IF(INTRO!$E$48="","",ROUND($D30*INTRO!$E$48,0)) -> 10694 | F30: =IF(INTRO!$E$49="","",ROUND($D30*INTRO!$E$49,0)) -> 18647 | G30: =IF(INTRO!$E$50="","",ROUND($D30*INTRO!$E$50,0)) -> 35223 | H30: 0 | I30: 1 | J30: 2 | K30: 2 | L30: 1 | M30: =IF(INTRO!$E$38="Endemic", IF($H30>0, IF($H30=4,"Unknown", IF($H30=99,"Stopped", $D30)), 0),"Not required") -> 0 | N30: =IF(INTRO!$E$40="Endemic", IF($I30>0, IF($I30=4,"Unknown",IF($I30=99,"Stopped", $D30)), 0),"Not required") -> 66836.77947 | O30: =IF(INTRO!$E$42="Endemic", IF(AND($J30>1,$J30<5), IF($J30=4, "Unknown", E30+F30), 0),"Not required") -> 29341 | P30: =IF(INTRO!$E$44="Endemic", IF(AND($K30>0,$K30<5), IF($K30=4,"Unknown", IF($K30=1, $F30*0.33, IF($K30=2, $F30*0.5+$G30*0.2, SUM(F30:G30)))), 0),"Not required") -> 16368.1 | Q30: 0 | R30: 0 | S30: 1 | T30: 1 | U30: T1 (PZQ+ALB/MBD) | W30: 2068 | X30: CUEMBA | Z30: 15387 | AA30: 12208 | AB30: 15289
A31: =IF(INTRO!$E$34<>0,INTRO!$E$34,"") -> Angola | B31: BIE | C31: CUITO | D31: 529035.2328 | E31: =IF(INTRO!$E$48="","",ROUND($D31*INTRO!$E$48,0)) -> 84646 | F31: =IF(INTRO!$E$49="","",ROUND($D31*INTRO!$E$49,0)) -> 147601 | G31: =IF(INTRO!$E$50="","",ROUND($D31*INTRO!$E$50,0)) -> 278802 | H31: 0 | I31: 1 | J31: 2 | K31: 2 | L31: 1 | M31: =IF(INTRO!$E$38="Endemic", IF($H31>0, IF($H31=4,"Unknown", IF($H31=99,"Stopped", $D31)), 0),"Not required") -> 0 | N31: =IF(INTRO!$E$40="Endemic", IF($I31>0, IF($I31=4,"Unknown",IF($I31=99,"Stopped", $D31)), 0),"Not required") -> 529035.2328 | O31: =IF(INTRO!$E$42="Endemic", IF(AND($J31>1,$J31<5), IF($J31=4, "Unknown", E31+F31), 0),"Not required") -> 232247 | P31: =IF(INTRO!$E$44="Endemic", IF(AND($K31>0,$K31<5), IF($K31=4,"Unknown", IF($K31=1, $F31*0.33, IF($K31=2, $F31*0.5+$G31*0.2, SUM(F31:G31)))), 0),"Not required") -> 129560.9 | Q31: 0 | R31: 0 | S31: 1 | T31: 1 | U31: T1 (PZQ+ALB/MBD) | W31: 2070 | X31: CUNHINGA | Z31: 38497 | AA31: 29844 | AB31: 31210
A32: =IF(INTRO!$E$34<>0,INTRO!$E$34,"") -> Angola | B32: BIE | C32: CUNHINGA | D32: 86622.75655 | E32: =IF(INTRO!$E$48="","",ROUND($D32*INTRO!$E$48,0)) -> 13860 | F32: =IF(INTRO!$E$49="","",ROUND($D32*INTRO!$E$49,0)) -> 24168 | G32: =IF(INTRO!$E$50="","",ROUND($D32*INTRO!$E$50,0)) -> 45650 | H32: 0 | I32: 1 | J32: 2 | K32: 2 | L32: 1 | M32: =IF(INTRO!$E$38="Endemic", IF($H32>0, IF($H32=4,"Unknown", IF($H32=99,"Stopped", $D32)), 0),"Not required") -> 0 | N32: =IF(INTRO!$E$40="Endemic", IF($I32>0, IF($I32=4,"Unknown",IF($I32=99,"Stopped", $D32)), 0),"Not required") -> 86622.75655 | O32: =IF(INTRO!$E$42="Endemic", IF(AND($J32>1,$J32<5), IF($J32=4, "Unknown", E32+F32), 0),"Not required") -> 38028 | P32: =IF(INTRO!$E$44="Endemic", IF(AND($K32>0,$K32<5), IF($K32=4,"Unknown", IF($K32=1, $F32*0.33, IF($K32=2, $F32*0.5+$G32*0.2, SUM(F32:G32)))), 0),"Not required") -> 21214 | Q32: 0 | R32: 0 | S32: 1 | T32: 1 | U32: T1 (PZQ+ALB/MBD) | W32: 2069 | X32: KUITO | Z32: 125000 | AA32: 122485 | AB32: 134210
A33: =IF(INTRO!$E$34<>0,INTRO!$E$34,"") -> Angola | B33: BIE | C33: NHAREA | D33: 148238.1876 | E33: =IF(INTRO!$E$48="","",ROUND($D33*INTRO!$E$48,0)) -> 23718 | F33: =IF(INTRO!$E$49="","",ROUND($D33*INTRO!$E$49,0)) -> 41358 | G33: =IF(INTRO!$E$50="","",ROUND($D33*INTRO!$E$50,0)) -> 78122 | H33: 0 | I33: 1 | J33: 2 | K33: 2 | L33: 1 | M33: =IF(INTRO!$E$38="Endemic", IF($H33>0, IF($H33=4,"Unknown", IF($H33=99,"Stopped", $D33)), 0),"Not required") -> 0 | N33: =IF(INTRO!$E$40="Endemic", IF($I33>0, IF($I33=4,"Unknown",IF($I33=99,"Stopped", $D33)), 0),"Not required") -> 148238.1876 | O33: =IF(INTRO!$E$42="Endemic", IF(AND($J33>1,$J33<5), IF($J33=4, "Unknown", E33+F33), 0),"Not required") -> 65076 | P33: =IF(INTRO!$E$44="Endemic", IF(AND($K33>0,$K33<5), IF($K33=4,"Unknown", IF($K33=1, $F33*0.33, IF($K33=2, $F33*0.5+$G33*0.2, SUM(F33:G33)))), 0),"Not required") -> 36303.4 | Q33: 0 | R33: 0 | S33: 1 | T33: 1 | U33: T1 (PZQ+ALB/MBD) | W33: 2071 | X33: NHAREA | Z33: 34498 | AA33: 25964 | AB33: 29655
A34: =IF(INTRO!$E$34<>0,INTRO!$E$34,"") -> Angola | B34: CABINDA | C34: BELIZE | D34: 22951.63954 | E34: =IF(INTRO!$E$48="","",ROUND($D34*INTRO!$E$48,0)) -> 3672 | F34: =IF(INTRO!$E$49="","",ROUND($D34*INTRO!$E$49,0)) -> 6404 | G34: =IF(INTRO!$E$50="","",ROUND($D34*INTRO!$E$50,0)) -> 12096 | H34: 4 | I34: 4 | J34: 3 | K34: 2 | L34: 1 | M34: =IF(INTRO!$E$38="Endemic", IF($H34>0, IF($H34=4,"Unknown", IF($H34=99,"Stopped", $D34)), 0),"Not required") -> Unknown | N34: =IF(INTRO!$E$40="Endemic", IF($I34>0, IF($I34=4,"Unknown",IF($I34=99,"Stopped", $D34)), 0),"Not required") -> Unknown | O34: =IF(INTRO!$E$42="Endemic", IF(AND($J34>1,$J34<5), IF($J34=4, "Unknown", E34+F34), 0),"Not required") -> 10076 | P34: =IF(INTRO!$E$44="Endemic", IF(AND($K34>0,$K34<5), IF($K34=4,"Unknown", IF($K34=1, $F34*0.33, IF($K34=2, $F34*0.5+$G34*0.2, SUM(F34:G34)))), 0),"Not required") -> 5621.2 | Q34: 0 | R34: 0 | S34: 0 | T34: 0 | W34: 2072 | X34: BELIZE | Z34: 0 | AA34: 0 | AB34: 0
A35: =IF(INTRO!$E$34<>0,INTRO!$E$34,"") -> Angola | B35: CABINDA | C35: BUCO ZAU | D35: 38476.05766 | E35: =IF(INTRO!$E$48="","",ROUND($D35*INTRO!$E$48,0)) -> 6156 | F35: =IF(INTRO!$E$49="","",ROUND($D35*INTRO!$E$49,0)) -> 10735 | G35: =IF(INTRO!$E$50="","",ROUND($D35*INTRO!$E$50,0)) -> 20277 | H35: 1 | I35: 4 | J35: 3 | K35: 2 | L35: 1 | M35: =IF(INTRO!$E$38="Endemic", IF($H35>0, IF($H35=4,"Unknown", IF($H35=99,"Stopped", $D35)), 0),"Not required") -> 38476.05766 | N35: =IF(INTRO!$E$40="Endemic", IF($I35>0, IF($I35=4,"Unknown",IF($I35=99,"Stopped", $D35)), 0),"Not required") -> Unknown | O35: =IF(INTRO!$E$42="Endemic", IF(AND($J35>1,$J35<5), IF($J35=4, "Unknown", E35+F35), 0),"Not required") -> 16891 | P35: =IF(INTRO!$E$44="Endemic", IF(AND($K35>0,$K35<5), IF($K35=4,"Unknown", IF($K35=1, $F35*0.33, IF($K35=2, $F35*0.5+$G35*0.2, SUM(F35:G35)))), 0),"Not required") -> 9422.9 | Q35: 0 | R35: 0 | S35: 0 | T35: 0 | W35: 2073 | X35: BUCO ZAU | Z35: 0 | AA35: 0 | AB35: 0
A36: =IF(INTRO!$E$34<>0,INTRO!$E$34,"") -> Angola | B36: CABINDA | C36: CABINDA | D36: 732920.0876 | E36: =IF(INTRO!$E$48="","",ROUND($D36*INTRO!$E$48,0)) -> 117267 | F36: =IF(INTRO!$E$49="","",ROUND($D36*INTRO!$E$49,0)) -> 204485 | G36: =IF(INTRO!$E$50="","",ROUND($D36*INTRO!$E$50,0)) -> 386249 | H36: 4 | I36: 4 | J36: 3 | K36: 2 | L36: 1 | M36: =IF(INTRO!$E$38="Endemic", IF($H36>0, IF($H36=4,"Unknown", IF($H36=99,"Stopped", $D36)), 0),"Not required") -> Unknown | N36: =IF(INTRO!$E$40="Endemic", IF($I36>0, IF($I36=4,"Unknown",IF($I36=99,"Stopped", $D36)), 0),"Not required") -> Unknown | O36: =IF(INTRO!$E$42="Endemic", IF(AND($J36>1,$J36<5), IF($J36=4, "Unknown", E36+F36), 0),"Not required") -> 321752 | P36: =IF(INTRO!$E$44="Endemic", IF(AND($K36>0,$K36<5), IF($K36=4,"Unknown", IF($K36=1, $F36*0.33, IF($K36=2, $F36*0.5+$G36*0.2, SUM(F36:G36)))), 0),"Not required") -> 179492.3 | Q36: 0 | R36: 0 | S36: 0 | T36: 0 | W36: 2074 | X36: CABINDA | Z36: 0 | AA36: 11387 | AB36: 0
A37: =IF(INTRO!$E$34<>0,INTRO!$E$34,"") -> Angola | B37: CABINDA | C37: CACONGO | D37: 45849.3056 | E37: =IF(INTRO!$E$48="","",ROUND($D37*INTRO!$E$48,0)) -> 7336 | F37: =IF(INTRO!$E$49="","",ROUND($D37*INTRO!$E$49,0)) -> 12792 | G37: =IF(INTRO!$E$50="","",ROUND($D37*INTRO!$E$50,0)) -> 24163 | H37: 1 | I37: 4 | J37: 3 | K37: 2 | L37: 1 | M37: =IF(INTRO!$E$38="Endemic", IF($H37>0, IF($H37=4,"Unknown", IF($H37=99,"Stopped", $D37)), 0),"Not required") -> 45849.3056 | N37: =IF(INTRO!$E$40="Endemic", IF($I37>0, IF($I37=4,"Unknown",IF($I37=99,"Stopped", $D37)), 0),"Not required") -> Unknown | O37: =IF(INTRO!$E$42="Endemic", IF(AND($J37>1,$J37<5), IF($J37=4, "Unknown", E37+F37), 0),"Not required") -> 20128 | P37: =IF(INTRO!$E$44="Endemic", IF(AND($K37>0,$K37<5), IF($K37=4,"Unknown", IF($K37=1, $F37*0.33, IF($K37=2, $F37*0.5+$G37*0.2, SUM(F37:G37)))), 0),"Not required") -> 11228.6 | Q37: 0 | R37: 0 | S37: 0 | T37: 0 | W37: 2213 | X37: CACONGO | Z37: 0 | AA37: 0 | AB37: 0
A38: =IF(INTRO!$E$34<>0,INTRO!$E$34,"") -> Angola | B38: CUANDO CUBANGO | C38: CALAI | D38: 26580.77001 | E38: =IF(INTRO!$E$48="","",ROUND($D38*INTRO!$E$48,0)) -> 4253 | F38: =IF(INTRO!$E$49="","",ROUND($D38*INTRO!$E$49,0)) -> 7416 | G38: =IF(INTRO!$E$50="","",ROUND($D38*INTRO!$E$50,0)) -> 14008 | H38: 0 | I38: 4 | J38: 2 | K38: 2 | L38: 1 | M38: =IF(INTRO!$E$38="Endemic", IF($H38>0, IF($H38=4,"Unknown", IF($H38=99,"Stopped", $D38)), 0),"Not required") -> 0 | N38: =IF(INTRO!$E$40="Endemic", IF($I38>0, IF($I38=4,"Unknown",IF($I38=99,"Stopped", $D38)), 0),"Not required") -> Unknown | O38: =IF(INTRO!$E$42="Endemic", IF(AND($J38>1,$J38<5), IF($J38=4, "Unknown", E38+F38), 0),"Not required") -> 11669 | P38: =IF(INTRO!$E$44="Endemic", IF(AND($K38>0,$K38<5), IF($K38=4,"Unknown", IF($K38=1, $F38*0.33, IF($K38=2, $F38*0.5+$G38*0.2, SUM(F38:G38)))), 0),"Not required") -> 6509.6 | Q38: 0 | R38: 0 | S38: 0 | T38: 0 | W38: 2110 | X38: CAHAMA | Z38: 0 | AA38: 0 | AB38: 0
A39: =IF(INTRO!$E$34<>0,INTRO!$E$34,"") -> Angola | B39: CUANDO CUBANGO | C39: CUANGAR | D39: 33391.98966 | E39: =IF(INTRO!$E$48="","",ROUND($D39*INTRO!$E$48,0)) -> 5343 | F39: =IF(INTRO!$E$49="","",ROUND($D39*INTRO!$E$49,0)) -> 9316 | G39: =IF(INTRO!$E$50="","",ROUND($D39*INTRO!$E$50,0)) -> 17598 | H39: 0 | I39: 1 | J39: 2 | K39: 2 | L39: 1 | M39: =IF(INTRO!$E$38="Endemic", IF($H39>0, IF($H39=4,"Unknown", IF($H39=99,"Stopped", $D39)), 0),"Not required") -> 0 | N39: =IF(INTRO!$E$40="Endemic", IF($I39>0, IF($I39=4,"Unknown",IF($I39=99,"Stopped", $D39)), 0),"Not required") -> 33391.98966 | O39: =IF(INTRO!$E$42="Endemic", IF(AND($J39>1,$J39<5), IF($J39=4, "Unknown", E39+F39), 0),"Not required") -> 14659 | P39: =IF(INTRO!$E$44="Endemic", IF(AND($K39>0,$K39<5), IF($K39=4,"Unknown", IF($K39=1, $F39*0.33, IF($K39=2, $F39*0.5+$G39*0.2, SUM(F39:G39)))), 0),"Not required") -> 8177.6 | Q39: 0 | R39: 0 | S39: 0 | T39: 0 | W39: 2113 | X39: CUANHAMA | Z39: 0 | AA39: 0 | AB39: 0
A40: =IF(INTRO!$E$34<>0,INTRO!$E$34,"") -> Angola | B40: CUANDO CUBANGO | C40: CUCHI | D40: 50422.97212 | E40: =IF(INTRO!$E$48="","",ROUND($D40*INTRO!$E$48,0)) -> 8068 | F40: =IF(INTRO!$E$49="","",ROUND($D40*INTRO!$E$49,0)) -> 14068 | G40: =IF(INTRO!$E$50="","",ROUND($D40*INTRO!$E$50,0)) -> 26573 | H40: 0 | I40: 1 | J40: 2 | K40: 2 | L40: 1 | M40: =IF(INTRO!$E$38="Endemic", IF($H40>0, IF($H40=4,"Unknown", IF($H40=99,"Stopped", $D40)), 0),"Not required") -> 0 | N40: =IF(INTRO!$E$40="Endemic", IF($I40>0, IF($I40=4,"Unknown",IF($I40=99,"Stopped", $D40)), 0),"Not required") -> 50422.97212 | O40: =IF(INTRO!$E$42="Endemic", IF(AND($J40>1,$J40<5), IF($J40=4, "Unknown", E40+F40), 0),"Not required") -> 22136 | P40: =IF(INTRO!$E$44="Endemic", IF(AND($K40>0,$K40<5), IF($K40=4,"Unknown", IF($K40=1, $F40*0.33, IF($K40=2, $F40*0.5+$G40*0.2, SUM(F40:G40)))), 0),"Not required") -> 12348.6 | Q40: 0 | R40: 0 | S40: 0 | T40: 0 | W40: 2111 | X40: CUROCA | Z40: 0 | AA40: 0 | AB40: 0
A41: =IF(INTRO!$E$34<>0,INTRO!$E$34,"") -> Angola | B41: CUANDO CUBANGO | C41: CUITO CUANAVALE | D41: 47906.16486 | E41: =IF(INTRO!$E$48="","",ROUND($D41*INTRO!$E$48,0)) -> 7665 | F41: =IF(INTRO!$E$49="","",ROUND($D41*INTRO!$E$49,0)) -> 13366 | G41: =IF(INTRO!$E$50="","",ROUND($D41*INTRO!$E$50,0)) -> 25247 | H41: 0 | I41: 1 | J41: 2 | K41: 2 | L41: 1 | M41: =IF(INTRO!$E$38="Endemic", IF($H41>0, IF($H41=4,"Unknown", IF($H41=99,"Stopped", $D41)), 0),"Not required") -> 0 | N41: =IF(INTRO!$E$40="Endemic", IF($I41>0, IF($I41=4,"Unknown",IF($I41=99,"Stopped", $D41)), 0),"Not required") -> 47906.16486 | O41: =IF(INTRO!$E$42="Endemic", IF(AND($J41>1,$J41<5), IF($J41=4, "Unknown", E41+F41), 0),"Not required") -> 21031 | P41: =IF(INTRO!$E$44="Endemic", IF(AND($K41>0,$K41<5), IF($K41=4,"Unknown", IF($K41=1, $F41*0.33, IF($K41=2, $F41*0.5+$G41*0.2, SUM(F41:G41)))), 0),"Not required") -> 11732.4 | Q41: 0 | R41: 0 | S41: 0 | T41: 0 | W41: 2112 | X41: CUVELAI | Z41: 0 | AA41: 0 | AB41: 0
A42: =IF(INTRO!$E$34<>0,INTRO!$E$34,"") -> Angola | B42: CUANDO CUBANGO | C42: DIRICO | D42: 17747.8912 | E42: =IF(INTRO!$E$48="","",ROUND($D42*INTRO!$E$48,0)) -> 2840 | F42: =IF(INTRO!$E$49="","",ROUND($D42*INTRO!$E$49,0)) -> 4952 | G42: =IF(INTRO!$E$50="","",ROUND($D42*INTRO!$E$50,0)) -> 9353 | H42: 0 | I42: 4 | J42: 2 | K42: 2 | L42: 1 | M42: =IF(INTRO!$E$38="Endemic", IF($H42>0, IF($H42=4,"Unknown", IF($H42=99,"Stopped", $D42)), 0),"Not required") -> 0 | N42: =IF(INTRO!$E$40="Endemic", IF($I42>0, IF($I42=4,"Unknown",IF($I42=99,"Stopped", $D42)), 0),"Not required") -> Unknown | O42: =IF(INTRO!$E$42="Endemic", IF(AND($J42>1,$J42<5), IF($J42=4, "Unknown", E42+F42), 0),"Not required") -> 7792 | P42: =IF(INTRO!$E$44="Endemic", IF(AND($K42>0,$K42<5), IF($K42=4,"Unknown", IF($K42=1, $F42*0.33, IF($K42=2, $F42*0.5+$G42*0.2, SUM(F42:G42)))), 0),"Not required") -> 4346.6 | Q42: 0 | R42: 0 | S42: 0 | T42: 0 | W42: 2114 | X42: NAMACUNDE | Z42: 0 | AA42: 0 | AB42: 0
A43: =IF(INTRO!$E$34<>0,INTRO!$E$34,"") -> Angola | B43: CUANDO CUBANGO | C43: MAVINGA | D43: 31910.06539 | E43: =IF(INTRO!$E$48="","",ROUND($D43*INTRO!$E$48,0)) -> 5106 | F43: =IF(INTRO!$E$49="","",ROUND($D43*INTRO!$E$49,0)) -> 8903 | G43: =IF(INTRO!$E$50="","",ROUND($D43*INTRO!$E$50,0)) -> 16817 | H43: 0 | I43: 4 | J43: 2 | K43: 2 | L43: 1 | M43: =IF(INTRO!$E$38="Endemic", IF($H43>0, IF($H43=4,"Unknown", IF($H43=99,"Stopped", $D43)), 0),"Not required") -> 0 | N43: =IF(INTRO!$E$40="Endemic", IF($I43>0, IF($I43=4,"Unknown",IF($I43=99,"Stopped", $D43)), 0),"Not required") -> Unknown | O43: =IF(INTRO!$E$42="Endemic", IF(AND($J43>1,$J43<5), IF($J43=4, "Unknown", E43+F43), 0),"Not required") -> 14009 | P43: =IF(INTRO!$E$44="Endemic", IF(AND($K43>0,$K43<5), IF($K43=4,"Unknown", IF($K43=1, $F43*0.33, IF($K43=2, $F43*0.5+$G43*0.2, SUM(F43:G43)))), 0),"Not required") -> 7814.9 | Q43: 0 | R43: 0 | S43: 0 | T43: 0 | W43: 2115 | X43: OMBADJA | Z43: 0 | AA43: 0 | AB43: 0
A44: =IF(INTRO!$E$34<>0,INTRO!$E$34,"") -> Angola | B44: CUANDO CUBANGO | C44: MENONGUE | D44: 376540.1796 | E44: =IF(INTRO!$E$48="","",ROUND($D44*INTRO!$E$48,0)) -> 60246 | F44: =IF(INTRO!$E$49="","",ROUND($D44*INTRO!$E$49,0)) -> 105055 | G44: =IF(INTRO!$E$50="","",ROUND($D44*INTRO!$E$50,0)) -> 198437 | H44: 0 | I44: 1 | J44: 2 | K44: 2 | L44: 1 | M44: =IF(INTRO!$E$38="Endemic", IF($H44>0, IF($H44=4,"Unknown", IF($H44=99,"Stopped", $D44)), 0),"Not required") -> 0 | N44: =IF(INTRO!$E$40="Endemic", IF($I44>0, IF($I44=4,"Unknown",IF($I44=99,"Stopped", $D44)), 0),"Not required") -> 376540.1796 | O44: =IF(INTRO!$E$42="Endemic", IF(AND($J44>1,$J44<5), IF($J44=4, "Unknown", E44+F44), 0),"Not required") -> 165301 | P44: =IF(INTRO!$E$44="Endemic", IF(AND($K44>0,$K44<5), IF($K44=4,"Unknown", IF($K44=1, $F44*0.33, IF($K44=2, $F44*0.5+$G44*0.2, SUM(F44:G44)))), 0),"Not required") -> 92214.9 | Q44: 0 | R44: 0 | S44: 0 | T44: 0 | W44: 2116 | X44: BAILUNDO | Z44: 0 | AA44: 95728 | AB44: 0
A45: =IF(INTRO!$E$34<>0,INTRO!$E$34,"") -> Angola | B45: CUANDO CUBANGO | C45: NANKOVA | D45: 3280.649464 | E45: =IF(INTRO!$E$48="","",ROUND($D45*INTRO!$E$48,0)) -> 525 | F45: =IF(INTRO!$E$49="","",ROUND($D45*INTRO!$E$49,0)) -> 915 | G45: =IF(INTRO!$E$50="","",ROUND($D45*INTRO!$E$50,0)) -> 1729 | H45: 0 | I45: 1 | J45: 2 | K45: 2 | L45: 1 | M45: =IF(INTRO!$E$38="Endemic", IF($H45>0, IF($H45=4,"Unknown", IF($H45=99,"Stopped", $D45)), 0),"Not required") -> 0 | N45: =IF(INTRO!$E$40="Endemic", IF($I45>0, IF($I45=4,"Unknown",IF($I45=99,"Stopped", $D45)), 0),"Not required") -> 3280.649464 | O45: =IF(INTRO!$E$42="Endemic", IF(AND($J45>1,$J45<5), IF($J45=4, "Unknown", E45+F45), 0),"Not required") -> 1440 | P45: =IF(INTRO!$E$44="Endemic", IF(AND($K45>0,$K45<5), IF($K45=4,"Unknown", IF($K45=1, $F45*0.33, IF($K45=2, $F45*0.5+$G45*0.2, SUM(F45:G45)))), 0),"Not required") -> 803.3 | Q45: 0 | R45: 0 | S45: 0 | T45: 0 | W45: 2120 | X45: CAALA | Z45: 0 | AA45: 88150 | AB45: 0
A46: =IF(INTRO!$E$34<>0,INTRO!$E$34,"") -> Angola | B46: CUANDO CUBANGO | C46: RIVUNGO | D46: 38782.29854 | E46: =IF(INTRO!$E$48="","",ROUND($D46*INTRO!$E$48,0)) -> 6205 | F46: =IF(INTRO!$E$49="","",ROUND($D46*INTRO!$E$49,0)) -> 10820 | G46: =IF(INTRO!$E$50="","",ROUND($D46*INTRO!$E$50,0)) -> 20438 | H46: 0 | I46: 4 | J46: 2 | K46: 2 | L46: 4 | M46: =IF(INTRO!$E$38="Endemic", IF($H46>0, IF($H46=4,"Unknown", IF($H46=99,"Stopped", $D46)), 0),"Not required") -> 0 | N46: =IF(INTRO!$E$40="Endemic", IF($I46>0, IF($I46=4,"Unknown",IF($I46=99,"Stopped", $D46)), 0),"Not required") -> Unknown | O46: =IF(INTRO!$E$42="Endemic", IF(AND($J46>1,$J46<5), IF($J46=4, "Unknown", E46+F46), 0),"Not required") -> 17025 | P46: =IF(INTRO!$E$44="Endemic", IF(AND($K46>0,$K46<5), IF($K46=4,"Unknown", IF($K46=1, $F46*0.33, IF($K46=2, $F46*0.5+$G46*0.2, SUM(F46:G46)))), 0),"Not required") -> 9497.6 | Q46: 0 | R46: 0 | S46: 0 | T46: 0 | W46: 2118 | X46: EKUNHA | Z46: 0 | AA46: 32810 | AB46: 0
A47: =IF(INTRO!$E$34<>0,INTRO!$E$34,"") -> Angola | B47: CUANZA NORTE | C47: AMBACA | D47: 72475.83574 | E47: =IF(INTRO!$E$48="","",ROUND($D47*INTRO!$E$48,0)) -> 11596 | F47: =IF(INTRO!$E$49="","",ROUND($D47*INTRO!$E$49,0)) -> 20221 | G47: =IF(INTRO!$E$50="","",ROUND($D47*INTRO!$E$50,0)) -> 38195 | H47: 4 | I47: 1 | J47: 3 | K47: 2 | L47: 1 | M47: =IF(INTRO!$E$38="Endemic", IF($H47>0, IF($H47=4,"Unknown", IF($H47=99,"Stopped", $D47)), 0),"Not required") -> Unknown | N47: =IF(INTRO!$E$40="Endemic", IF($I47>0, IF($I47=4,"Unknown",IF($I47=99,"Stopped", $D47)), 0),"Not required") -> 72475.83574 | O47: =IF(INTRO!$E$42="Endemic", IF(AND($J47>1,$J47<5), IF($J47=4, "Unknown", E47+F47), 0),"Not required") -> 31817 | P47: =IF(INTRO!$E$44="Endemic", IF(AND($K47>0,$K47<5), IF($K47=4,"Unknown", IF($K47=1, $F47*0.33, IF($K47=2, $F47*0.5+$G47*0.2, SUM(F47:G47)))), 0),"Not required") -> 17749.5 | Q47: 0 | R47: 0 | S47: 0 | T47: 0 | W47: 2119 | X47: HUAMBO | Z47: 0 | AA47: 231640 | AB47: 0
A48: =IF(INTRO!$E$34<>0,INTRO!$E$34,"") -> Angola | B48: CUANZA NORTE | C48: BANGA | D48: 12148.72838 | E48: =IF(INTRO!$E$48="","",ROUND($D48*INTRO!$E$48,0)) -> 1944 | F48: =IF(INTRO!$E$49="","",ROUND($D48*INTRO!$E$49,0)) -> 3389 | G48: =IF(INTRO!$E$50="","",ROUND($D48*INTRO!$E$50,0)) -> 6402 | H48: 1 | I48: 1 | J48: 3 | K48: 2 | L48: 1 | M48: =IF(INTRO!$E$38="Endemic", IF($H48>0, IF($H48=4,"Unknown", IF($H48=99,"Stopped", $D48)), 0),"Not required") -> 12148.72838 | N48: =IF(INTRO!$E$40="Endemic", IF($I48>0, IF($I48=4,"Unknown",IF($I48=99,"Stopped", $D48)), 0),"Not required") -> 12148.72838 | O48: =IF(INTRO!$E$42="Endemic", IF(AND($J48>1,$J48<5), IF($J48=4, "Unknown", E48+F48), 0),"Not required") -> 5333 | P48: =IF(INTRO!$E$44="Endemic", IF(AND($K48>0,$K48<5), IF($K48=4,"Unknown", IF($K48=1, $F48*0.33, IF($K48=2, $F48*0.5+$G48*0.2, SUM(F48:G48)))), 0),"Not required") -> 2974.9 | Q48: 0 | R48: 0 | S48: 0 | T48: 0 | W48: 2121 | X48: CACHIUNGO | Z48: 0 | AA48: 50701 | AB48: 0
A49: =IF(INTRO!$E$34<>0,INTRO!$E$34,"") -> Angola | B49: CUANZA NORTE | C49: BOLONGONGO | D49: 15275.67073 | E49: =IF(INTRO!$E$48="","",ROUND($D49*INTRO!$E$48,0)) -> 2444 | F49: =IF(INTRO!$E$49="","",ROUND($D49*INTRO!$E$49,0)) -> 4262 | G49: =IF(INTRO!$E$50="","",ROUND($D49*INTRO!$E$50,0)) -> 8050 | H49: 1 | I49: 1 | J49: 3 | K49: 2 | L49: 1 | M49: =IF(INTRO!$E$38="Endemic", IF($H49>0, IF($H49=4,"Unknown", IF($H49=99,"Stopped", $D49)), 0),"Not required") -> 15275.67073 | N49: =IF(INTRO!$E$40="Endemic", IF($I49>0, IF($I49=4,"Unknown",IF($I49=99,"Stopped", $D49)), 0),"Not required") -> 15275.67073 | O49: =IF(INTRO!$E$42="Endemic", IF(AND($J49>1,$J49<5), IF($J49=4, "Unknown", E49+F49), 0),"Not required") -> 6706 | P49: =IF(INTRO!$E$44="Endemic", IF(AND($K49>0,$K49<5), IF($K49=4,"Unknown", IF($K49=1, $F49*0.33, IF($K49=2, $F49*0.5+$G49*0.2, SUM(F49:G49)))), 0),"Not required") -> 3741 | Q49: 0 | R49: 0 | S49: 0 | T49: 0 | W49: 2122 | X49: LONDUIMBALI | Z49: 0 | AA49: 37401 | AB49: 0
A50: =IF(INTRO!$E$34<>0,INTRO!$E$34,"") -> Angola | B50: CUANZA NORTE | C50: CAMBAMBE | D50: 106499.0806 | E50: =IF(INTRO!$E$48="","",ROUND($D50*INTRO!$E$48,0)) -> 17040 | F50: =IF(INTRO!$E$49="","",ROUND($D50*INTRO!$E$49,0)) -> 29713 | G50: =IF(INTRO!$E$50="","",ROUND($D50*INTRO!$E$50,0)) -> 56125 | H50: 0 | I50: 4 | J50: 3 | K50: 2 | L50: 1 | M50: =IF(INTRO!$E$38="Endemic", IF($H50>0, IF($H50=4,"Unknown", IF($H50=99,"Stopped", $D50)), 0),"Not required") -> 0 | N50: =IF(INTRO!$E$40="Endemic", IF($I50>0, IF($I50=4,"Unknown",IF($I50=99,"Stopped", $D50)), 0),"Not required") -> Unknown | O50: =IF(INTRO!$E$42="Endemic", IF(AND($J50>1,$J50<5), IF($J50=4, "Unknown", E50+F50), 0),"Not required") -> 46753 | P50: =IF(INTRO!$E$44="Endemic", IF(AND($K50>0,$K50<5), IF($K50=4,"Unknown", IF($K50=1, $F50*0.33, IF($K50=2, $F50*0.5+$G50*0.2, SUM(F50:G50)))), 0),"Not required") -> 26081.5 | Q50: 0 | R50: 0 | S50: 0 | T50: 0 | W50: 2123 | X50: LONGONJO | Z50: 0 | AA50: 34008 | AB50: 0
A51: =IF(INTRO!$E$34<>0,INTRO!$E$34,"") -> Angola | B51: CUANZA NORTE | C51: CAZENGO | D51: 201512.368 | E51: =IF(INTRO!$E$48="","",ROUND($D51*INTRO!$E$48,0)) -> 32242 | F51: =IF(INTRO!$E$49="","",ROUND($D51*INTRO!$E$49,0)) -> 56222 | G51: =IF(INTRO!$E$50="","",ROUND($D51*INTRO!$E$50,0)) -> 106197 | H51: 4 | I51: 4 | J51: 3 | K51: 2 | L51: 1 | M51: =IF(INTRO!$E$38="Endemic", IF($H51>0, IF($H51=4,"Unknown", IF($H51=99,"Stopped", $D51)), 0),"Not required") -> Unknown | N51: =IF(INTRO!$E$40="Endemic", IF($I51>0, IF($I51=4,"Unknown",IF($I51=99,"Stopped", $D51)), 0),"Not required") -> Unknown | O51: =IF(INTRO!$E$42="Endemic", IF(AND($J51>1,$J51<5), IF($J51=4, "Unknown", E51+F51), 0),"Not required") -> 88464 | P51: =IF(INTRO!$E$44="Endemic", IF(AND($K51>0,$K51<5), IF($K51=4,"Unknown", IF($K51=1, $F51*0.33, IF($K51=2, $F51*0.5+$G51*0.2, SUM(F51:G51)))), 0),"Not required") -> 49350.4 | Q51: 0 | R51: 0 | S51: 0 | T51: 0 | W51: 2124 | X51: MUNGO | Z51: 0 | AA51: 30940 | AB51: 0
A52: =IF(INTRO!$E$34<>0,INTRO!$E$34,"") -> Angola | B52: CUANZA NORTE | C52: GOLUNGO ALTO | D52: 39698.67452 | E52: =IF(INTRO!$E$48="","",ROUND($D52*INTRO!$E$48,0)) -> 6352 | F52: =IF(INTRO!$E$49="","",ROUND($D52*INTRO!$E$49,0)) -> 11076 | G52: =IF(INTRO!$E$50="","",ROUND($D52*INTRO!$E$50,0)) -> 20921 | H52: 1 | I52: 1 | J52: 3 | K52: 2 | L52: 1 | M52: =IF(INTRO!$E$38="Endemic", IF($H52>0, IF($H52=4,"Unknown", IF($H52=99,"Stopped", $D52)), 0),"Not required") -> 39698.67452 | N52: =IF(INTRO!$E$40="Endemic", IF($I52>0, IF($I52=4,"Unknown",IF($I52=99,"Stopped", $D52)), 0),"Not required") -> 39698.67452 | O52: =IF(INTRO!$E$42="Endemic", IF(AND($J52>1,$J52<5), IF($J52=4, "Unknown", E52+F52), 0),"Not required") -> 17428 | P52: =IF(INTRO!$E$44="Endemic", IF(AND($K52>0,$K52<5), IF($K52=4,"Unknown", IF($K52=1, $F52*0.33, IF($K52=2, $F52*0.5+$G52*0.2, SUM(F52:G52)))), 0),"Not required") -> 9722.2 | Q52: 0 | R52: 0 | S52: 0 | T52: 0 | W52: 2125 | X52: TCHICALA TCHOLOHANGA | Z52: 0 | AA52: 31194 | AB52: 0
A53: =IF(INTRO!$E$34<>0,INTRO!$E$34,"") -> Angola | B53: CUANZA NORTE | C53: GONGUEMBO | D53: 8889.198976 | E53: =IF(INTRO!$E$48="","",ROUND($D53*INTRO!$E$48,0)) -> 1422 | F53: =IF(INTRO!$E$49="","",ROUND($D53*INTRO!$E$49,0)) -> 2480 | G53: =IF(INTRO!$E$50="","",ROUND($D53*INTRO!$E$50,0)) -> 4685 | H53: 4 | I53: 1 | J53: 3 | K53: 2 | L53: 1 | M53: =IF(INTRO!$E$38="Endemic", IF($H53>0, IF($H53=4,"Unknown", IF($H53=99,"Stopped", $D53)), 0),"Not required") -> Unknown | N53: =IF(INTRO!$E$40="Endemic", IF($I53>0, IF($I53=4,"Unknown",IF($I53=99,"Stopped", $D53)), 0),"Not required") -> 8889.198976 | O53: =IF(INTRO!$E$42="Endemic", IF(AND($J53>1,$J53<5), IF($J53=4, "Unknown", E53+F53), 0),"Not required") -> 3902 | P53: =IF(INTRO!$E$44="Endemic", IF(AND($K53>0,$K53<5), IF($K53=4,"Unknown", IF($K53=1, $F53*0.33, IF($K53=2, $F53*0.5+$G53*0.2, SUM(F53:G53)))), 0),"Not required") -> 2177 | Q53: 0 | R53: 0 | S53: 0 | T53: 0 | W53: 2117 | X53: TCHINDJENJE | Z53: 0 | AA53: 10539 | AB53: 0
A54: =IF(INTRO!$E$34<>0,INTRO!$E$34,"") -> Angola | B54: CUANZA NORTE | C54: LUCALA | D54: 26604.23675 | E54: =IF(INTRO!$E$48="","",ROUND($D54*INTRO!$E$48,0)) -> 4257 | F54: =IF(INTRO!$E$49="","",ROUND($D54*INTRO!$E$49,0)) -> 7423 | G54: =IF(INTRO!$E$50="","",ROUND($D54*INTRO!$E$50,0)) -> 14020 | H54: 1 | I54: 4 | J54: 3 | K54: 2 | L54: 1 | M54: =IF(INTRO!$E$38="Endemic", IF($H54>0, IF($H54=4,"Unknown", IF($H54=99,"Stopped", $D54)), 0),"Not required") -> 26604.23675 | N54: =IF(INTRO!$E$40="Endemic", IF($I54>0, IF($I54=4,"Unknown",IF($I54=99,"Stopped", $D54)), 0),"Not required") -> Unknown | O54: =IF(INTRO!$E$42="Endemic", IF(AND($J54>1,$J54<5), IF($J54=4, "Unknown", E54+F54), 0),"Not required") -> 11680 | P54: =IF(INTRO!$E$44="Endemic", IF(AND($K54>0,$K54<5), IF($K54=4,"Unknown", IF($K54=1, $F54*0.33, IF($K54=2, $F54*0.5+$G54*0.2, SUM(F54:G54)))), 0),"Not required") -> 6515.5 | Q54: 0 | R54: 0 | S54: 0 | T54: 0 | W54: 2126 | X54: UKUMA | Z54: 0 | AA54: 18271 | AB54: 0
A55: =IF(INTRO!$E$34<>0,INTRO!$E$34,"") -> Angola | B55: CUANZA NORTE | C55: QUICULUNGO | D55: 11418.91294 | E55: =IF(INTRO!$E$48="","",ROUND($D55*INTRO!$E$48,0)) -> 1827 | F55: =IF(INTRO!$E$49="","",ROUND($D55*INTRO!$E$49,0)) -> 3186 | G55: =IF(INTRO!$E$50="","",ROUND($D55*INTRO!$E$50,0)) -> 6018 | H55: 1 | I55: 4 | J55: 3 | K55: 2 | L55: 1 | M55: =IF(INTRO!$E$38="Endemic", IF($H55>0, IF($H55=4,"Unknown", IF($H55=99,"Stopped", $D55)), 0),"Not required") -> 11418.91294 | N55: =IF(INTRO!$E$40="Endemic", IF($I55>0, IF($I55=4,"Unknown",IF($I55=99,"Stopped", $D55)), 0),"Not required") -> Unknown | O55: =IF(INTRO!$E$42="Endemic", IF(AND($J55>1,$J55<5), IF($J55=4, "Unknown", E55+F55), 0),"Not required") -> 5013 | P55: =IF(INTRO!$E$44="Endemic", IF(AND($K55>0,$K55<5), IF($K55=4,"Unknown", IF($K55=1, $F55*0.33, IF($K55=2, $F55*0.5+$G55*0.2, SUM(F55:G55)))), 0),"Not required") -> 2796.6 | Q55: 0 | R55: 0 | S55: 0 | T55: 0 | W55: 2133 | X55: CACONDA | Z55: 14112 | AA55: 0 | AB55: 0
A56: =IF(INTRO!$E$34<>0,INTRO!$E$34,"") -> Angola | B56: CUANZA NORTE | C56: SAMBA CAJU | D56: 25717.19419 | E56: =IF(INTRO!$E$48="","",ROUND($D56*INTRO!$E$48,0)) -> 4115 | F56: =IF(INTRO!$E$49="","",ROUND($D56*INTRO!$E$49,0)) -> 7175 | G56: =IF(INTRO!$E$50="","",ROUND($D56*INTRO!$E$50,0)) -> 13553 | H56: 4 | I56: 4 | J56: 3 | K56: 2 | L56: 1 | M56: =IF(INTRO!$E$38="Endemic", IF($H56>0, IF($H56=4,"Unknown", IF($H56=99,"Stopped", $D56)), 0),"Not required") -> Unknown | N56: =IF(INTRO!$E$40="Endemic", IF($I56>0, IF($I56=4,"Unknown",IF($I56=99,"Stopped", $D56)), 0),"Not required") -> Unknown | O56: =IF(INTRO!$E$42="Endemic", IF(AND($J56>1,$J56<5), IF($J56=4, "Unknown", E56+F56), 0),"Not required") -> 11290 | P56: =IF(INTRO!$E$44="Endemic", IF(AND($K56>0,$K56<5), IF($K56=4,"Unknown", IF($K56=1, $F56*0.33, IF($K56=2, $F56*0.5+$G56*0.2, SUM(F56:G56)))), 0),"Not required") -> 6298.1 | Q56: 0 | R56: 0 | S56: 0 | T56: 0 | W56: 2214 | X56: CACULA | Z56: 0 | AA56: 0 | AB56: 0
A57: =IF(INTRO!$E$34<>0,INTRO!$E$34,"") -> Angola | B57: CUANZA SUL | C57: AMBOIM | D57: 284468.4473 | E57: =IF(INTRO!$E$48="","",ROUND($D57*INTRO!$E$48,0)) -> 45515 | F57: =IF(INTRO!$E$49="","",ROUND($D57*INTRO!$E$49,0)) -> 79367 | G57: =IF(INTRO!$E$50="","",ROUND($D57*INTRO!$E$50,0)) -> 149915 | H57: 0 | I57: 4 | J57: 3 | K57: 2 | L57: 1 | M57: =IF(INTRO!$E$38="Endemic", IF($H57>0, IF($H57=4,"Unknown", IF($H57=99,"Stopped", $D57)), 0),"Not required") -> 0 | N57: =IF(INTRO!$E$40="Endemic", IF($I57>0, IF($I57=4,"Unknown",IF($I57=99,"Stopped", $D57)), 0),"Not required") -> Unknown | O57: =IF(INTRO!$E$42="Endemic", IF(AND($J57>1,$J57<5), IF($J57=4, "Unknown", E57+F57), 0),"Not required") -> 124882 | P57: =IF(INTRO!$E$44="Endemic", IF(AND($K57>0,$K57<5), IF($K57=4,"Unknown", IF($K57=1, $F57*0.33, IF($K57=2, $F57*0.5+$G57*0.2, SUM(F57:G57)))), 0),"Not required") -> 69666.5 | Q57: 0 | R57: 0 | S57: 1 | T57: 0 | U57: T3 (ALB/MBD) | W57: 2134 | X57: CALUQUEMBE | Z57: 11486 | AA57: 0 | AB57: 0
A58: =IF(INTRO!$E$34<>0,INTRO!$E$34,"") -> Angola | B58: CUANZA SUL | C58: CASSONGUE | D58: 178249.7942 | E58: =IF(INTRO!$E$48="","",ROUND($D58*INTRO!$E$48,0)) -> 28520 | F58: =IF(INTRO!$E$49="","",ROUND($D58*INTRO!$E$49,0)) -> 49732 | G58: =IF(INTRO!$E$50="","",ROUND($D58*INTRO!$E$50,0)) -> 93938 | H58: 4 | I58: 4 | J58: 3 | K58: 2 | L58: 1 | M58: =IF(INTRO!$E$38="Endemic", IF($H58>0, IF($H58=4,"Unknown", IF($H58=99,"Stopped", $D58)), 0),"Not required") -> Unknown | N58: =IF(INTRO!$E$40="Endemic", IF($I58>0, IF($I58=4,"Unknown",IF($I58=99,"Stopped", $D58)), 0),"Not required") -> Unknown | O58: =IF(INTRO!$E$42="Endemic", IF(AND($J58>1,$J58<5), IF($J58=4, "Unknown", E58+F58), 0),"Not required") -> 78252 | P58: =IF(INTRO!$E$44="Endemic", IF(AND($K58>0,$K58<5), IF($K58=4,"Unknown", IF($K58=1, $F58*0.33, IF($K58=2, $F58*0.5+$G58*0.2, SUM(F58:G58)))), 0),"Not required") -> 43653.6 | Q58: 0 | R58: 0 | S58: 1 | T58: 0 | U58: T3 (ALB/MBD) | W58: 2127 | X58: CHIBIA | Z58: 0 | AA58: 0 | AB58: 0
A59: =IF(INTRO!$E$34<>0,INTRO!$E$34,"") -> Angola | B59: CUANZA SUL | C59: CELA (Waku Kungo) | D59: 264610.8967 | E59: =IF(INTRO!$E$48="","",ROUND($D59*INTRO!$E$48,0)) -> 42338 | F59: =IF(INTRO!$E$49="","",ROUND($D59*INTRO!$E$49,0)) -> 73826 | G59: =IF(INTRO!$E$50="","",ROUND($D59*INTRO!$E$50,0)) -> 139450 | H59: 0 | I59: 4 | J59: 3 | K59: 2 | L59: 1 | M59: =IF(INTRO!$E$38="Endemic", IF($H59>0, IF($H59=4,"Unknown", IF($H59=99,"Stopped", $D59)), 0),"Not required") -> 0 | N59: =IF(INTRO!$E$40="Endemic", IF($I59>0, IF($I59=4,"Unknown",IF($I59=99,"Stopped", $D59)), 0),"Not required") -> Unknown | O59: =IF(INTRO!$E$42="Endemic", IF(AND($J59>1,$J59<5), IF($J59=4, "Unknown", E59+F59), 0),"Not required") -> 116164 | P59: =IF(INTRO!$E$44="Endemic", IF(AND($K59>0,$K59<5), IF($K59=4,"Unknown", IF($K59=1, $F59*0.33, IF($K59=2, $F59*0.5+$G59*0.2, SUM(F59:G59)))), 0),"Not required") -> 64803 | Q59: 0 | R59: 0 | S59: 1 | T59: 0 | U59: T3 (ALB/MBD) | W59: 2128 | X59: CHICOMBA | Z59: 0 | AA59: 0 | AB59: 0
A60: =IF(INTRO!$E$34<>0,INTRO!$E$34,"") -> Angola | B60: CUANZA SUL | C60: CONDA | D60: 104988.9962 | E60: =IF(INTRO!$E$48="","",ROUND($D60*INTRO!$E$48,0)) -> 16798 | F60: =IF(INTRO!$E$49="","",ROUND($D60*INTRO!$E$49,0)) -> 29292 | G60: =IF(INTRO!$E$50="","",ROUND($D60*INTRO!$E$50,0)) -> 55329 | H60: 0 | I60: 4 | J60: 3 | K60: 2 | L60: 1 | M60: =IF(INTRO!$E$38="Endemic", IF($H60>0, IF($H60=4,"Unknown", IF($H60=99,"Stopped", $D60)), 0),"Not required") -> 0 | N60: =IF(INTRO!$E$40="Endemic", IF($I60>0, IF($I60=4,"Unknown",IF($I60=99,"Stopped", $D60)), 0),"Not required") -> Unknown | O60: =IF(INTRO!$E$42="Endemic", IF(AND($J60>1,$J60<5), IF($J60=4, "Unknown", E60+F60), 0),"Not required") -> 46090 | P60: =IF(INTRO!$E$44="Endemic", IF(AND($K60>0,$K60<5), IF($K60=4,"Unknown", IF($K60=1, $F60*0.33, IF($K60=2, $F60*0.5+$G60*0.2, SUM(F60:G60)))), 0),"Not required") -> 25711.8 | Q60: 0 | R60: 0 | S60: 1 | T60: 0 | U60: T3 (ALB/MBD) | W60: 2129 | X60: CHIPINDO | Z60: 0 | AA60: 0 | AB60: 0
A61: =IF(INTRO!$E$34<>0,INTRO!$E$34,"") -> Angola | B61: CUANZA SUL | C61: EBO | D61: 193751.9189 | E61: =IF(INTRO!$E$48="","",ROUND($D61*INTRO!$E$48,0)) -> 31000 | F61: =IF(INTRO!$E$49="","",ROUND($D61*INTRO!$E$49,0)) -> 54057 | G61: =IF(INTRO!$E$50="","",ROUND($D61*INTRO!$E$50,0)) -> 102107 | H61: 0 | I61: 4 | J61: 3 | K61: 2 | L61: 1 | M61: =IF(INTRO!$E$38="Endemic", IF($H61>0, IF($H61=4,"Unknown", IF($H61=99,"Stopped", $D61)), 0),"Not required") -> 0 | N61: =IF(INTRO!$E$40="Endemic", IF($I61>0, IF($I61=4,"Unknown",IF($I61=99,"Stopped", $D61)), 0),"Not required") -> Unknown | O61: =IF(INTRO!$E$42="Endemic", IF(AND($J61>1,$J61<5), IF($J61=4, "Unknown", E61+F61), 0),"Not required") -> 85057 | P61: =IF(INTRO!$E$44="Endemic", IF(AND($K61>0,$K61<5), IF($K61=4,"Unknown", IF($K61=1, $F61*0.33, IF($K61=2, $F61*0.5+$G61*0.2, SUM(F61:G61)))), 0),"Not required") -> 47449.9 | Q61: 0 | R61: 0 | S61: 1 | T61: 0 | U61: T3 (ALB/MBD) | W61: 2130 | X61: GAMBOS | Z61: 0 | AA61: 0 | AB61: 0
A62: =IF(INTRO!$E$34<>0,INTRO!$E$34,"") -> Angola | B62: CUANZA SUL | C62: LIBOLO | D62: 108027.9383 | E62: =IF(INTRO!$E$48="","",ROUND($D62*INTRO!$E$48,0)) -> 17284 | F62: =IF(INTRO!$E$49="","",ROUND($D62*INTRO!$E$49,0)) -> 30140 | G62: =IF(INTRO!$E$50="","",ROUND($D62*INTRO!$E$50,0)) -> 56931 | H62: 0 | I62: 4 | J62: 3 | K62: 2 | L62: 1 | M62: =IF(INTRO!$E$38="Endemic", IF($H62>0, IF($H62=4,"Unknown", IF($H62=99,"Stopped", $D62)), 0),"Not required") -> 0 | N62: =IF(INTRO!$E$40="Endemic", IF($I62>0, IF($I62=4,"Unknown",IF($I62=99,"Stopped", $D62)), 0),"Not required") -> Unknown | O62: =IF(INTRO!$E$42="Endemic", IF(AND($J62>1,$J62<5), IF($J62=4, "Unknown", E62+F62), 0),"Not required") -> 47424 | P62: =IF(INTRO!$E$44="Endemic", IF(AND($K62>0,$K62<5), IF($K62=4,"Unknown", IF($K62=1, $F62*0.33, IF($K62=2, $F62*0.5+$G62*0.2, SUM(F62:G62)))), 0),"Not required") -> 26456.2 | Q62: 0 | R62: 0 | S62: 1 | T62: 0 | U62: T3 (ALB/MBD) | W62: 2131 | X62: HUMPATA | Z62: 0 | AA62: 0 | AB62: 0
A63: =IF(INTRO!$E$34<>0,INTRO!$E$34,"") -> Angola | B63: CUANZA SUL | C63: MUSSENDE | D63: 96851.90606 | E63: =IF(INTRO!$E$48="","",ROUND($D63*INTRO!$E$48,0)) -> 15496 | F63: =IF(INTRO!$E$49="","",ROUND($D63*INTRO!$E$49,0)) -> 27022 | G63: =IF(INTRO!$E$50="","",ROUND($D63*INTRO!$E$50,0)) -> 51041 | H63: 0 | I63: 1 | J63: 3 | K63: 2 | L63: 1 | M63: =IF(INTRO!$E$38="Endemic", IF($H63>0, IF($H63=4,"Unknown", IF($H63=99,"Stopped", $D63)), 0),"Not required") -> 0 | N63: =IF(INTRO!$E$40="Endemic", IF($I63>0, IF($I63=4,"Unknown",IF($I63=99,"Stopped", $D63)), 0),"Not required") -> 96851.90606 | O63: =IF(INTRO!$E$42="Endemic", IF(AND($J63>1,$J63<5), IF($J63=4, "Unknown", E63+F63), 0),"Not required") -> 42518 | P63: =IF(INTRO!$E$44="Endemic", IF(AND($K63>0,$K63<5), IF($K63=4,"Unknown", IF($K63=1, $F63*0.33, IF($K63=2, $F63*0.5+$G63*0.2, SUM(F63:G63)))), 0),"Not required") -> 23719.2 | Q63: 0 | R63: 0 | S63: 1 | T63: 0 | U63: T3 (ALB/MBD) | W63: 2132 | X63: JAMBA | Z63: 0 | AA63: 0 | AB63: 0
A64: =IF(INTRO!$E$34<>0,INTRO!$E$34,"") -> Angola | B64: CUANZA SUL | C64: PORTO AMBOIM | D64: 147804.053 | E64: =IF(INTRO!$E$48="","",ROUND($D64*INTRO!$E$48,0)) -> 23649 | F64: =IF(INTRO!$E$49="","",ROUND($D64*INTRO!$E$49,0)) -> 41237 | G64: =IF(INTRO!$E$50="","",ROUND($D64*INTRO!$E$50,0)) -> 77893 | H64: 1 | I64: 1 | J64: 3 | K64: 2 | L64: 1 | M64: =IF(INTRO!$E$38="Endemic", IF($H64>0, IF($H64=4,"Unknown", IF($H64=99,"Stopped", $D64)), 0),"Not required") -> 147804.053 | N64: =IF(INTRO!$E$40="Endemic", IF($I64>0, IF($I64=4,"Unknown",IF($I64=99,"Stopped", $D64)), 0),"Not required") -> 147804.053 | O64: =IF(INTRO!$E$42="Endemic", IF(AND($J64>1,$J64<5), IF($J64=4, "Unknown", E64+F64), 0),"Not required") -> 64886 | P64: =IF(INTRO!$E$44="Endemic", IF(AND($K64>0,$K64<5), IF($K64=4,"Unknown", IF($K64=1, $F64*0.33, IF($K64=2, $F64*0.5+$G64*0.2, SUM(F64:G64)))), 0),"Not required") -> 36197.1 | Q64: 0 | R64: 0 | S64: 1 | T64: 0 | U64: T3 (ALB/MBD) | W64: 2136 | X64: KUVANGO | Z64: 0 | AA64: 0 | AB64: 0
A65: =IF(INTRO!$E$34<>0,INTRO!$E$34,"") -> Angola | B65: CUANZA SUL | C65: QUIBALA | D65: 166680.6942 | E65: =IF(INTRO!$E$48="","",ROUND($D65*INTRO!$E$48,0)) -> 26669 | F65: =IF(INTRO!$E$49="","",ROUND($D65*INTRO!$E$49,0)) -> 46504 | G65: =IF(INTRO!$E$50="","",ROUND($D65*INTRO!$E$50,0)) -> 87841 | H65: 0 | I65: 4 | J65: 3 | K65: 2 | L65: 1 | M65: =IF(INTRO!$E$38="Endemic", IF($H65>0, IF($H65=4,"Unknown", IF($H65=99,"Stopped", $D65)), 0),"Not required") -> 0 | N65: =IF(INTRO!$E$40="Endemic", IF($I65>0, IF($I65=4,"Unknown",IF($I65=99,"Stopped", $D65)), 0),"Not required") -> Unknown | O65: =IF(INTRO!$E$42="Endemic", IF(AND($J65>1,$J65<5), IF($J65=4, "Unknown", E65+F65), 0),"Not required") -> 73173 | P65: =IF(INTRO!$E$44="Endemic", IF(AND($K65>0,$K65<5), IF($K65=4,"Unknown", IF($K65=1, $F65*0.33, IF($K65=2, $F65*0.5+$G65*0.2, SUM(F65:G65)))), 0),"Not required") -> 40820.2 | Q65: 0 | R65: 0 | S65: 1 | T65: 0 | U65: T3 (ALB/MBD) | W65: 2137 | X65: LUBANGO | Z65: 0 | AA65: 0 | AB65: 0
A66: =IF(INTRO!$E$34<>0,INTRO!$E$34,"") -> Angola | B66: CUANZA SUL | C66: QUILENDA | D66: 114573.9838 | E66: =IF(INTRO!$E$48="","",ROUND($D66*INTRO!$E$48,0)) -> 18332 | F66: =IF(INTRO!$E$49="","",ROUND($D66*INTRO!$E$49,0)) -> 31966 | G66: =IF(INTRO!$E$50="","",ROUND($D66*INTRO!$E$50,0)) -> 60380 | H66: 4 | I66: 4 | J66: 3 | K66: 2 | L66: 1 | M66: =IF(INTRO!$E$38="Endemic", IF($H66>0, IF($H66=4,"Unknown", IF($H66=99,"Stopped", $D66)), 0),"Not required") -> Unknown | N66: =IF(INTRO!$E$40="Endemic", IF($I66>0, IF($I66=4,"Unknown",IF($I66=99,"Stopped", $D66)), 0),"Not required") -> Unknown | O66: =IF(INTRO!$E$42="Endemic", IF(AND($J66>1,$J66<5), IF($J66=4, "Unknown", E66+F66), 0),"Not required") -> 50298 | P66: =IF(INTRO!$E$44="Endemic", IF(AND($K66>0,$K66<5), IF($K66=4,"Unknown", IF($K66=1, $F66*0.33, IF($K66=2, $F66*0.5+$G66*0.2, SUM(F66:G66)))), 0),"Not required") -> 28059 | Q66: 0 | R66: 0 | S66: 1 | T66: 0 | U66: T3 (ALB/MBD) | W66: 2138 | X66: MATALA | Z66: 0 | AA66: 0 | AB66: 0
A67: =IF(INTRO!$E$34<>0,INTRO!$E$34,"") -> Angola | B67: CUANZA SUL | C67: SELES | D67: 219562.98 | E67: =IF(INTRO!$E$48="","",ROUND($D67*INTRO!$E$48,0)) -> 35130 | F67: =IF(INTRO!$E$49="","",ROUND($D67*INTRO!$E$49,0)) -> 61258 | G67: =IF(INTRO!$E$50="","",ROUND($D67*INTRO!$E$50,0)) -> 115710 | H67: 0 | I67: 4 | J67: 3 | K67: 2 | L67: 1 | M67: =IF(INTRO!$E$38="Endemic", IF($H67>0, IF($H67=4,"Unknown", IF($H67=99,"Stopped", $D67)), 0),"Not required") -> 0 | N67: =IF(INTRO!$E$40="Endemic", IF($I67>0, IF($I67=4,"Unknown",IF($I67=99,"Stopped", $D67)), 0),"Not required") -> Unknown | O67: =IF(INTRO!$E$42="Endemic", IF(AND($J67>1,$J67<5), IF($J67=4, "Unknown", E67+F67), 0),"Not required") -> 96388 | P67: =IF(INTRO!$E$44="Endemic", IF(AND($K67>0,$K67<5), IF($K67=4,"Unknown", IF($K67=1, $F67*0.33, IF($K67=2, $F67*0.5+$G67*0.2, SUM(F67:G67)))), 0),"Not required") -> 53771 | Q67: 0 | R67: 0 | S67: 1 | T67: 0 | U67: T3 (ALB/MBD) | W67: 2135 | X67: QUILENGUES | Z67: 0 | AA67: 0 | AB67: 0
A68: =IF(INTRO!$E$34<>0,INTRO!$E$34,"") -> Angola | B68: CUANZA SUL | C68: SUMBE | D68: 328496.7343 | E68: =IF(INTRO!$E$48="","",ROUND($D68*INTRO!$E$48,0)) -> 52559 | F68: =IF(INTRO!$E$49="","",ROUND($D68*INTRO!$E$49,0)) -> 91651 | G68: =IF(INTRO!$E$50="","",ROUND($D68*INTRO!$E$50,0)) -> 173118 | H68: 0 | I68: 4 | J68: 3 | K68: 2 | L68: 1 | M68: =IF(INTRO!$E$38="Endemic", IF($H68>0, IF($H68=4,"Unknown", IF($H68=99,"Stopped", $D68)), 0),"Not required") -> 0 | N68: =IF(INTRO!$E$40="Endemic", IF($I68>0, IF($I68=4,"Unknown",IF($I68=99,"Stopped", $D68)), 0),"Not required") -> Unknown | O68: =IF(INTRO!$E$42="Endemic", IF(AND($J68>1,$J68<5), IF($J68=4, "Unknown", E68+F68), 0),"Not required") -> 144210 | P68: =IF(INTRO!$E$44="Endemic", IF(AND($K68>0,$K68<5), IF($K68=4,"Unknown", IF($K68=1, $F68*0.33, IF($K68=2, $F68*0.5+$G68*0.2, SUM(F68:G68)))), 0),"Not required") -> 80449.1 | Q68: 0 | R68: 0 | S68: 1 | T68: 0 | U68: T3 (ALB/MBD) | W68: 2221 | X68: QUIPUNGO | Z68: 0 | AA68: 0 | AB68: 0
A69: =IF(INTRO!$E$34<>0,INTRO!$E$34,"") -> Angola | B69: CUNENE | C69: CAHAMA | D69: 82205.14381 | E69: =IF(INTRO!$E$48="","",ROUND($D69*INTRO!$E$48,0)) -> 13153 | F69: =IF(INTRO!$E$49="","",ROUND($D69*INTRO!$E$49,0)) -> 22935 | G69: =IF(INTRO!$E$50="","",ROUND($D69*INTRO!$E$50,0)) -> 43322 | H69: 0 | I69: 4 | J69: 2 | K69: 2 | L69: 1 | M69: =IF(INTRO!$E$38="Endemic", IF($H69>0, IF($H69=4,"Unknown", IF($H69=99,"Stopped", $D69)), 0),"Not required") -> 0 | N69: =IF(INTRO!$E$40="Endemic", IF($I69>0, IF($I69=4,"Unknown",IF($I69=99,"Stopped", $D69)), 0),"Not required") -> Unknown | O69: =IF(INTRO!$E$42="Endemic", IF(AND($J69>1,$J69<5), IF($J69=4, "Unknown", E69+F69), 0),"Not required") -> 36088 | P69: =IF(INTRO!$E$44="Endemic", IF(AND($K69>0,$K69<5), IF($K69=4,"Unknown", IF($K69=1, $F69*0.33, IF($K69=2, $F69*0.5+$G69*0.2, SUM(F69:G69)))), 0),"Not required") -> 20131.9 | Q69: 0 | R69: 0 | S69: 0 | T69: 0 | W69: 2078 | X69: CALAI | Z69: 0 | AA69: 6871 | AB69: 6947
A70: =IF(INTRO!$E$34<>0,INTRO!$E$34,"") -> Angola | B70: CUNENE | C70: CUANHAMA | D70: 439448.6277 | E70: =IF(INTRO!$E$48="","",ROUND($D70*INTRO!$E$48,0)) -> 70312 | F70: =IF(INTRO!$E$49="","",ROUND($D70*INTRO!$E$49,0)) -> 122606 | G70: =IF(INTRO!$E$50="","",ROUND($D70*INTRO!$E$50,0)) -> 231589 | H70: 0 | I70: 4 | J70: 2 | K70: 2 | L70: 1 | M70: =IF(INTRO!$E$38="Endemic", IF($H70>0, IF($H70=4,"Unknown", IF($H70=99,"Stopped", $D70)), 0),"Not required") -> 0 | N70: =IF(INTRO!$E$40="Endemic", IF($I70>0, IF($I70=4,"Unknown",IF($I70=99,"Stopped", $D70)), 0),"Not required") -> Unknown | O70: =IF(INTRO!$E$42="Endemic", IF(AND($J70>1,$J70<5), IF($J70=4, "Unknown", E70+F70), 0),"Not required") -> 192918 | P70: =IF(INTRO!$E$44="Endemic", IF(AND($K70>0,$K70<5), IF($K70=4,"Unknown", IF($K70=1, $F70*0.33, IF($K70=2, $F70*0.5+$G70*0.2, SUM(F70:G70)))), 0),"Not required") -> 107620.8 | Q70: 0 | R70: 0 | S70: 0 | T70: 0 | W70: 2076 | X70: CUANGAR | Z70: 6954 | AA70: 8618 | AB70: 10175
A71: =IF(INTRO!$E$34<>0,INTRO!$E$34,"") -> Angola | B71: CUNENE | C71: CUROCA | D71: 48208.88574 | E71: =IF(INTRO!$E$48="","",ROUND($D71*INTRO!$E$48,0)) -> 7713 | F71: =IF(INTRO!$E$49="","",ROUND($D71*INTRO!$E$49,0)) -> 13450 | G71: =IF(INTRO!$E$50="","",ROUND($D71*INTRO!$E$50,0)) -> 25406 | H71: 0 | I71: 4 | J71: 2 | K71: 2 | L71: 4 | M71: =IF(INTRO!$E$38="Endemic", IF($H71>0, IF($H71=4,"Unknown", IF($H71=99,"Stopped", $D71)), 0),"Not required") -> 0 | N71: =IF(INTRO!$E$40="Endemic", IF($I71>0, IF($I71=4,"Unknown",IF($I71=99,"Stopped", $D71)), 0),"Not required") -> Unknown | O71: =IF(INTRO!$E$42="Endemic", IF(AND($J71>1,$J71<5), IF($J71=4, "Unknown", E71+F71), 0),"Not required") -> 21163 | P71: =IF(INTRO!$E$44="Endemic", IF(AND($K71>0,$K71<5), IF($K71=4,"Unknown", IF($K71=1, $F71*0.33, IF($K71=2, $F71*0.5+$G71*0.2, SUM(F71:G71)))), 0),"Not required") -> 11806.2 | Q71: 0 | R71: 0 | S71: 0 | T71: 0 | W71: 2079 | X71: CUCHI | Z71: 20091 | AA71: 22128 | AB71: 18755
A72: =IF(INTRO!$E$34<>0,INTRO!$E$34,"") -> Angola | B72: CUNENE | C72: CUVELAI | D72: 67347.18095 | E72: =IF(INTRO!$E$48="","",ROUND($D72*INTRO!$E$48,0)) -> 10776 | F72: =IF(INTRO!$E$49="","",ROUND($D72*INTRO!$E$49,0)) -> 18790 | G72: =IF(INTRO!$E$50="","",ROUND($D72*INTRO!$E$50,0)) -> 35492 | H72: 0 | I72: 4 | J72: 2 | K72: 2 | L72: 1 | M72: =IF(INTRO!$E$38="Endemic", IF($H72>0, IF($H72=4,"Unknown", IF($H72=99,"Stopped", $D72)), 0),"Not required") -> 0 | N72: =IF(INTRO!$E$40="Endemic", IF($I72>0, IF($I72=4,"Unknown",IF($I72=99,"Stopped", $D72)), 0),"Not required") -> Unknown | O72: =IF(INTRO!$E$42="Endemic", IF(AND($J72>1,$J72<5), IF($J72=4, "Unknown", E72+F72), 0),"Not required") -> 29566 | P72: =IF(INTRO!$E$44="Endemic", IF(AND($K72>0,$K72<5), IF($K72=4,"Unknown", IF($K72=1, $F72*0.33, IF($K72=2, $F72*0.5+$G72*0.2, SUM(F72:G72)))), 0),"Not required") -> 16493.4 | Q72: 0 | R72: 0 | S72: 0 | T72: 0 | W72: 2077 | X72: DIRICO | Z72: 0 | AA72: 0 | AB72: 0
A73: =IF(INTRO!$E$34<>0,INTRO!$E$34,"") -> Angola | B73: CUNENE | C73: NAMACUNDE | D73: 166668.9608 | E73: =IF(INTRO!$E$48="","",ROUND($D73*INTRO!$E$48,0)) -> 26667 | F73: =IF(INTRO!$E$49="","",ROUND($D73*INTRO!$E$49,0)) -> 46501 | G73: =IF(INTRO!$E$50="","",ROUND($D73*INTRO!$E$50,0)) -> 87835 | H73: 0 | I73: 4 | J73: 2 | K73: 2 | L73: 1 | M73: =IF(INTRO!$E$38="Endemic", IF($H73>0, IF($H73=4,"Unknown", IF($H73=99,"Stopped", $D73)), 0),"Not required") -> 0 | N73: =IF(INTRO!$E$40="Endemic", IF($I73>0, IF($I73=4,"Unknown",IF($I73=99,"Stopped", $D73)), 0),"Not required") -> Unknown | O73: =IF(INTRO!$E$42="Endemic", IF(AND($J73>1,$J73<5), IF($J73=4, "Unknown", E73+F73), 0),"Not required") -> 73168 | P73: =IF(INTRO!$E$44="Endemic", IF(AND($K73>0,$K73<5), IF($K73=4,"Unknown", IF($K73=1, $F73*0.33, IF($K73=2, $F73*0.5+$G73*0.2, SUM(F73:G73)))), 0),"Not required") -> 40817.5 | Q73: 0 | R73: 0 | S73: 0 | T73: 0 | W73: 2080 | X73: KUITO KUANAVALE | Z73: 11737 | AA73: 12642 | AB73: 14597
A74: =IF(INTRO!$E$34<>0,INTRO!$E$34,"") -> Angola | B74: CUNENE | C74: OMBADJA | D74: 357825.4589 | E74: =IF(INTRO!$E$48="","",ROUND($D74*INTRO!$E$48,0)) -> 57252 | F74: =IF(INTRO!$E$49="","",ROUND($D74*INTRO!$E$49,0)) -> 99833 | G74: =IF(INTRO!$E$50="","",ROUND($D74*INTRO!$E$50,0)) -> 188574 | H74: 0 | I74: 4 | J74: 2 | K74: 2 | L74: 1 | M74: =IF(INTRO!$E$38="Endemic", IF($H74>0, IF($H74=4,"Unknown", IF($H74=99,"Stopped", $D74)), 0),"Not required") -> 0 | N74: =IF(INTRO!$E$40="Endemic", IF($I74>0, IF($I74=4,"Unknown",IF($I74=99,"Stopped", $D74)), 0),"Not required") -> Unknown | O74: =IF(INTRO!$E$42="Endemic", IF(AND($J74>1,$J74<5), IF($J74=4, "Unknown", E74+F74), 0),"Not required") -> 157085 | P74: =IF(INTRO!$E$44="Endemic", IF(AND($K74>0,$K74<5), IF($K74=4,"Unknown", IF($K74=1, $F74*0.33, IF($K74=2, $F74*0.5+$G74*0.2, SUM(F74:G74)))), 0),"Not required") -> 87631.3 | Q74: 0 | R74: 0 | S74: 0 | T74: 0 | W74: 2081 | X74: MAVINGA | Z74: 0 | AA74: 0 | AB74: 0
A75: =IF(INTRO!$E$34<>0,INTRO!$E$34,"") -> Angola | B75: HUAMBO | C75: BAILUNDO | D75: 345540.6235 | E75: =IF(INTRO!$E$48="","",ROUND($D75*INTRO!$E$48,0)) -> 55286 | F75: =IF(INTRO!$E$49="","",ROUND($D75*INTRO!$E$49,0)) -> 96406 | G75: =IF(INTRO!$E$50="","",ROUND($D75*INTRO!$E$50,0)) -> 182100 | H75: 0 | I75: 4 | J75: 1 | K75: 2 | L75: 1 | M75: =IF(INTRO!$E$38="Endemic", IF($H75>0, IF($H75=4,"Unknown", IF($H75=99,"Stopped", $D75)), 0),"Not required") -> 0 | N75: =IF(INTRO!$E$40="Endemic", IF($I75>0, IF($I75=4,"Unknown",IF($I75=99,"Stopped", $D75)), 0),"Not required") -> Unknown | O75: =IF(INTRO!$E$42="Endemic", IF(AND($J75>1,$J75<5), IF($J75=4, "Unknown", E75+F75), 0),"Not required") -> 0 | P75: =IF(INTRO!$E$44="Endemic", IF(AND($K75>0,$K75<5), IF($K75=4,"Unknown", IF($K75=1, $F75*0.33, IF($K75=2, $F75*0.5+$G75*0.2, SUM(F75:G75)))), 0),"Not required") -> 84623 | Q75: 0 | R75: 0 | S75: 0 | T75: 1 | U75: T2 (PZQ) | W75: 2082 | X75: MENONGUE | Z75: 55156 | AA75: 62645 | AB75: 69391
A76: =IF(INTRO!$E$34<>0,INTRO!$E$34,"") -> Angola | B76: HUAMBO | C76: CAALA | D76: 328290.227 | E76: =IF(INTRO!$E$48="","",ROUND($D76*INTRO!$E$48,0)) -> 52526 | F76: =IF(INTRO!$E$49="","",ROUND($D76*INTRO!$E$49,0)) -> 91593 | G76: =IF(INTRO!$E$50="","",ROUND($D76*INTRO!$E$50,0)) -> 173009 | H76: 0 | I76: 4 | J76: 1 | K76: 2 | L76: 1 | M76: =IF(INTRO!$E$38="Endemic", IF($H76>0, IF($H76=4,"Unknown", IF($H76=99,"Stopped", $D76)), 0),"Not required") -> 0 | N76: =IF(INTRO!$E$40="Endemic", IF($I76>0, IF($I76=4,"Unknown",IF($I76=99,"Stopped", $D76)), 0),"Not required") -> Unknown | O76: =IF(INTRO!$E$42="Endemic", IF(AND($J76>1,$J76<5), IF($J76=4, "Unknown", E76+F76), 0),"Not required") -> 0 | P76: =IF(INTRO!$E$44="Endemic", IF(AND($K76>0,$K76<5), IF($K76=4,"Unknown", IF($K76=1, $F76*0.33, IF($K76=2, $F76*0.5+$G76*0.2, SUM(F76:G76)))), 0),"Not required") -> 80398.3 | Q76: 0 | R76: 0 | S76: 0 | T76: 1 | U76: T2 (PZQ) | W76: 2083 | X76: NANKOVA | Z76: 1167 | AA76: 615 | AB76: 1068
A77: =IF(INTRO!$E$34<>0,INTRO!$E$34,"") -> Angola | B77: HUAMBO | C77: CACHIUNGO | D77: 141594.7551 | E77: =IF(INTRO!$E$48="","",ROUND($D77*INTRO!$E$48,0)) -> 22655 | F77: =IF(INTRO!$E$49="","",ROUND($D77*INTRO!$E$49,0)) -> 39505 | G77: =IF(INTRO!$E$50="","",ROUND($D77*INTRO!$E$50,0)) -> 74620 | H77: 0 | I77: 4 | J77: 1 | K77: 2 | L77: 1 | M77: =IF(INTRO!$E$38="Endemic", IF($H77>0, IF($H77=4,"Unknown", IF($H77=99,"Stopped", $D77)), 0),"Not required") -> 0 | N77: =IF(INTRO!$E$40="Endemic", IF($I77>0, IF($I77=4,"Unknown",IF($I77=99,"Stopped", $D77)), 0),"Not required") -> Unknown | O77: =IF(INTRO!$E$42="Endemic", IF(AND($J77>1,$J77<5), IF($J77=4, "Unknown", E77+F77), 0),"Not required") -> 0 | P77: =IF(INTRO!$E$44="Endemic", IF(AND($K77>0,$K77<5), IF($K77=4,"Unknown", IF($K77=1, $F77*0.33, IF($K77=2, $F77*0.5+$G77*0.2, SUM(F77:G77)))), 0),"Not required") -> 34676.5 | Q77: 0 | R77: 0 | S77: 0 | T77: 1 | U77: T2 (PZQ) | W77: 2084 | X77: RIVUNGO | Z77: 0 | AA77: 0 | AB77: 0
A78: =IF(INTRO!$E$34<>0,INTRO!$E$34,"") -> Angola | B78: HUAMBO | C78: CHICALA CHOLOHANGA | D78: 121611.6575 | E78: =IF(INTRO!$E$48="","",ROUND($D78*INTRO!$E$48,0)) -> 19458 | F78: =IF(INTRO!$E$49="","",ROUND($D78*INTRO!$E$49,0)) -> 33930 | G78: =IF(INTRO!$E$50="","",ROUND($D78*INTRO!$E$50,0)) -> 64089 | H78: 0 | I78: 4 | J78: 1 | K78: 2 | L78: 1 | M78: =IF(INTRO!$E$38="Endemic", IF($H78>0, IF($H78=4,"Unknown", IF($H78=99,"Stopped", $D78)), 0),"Not required") -> 0 | N78: =IF(INTRO!$E$40="Endemic", IF($I78>0, IF($I78=4,"Unknown",IF($I78=99,"Stopped", $D78)), 0),"Not required") -> Unknown | O78: =IF(INTRO!$E$42="Endemic", IF(AND($J78>1,$J78<5), IF($J78=4, "Unknown", E78+F78), 0),"Not required") -> 0 | P78: =IF(INTRO!$E$44="Endemic", IF(AND($K78>0,$K78<5), IF($K78=4,"Unknown", IF($K78=1, $F78*0.33, IF($K78=2, $F78*0.5+$G78*0.2, SUM(F78:G78)))), 0),"Not required") -> 29782.8 | Q78: 0 | R78: 0 | S78: 0 | T78: 1 | U78: T2 (PZQ) | W78: 2085 | X78: AMBACA | Z78: 0 | AA78: 0 | AB78: 0
A79: =IF(INTRO!$E$34<>0,INTRO!$E$34,"") -> Angola | B79: HUAMBO | C79: CHINDJENJE | D79: 35719.88971 | E79: =IF(INTRO!$E$48="","",ROUND($D79*INTRO!$E$48,0)) -> 5715 | F79: =IF(INTRO!$E$49="","",ROUND($D79*INTRO!$E$49,0)) -> 9966 | G79: =IF(INTRO!$E$50="","",ROUND($D79*INTRO!$E$50,0)) -> 18824 | H79: 0 | I79: 4 | J79: 1 | K79: 2 | L79: 4 | M79: =IF(INTRO!$E$38="Endemic", IF($H79>0, IF($H79=4,"Unknown", IF($H79=99,"Stopped", $D79)), 0),"Not required") -> 0 | N79: =IF(INTRO!$E$40="Endemic", IF($I79>0, IF($I79=4,"Unknown",IF($I79=99,"Stopped", $D79)), 0),"Not required") -> Unknown | O79: =IF(INTRO!$E$42="Endemic", IF(AND($J79>1,$J79<5), IF($J79=4, "Unknown", E79+F79), 0),"Not required") -> 0 | P79: =IF(INTRO!$E$44="Endemic", IF(AND($K79>0,$K79<5), IF($K79=4,"Unknown", IF($K79=1, $F79*0.33, IF($K79=2, $F79*0.5+$G79*0.2, SUM(F79:G79)))), 0),"Not required") -> 8747.8 | Q79: 0 | R79: 0 | S79: 0 | T79: 1 | U79: T2 (PZQ) | W79: 2086 | X79: BANGA | Z79: 0 | AA79: 0 | AB79: 0
A80: =IF(INTRO!$E$34<>0,INTRO!$E$34,"") -> Angola | B80: HUAMBO | C80: ECUNHA | D80: 96848.38605 | E80: =IF(INTRO!$E$48="","",ROUND($D80*INTRO!$E$48,0)) -> 15496 | F80: =IF(INTRO!$E$49="","",ROUND($D80*INTRO!$E$49,0)) -> 27021 | G80: =IF(INTRO!$E$50="","",ROUND($D80*INTRO!$E$50,0)) -> 51039 | H80: 0 | I80: 4 | J80: 1 | K80: 2 | L80: 1 | M80: =IF(INTRO!$E$38="Endemic", IF($H80>0, IF($H80=4,"Unknown", IF($H80=99,"Stopped", $D80)), 0),"Not required") -> 0 | N80: =IF(INTRO!$E$40="Endemic", IF($I80>0, IF($I80=4,"Unknown",IF($I80=99,"Stopped", $D80)), 0),"Not required") -> Unknown | O80: =IF(INTRO!$E$42="Endemic", IF(AND($J80>1,$J80<5), IF($J80=4, "Unknown", E80+F80), 0),"Not required") -> 0 | P80: =IF(INTRO!$E$44="Endemic", IF(AND($K80>0,$K80<5), IF($K80=4,"Unknown", IF($K80=1, $F80*0.33, IF($K80=2, $F80*0.5+$G80*0.2, SUM(F80:G80)))), 0),"Not required") -> 23718.3 | Q80: 0 | R80: 0 | S80: 0 | T80: 1 | U80: T2 (PZQ) | W80: 2087 | X80: BOLONGONGO | Z80: 0 | AA80: 0 | AB80: 0
A81: =IF(INTRO!$E$34<>0,INTRO!$E$34,"") -> Angola | B81: HUAMBO | C81: HUAMBO | D81: 836746.3071 | E81: =IF(INTRO!$E$48="","",ROUND($D81*INTRO!$E$48,0)) -> 133879 | F81: =IF(INTRO!$E$49="","",ROUND($D81*INTRO!$E$49,0)) -> 233452 | G81: =IF(INTRO!$E$50="","",ROUND($D81*INTRO!$E$50,0)) -> 440965 | H81: 0 | I81: 4 | J81: 2 | K81: 2 | L81: 1 | M81: =IF(INTRO!$E$38="Endemic", IF($H81>0, IF($H81=4,"Unknown", IF($H81=99,"Stopped", $D81)), 0),"Not required") -> 0 | N81: =IF(INTRO!$E$40="Endemic", IF($I81>0, IF($I81=4,"Unknown",IF($I81=99,"Stopped", $D81)), 0),"Not required") -> Unknown | O81: =IF(INTRO!$E$42="Endemic", IF(AND($J81>1,$J81<5), IF($J81=4, "Unknown", E81+F81), 0),"Not required") -> 367331 | P81: =IF(INTRO!$E$44="Endemic", IF(AND($K81>0,$K81<5), IF($K81=4,"Unknown", IF($K81=1, $F81*0.33, IF($K81=2, $F81*0.5+$G81*0.2, SUM(F81:G81)))), 0),"Not required") -> 204919 | Q81: 0 | R81: 0 | S81: 1 | T81: 1 | U81: T1 (PZQ+ALB/MBD) | W81: 2091 | X81: CAMBAMBE | Z81: 0 | AA81: 0 | AB81: 0
A82: =IF(INTRO!$E$34<>0,INTRO!$E$34,"") -> Angola | B82: HUAMBO | C82: LONDUIMBALI | D82: 157525.1478 | E82: =IF(INTRO!$E$48="","",ROUND($D82*INTRO!$E$48,0)) -> 25204 | F82: =IF(INTRO!$E$49="","",ROUND($D82*INTRO!$E$49,0)) -> 43950 | G82: =IF(INTRO!$E$50="","",ROUND($D82*INTRO!$E$50,0)) -> 83016 | H82: 0 | I82: 4 | J82: 1 | K82: 2 | L82: 1 | M82: =IF(INTRO!$E$38="Endemic", IF($H82>0, IF($H82=4,"Unknown", IF($H82=99,"Stopped", $D82)), 0),"Not required") -> 0 | N82: =IF(INTRO!$E$40="Endemic", IF($I82>0, IF($I82=4,"Unknown",IF($I82=99,"Stopped", $D82)), 0),"Not required") -> Unknown | O82: =IF(INTRO!$E$42="Endemic", IF(AND($J82>1,$J82<5), IF($J82=4, "Unknown", E82+F82), 0),"Not required") -> 0 | P82: =IF(INTRO!$E$44="Endemic", IF(AND($K82>0,$K82<5), IF($K82=4,"Unknown", IF($K82=1, $F82*0.33, IF($K82=2, $F82*0.5+$G82*0.2, SUM(F82:G82)))), 0),"Not required") -> 38578.2 | Q82: 0 | R82: 0 | S82: 0 | T82: 1 | U82: T2 (PZQ) | W82: 2092 | X82: CAZENGO | Z82: 0 | AA82: 0 | AB82: 0
A83: =IF(INTRO!$E$34<>0,INTRO!$E$34,"") -> Angola | B83: HUAMBO | C83: LONGONJO | D83: 108067.8317 | E83: =IF(INTRO!$E$48="","",ROUND($D83*INTRO!$E$48,0)) -> 17291 | F83: =IF(INTRO!$E$49="","",ROUND($D83*INTRO!$E$49,0)) -> 30151 | G83: =IF(INTRO!$E$50="","",ROUND($D83*INTRO!$E$50,0)) -> 56952 | H83: 0 | I83: 4 | J83: 2 | K83: 2 | L83: 4 | M83: =IF(INTRO!$E$38="Endemic", IF($H83>0, IF($H83=4,"Unknown", IF($H83=99,"Stopped", $D83)), 0),"Not required") -> 0 | N83: =IF(INTRO!$E$40="Endemic", IF($I83>0, IF($I83=4,"Unknown",IF($I83=99,"Stopped", $D83)), 0),"Not required") -> Unknown | O83: =IF(INTRO!$E$42="Endemic", IF(AND($J83>1,$J83<5), IF($J83=4, "Unknown", E83+F83), 0),"Not required") -> 47442 | P83: =IF(INTRO!$E$44="Endemic", IF(AND($K83>0,$K83<5), IF($K83=4,"Unknown", IF($K83=1, $F83*0.33, IF($K83=2, $F83*0.5+$G83*0.2, SUM(F83:G83)))), 0),"Not required") -> 26465.9 | Q83: 0 | R83: 0 | S83: 1 | T83: 1 | U83: T1 (PZQ+ALB/MBD) | W83: 2090 | X83: GOLUNGO ALTO | Z83: 0 | AA83: 0 | AB83: 0
A84: =IF(INTRO!$E$34<>0,INTRO!$E$34,"") -> Angola | B84: HUAMBO | C84: MUNGO | D84: 133076.3306 | E84: =IF(INTRO!$E$48="","",ROUND($D84*INTRO!$E$48,0)) -> 21292 | F84: =IF(INTRO!$E$49="","",ROUND($D84*INTRO!$E$49,0)) -> 37128 | G84: =IF(INTRO!$E$50="","",ROUND($D84*INTRO!$E$50,0)) -> 70131 | H84: 0 | I84: 1 | J84: 1 | K84: 2 | L84: 1 | M84: =IF(INTRO!$E$38="Endemic", IF($H84>0, IF($H84=4,"Unknown", IF($H84=99,"Stopped", $D84)), 0),"Not required") -> 0 | N84: =IF(INTRO!$E$40="Endemic", IF($I84>0, IF($I84=4,"Unknown",IF($I84=99,"Stopped", $D84)), 0),"Not required") -> 133076.3306 | O84: =IF(INTRO!$E$42="Endemic", IF(AND($J84>1,$J84<5), IF($J84=4, "Unknown", E84+F84), 0),"Not required") -> 0 | P84: =IF(INTRO!$E$44="Endemic", IF(AND($K84>0,$K84<5), IF($K84=4,"Unknown", IF($K84=1, $F84*0.33, IF($K84=2, $F84*0.5+$G84*0.2, SUM(F84:G84)))), 0),"Not required") -> 32590.2 | Q84: 0 | R84: 0 | S84: 0 | T84: 1 | U84: T2 (PZQ) | W84: 2217 | X84: GONGUEMBO | Z84: 0 | AA84: 0 | AB84: 0
A85: =IF(INTRO!$E$34<>0,INTRO!$E$34,"") -> Angola | B85: HUAMBO | C85: UCUMA | D85: 64596.87968 | E85: =IF(INTRO!$E$48="","",ROUND($D85*INTRO!$E$48,0)) -> 10336 | F85: =IF(INTRO!$E$49="","",ROUND($D85*INTRO!$E$49,0)) -> 18023 | G85: =IF(INTRO!$E$50="","",ROUND($D85*INTRO!$E$50,0)) -> 34043 | H85: 0 | I85: 4 | J85: 1 | K85: 2 | L85: 4 | M85: =IF(INTRO!$E$38="Endemic", IF($H85>0, IF($H85=4,"Unknown", IF($H85=99,"Stopped", $D85)), 0),"Not required") -> 0 | N85: =IF(INTRO!$E$40="Endemic", IF($I85>0, IF($I85=4,"Unknown",IF($I85=99,"Stopped", $D85)), 0),"Not required") -> Unknown | O85: =IF(INTRO!$E$42="Endemic", IF(AND($J85>1,$J85<5), IF($J85=4, "Unknown", E85+F85), 0),"Not required") -> 0 | P85: =IF(INTRO!$E$44="Endemic", IF(AND($K85>0,$K85<5), IF($K85=4,"Unknown", IF($K85=1, $F85*0.33, IF($K85=2, $F85*0.5+$G85*0.2, SUM(F85:G85)))), 0),"Not required") -> 15820.1 | Q85: 0 | R85: 0 | S85: 0 | T85: 1 | U85: T2 (PZQ) | W85: 2093 | X85: KICULUNGO | Z85: 0 | AA85: 0 | AB85: 0
A86: =IF(INTRO!$E$34<>0,INTRO!$E$34,"") -> Angola | B86: HUILA | C86: CACONDA | D86: 196909.368 | E86: =IF(INTRO!$E$48="","",ROUND($D86*INTRO!$E$48,0)) -> 31505 | F86: =IF(INTRO!$E$49="","",ROUND($D86*INTRO!$E$49,0)) -> 54938 | G86: =IF(INTRO!$E$50="","",ROUND($D86*INTRO!$E$50,0)) -> 103771 | H86: 0 | I86: 4 | J86: 2 | K86: 2 | L86: 4 | M86: =IF(INTRO!$E$38="Endemic", IF($H86>0, IF($H86=4,"Unknown", IF($H86=99,"Stopped", $D86)), 0),"Not required") -> 0 | N86: =IF(INTRO!$E$40="Endemic", IF($I86>0, IF($I86=4,"Unknown",IF($I86=99,"Stopped", $D86)), 0),"Not required") -> Unknown | O86: =IF(INTRO!$E$42="Endemic", IF(AND($J86>1,$J86<5), IF($J86=4, "Unknown", E86+F86), 0),"Not required") -> 86443 | P86: =IF(INTRO!$E$44="Endemic", IF(AND($K86>0,$K86<5), IF($K86=4,"Unknown", IF($K86=1, $F86*0.33, IF($K86=2, $F86*0.5+$G86*0.2, SUM(F86:G86)))), 0),"Not required") -> 48223.2 | Q86: 0 | R86: 0 | S86: 0 | T86: 0 | W86: 2094 | X86: LUCALA | Z86: 0 | AA86: 0 | AB86: 0
A87: =IF(INTRO!$E$34<>0,INTRO!$E$34,"") -> Angola | B87: HUILA | C87: CACULA | D87: 160720.1436 | E87: =IF(INTRO!$E$48="","",ROUND($D87*INTRO!$E$48,0)) -> 25715 | F87: =IF(INTRO!$E$49="","",ROUND($D87*INTRO!$E$49,0)) -> 44841 | G87: =IF(INTRO!$E$50="","",ROUND($D87*INTRO!$E$50,0)) -> 84700 | H87: 0 | I87: 4 | J87: 2 | K87: 2 | L87: 4 | M87: =IF(INTRO!$E$38="Endemic", IF($H87>0, IF($H87=4,"Unknown", IF($H87=99,"Stopped", $D87)), 0),"Not required") -> 0 | N87: =IF(INTRO!$E$40="Endemic", IF($I87>0, IF($I87=4,"Unknown",IF($I87=99,"Stopped", $D87)), 0),"Not required") -> Unknown | O87: =IF(INTRO!$E$42="Endemic", IF(AND($J87>1,$J87<5), IF($J87=4, "Unknown", E87+F87), 0),"Not required") -> 70556 | P87: =IF(INTRO!$E$44="Endemic", IF(AND($K87>0,$K87<5), IF($K87=4,"Unknown", IF($K87=1, $F87*0.33, IF($K87=2, $F87*0.5+$G87*0.2, SUM(F87:G87)))), 0),"Not required") -> 39360.5 | Q87: 0 | R87: 0 | S87: 0 | T87: 0 | W87: 2097 | X87: SAMBA CAJU | Z87: 0 | AA87: 0 | AB87: 0
A88: =IF(INTRO!$E$34<>0,INTRO!$E$34,"") -> Angola | B88: HUILA | C88: CALUQUEMBE | D88: 211119.649 | E88: =IF(INTRO!$E$48="","",ROUND($D88*INTRO!$E$48,0)) -> 33779 | F88: =IF(INTRO!$E$49="","",ROUND($D88*INTRO!$E$49,0)) -> 58902 | G88: =IF(INTRO!$E$50="","",ROUND($D88*INTRO!$E$50,0)) -> 111260 | H88: 0 | I88: 1 | J88: 2 | K88: 2 | L88: 4 | M88: =IF(INTRO!$E$38="Endemic", IF($H88>0, IF($H88=4,"Unknown", IF($H88=99,"Stopped", $D88)), 0),"Not required") -> 0 | N88: =IF(INTRO!$E$40="Endemic", IF($I88>0, IF($I88=4,"Unknown",IF($I88=99,"Stopped", $D88)), 0),"Not required") -> 211119.649 | O88: =IF(INTRO!$E$42="Endemic", IF(AND($J88>1,$J88<5), IF($J88=4, "Unknown", E88+F88), 0),"Not required") -> 92681 | P88: =IF(INTRO!$E$44="Endemic", IF(AND($K88>0,$K88<5), IF($K88=4,"Unknown", IF($K88=1, $F88*0.33, IF($K88=2, $F88*0.5+$G88*0.2, SUM(F88:G88)))), 0),"Not required") -> 51703 | Q88: 0 | R88: 0 | S88: 0 | T88: 0 | W88: 2098 | X88: AMBOIM | Z88: 42187 | AA88: 42187 | AB88: 52142
A89: =IF(INTRO!$E$34<>0,INTRO!$E$34,"") -> Angola | B89: HUILA | C89: CHIBIA | D89: 194601.4147 | E89: =IF(INTRO!$E$48="","",ROUND($D89*INTRO!$E$48,0)) -> 31136 | F89: =IF(INTRO!$E$49="","",ROUND($D89*INTRO!$E$49,0)) -> 54294 | G89: =IF(INTRO!$E$50="","",ROUND($D89*INTRO!$E$50,0)) -> 102555 | H89: 0 | I89: 4 | J89: 2 | K89: 2 | L89: 1 | M89: =IF(INTRO!$E$38="Endemic", IF($H89>0, IF($H89=4,"Unknown", IF($H89=99,"Stopped", $D89)), 0),"Not required") -> 0 | N89: =IF(INTRO!$E$40="Endemic", IF($I89>0, IF($I89=4,"Unknown",IF($I89=99,"Stopped", $D89)), 0),"Not required") -> Unknown | O89: =IF(INTRO!$E$42="Endemic", IF(AND($J89>1,$J89<5), IF($J89=4, "Unknown", E89+F89), 0),"Not required") -> 85430 | P89: =IF(INTRO!$E$44="Endemic", IF(AND($K89>0,$K89<5), IF($K89=4,"Unknown", IF($K89=1, $F89*0.33, IF($K89=2, $F89*0.5+$G89*0.2, SUM(F89:G89)))), 0),"Not required") -> 47658 | Q89: 0 | R89: 0 | S89: 0 | T89: 0 | W89: 2100 | X89: CASSONGUE | Z89: 34398 | AA89: 34398 | AB89: 41263
A90: =IF(INTRO!$E$34<>0,INTRO!$E$34,"") -> Angola | B90: HUILA | C90: CHICOMBA | D90: 154653.9928 | E90: =IF(INTRO!$E$48="","",ROUND($D90*INTRO!$E$48,0)) -> 24745 | F90: =IF(INTRO!$E$49="","",ROUND($D90*INTRO!$E$49,0)) -> 43148 | G90: =IF(INTRO!$E$50="","",ROUND($D90*INTRO!$E$50,0)) -> 81503 | H90: 0 | I90: 1 | J90: 2 | K90: 2 | L90: 4 | M90: =IF(INTRO!$E$38="Endemic", IF($H90>0, IF($H90=4,"Unknown", IF($H90=99,"Stopped", $D90)), 0),"Not required") -> 0 | N90: =IF(INTRO!$E$40="Endemic", IF($I90>0, IF($I90=4,"Unknown",IF($I90=99,"Stopped", $D90)), 0),"Not required") -> 154653.9928 | O90: =IF(INTRO!$E$42="Endemic", IF(AND($J90>1,$J90<5), IF($J90=4, "Unknown", E90+F90), 0),"Not required") -> 67893 | P90: =IF(INTRO!$E$44="Endemic", IF(AND($K90>0,$K90<5), IF($K90=4,"Unknown", IF($K90=1, $F90*0.33, IF($K90=2, $F90*0.5+$G90*0.2, SUM(F90:G90)))), 0),"Not required") -> 37874.6 | Q90: 0 | R90: 0 | S90: 0 | T90: 0 | W90: 2167 | X90: CELA (Waku Kungo) | Z90: 49822 | AA90: 49822 | AB90: 67628
A91: =IF(INTRO!$E$34<>0,INTRO!$E$34,"") -> Angola | B91: HUILA | C91: CHIPINDO | D91: 75931.31237 | E91: =IF(INTRO!$E$48="","",ROUND($D91*INTRO!$E$48,0)) -> 12149 | F91: =IF(INTRO!$E$49="","",ROUND($D91*INTRO!$E$49,0)) -> 21185 | G91: =IF(INTRO!$E$50="","",ROUND($D91*INTRO!$E$50,0)) -> 40016 | H91: 0 | I91: 1 | J91: 2 | K91: 2 | L91: 1 | M91: =IF(INTRO!$E$38="Endemic", IF($H91>0, IF($H91=4,"Unknown", IF($H91=99,"Stopped", $D91)), 0),"Not required") -> 0 | N91: =IF(INTRO!$E$40="Endemic", IF($I91>0, IF($I91=4,"Unknown",IF($I91=99,"Stopped", $D91)), 0),"Not required") -> 75931.31237 | O91: =IF(INTRO!$E$42="Endemic", IF(AND($J91>1,$J91<5), IF($J91=4, "Unknown", E91+F91), 0),"Not required") -> 33334 | P91: =IF(INTRO!$E$44="Endemic", IF(AND($K91>0,$K91<5), IF($K91=4,"Unknown", IF($K91=1, $F91*0.33, IF($K91=2, $F91*0.5+$G91*0.2, SUM(F91:G91)))), 0),"Not required") -> 18595.7 | Q91: 0 | R91: 0 | S91: 0 | T91: 0 | W91: 2103 | X91: CONDA | Z91: 14252 | AA91: 14252 | AB91: 19278
A92: =IF(INTRO!$E$34<>0,INTRO!$E$34,"") -> Angola | B92: HUILA | C92: CUVANGO | D92: 92157.38585 | E92: =IF(INTRO!$E$48="","",ROUND($D92*INTRO!$E$48,0)) -> 14745 | F92: =IF(INTRO!$E$49="","",ROUND($D92*INTRO!$E$49,0)) -> 25712 | G92: =IF(INTRO!$E$50="","",ROUND($D92*INTRO!$E$50,0)) -> 48567 | H92: 0 | I92: 4 | J92: 2 | K92: 2 | L92: 1 | M92: =IF(INTRO!$E$38="Endemic", IF($H92>0, IF($H92=4,"Unknown", IF($H92=99,"Stopped", $D92)), 0),"Not required") -> 0 | N92: =IF(INTRO!$E$40="Endemic", IF($I92>0, IF($I92=4,"Unknown",IF($I92=99,"Stopped", $D92)), 0),"Not required") -> Unknown | O92: =IF(INTRO!$E$42="Endemic", IF(AND($J92>1,$J92<5), IF($J92=4, "Unknown", E92+F92), 0),"Not required") -> 40457 | P92: =IF(INTRO!$E$44="Endemic", IF(AND($K92>0,$K92<5), IF($K92=4,"Unknown", IF($K92=1, $F92*0.33, IF($K92=2, $F92*0.5+$G92*0.2, SUM(F92:G92)))), 0),"Not required") -> 22569.4 | Q92: 0 | R92: 0 | S92: 0 | T92: 0 | W92: 2099 | X92: EBO | Z92: 29847 | AA92: 29847 | AB92: 35632
A93: =IF(INTRO!$E$34<>0,INTRO!$E$34,"") -> Angola | B93: HUILA | C93: GAMBOS | D93: 93235.68229 | E93: =IF(INTRO!$E$48="","",ROUND($D93*INTRO!$E$48,0)) -> 14918 | F93: =IF(INTRO!$E$49="","",ROUND($D93*INTRO!$E$49,0)) -> 26013 | G93: =IF(INTRO!$E$50="","",ROUND($D93*INTRO!$E$50,0)) -> 49135 | H93: 0 | I93: 4 | J93: 2 | K93: 2 | L93: 1 | M93: =IF(INTRO!$E$38="Endemic", IF($H93>0, IF($H93=4,"Unknown", IF($H93=99,"Stopped", $D93)), 0),"Not required") -> 0 | N93: =IF(INTRO!$E$40="Endemic", IF($I93>0, IF($I93=4,"Unknown",IF($I93=99,"Stopped", $D93)), 0),"Not required") -> Unknown | O93: =IF(INTRO!$E$42="Endemic", IF(AND($J93>1,$J93<5), IF($J93=4, "Unknown", E93+F93), 0),"Not required") -> 40931 | P93: =IF(INTRO!$E$44="Endemic", IF(AND($K93>0,$K93<5), IF($K93=4,"Unknown", IF($K93=1, $F93*0.33, IF($K93=2, $F93*0.5+$G93*0.2, SUM(F93:G93)))), 0),"Not required") -> 22833.5 | Q93: 0 | R93: 0 | S93: 0 | T93: 0 | W93: 2101 | X93: KIBALA | Z93: 18568 | AA93: 18568 | AB93: 29805
A94: =IF(INTRO!$E$34<>0,INTRO!$E$34,"") -> Angola | B94: HUILA | C94: HUMPATA | D94: 104595.9284 | E94: =IF(INTRO!$E$48="","",ROUND($D94*INTRO!$E$48,0)) -> 16735 | F94: =IF(INTRO!$E$49="","",ROUND($D94*INTRO!$E$49,0)) -> 29182 | G94: =IF(INTRO!$E$50="","",ROUND($D94*INTRO!$E$50,0)) -> 55122 | H94: 0 | I94: 4 | J94: 2 | K94: 2 | L94: 4 | M94: =IF(INTRO!$E$38="Endemic", IF($H94>0, IF($H94=4,"Unknown", IF($H94=99,"Stopped", $D94)), 0),"Not required") -> 0 | N94: =IF(INTRO!$E$40="Endemic", IF($I94>0, IF($I94=4,"Unknown",IF($I94=99,"Stopped", $D94)), 0),"Not required") -> Unknown | O94: =IF(INTRO!$E$42="Endemic", IF(AND($J94>1,$J94<5), IF($J94=4, "Unknown", E94+F94), 0),"Not required") -> 45917 | P94: =IF(INTRO!$E$44="Endemic", IF(AND($K94>0,$K94<5), IF($K94=4,"Unknown", IF($K94=1, $F94*0.33, IF($K94=2, $F94*0.5+$G94*0.2, SUM(F94:G94)))), 0),"Not required") -> 25615.4 | Q94: 0 | R94: 0 | S94: 0 | T94: 0 | W94: 2102 | X94: KILENDA | Z94: 18168 | AA94: 18168 | AB94: 22249
A95: =IF(INTRO!$E$34<>0,INTRO!$E$34,"") -> Angola | B95: HUILA | C95: JAMBA | D95: 123305.9557 | E95: =IF(INTRO!$E$48="","",ROUND($D95*INTRO!$E$48,0)) -> 19729 | F95: =IF(INTRO!$E$49="","",ROUND($D95*INTRO!$E$49,0)) -> 34402 | G95: =IF(INTRO!$E$50="","",ROUND($D95*INTRO!$E$50,0)) -> 64982 | H95: 0 | I95: 4 | J95: 2 | K95: 2 | L95: 1 | M95: =IF(INTRO!$E$38="Endemic", IF($H95>0, IF($H95=4,"Unknown", IF($H95=99,"Stopped", $D95)), 0),"Not required") -> 0 | N95: =IF(INTRO!$E$40="Endemic", IF($I95>0, IF($I95=4,"Unknown",IF($I95=99,"Stopped", $D95)), 0),"Not required") -> Unknown | O95: =IF(INTRO!$E$42="Endemic", IF(AND($J95>1,$J95<5), IF($J95=4, "Unknown", E95+F95), 0),"Not required") -> 54131 | P95: =IF(INTRO!$E$44="Endemic", IF(AND($K95>0,$K95<5), IF($K95=4,"Unknown", IF($K95=1, $F95*0.33, IF($K95=2, $F95*0.5+$G95*0.2, SUM(F95:G95)))), 0),"Not required") -> 30197.4 | Q95: 0 | R95: 0 | S95: 0 | T95: 0 | W95: 2104 | X95: LIBOLO | Z95: 11605 | AA95: 11605 | AB95: 20993
A96: =IF(INTRO!$E$34<>0,INTRO!$E$34,"") -> Angola | B96: HUILA | C96: LUBANGO | D96: 910801.4541 | E96: =IF(INTRO!$E$48="","",ROUND($D96*INTRO!$E$48,0)) -> 145728 | F96: =IF(INTRO!$E$49="","",ROUND($D96*INTRO!$E$49,0)) -> 254114 | G96: =IF(INTRO!$E$50="","",ROUND($D96*INTRO!$E$50,0)) -> 479992 | H96: 0 | I96: 4 | J96: 2 | K96: 2 | L96: 4 | M96: =IF(INTRO!$E$38="Endemic", IF($H96>0, IF($H96=4,"Unknown", IF($H96=99,"Stopped", $D96)), 0),"Not required") -> 0 | N96: =IF(INTRO!$E$40="Endemic", IF($I96>0, IF($I96=4,"Unknown",IF($I96=99,"Stopped", $D96)), 0),"Not required") -> Unknown | O96: =IF(INTRO!$E$42="Endemic", IF(AND($J96>1,$J96<5), IF($J96=4, "Unknown", E96+F96), 0),"Not required") -> 399842 | P96: =IF(INTRO!$E$44="Endemic", IF(AND($K96>0,$K96<5), IF($K96=4,"Unknown", IF($K96=1, $F96*0.33, IF($K96=2, $F96*0.5+$G96*0.2, SUM(F96:G96)))), 0),"Not required") -> 223055.4 | Q96: 0 | R96: 0 | S96: 0 | T96: 0 | W96: 2105 | X96: MUSSENDE | Z96: 20445 | AA96: 20445 | AB96: 27221
A97: =IF(INTRO!$E$34<>0,INTRO!$E$34,"") -> Angola | B97: HUILA | C97: MATALA | D97: 337435.2134 | E97: =IF(INTRO!$E$48="","",ROUND($D97*INTRO!$E$48,0)) -> 53990 | F97: =IF(INTRO!$E$49="","",ROUND($D97*INTRO!$E$49,0)) -> 94144 | G97: =IF(INTRO!$E$50="","",ROUND($D97*INTRO!$E$50,0)) -> 177828 | H97: 0 | I97: 1 | J97: 2 | K97: 2 | L97: 1 | M97: =IF(INTRO!$E$38="Endemic", IF($H97>0, IF($H97=4,"Unknown", IF($H97=99,"Stopped", $D97)), 0),"Not required") -> 0 | N97: =IF(INTRO!$E$40="Endemic", IF($I97>0, IF($I97=4,"Unknown",IF($I97=99,"Stopped", $D97)), 0),"Not required") -> 337435.2134 | O97: =IF(INTRO!$E$42="Endemic", IF(AND($J97>1,$J97<5), IF($J97=4, "Unknown", E97+F97), 0),"Not required") -> 148134 | P97: =IF(INTRO!$E$44="Endemic", IF(AND($K97>0,$K97<5), IF($K97=4,"Unknown", IF($K97=1, $F97*0.33, IF($K97=2, $F97*0.5+$G97*0.2, SUM(F97:G97)))), 0),"Not required") -> 82637.6 | Q97: 0 | R97: 0 | S97: 0 | T97: 0 | W97: 2106 | X97: PORTO AMBOIM | Z97: 23906 | AA97: 23906 | AB97: 28415
A98: =IF(INTRO!$E$34<>0,INTRO!$E$34,"") -> Angola | B98: HUILA | C98: QUILENGUES | D98: 88392.14832 | E98: =IF(INTRO!$E$48="","",ROUND($D98*INTRO!$E$48,0)) -> 14143 | F98: =IF(INTRO!$E$49="","",ROUND($D98*INTRO!$E$49,0)) -> 24661 | G98: =IF(INTRO!$E$50="","",ROUND($D98*INTRO!$E$50,0)) -> 46583 | H98: 0 | I98: 1 | J98: 2 | K98: 2 | L98: 4 | M98: =IF(INTRO!$E$38="Endemic", IF($H98>0, IF($H98=4,"Unknown", IF($H98=99,"Stopped", $D98)), 0),"Not required") -> 0 | N98: =IF(INTRO!$E$40="Endemic", IF($I98>0, IF($I98=4,"Unknown",IF($I98=99,"Stopped", $D98)), 0),"Not required") -> 88392.14832 | O98: =IF(INTRO!$E$42="Endemic", IF(AND($J98>1,$J98<5), IF($J98=4, "Unknown", E98+F98), 0),"Not required") -> 38804 | P98: =IF(INTRO!$E$44="Endemic", IF(AND($K98>0,$K98<5), IF($K98=4,"Unknown", IF($K98=1, $F98*0.33, IF($K98=2, $F98*0.5+$G98*0.2, SUM(F98:G98)))), 0),"Not required") -> 21647.1 | Q98: 0 | R98: 0 | S98: 0 | T98: 0 | W98: 2107 | X98: SELES | Z98: 34345 | AA98: 34345 | AB98: 39350
A99: =IF(INTRO!$E$34<>0,INTRO!$E$34,"") -> Angola | B99: HUILA | C99: QUIPUNGO | D99: 186464.3246 | E99: =IF(INTRO!$E$48="","",ROUND($D99*INTRO!$E$48,0)) -> 29834 | F99: =IF(INTRO!$E$49="","",ROUND($D99*INTRO!$E$49,0)) -> 52024 | G99: =IF(INTRO!$E$50="","",ROUND($D99*INTRO!$E$50,0)) -> 98267 | H99: 0 | I99: 1 | J99: 2 | K99: 2 | L99: 1 | M99: =IF(INTRO!$E$38="Endemic", IF($H99>0, IF($H99=4,"Unknown", IF($H99=99,"Stopped", $D99)), 0),"Not required") -> 0 | N99: =IF(INTRO!$E$40="Endemic", IF($I99>0, IF($I99=4,"Unknown",IF($I99=99,"Stopped", $D99)), 0),"Not required") -> 186464.3246 | O99: =IF(INTRO!$E$42="Endemic", IF(AND($J99>1,$J99<5), IF($J99=4, "Unknown", E99+F99), 0),"Not required") -> 81858 | P99: =IF(INTRO!$E$44="Endemic", IF(AND($K99>0,$K99<5), IF($K99=4,"Unknown", IF($K99=1, $F99*0.33, IF($K99=2, $F99*0.5+$G99*0.2, SUM(F99:G99)))), 0),"Not required") -> 45665.4 | Q99: 0 | R99: 0 | S99: 0 | T99: 0 | W99: 2108 | X99: SUMBE | Z99: 45858 | AA99: 45858 | AB99: 69939
A100: =IF(INTRO!$E$34<>0,INTRO!$E$34,"") -> Angola | B100: LUANDA | C100: BELAS | D100: 1261464.866 | E100: =IF(INTRO!$E$48="","",ROUND($D100*INTRO!$E$48,0)) -> 201834 | F100: =IF(INTRO!$E$49="","",ROUND($D100*INTRO!$E$49,0)) -> 351949 | G100: =IF(INTRO!$E$50="","",ROUND($D100*INTRO!$E$50,0)) -> 664792 | H100: 0 | I100: 4 | J100: 2 | K100: 2 | L100: 1 | M100: =IF(INTRO!$E$38="Endemic", IF($H100>0, IF($H100=4,"Unknown", IF($H100=99,"Stopped", $D100)), 0),"Not required") -> 0 | N100: =IF(INTRO!$E$40="Endemic", IF($I100>0, IF($I100=4,"Unknown",IF($I100=99,"Stopped", $D100)), 0),"Not required") -> Unknown | O100: =IF(INTRO!$E$42="Endemic", IF(AND($J100>1,$J100<5), IF($J100=4, "Unknown", E100+F100), 0),"Not required") -> 553783 | P100: =IF(INTRO!$E$44="Endemic", IF(AND($K100>0,$K100<5), IF($K100=4,"Unknown", IF($K100=1, $F100*0.33, IF($K100=2, $F100*0.5+$G100*0.2, SUM(F100:G100)))), 0),"Not required") -> 308932.9 | Q100: 0 | R100: 0 | S100: 0 | T100: 0 | W100: 2212 | X100: BELAS | Z100: 0 | AA100: 0 | AB100: 0
A101: =IF(INTRO!$E$34<>0,INTRO!$E$34,"") -> Angola | B101: LUANDA | C101: CACUACO | D101: 1255642.769 | E101: =IF(INTRO!$E$48="","",ROUND($D101*INTRO!$E$48,0)) -> 200903 | F101: =IF(INTRO!$E$49="","",ROUND($D101*INTRO!$E$49,0)) -> 350324 | G101: =IF(INTRO!$E$50="","",ROUND($D101*INTRO!$E$50,0)) -> 661724 | H101: 0 | I101: 4 | J101: 2 | K101: 2 | L101: 1 | M101: =IF(INTRO!$E$38="Endemic", IF($H101>0, IF($H101=4,"Unknown", IF($H101=99,"Stopped", $D101)), 0),"Not required") -> 0 | N101: =IF(INTRO!$E$40="Endemic", IF($I101>0, IF($I101=4,"Unknown",IF($I101=99,"Stopped", $D101)), 0),"Not required") -> Unknown | O101: =IF(INTRO!$E$42="Endemic", IF(AND($J101>1,$J101<5), IF($J101=4, "Unknown", E101+F101), 0),"Not required") -> 551227 | P101: =IF(INTRO!$E$44="Endemic", IF(AND($K101>0,$K101<5), IF($K101=4,"Unknown", IF($K101=1, $F101*0.33, IF($K101=2, $F101*0.5+$G101*0.2, SUM(F101:G101)))), 0),"Not required") -> 307506.8 | Q101: 0 | R101: 0 | S101: 0 | T101: 0 | W101: 2140 | X101: CACUACO | Z101: 156000 | AA101: 0 | AB101: 0
A102: =IF(INTRO!$E$34<>0,INTRO!$E$34,"") -> Angola | B102: LUANDA | C102: CAZENGA | D102: 1047086.861 | E102: =IF(INTRO!$E$48="","",ROUND($D102*INTRO!$E$48,0)) -> 167534 | F102: =IF(INTRO!$E$49="","",ROUND($D102*INTRO!$E$49,0)) -> 292137 | G102: =IF(INTRO!$E$50="","",ROUND($D102*INTRO!$E$50,0)) -> 551815 | H102: 0 | I102: 4 | J102: 2 | K102: 2 | L102: 1 | M102: =IF(INTRO!$E$38="Endemic", IF($H102>0, IF($H102=4,"Unknown", IF($H102=99,"Stopped", $D102)), 0),"Not required") -> 0 | N102: =IF(INTRO!$E$40="Endemic", IF($I102>0, IF($I102=4,"Unknown",IF($I102=99,"Stopped", $D102)), 0),"Not required") -> Unknown | O102: =IF(INTRO!$E$42="Endemic", IF(AND($J102>1,$J102<5), IF($J102=4, "Unknown", E102+F102), 0),"Not required") -> 459671 | P102: =IF(INTRO!$E$44="Endemic", IF(AND($K102>0,$K102<5), IF($K102=4,"Unknown", IF($K102=1, $F102*0.33, IF($K102=2, $F102*0.5+$G102*0.2, SUM(F102:G102)))), 0),"Not required") -> 256431.5 | Q102: 0 | R102: 0 | S102: 0 | T102: 0 | W102: 2141 | X102: CAZENGA | Z102: 0 | AA102: 0 | AB102: 0
A103: =IF(INTRO!$E$34<>0,INTRO!$E$34,"") -> Angola | B103: LUANDA | C103: ICOLO E BENGO | D103: 95209.23465 | E103: =IF(INTRO!$E$48="","",ROUND($D103*INTRO!$E$48,0)) -> 15233 | F103: =IF(INTRO!$E$49="","",ROUND($D103*INTRO!$E$49,0)) -> 26563 | G103: =IF(INTRO!$E$50="","",ROUND($D103*INTRO!$E$50,0)) -> 50175 | H103: 0 | I103: 4 | J103: 3 | K103: 2 | L103: 1 | M103: =IF(INTRO!$E$38="Endemic", IF($H103>0, IF($H103=4,"Unknown", IF($H103=99,"Stopped", $D103)), 0),"Not required") -> 0 | N103: =IF(INTRO!$E$40="Endemic", IF($I103>0, IF($I103=4,"Unknown",IF($I103=99,"Stopped", $D103)), 0),"Not required") -> Unknown | O103: =IF(INTRO!$E$42="Endemic", IF(AND($J103>1,$J103<5), IF($J103=4, "Unknown", E103+F103), 0),"Not required") -> 41796 | P103: =IF(INTRO!$E$44="Endemic", IF(AND($K103>0,$K103<5), IF($K103=4,"Unknown", IF($K103=1, $F103*0.33, IF($K103=2, $F103*0.5+$G103*0.2, SUM(F103:G103)))), 0),"Not required") -> 23316.5 | Q103: 0 | R103: 0 | S103: 0 | T103: 0 | W103: 2051 | X103: ICOLO E BENGO | Z103: 25586 | AA103: 0 | AB103: 0
A104: =IF(INTRO!$E$34<>0,INTRO!$E$34,"") -> Angola | B104: LUANDA | C104: KILAMBA KIAXI | D104: 987258.4213 | E104: =IF(INTRO!$E$48="","",ROUND($D104*INTRO!$E$48,0)) -> 157961 | F104: =IF(INTRO!$E$49="","",ROUND($D104*INTRO!$E$49,0)) -> 275445 | G104: =IF(INTRO!$E$50="","",ROUND($D104*INTRO!$E$50,0)) -> 520285 | H104: 0 | I104: 4 | J104: 2 | K104: 2 | L104: 4 | M104: =IF(INTRO!$E$38="Endemic", IF($H104>0, IF($H104=4,"Unknown", IF($H104=99,"Stopped", $D104)), 0),"Not required") -> 0 | N104: =IF(INTRO!$E$40="Endemic", IF($I104>0, IF($I104=4,"Unknown",IF($I104=99,"Stopped", $D104)), 0),"Not required") -> Unknown | O104: =IF(INTRO!$E$42="Endemic", IF(AND($J104>1,$J104<5), IF($J104=4, "Unknown", E104+F104), 0),"Not required") -> 433406 | P104: =IF(INTRO!$E$44="Endemic", IF(AND($K104>0,$K104<5), IF($K104=4,"Unknown", IF($K104=1, $F104*0.33, IF($K104=2, $F104*0.5+$G104*0.2, SUM(F104:G104)))), 0),"Not required") -> 241779.5 | Q104: 0 | R104: 0 | S104: 0 | T104: 0 | W104: 2143 | X104: KILAMBA KIAXI | Z104: 0 | AA104: 0 | AB104: 0
A105: =IF(INTRO!$E$34<>0,INTRO!$E$34,"") -> Angola | B105: LUANDA | C105: LUANDA | D105: 1814181.553 | E105: =IF(INTRO!$E$48="","",ROUND($D105*INTRO!$E$48,0)) -> 290269 | F105: =IF(INTRO!$E$49="","",ROUND($D105*INTRO!$E$49,0)) -> 506157 | G105: =IF(INTRO!$E$50="","",ROUND($D105*INTRO!$E$50,0)) -> 956074 | H105: 0 | I105: 4 | J105: 2 | K105: 2 | L105: 1 | M105: =IF(INTRO!$E$38="Endemic", IF($H105>0, IF($H105=4,"Unknown", IF($H105=99,"Stopped", $D105)), 0),"Not required") -> 0 | N105: =IF(INTRO!$E$40="Endemic", IF($I105>0, IF($I105=4,"Unknown",IF($I105=99,"Stopped", $D105)), 0),"Not required") -> Unknown | O105: =IF(INTRO!$E$42="Endemic", IF(AND($J105>1,$J105<5), IF($J105=4, "Unknown", E105+F105), 0),"Not required") -> 796426 | P105: =IF(INTRO!$E$44="Endemic", IF(AND($K105>0,$K105<5), IF($K105=4,"Unknown", IF($K105=1, $F105*0.33, IF($K105=2, $F105*0.5+$G105*0.2, SUM(F105:G105)))), 0),"Not required") -> 444293.3 | Q105: 0 | R105: 0 | S105: 0 | T105: 0 | W105: 2219 | X105: LUANDA | Z105: 0 | AA105: 0 | AB105: 0
A106: =IF(INTRO!$E$34<>0,INTRO!$E$34,"") -> Angola | B106: LUANDA | C106: QUISSAMA | D106: 35584.95599 | E106: =IF(INTRO!$E$48="","",ROUND($D106*INTRO!$E$48,0)) -> 5694 | F106: =IF(INTRO!$E$49="","",ROUND($D106*INTRO!$E$49,0)) -> 9928 | G106: =IF(INTRO!$E$50="","",ROUND($D106*INTRO!$E$50,0)) -> 18753 | H106: 0 | I106: 4 | J106: 3 | K106: 2 | L106: 1 | M106: =IF(INTRO!$E$38="Endemic", IF($H106>0, IF($H106=4,"Unknown", IF($H106=99,"Stopped", $D106)), 0),"Not required") -> 0 | N106: =IF(INTRO!$E$40="Endemic", IF($I106>0, IF($I106=4,"Unknown",IF($I106=99,"Stopped", $D106)), 0),"Not required") -> Unknown | O106: =IF(INTRO!$E$42="Endemic", IF(AND($J106>1,$J106<5), IF($J106=4, "Unknown", E106+F106), 0),"Not required") -> 15622 | P106: =IF(INTRO!$E$44="Endemic", IF(AND($K106>0,$K106<5), IF($K106=4,"Unknown", IF($K106=1, $F106*0.33, IF($K106=2, $F106*0.5+$G106*0.2, SUM(F106:G106)))), 0),"Not required") -> 8714.6 | Q106: 0 | R106: 0 | S106: 0 | T106: 0 | W106: 2052 | X106: QUISSAMA | Z106: 14000 | AA106: 0 | AB106: 0
A107: =IF(INTRO!$E$34<>0,INTRO!$E$34,"") -> Angola | B107: LUANDA | C107: TALATONA | D107: 1066658.117 | E107: =IF(INTRO!$E$48="","",ROUND($D107*INTRO!$E$48,0)) -> 170665 | F107: =IF(INTRO!$E$49="","",ROUND($D107*INTRO!$E$49,0)) -> 297598 | G107: =IF(INTRO!$E$50="","",ROUND($D107*INTRO!$E$50,0)) -> 562129 | H107: 0 | I107: 4 | J107: 2 | K107: 2 | L107: 4 | M107: =IF(INTRO!$E$38="Endemic", IF($H107>0, IF($H107=4,"Unknown", IF($H107=99,"Stopped", $D107)), 0),"Not required") -> 0 | N107: =IF(INTRO!$E$40="Endemic", IF($I107>0, IF($I107=4,"Unknown",IF($I107=99,"Stopped", $D107)), 0),"Not required") -> Unknown | O107: =IF(INTRO!$E$42="Endemic", IF(AND($J107>1,$J107<5), IF($J107=4, "Unknown", E107+F107), 0),"Not required") -> 468263 | P107: =IF(INTRO!$E$44="Endemic", IF(AND($K107>0,$K107<5), IF($K107=4,"Unknown", IF($K107=1, $F107*0.33, IF($K107=2, $F107*0.5+$G107*0.2, SUM(F107:G107)))), 0),"Not required") -> 261224.8 | Q107: 0 | R107: 0 | S107: 0 | T107: 0 | W107: 2223 | X107: TALATONA | Z107: 0 | AA107: 0 | AB107: 0
A108: =IF(INTRO!$E$34<>0,INTRO!$E$34,"") -> Angola | B108: LUANDA | C108: VIANA | D108: 1883546.874 | E108: =IF(INTRO!$E$48="","",ROUND($D108*INTRO!$E$48,0)) -> 301367 | F108: =IF(INTRO!$E$49="","",ROUND($D108*INTRO!$E$49,0)) -> 525510 | G108: =IF(INTRO!$E$50="","",ROUND($D108*INTRO!$E$50,0)) -> 992629 | H108: 0 | I108: 4 | J108: 2 | K108: 2 | L108: 1 | M108: =IF(INTRO!$E$38="Endemic", IF($H108>0, IF($H108=4,"Unknown", IF($H108=99,"Stopped", $D108)), 0),"Not required") -> 0 | N108: =IF(INTRO!$E$40="Endemic", IF($I108>0, IF($I108=4,"Unknown",IF($I108=99,"Stopped", $D108)), 0),"Not required") -> Unknown | O108: =IF(INTRO!$E$42="Endemic", IF(AND($J108>1,$J108<5), IF($J108=4, "Unknown", E108+F108), 0),"Not required") -> 826877 | P108: =IF(INTRO!$E$44="Endemic", IF(AND($K108>0,$K108<5), IF($K108=4,"Unknown", IF($K108=1, $F108*0.33, IF($K108=2, $F108*0.5+$G108*0.2, SUM(F108:G108)))), 0),"Not required") -> 461280.8 | Q108: 0 | R108: 0 | S108: 0 | T108: 0 | W108: 2148 | X108: VIANA | Z108: 328580 | AA108: 0 | AB108: 0
A109: =IF(INTRO!$E$34<>0,INTRO!$E$34,"") -> Angola | B109: LUNDA NORTE | C109: CAMBULO | D109: 140949.4199 | E109: =IF(INTRO!$E$48="","",ROUND($D109*INTRO!$E$48,0)) -> 22552 | F109: =IF(INTRO!$E$49="","",ROUND($D109*INTRO!$E$49,0)) -> 39325 | G109: =IF(INTRO!$E$50="","",ROUND($D109*INTRO!$E$50,0)) -> 74280 | H109: 1 | I109: 1 | J109: 3 | K109: 2 | L109: 1 | M109: =IF(INTRO!$E$38="Endemic", IF($H109>0, IF($H109=4,"Unknown", IF($H109=99,"Stopped", $D109)), 0),"Not required") -> 140949.4199 | N109: =IF(INTRO!$E$40="Endemic", IF($I109>0, IF($I109=4,"Unknown",IF($I109=99,"Stopped", $D109)), 0),"Not required") -> 140949.4199 | O109: =IF(INTRO!$E$42="Endemic", IF(AND($J109>1,$J109<5), IF($J109=4, "Unknown", E109+F109), 0),"Not required") -> 61877 | P109: =IF(INTRO!$E$44="Endemic", IF(AND($K109>0,$K109<5), IF($K109=4,"Unknown", IF($K109=1, $F109*0.33, IF($K109=2, $F109*0.5+$G109*0.2, SUM(F109:G109)))), 0),"Not required") -> 34518.5 | Q109: 0 | R109: 0 | S109: 0 | T109: 0 | W109: 2150 | X109: CAMBULO | Z109: 0 | AA109: 0 | AB109: 0
A110: =IF(INTRO!$E$34<>0,INTRO!$E$34,"") -> Angola | B110: LUNDA NORTE | C110: CAPENDA CAMULEMBA | D110: 68387.93061 | E110: =IF(INTRO!$E$48="","",ROUND($D110*INTRO!$E$48,0)) -> 10942 | F110: =IF(INTRO!$E$49="","",ROUND($D110*INTRO!$E$49,0)) -> 19080 | G110: =IF(INTRO!$E$50="","",ROUND($D110*INTRO!$E$50,0)) -> 36040 | H110: 4 | I110: 1 | J110: 3 | K110: 2 | L110: 1 | M110: =IF(INTRO!$E$38="Endemic", IF($H110>0, IF($H110=4,"Unknown", IF($H110=99,"Stopped", $D110)), 0),"Not required") -> Unknown | N110: =IF(INTRO!$E$40="Endemic", IF($I110>0, IF($I110=4,"Unknown",IF($I110=99,"Stopped", $D110)), 0),"Not required") -> 68387.93061 | O110: =IF(INTRO!$E$42="Endemic", IF(AND($J110>1,$J110<5), IF($J110=4, "Unknown", E110+F110), 0),"Not required") -> 30022 | P110: =IF(INTRO!$E$44="Endemic", IF(AND($K110>0,$K110<5), IF($K110=4,"Unknown", IF($K110=1, $F110*0.33, IF($K110=2, $F110*0.5+$G110*0.2, SUM(F110:G110)))), 0),"Not required") -> 16748 | Q110: 0 | R110: 0 | S110: 0 | T110: 0 | W110: 2151 | X110: CAPENDA CAMULEMBA | Z110: 0 | AA110: 0 | AB110: 0
A111: =IF(INTRO!$E$34<>0,INTRO!$E$34,"") -> Angola | B111: LUNDA NORTE | C111: CAUNGULA | D111: 33045.85533 | E111: =IF(INTRO!$E$48="","",ROUND($D111*INTRO!$E$48,0)) -> 5287 | F111: =IF(INTRO!$E$49="","",ROUND($D111*INTRO!$E$49,0)) -> 9220 | G111: =IF(INTRO!$E$50="","",ROUND($D111*INTRO!$E$50,0)) -> 17415 | H111: 0 | I111: 1 | J111: 3 | K111: 2 | L111: 1 | M111: =IF(INTRO!$E$38="Endemic", IF($H111>0, IF($H111=4,"Unknown", IF($H111=99,"Stopped", $D111)), 0),"Not required") -> 0 | N111: =IF(INTRO!$E$40="Endemic", IF($I111>0, IF($I111=4,"Unknown",IF($I111=99,"Stopped", $D111)), 0),"Not required") -> 33045.85533 | O111: =IF(INTRO!$E$42="Endemic", IF(AND($J111>1,$J111<5), IF($J111=4, "Unknown", E111+F111), 0),"Not required") -> 14507 | P111: =IF(INTRO!$E$44="Endemic", IF(AND($K111>0,$K111<5), IF($K111=4,"Unknown", IF($K111=1, $F111*0.33, IF($K111=2, $F111*0.5+$G111*0.2, SUM(F111:G111)))), 0),"Not required") -> 8093 | Q111: 0 | R111: 0 | S111: 0 | T111: 0 | W111: 2152 | X111: CAUNGULA | Z111: 0 | AA111: 0 | AB111: 0
A112: =IF(INTRO!$E$34<>0,INTRO!$E$34,"") -> Angola | B112: LUNDA NORTE | C112: CHITATO | D112: 244252.3313 | E112: =IF(INTRO!$E$48="","",ROUND($D112*INTRO!$E$48,0)) -> 39080 | F112: =IF(INTRO!$E$49="","",ROUND($D112*INTRO!$E$49,0)) -> 68146 | G112: =IF(INTRO!$E$50="","",ROUND($D112*INTRO!$E$50,0)) -> 128721 | H112: 4 | I112: 1 | J112: 3 | K112: 2 | L112: 1 | M112: =IF(INTRO!$E$38="Endemic", IF($H112>0, IF($H112=4,"Unknown", IF($H112=99,"Stopped", $D112)), 0),"Not required") -> Unknown | N112: =IF(INTRO!$E$40="Endemic", IF($I112>0, IF($I112=4,"Unknown",IF($I112=99,"Stopped", $D112)), 0),"Not required") -> 244252.3313 | O112: =IF(INTRO!$E$42="Endemic", IF(AND($J112>1,$J112<5), IF($J112=4, "Unknown", E112+F112), 0),"Not required") -> 107226 | P112: =IF(INTRO!$E$44="Endemic", IF(AND($K112>0,$K112<5), IF($K112=4,"Unknown", IF($K112=1, $F112*0.33, IF($K112=2, $F112*0.5+$G112*0.2, SUM(F112:G112)))), 0),"Not required") -> 59817.2 | Q112: 0 | R112: 0 | S112: 0 | T112: 0 | W112: 2149 | X112: CHITATO | Z112: 0 | AA112: 0 | AB112: 0
A113: =IF(INTRO!$E$34<>0,INTRO!$E$34,"") -> Angola | B113: LUNDA NORTE | C113: CUANGO | D113: 215620.5687 | E113: =IF(INTRO!$E$48="","",ROUND($D113*INTRO!$E$48,0)) -> 34499 | F113: =IF(INTRO!$E$49="","",ROUND($D113*INTRO!$E$49,0)) -> 60158 | G113: =IF(INTRO!$E$50="","",ROUND($D113*INTRO!$E$50,0)) -> 113632 | H113: 0 | I113: 4 | J113: 3 | K113: 2 | L113: 1 | M113: =IF(INTRO!$E$38="Endemic", IF($H113>0, IF($H113=4,"Unknown", IF($H113=99,"Stopped", $D113)), 0),"Not required") -> 0 | N113: =IF(INTRO!$E$40="Endemic", IF($I113>0, IF($I113=4,"Unknown",IF($I113=99,"Stopped", $D113)), 0),"Not required") -> Unknown | O113: =IF(INTRO!$E$42="Endemic", IF(AND($J113>1,$J113<5), IF($J113=4, "Unknown", E113+F113), 0),"Not required") -> 94657 | P113: =IF(INTRO!$E$44="Endemic", IF(AND($K113>0,$K113<5), IF($K113=4,"Unknown", IF($K113=1, $F113*0.33, IF($K113=2, $F113*0.5+$G113*0.2, SUM(F113:G113)))), 0),"Not required") -> 52805.4 | Q113: 0 | R113: 0 | S113: 0 | T113: 0 | W113: 2153 | X113: CUANGO | Z113: 0 | AA113: 0 | AB113: 0
A114: =IF(INTRO!$E$34<>0,INTRO!$E$34,"") -> Angola | B114: LUNDA NORTE | C114: CUILO | D114: 24644.76443 | E114: =IF(INTRO!$E$48="","",ROUND($D114*INTRO!$E$48,0)) -> 3943 | F114: =IF(INTRO!$E$49="","",ROUND($D114*INTRO!$E$49,0)) -> 6876 | G114: =IF(INTRO!$E$50="","",ROUND($D114*INTRO!$E$50,0)) -> 12988 | H114: 1 | I114: 1 | J114: 3 | K114: 2 | L114: 1 | M114: =IF(INTRO!$E$38="Endemic", IF($H114>0, IF($H114=4,"Unknown", IF($H114=99,"Stopped", $D114)), 0),"Not required") -> 24644.76443 | N114: =IF(INTRO!$E$40="Endemic", IF($I114>0, IF($I114=4,"Unknown",IF($I114=99,"Stopped", $D114)), 0),"Not required") -> 24644.76443 | O114: =IF(INTRO!$E$42="Endemic", IF(AND($J114>1,$J114<5), IF($J114=4, "Unknown", E114+F114), 0),"Not required") -> 10819 | P114: =IF(INTRO!$E$44="Endemic", IF(AND($K114>0,$K114<5), IF($K114=4,"Unknown", IF($K114=1, $F114*0.33, IF($K114=2, $F114*0.5+$G114*0.2, SUM(F114:G114)))), 0),"Not required") -> 6035.6 | Q114: 0 | R114: 0 | S114: 0 | T114: 0 | W114: 2154 | X114: CUILO | Z114: 0 | AA114: 0 | AB114: 0
A115: =IF(INTRO!$E$34<>0,INTRO!$E$34,"") -> Angola | B115: LUNDA NORTE | C115: LOVUA | D115: 18173.81243 | E115: =IF(INTRO!$E$48="","",ROUND($D115*INTRO!$E$48,0)) -> 2908 | F115: =IF(INTRO!$E$49="","",ROUND($D115*INTRO!$E$49,0)) -> 5070 | G115: =IF(INTRO!$E$50="","",ROUND($D115*INTRO!$E$50,0)) -> 9578 | H115: 0 | I115: 1 | J115: 3 | K115: 2 | L115: 4 | M115: =IF(INTRO!$E$38="Endemic", IF($H115>0, IF($H115=4,"Unknown", IF($H115=99,"Stopped", $D115)), 0),"Not required") -> 0 | N115: =IF(INTRO!$E$40="Endemic", IF($I115>0, IF($I115=4,"Unknown",IF($I115=99,"Stopped", $D115)), 0),"Not required") -> 18173.81243 | O115: =IF(INTRO!$E$42="Endemic", IF(AND($J115>1,$J115<5), IF($J115=4, "Unknown", E115+F115), 0),"Not required") -> 7978 | P115: =IF(INTRO!$E$44="Endemic", IF(AND($K115>0,$K115<5), IF($K115=4,"Unknown", IF($K115=1, $F115*0.33, IF($K115=2, $F115*0.5+$G115*0.2, SUM(F115:G115)))), 0),"Not required") -> 4450.6 | Q115: 0 | R115: 0 | S115: 0 | T115: 0 | W115: 2224 | X115: LOVUA | Z115: 0 | AA115: 0 | AB115: 0
A116: =IF(INTRO!$E$34<>0,INTRO!$E$34,"") -> Angola | B116: LUNDA NORTE | C116: LUBALO | D116: 24207.10983 | E116: =IF(INTRO!$E$48="","",ROUND($D116*INTRO!$E$48,0)) -> 3873 | F116: =IF(INTRO!$E$49="","",ROUND($D116*INTRO!$E$49,0)) -> 6754 | G116: =IF(INTRO!$E$50="","",ROUND($D116*INTRO!$E$50,0)) -> 12757 | H116: 4 | I116: 1 | J116: 3 | K116: 2 | L116: 1 | M116: =IF(INTRO!$E$38="Endemic", IF($H116>0, IF($H116=4,"Unknown", IF($H116=99,"Stopped", $D116)), 0),"Not required") -> Unknown | N116: =IF(INTRO!$E$40="Endemic", IF($I116>0, IF($I116=4,"Unknown",IF($I116=99,"Stopped", $D116)), 0),"Not required") -> 24207.10983 | O116: =IF(INTRO!$E$42="Endemic", IF(AND($J116>1,$J116<5), IF($J116=4, "Unknown", E116+F116), 0),"Not required") -> 10627 | P116: =IF(INTRO!$E$44="Endemic", IF(AND($K116>0,$K116<5), IF($K116=4,"Unknown", IF($K116=1, $F116*0.33, IF($K116=2, $F116*0.5+$G116*0.2, SUM(F116:G116)))), 0),"Not required") -> 5928.4 | Q116: 0 | R116: 0 | S116: 0 | T116: 0 | W116: 2155 | X116: LUBALO | Z116: 0 | AA116: 0 | AB116: 0
A117: =IF(INTRO!$E$34<>0,INTRO!$E$34,"") -> Angola | B117: LUNDA NORTE | C117: LUCAPA | D117: 181051.7223 | E117: =IF(INTRO!$E$48="","",ROUND($D117*INTRO!$E$48,0)) -> 28968 | F117: =IF(INTRO!$E$49="","",ROUND($D117*INTRO!$E$49,0)) -> 50513 | G117: =IF(INTRO!$E$50="","",ROUND($D117*INTRO!$E$50,0)) -> 95414 | H117: 0 | I117: 1 | J117: 3 | K117: 2 | L117: 1 | M117: =IF(INTRO!$E$38="Endemic", IF($H117>0, IF($H117=4,"Unknown", IF($H117=99,"Stopped", $D117)), 0),"Not required") -> 0 | N117: =IF(INTRO!$E$40="Endemic", IF($I117>0, IF($I117=4,"Unknown",IF($I117=99,"Stopped", $D117)), 0),"Not required") -> 181051.7223 | O117: =IF(INTRO!$E$42="Endemic", IF(AND($J117>1,$J117<5), IF($J117=4, "Unknown", E117+F117), 0),"Not required") -> 79481 | P117: =IF(INTRO!$E$44="Endemic", IF(AND($K117>0,$K117<5), IF($K117=4,"Unknown", IF($K117=1, $F117*0.33, IF($K117=2, $F117*0.5+$G117*0.2, SUM(F117:G117)))), 0),"Not required") -> 44339.3 | Q117: 0 | R117: 0 | S117: 0 | T117: 0 | W117: 2156 | X117: LUCAPA | Z117: 0 | AA117: 0 | AB117: 0
A118: =IF(INTRO!$E$34<>0,INTRO!$E$34,"") -> Angola | B118: LUNDA NORTE | C118: XA MUTEBA | D118: 79920.65722 | E118: =IF(INTRO!$E$48="","",ROUND($D118*INTRO!$E$48,0)) -> 12787 | F118: =IF(INTRO!$E$49="","",ROUND($D118*INTRO!$E$49,0)) -> 22298 | G118: =IF(INTRO!$E$50="","",ROUND($D118*INTRO!$E$50,0)) -> 42118 | H118: 1 | I118: 4 | J118: 3 | K118: 2 | L118: 1 | M118: =IF(INTRO!$E$38="Endemic", IF($H118>0, IF($H118=4,"Unknown", IF($H118=99,"Stopped", $D118)), 0),"Not required") -> 79920.65722 | N118: =IF(INTRO!$E$40="Endemic", IF($I118>0, IF($I118=4,"Unknown",IF($I118=99,"Stopped", $D118)), 0),"Not required") -> Unknown | O118: =IF(INTRO!$E$42="Endemic", IF(AND($J118>1,$J118<5), IF($J118=4, "Unknown", E118+F118), 0),"Not required") -> 35085 | P118: =IF(INTRO!$E$44="Endemic", IF(AND($K118>0,$K118<5), IF($K118=4,"Unknown", IF($K118=1, $F118*0.33, IF($K118=2, $F118*0.5+$G118*0.2, SUM(F118:G118)))), 0),"Not required") -> 19572.6 | Q118: 0 | R118: 0 | S118: 0 | T118: 0 | W118: 2157 | X118: XA MUTEBA | Z118: 0 | AA118: 0 | AB118: 0
A119: =IF(INTRO!$E$34<>0,INTRO!$E$34,"") -> Angola | B119: LUNDA SUL | C119: CACOLO | D119: 37423.57462 | E119: =IF(INTRO!$E$48="","",ROUND($D119*INTRO!$E$48,0)) -> 5988 | F119: =IF(INTRO!$E$49="","",ROUND($D119*INTRO!$E$49,0)) -> 10441 | G119: =IF(INTRO!$E$50="","",ROUND($D119*INTRO!$E$50,0)) -> 19722 | H119: 1 | I119: 1 | J119: 2 | K119: 2 | L119: 1 | M119: =IF(INTRO!$E$38="Endemic", IF($H119>0, IF($H119=4,"Unknown", IF($H119=99,"Stopped", $D119)), 0),"Not required") -> 37423.57462 | N119: =IF(INTRO!$E$40="Endemic", IF($I119>0, IF($I119=4,"Unknown",IF($I119=99,"Stopped", $D119)), 0),"Not required") -> 37423.57462 | O119: =IF(INTRO!$E$42="Endemic", IF(AND($J119>1,$J119<5), IF($J119=4, "Unknown", E119+F119), 0),"Not required") -> 16429 | P119: =IF(INTRO!$E$44="Endemic", IF(AND($K119>0,$K119<5), IF($K119=4,"Unknown", IF($K119=1, $F119*0.33, IF($K119=2, $F119*0.5+$G119*0.2, SUM(F119:G119)))), 0),"Not required") -> 9164.9 | Q119: 0 | R119: 0 | S119: 0 | T119: 0 | W119: 2159 | X119: CACOLO | Z119: 0 | AA119: 0 | AB119: 0
A120: =IF(INTRO!$E$34<>0,INTRO!$E$34,"") -> Angola | B120: LUNDA SUL | C120: DALA | D120: 35189.54151 | E120: =IF(INTRO!$E$48="","",ROUND($D120*INTRO!$E$48,0)) -> 5630 | F120: =IF(INTRO!$E$49="","",ROUND($D120*INTRO!$E$49,0)) -> 9818 | G120: =IF(INTRO!$E$50="","",ROUND($D120*INTRO!$E$50,0)) -> 18545 | H120: 0 | I120: 1 | J120: 2 | K120: 2 | L120: 1 | M120: =IF(INTRO!$E$38="Endemic", IF($H120>0, IF($H120=4,"Unknown", IF($H120=99,"Stopped", $D120)), 0),"Not required") -> 0 | N120: =IF(INTRO!$E$40="Endemic", IF($I120>0, IF($I120=4,"Unknown",IF($I120=99,"Stopped", $D120)), 0),"Not required") -> 35189.54151 | O120: =IF(INTRO!$E$42="Endemic", IF(AND($J120>1,$J120<5), IF($J120=4, "Unknown", E120+F120), 0),"Not required") -> 15448 | P120: =IF(INTRO!$E$44="Endemic", IF(AND($K120>0,$K120<5), IF($K120=4,"Unknown", IF($K120=1, $F120*0.33, IF($K120=2, $F120*0.5+$G120*0.2, SUM(F120:G120)))), 0),"Not required") -> 8618 | Q120: 0 | R120: 0 | S120: 0 | T120: 0 | W120: 2158 | X120: DALA | Z120: 0 | AA120: 0 | AB120: 0
A121: =IF(INTRO!$E$34<>0,INTRO!$E$34,"") -> Angola | B121: LUNDA SUL | C121: MUCONDA | D121: 39029.87259 | E121: =IF(INTRO!$E$48="","",ROUND($D121*INTRO!$E$48,0)) -> 6245 | F121: =IF(INTRO!$E$49="","",ROUND($D121*INTRO!$E$49,0)) -> 10889 | G121: =IF(INTRO!$E$50="","",ROUND($D121*INTRO!$E$50,0)) -> 20569 | H121: 0 | I121: 1 | J121: 2 | K121: 2 | L121: 1 | M121: =IF(INTRO!$E$38="Endemic", IF($H121>0, IF($H121=4,"Unknown", IF($H121=99,"Stopped", $D121)), 0),"Not required") -> 0 | N121: =IF(INTRO!$E$40="Endemic", IF($I121>0, IF($I121=4,"Unknown",IF($I121=99,"Stopped", $D121)), 0),"Not required") -> 39029.87259 | O121: =IF(INTRO!$E$42="Endemic", IF(AND($J121>1,$J121<5), IF($J121=4, "Unknown", E121+F121), 0),"Not required") -> 17134 | P121: =IF(INTRO!$E$44="Endemic", IF(AND($K121>0,$K121<5), IF($K121=4,"Unknown", IF($K121=1, $F121*0.33, IF($K121=2, $F121*0.5+$G121*0.2, SUM(F121:G121)))), 0),"Not required") -> 9558.3 | Q121: 0 | R121: 0 | S121: 0 | T121: 0 | W121: 2160 | X121: MUCONDA | Z121: 0 | AA121: 0 | AB121: 0
A122: =IF(INTRO!$E$34<>0,INTRO!$E$34,"") -> Angola | B122: LUNDA SUL | C122: SAURIMO | D122: 519127.5775 | E122: =IF(INTRO!$E$48="","",ROUND($D122*INTRO!$E$48,0)) -> 83060 | F122: =IF(INTRO!$E$49="","",ROUND($D122*INTRO!$E$49,0)) -> 144837 | G122: =IF(INTRO!$E$50="","",ROUND($D122*INTRO!$E$50,0)) -> 273580 | H122: 1 | I122: 1 | J122: 2 | K122: 2 | L122: 1 | M122: =IF(INTRO!$E$38="Endemic", IF($H122>0, IF($H122=4,"Unknown", IF($H122=99,"Stopped", $D122)), 0),"Not required") -> 519127.5775 | N122: =IF(INTRO!$E$40="Endemic", IF($I122>0, IF($I122=4,"Unknown",IF($I122=99,"Stopped", $D122)), 0),"Not required") -> 519127.5775 | O122: =IF(INTRO!$E$42="Endemic", IF(AND($J122>1,$J122<5), IF($J122=4, "Unknown", E122+F122), 0),"Not required") -> 227897 | P122: =IF(INTRO!$E$44="Endemic", IF(AND($K122>0,$K122<5), IF($K122=4,"Unknown", IF($K122=1, $F122*0.33, IF($K122=2, $F122*0.5+$G122*0.2, SUM(F122:G122)))), 0),"Not required") -> 127134.5 | Q122: 0 | R122: 0 | S122: 0 | T122: 0 | W122: 2161 | X122: SAURIMO | Z122: 0 | AA122: 0 | AB122: 0
A123: =IF(INTRO!$E$34<>0,INTRO!$E$34,"") -> Angola | B123: MALANJE | C123: CACULAMA (Mukari) | D123: 35331.51526 | E123: =IF(INTRO!$E$48="","",ROUND($D123*INTRO!$E$48,0)) -> 5653 | F123: =IF(INTRO!$E$49="","",ROUND($D123*INTRO!$E$49,0)) -> 9857 | G123: =IF(INTRO!$E$50="","",ROUND($D123*INTRO!$E$50,0)) -> 18620 | H123: 1 | I123: 4 | J123: 3 | K123: 2 | L123: 1 | M123: =IF(INTRO!$E$38="Endemic", IF($H123>0, IF($H123=4,"Unknown", IF($H123=99,"Stopped", $D123)), 0),"Not required") -> 35331.51526 | N123: =IF(INTRO!$E$40="Endemic", IF($I123>0, IF($I123=4,"Unknown",IF($I123=99,"Stopped", $D123)), 0),"Not required") -> Unknown | O123: =IF(INTRO!$E$42="Endemic", IF(AND($J123>1,$J123<5), IF($J123=4, "Unknown", E123+F123), 0),"Not required") -> 15510 | P123: =IF(INTRO!$E$44="Endemic", IF(AND($K123>0,$K123<5), IF($K123=4,"Unknown", IF($K123=1, $F123*0.33, IF($K123=2, $F123*0.5+$G123*0.2, SUM(F123:G123)))), 0),"Not required") -> 8652.5 | Q123: 0 | R123: 0 | S123: 0 | T123: 0 | W123: 2215 | X123: CACULAMA (Mukari) | Z123: 0 | AA123: 0 | AB123: 5791
A124: =IF(INTRO!$E$34<>0,INTRO!$E$34,"") -> Angola | B124: MALANJE | C124: CACUSO | D124: 83875.97529 | E124: =IF(INTRO!$E$48="","",ROUND($D124*INTRO!$E$48,0)) -> 13420 | F124: =IF(INTRO!$E$49="","",ROUND($D124*INTRO!$E$49,0)) -> 23401 | G124: =IF(INTRO!$E$50="","",ROUND($D124*INTRO!$E$50,0)) -> 44203 | H124: 0 | I124: 4 | J124: 3 | K124: 2 | L124: 1 | M124: =IF(INTRO!$E$38="Endemic", IF($H124>0, IF($H124=4,"Unknown", IF($H124=99,"Stopped", $D124)), 0),"Not required") -> 0 | N124: =IF(INTRO!$E$40="Endemic", IF($I124>0, IF($I124=4,"Unknown",IF($I124=99,"Stopped", $D124)), 0),"Not required") -> Unknown | O124: =IF(INTRO!$E$42="Endemic", IF(AND($J124>1,$J124<5), IF($J124=4, "Unknown", E124+F124), 0),"Not required") -> 36821 | P124: =IF(INTRO!$E$44="Endemic", IF(AND($K124>0,$K124<5), IF($K124=4,"Unknown", IF($K124=1, $F124*0.33, IF($K124=2, $F124*0.5+$G124*0.2, SUM(F124:G124)))), 0),"Not required") -> 20541.1 | Q124: 0 | R124: 0 | S124: 0 | T124: 0 | W124: 2163 | X124: CACUSO | Z124: 0 | AA124: 0 | AB124: 15696
A125: =IF(INTRO!$E$34<>0,INTRO!$E$34,"") -> Angola | B125: MALANJE | C125: CAHOMBO | D125: 25239.64614 | E125: =IF(INTRO!$E$48="","",ROUND($D125*INTRO!$E$48,0)) -> 4038 | F125: =IF(INTRO!$E$49="","",ROUND($D125*INTRO!$E$49,0)) -> 7042 | G125: =IF(INTRO!$E$50="","",ROUND($D125*INTRO!$E$50,0)) -> 13301 | H125: 0 | I125: 4 | J125: 3 | K125: 2 | L125: 1 | M125: =IF(INTRO!$E$38="Endemic", IF($H125>0, IF($H125=4,"Unknown", IF($H125=99,"Stopped", $D125)), 0),"Not required") -> 0 | N125: =IF(INTRO!$E$40="Endemic", IF($I125>0, IF($I125=4,"Unknown",IF($I125=99,"Stopped", $D125)), 0),"Not required") -> Unknown | O125: =IF(INTRO!$E$42="Endemic", IF(AND($J125>1,$J125<5), IF($J125=4, "Unknown", E125+F125), 0),"Not required") -> 11080 | P125: =IF(INTRO!$E$44="Endemic", IF(AND($K125>0,$K125<5), IF($K125=4,"Unknown", IF($K125=1, $F125*0.33, IF($K125=2, $F125*0.5+$G125*0.2, SUM(F125:G125)))), 0),"Not required") -> 6181.2 | Q125: 0 | R125: 0 | S125: 0 | T125: 0 | W125: 2165 | X125: CAMBUNDI CATEMBO | Z125: 0 | AA125: 0 | AB125: 0
A126: =IF(INTRO!$E$34<>0,INTRO!$E$34,"") -> Angola | B126: MALANJE | C126: CALANDULA | D126: 94353.87219 | E126: =IF(INTRO!$E$48="","",ROUND($D126*INTRO!$E$48,0)) -> 15097 | F126: =IF(INTRO!$E$49="","",ROUND($D126*INTRO!$E$49,0)) -> 26325 | G126: =IF(INTRO!$E$50="","",ROUND($D126*INTRO!$E$50,0)) -> 49724 | H126: 0 | I126: 4 | J126: 3 | K126: 2 | L126: 1 | M126: =IF(INTRO!$E$38="Endemic", IF($H126>0, IF($H126=4,"Unknown", IF($H126=99,"Stopped", $D126)), 0),"Not required") -> 0 | N126: =IF(INTRO!$E$40="Endemic", IF($I126>0, IF($I126=4,"Unknown",IF($I126=99,"Stopped", $D126)), 0),"Not required") -> Unknown | O126: =IF(INTRO!$E$42="Endemic", IF(AND($J126>1,$J126<5), IF($J126=4, "Unknown", E126+F126), 0),"Not required") -> 41422 | P126: =IF(INTRO!$E$44="Endemic", IF(AND($K126>0,$K126<5), IF($K126=4,"Unknown", IF($K126=1, $F126*0.33, IF($K126=2, $F126*0.5+$G126*0.2, SUM(F126:G126)))), 0),"Not required") -> 23107.3 | Q126: 0 | R126: 0 | S126: 0 | T126: 0 | W126: 2166 | X126: CANGANDALA | Z126: 0 | AA126: 0 | AB126: 16068
A127: =IF(INTRO!$E$34<>0,INTRO!$E$34,"") -> Angola | B127: MALANJE | C127: CAMBUNDI CATEMBO | D127: 54339.57009 | E127: =IF(INTRO!$E$48="","",ROUND($D127*INTRO!$E$48,0)) -> 8694 | F127: =IF(INTRO!$E$49="","",ROUND($D127*INTRO!$E$49,0)) -> 15161 | G127: =IF(INTRO!$E$50="","",ROUND($D127*INTRO!$E$50,0)) -> 28637 | H127: 0 | I127: 4 | J127: 3 | K127: 2 | L127: 1 | M127: =IF(INTRO!$E$38="Endemic", IF($H127>0, IF($H127=4,"Unknown", IF($H127=99,"Stopped", $D127)), 0),"Not required") -> 0 | N127: =IF(INTRO!$E$40="Endemic", IF($I127>0, IF($I127=4,"Unknown",IF($I127=99,"Stopped", $D127)), 0),"Not required") -> Unknown | O127: =IF(INTRO!$E$42="Endemic", IF(AND($J127>1,$J127<5), IF($J127=4, "Unknown", E127+F127), 0),"Not required") -> 23855 | P127: =IF(INTRO!$E$44="Endemic", IF(AND($K127>0,$K127<5), IF($K127=4,"Unknown", IF($K127=1, $F127*0.33, IF($K127=2, $F127*0.5+$G127*0.2, SUM(F127:G127)))), 0),"Not required") -> 13307.9 | Q127: 0 | R127: 0 | S127: 0 | T127: 0 | W127: 2162 | X127: KAHOMBO | Z127: 0 | AA127: 0 | AB127: 4395
A128: =IF(INTRO!$E$34<>0,INTRO!$E$34,"") -> Angola | B128: MALANJE | C128: CANGANDALA | D128: 52940.95272 | E128: =IF(INTRO!$E$48="","",ROUND($D128*INTRO!$E$48,0)) -> 8471 | F128: =IF(INTRO!$E$49="","",ROUND($D128*INTRO!$E$49,0)) -> 14771 | G128: =IF(INTRO!$E$50="","",ROUND($D128*INTRO!$E$50,0)) -> 27900 | H128: 0 | I128: 4 | J128: 3 | K128: 2 | L128: 1 | M128: =IF(INTRO!$E$38="Endemic", IF($H128>0, IF($H128=4,"Unknown", IF($H128=99,"Stopped", $D128)), 0),"Not required") -> 0 | N128: =IF(INTRO!$E$40="Endemic", IF($I128>0, IF($I128=4,"Unknown",IF($I128=99,"Stopped", $D128)), 0),"Not required") -> Unknown | O128: =IF(INTRO!$E$42="Endemic", IF(AND($J128>1,$J128<5), IF($J128=4, "Unknown", E128+F128), 0),"Not required") -> 23242 | P128: =IF(INTRO!$E$44="Endemic", IF(AND($K128>0,$K128<5), IF($K128=4,"Unknown", IF($K128=1, $F128*0.33, IF($K128=2, $F128*0.5+$G128*0.2, SUM(F128:G128)))), 0),"Not required") -> 12965.5 | Q128: 0 | R128: 0 | S128: 0 | T128: 0 | W128: 2164 | X128: KALANDULA | Z128: 0 | AA128: 0 | AB128: 0
A129: =IF(INTRO!$E$34<>0,INTRO!$E$34,"") -> Angola | B129: MALANJE | C129: KIWABA NZOJI | D129: 18632.58708 | E129: =IF(INTRO!$E$48="","",ROUND($D129*INTRO!$E$48,0)) -> 2981 | F129: =IF(INTRO!$E$49="","",ROUND($D129*INTRO!$E$49,0)) -> 5198 | G129: =IF(INTRO!$E$50="","",ROUND($D129*INTRO!$E$50,0)) -> 9819 | H129: 0 | I129: 4 | J129: 3 | K129: 2 | L129: 1 | M129: =IF(INTRO!$E$38="Endemic", IF($H129>0, IF($H129=4,"Unknown", IF($H129=99,"Stopped", $D129)), 0),"Not required") -> 0 | N129: =IF(INTRO!$E$40="Endemic", IF($I129>0, IF($I129=4,"Unknown",IF($I129=99,"Stopped", $D129)), 0),"Not required") -> Unknown | O129: =IF(INTRO!$E$42="Endemic", IF(AND($J129>1,$J129<5), IF($J129=4, "Unknown", E129+F129), 0),"Not required") -> 8179 | P129: =IF(INTRO!$E$44="Endemic", IF(AND($K129>0,$K129<5), IF($K129=4,"Unknown", IF($K129=1, $F129*0.33, IF($K129=2, $F129*0.5+$G129*0.2, SUM(F129:G129)))), 0),"Not required") -> 4562.8 | Q129: 0 | R129: 0 | S129: 0 | T129: 0 | W129: 2169 | X129: KIWABA NZOGI | Z129: 0 | AA129: 0 | AB129: 0
A130: =IF(INTRO!$E$34<>0,INTRO!$E$34,"") -> Angola | B130: MALANJE | C130: KUNDA DYA BASE | D130: 14807.50938 | E130: =IF(INTRO!$E$48="","",ROUND($D130*INTRO!$E$48,0)) -> 2369 | F130: =IF(INTRO!$E$49="","",ROUND($D130*INTRO!$E$49,0)) -> 4131 | G130: =IF(INTRO!$E$50="","",ROUND($D130*INTRO!$E$50,0)) -> 7804 | H130: 1 | I130: 4 | J130: 3 | K130: 2 | L130: 1 | M130: =IF(INTRO!$E$38="Endemic", IF($H130>0, IF($H130=4,"Unknown", IF($H130=99,"Stopped", $D130)), 0),"Not required") -> 14807.50938 | N130: =IF(INTRO!$E$40="Endemic", IF($I130>0, IF($I130=4,"Unknown",IF($I130=99,"Stopped", $D130)), 0),"Not required") -> Unknown | O130: =IF(INTRO!$E$42="Endemic", IF(AND($J130>1,$J130<5), IF($J130=4, "Unknown", E130+F130), 0),"Not required") -> 6500 | P130: =IF(INTRO!$E$44="Endemic", IF(AND($K130>0,$K130<5), IF($K130=4,"Unknown", IF($K130=1, $F130*0.33, IF($K130=2, $F130*0.5+$G130*0.2, SUM(F130:G130)))), 0),"Not required") -> 3626.3 | Q130: 0 | R130: 0 | S130: 0 | T130: 0 | W130: 2170 | X130: KUNDA DIA BASE | Z130: 0 | AA130: 0 | AB130: 2889
A131: =IF(INTRO!$E$34<>0,INTRO!$E$34,"") -> Angola | B131: MALANJE | C131: LUQUEMBO | D131: 64392.71909 | E131: =IF(INTRO!$E$48="","",ROUND($D131*INTRO!$E$48,0)) -> 10303 | F131: =IF(INTRO!$E$49="","",ROUND($D131*INTRO!$E$49,0)) -> 17966 | G131: =IF(INTRO!$E$50="","",ROUND($D131*INTRO!$E$50,0)) -> 33935 | H131: 0 | I131: 4 | J131: 3 | K131: 2 | L131: 1 | M131: =IF(INTRO!$E$38="Endemic", IF($H131>0, IF($H131=4,"Unknown", IF($H131=99,"Stopped", $D131)), 0),"Not required") -> 0 | N131: =IF(INTRO!$E$40="Endemic", IF($I131>0, IF($I131=4,"Unknown",IF($I131=99,"Stopped", $D131)), 0),"Not required") -> Unknown | O131: =IF(INTRO!$E$42="Endemic", IF(AND($J131>1,$J131<5), IF($J131=4, "Unknown", E131+F131), 0),"Not required") -> 28269 | P131: =IF(INTRO!$E$44="Endemic", IF(AND($K131>0,$K131<5), IF($K131=4,"Unknown", IF($K131=1, $F131*0.33, IF($K131=2, $F131*0.5+$G131*0.2, SUM(F131:G131)))), 0),"Not required") -> 15770 | Q131: 0 | R131: 0 | S131: 0 | T131: 0 | W131: 2171 | X131: LUQUEMBO | Z131: 0 | AA131: 0 | AB131: 0
A132: =IF(INTRO!$E$34<>0,INTRO!$E$34,"") -> Angola | B132: MALANJE | C132: MALANJE | D132: 594702.1956 | E132: =IF(INTRO!$E$48="","",ROUND($D132*INTRO!$E$48,0)) -> 95152 | F132: =IF(INTRO!$E$49="","",ROUND($D132*INTRO!$E$49,0)) -> 165922 | G132: =IF(INTRO!$E$50="","",ROUND($D132*INTRO!$E$50,0)) -> 313408 | H132: 0 | I132: 4 | J132: 3 | K132: 2 | L132: 1 | M132: =IF(INTRO!$E$38="Endemic", IF($H132>0, IF($H132=4,"Unknown", IF($H132=99,"Stopped", $D132)), 0),"Not required") -> 0 | N132: =IF(INTRO!$E$40="Endemic", IF($I132>0, IF($I132=4,"Unknown",IF($I132=99,"Stopped", $D132)), 0),"Not required") -> Unknown | O132: =IF(INTRO!$E$42="Endemic", IF(AND($J132>1,$J132<5), IF($J132=4, "Unknown", E132+F132), 0),"Not required") -> 261074 | P132: =IF(INTRO!$E$44="Endemic", IF(AND($K132>0,$K132<5), IF($K132=4,"Unknown", IF($K132=1, $F132*0.33, IF($K132=2, $F132*0.5+$G132*0.2, SUM(F132:G132)))), 0),"Not required") -> 145642.6 | Q132: 0 | R132: 0 | S132: 0 | T132: 0 | W132: 2172 | X132: MALANJE | Z132: 0 | AA132: 0 | AB132: 39115
A133: =IF(INTRO!$E$34<>0,INTRO!$E$34,"") -> Angola | B133: MALANJE | C133: MARIMBA | D133: 30717.95528 | E133: =IF(INTRO!$E$48="","",ROUND($D133*INTRO!$E$48,0)) -> 4915 | F133: =IF(INTRO!$E$49="","",ROUND($D133*INTRO!$E$49,0)) -> 8570 | G133: =IF(INTRO!$E$50="","",ROUND($D133*INTRO!$E$50,0)) -> 16188 | H133: 1 | I133: 4 | J133: 3 | K133: 2 | L133: 1 | M133: =IF(INTRO!$E$38="Endemic", IF($H133>0, IF($H133=4,"Unknown", IF($H133=99,"Stopped", $D133)), 0),"Not required") -> 30717.95528 | N133: =IF(INTRO!$E$40="Endemic", IF($I133>0, IF($I133=4,"Unknown",IF($I133=99,"Stopped", $D133)), 0),"Not required") -> Unknown | O133: =IF(INTRO!$E$42="Endemic", IF(AND($J133>1,$J133<5), IF($J133=4, "Unknown", E133+F133), 0),"Not required") -> 13485 | P133: =IF(INTRO!$E$44="Endemic", IF(AND($K133>0,$K133<5), IF($K133=4,"Unknown", IF($K133=1, $F133*0.33, IF($K133=2, $F133*0.5+$G133*0.2, SUM(F133:G133)))), 0),"Not required") -> 7522.6 | Q133: 0 | R133: 0 | S133: 0 | T133: 0 | W133: 2173 | X133: MARIMBA | Z133: 0 | AA133: 0 | AB133: 0
A134: =IF(INTRO!$E$34<>0,INTRO!$E$34,"") -> Angola | B134: MALANJE | C134: MASSANGO | D134: 38623.89809 | E134: =IF(INTRO!$E$48="","",ROUND($D134*INTRO!$E$48,0)) -> 6180 | F134: =IF(INTRO!$E$49="","",ROUND($D134*INTRO!$E$49,0)) -> 10776 | G134: =IF(INTRO!$E$50="","",ROUND($D134*INTRO!$E$50,0)) -> 20355 | H134: 0 | I134: 4 | J134: 3 | K134: 2 | L134: 1 | M134: =IF(INTRO!$E$38="Endemic", IF($H134>0, IF($H134=4,"Unknown", IF($H134=99,"Stopped", $D134)), 0),"Not required") -> 0 | N134: =IF(INTRO!$E$40="Endemic", IF($I134>0, IF($I134=4,"Unknown",IF($I134=99,"Stopped", $D134)), 0),"Not required") -> Unknown | O134: =IF(INTRO!$E$42="Endemic", IF(AND($J134>1,$J134<5), IF($J134=4, "Unknown", E134+F134), 0),"Not required") -> 16956 | P134: =IF(INTRO!$E$44="Endemic", IF(AND($K134>0,$K134<5), IF($K134=4,"Unknown", IF($K134=1, $F134*0.33, IF($K134=2, $F134*0.5+$G134*0.2, SUM(F134:G134)))), 0),"Not required") -> 9459 | Q134: 0 | R134: 0 | S134: 0 | T134: 0 | W134: 2174 | X134: MASSANGO | Z134: 0 | AA134: 0 | AB134: 0
A135: =IF(INTRO!$E$34<>0,INTRO!$E$34,"") -> Angola | B135: MALANJE | C135: QUELA | D135: 24580.23091 | E135: =IF(INTRO!$E$48="","",ROUND($D135*INTRO!$E$48,0)) -> 3933 | F135: =IF(INTRO!$E$49="","",ROUND($D135*INTRO!$E$49,0)) -> 6858 | G135: =IF(INTRO!$E$50="","",ROUND($D135*INTRO!$E$50,0)) -> 12954 | H135: 1 | I135: 4 | J135: 3 | K135: 2 | L135: 1 | M135: =IF(INTRO!$E$38="Endemic", IF($H135>0, IF($H135=4,"Unknown", IF($H135=99,"Stopped", $D135)), 0),"Not required") -> 24580.23091 | N135: =IF(INTRO!$E$40="Endemic", IF($I135>0, IF($I135=4,"Unknown",IF($I135=99,"Stopped", $D135)), 0),"Not required") -> Unknown | O135: =IF(INTRO!$E$42="Endemic", IF(AND($J135>1,$J135<5), IF($J135=4, "Unknown", E135+F135), 0),"Not required") -> 10791 | P135: =IF(INTRO!$E$44="Endemic", IF(AND($K135>0,$K135<5), IF($K135=4,"Unknown", IF($K135=1, $F135*0.33, IF($K135=2, $F135*0.5+$G135*0.2, SUM(F135:G135)))), 0),"Not required") -> 6019.8 | Q135: 0 | R135: 0 | S135: 0 | T135: 0 | W135: 2222 | X135: QUELA | Z135: 0 | AA135: 0 | AB135: 0
A136: =IF(INTRO!$E$34<>0,INTRO!$E$34,"") -> Angola | B136: MALANJE | C136: QUIRIMA | D136: 24797.2982 | E136: =IF(INTRO!$E$48="","",ROUND($D136*INTRO!$E$48,0)) -> 3968 | F136: =IF(INTRO!$E$49="","",ROUND($D136*INTRO!$E$49,0)) -> 6918 | G136: =IF(INTRO!$E$50="","",ROUND($D136*INTRO!$E$50,0)) -> 13068 | H136: 0 | I136: 4 | J136: 3 | K136: 2 | L136: 1 | M136: =IF(INTRO!$E$38="Endemic", IF($H136>0, IF($H136=4,"Unknown", IF($H136=99,"Stopped", $D136)), 0),"Not required") -> 0 | N136: =IF(INTRO!$E$40="Endemic", IF($I136>0, IF($I136=4,"Unknown",IF($I136=99,"Stopped", $D136)), 0),"Not required") -> Unknown | O136: =IF(INTRO!$E$42="Endemic", IF(AND($J136>1,$J136<5), IF($J136=4, "Unknown", E136+F136), 0),"Not required") -> 10886 | P136: =IF(INTRO!$E$44="Endemic", IF(AND($K136>0,$K136<5), IF($K136=4,"Unknown", IF($K136=1, $F136*0.33, IF($K136=2, $F136*0.5+$G136*0.2, SUM(F136:G136)))), 0),"Not required") -> 6072.6 | Q136: 0 | R136: 0 | S136: 0 | T136: 0 | W136: 2168 | X136: QUIRIMA | Z136: 0 | AA136: 0 | AB136: 0
A137: =IF(INTRO!$E$34<>0,INTRO!$E$34,"") -> Angola | B137: MOXICO | C137: ALTO ZAMBEZE | D137: 16955.88891 | E137: =IF(INTRO!$E$48="","",ROUND($D137*INTRO!$E$48,0)) -> 2713 | F137: =IF(INTRO!$E$49="","",ROUND($D137*INTRO!$E$49,0)) -> 4731 | G137: =IF(INTRO!$E$50="","",ROUND($D137*INTRO!$E$50,0)) -> 8936 | H137: 0 | I137: 4 | J137: 2 | K137: 2 | L137: 1 | M137: =IF(INTRO!$E$38="Endemic", IF($H137>0, IF($H137=4,"Unknown", IF($H137=99,"Stopped", $D137)), 0),"Not required") -> 0 | N137: =IF(INTRO!$E$40="Endemic", IF($I137>0, IF($I137=4,"Unknown",IF($I137=99,"Stopped", $D137)), 0),"Not required") -> Unknown | O137: =IF(INTRO!$E$42="Endemic", IF(AND($J137>1,$J137<5), IF($J137=4, "Unknown", E137+F137), 0),"Not required") -> 7444 | P137: =IF(INTRO!$E$44="Endemic", IF(AND($K137>0,$K137<5), IF($K137=4,"Unknown", IF($K137=1, $F137*0.33, IF($K137=2, $F137*0.5+$G137*0.2, SUM(F137:G137)))), 0),"Not required") -> 4152.7 | Q137: 0 | R137: 0 | S137: 0 | T137: 0 | W137: 2176 | X137: ALTO ZAMBEZE | Z137: 0 | AA137: 0 | AB137: 0
A138: =IF(INTRO!$E$34<>0,INTRO!$E$34,"") -> Angola | B138: MOXICO | C138: BUNDAS (LUMBALA NGUIMBO) | D138: 34585.2731 | E138: =IF(INTRO!$E$48="","",ROUND($D138*INTRO!$E$48,0)) -> 5534 | F138: =IF(INTRO!$E$49="","",ROUND($D138*INTRO!$E$49,0)) -> 9649 | G138: =IF(INTRO!$E$50="","",ROUND($D138*INTRO!$E$50,0)) -> 18226 | H138: 4 | I138: 4 | J138: 2 | K138: 2 | L138: 1 | M138: =IF(INTRO!$E$38="Endemic", IF($H138>0, IF($H138=4,"Unknown", IF($H138=99,"Stopped", $D138)), 0),"Not required") -> Unknown | N138: =IF(INTRO!$E$40="Endemic", IF($I138>0, IF($I138=4,"Unknown",IF($I138=99,"Stopped", $D138)), 0),"Not required") -> Unknown | O138: =IF(INTRO!$E$42="Endemic", IF(AND($J138>1,$J138<5), IF($J138=4, "Unknown", E138+F138), 0),"Not required") -> 15183 | P138: =IF(INTRO!$E$44="Endemic", IF(AND($K138>0,$K138<5), IF($K138=4,"Unknown", IF($K138=1, $F138*0.33, IF($K138=2, $F138*0.5+$G138*0.2, SUM(F138:G138)))), 0),"Not required") -> 8469.7 | Q138: 0 | R138: 0 | S138: 0 | T138: 0 | W138: 2177 | X138: CAMANONGUE | Z138: 0 | AA138: 0 | AB138: 0
A139: =IF(INTRO!$E$34<>0,INTRO!$E$34,"") -> Angola | B139: MOXICO | C139: CAMANONGUE | D139: 40089.39565 | E139: =IF(INTRO!$E$48="","",ROUND($D139*INTRO!$E$48,0)) -> 6414 | F139: =IF(INTRO!$E$49="","",ROUND($D139*INTRO!$E$49,0)) -> 11185 | G139: =IF(INTRO!$E$50="","",ROUND($D139*INTRO!$E$50,0)) -> 21127 | H139: 0 | I139: 1 | J139: 2 | K139: 2 | L139: 1 | M139: =IF(INTRO!$E$38="Endemic", IF($H139>0, IF($H139=4,"Unknown", IF($H139=99,"Stopped", $D139)), 0),"Not required") -> 0 | N139: =IF(INTRO!$E$40="Endemic", IF($I139>0, IF($I139=4,"Unknown",IF($I139=99,"Stopped", $D139)), 0),"Not required") -> 40089.39565 | O139: =IF(INTRO!$E$42="Endemic", IF(AND($J139>1,$J139<5), IF($J139=4, "Unknown", E139+F139), 0),"Not required") -> 17599 | P139: =IF(INTRO!$E$44="Endemic", IF(AND($K139>0,$K139<5), IF($K139=4,"Unknown", IF($K139=1, $F139*0.33, IF($K139=2, $F139*0.5+$G139*0.2, SUM(F139:G139)))), 0),"Not required") -> 9817.9 | Q139: 0 | R139: 0 | S139: 0 | T139: 0 | W139: 2179 | X139: LEUA | Z139: 0 | AA139: 0 | AB139: 0
A140: =IF(INTRO!$E$34<>0,INTRO!$E$34,"") -> Angola | B140: MOXICO | C140: CAMEIA (LUMEJE) | D140: 24352.60358 | E140: =IF(INTRO!$E$48="","",ROUND($D140*INTRO!$E$48,0)) -> 3896 | F140: =IF(INTRO!$E$49="","",ROUND($D140*INTRO!$E$49,0)) -> 6794 | G140: =IF(INTRO!$E$50="","",ROUND($D140*INTRO!$E$50,0)) -> 12834 | H140: 0 | I140: 4 | J140: 2 | K140: 2 | L140: 1 | M140: =IF(INTRO!$E$38="Endemic", IF($H140>0, IF($H140=4,"Unknown", IF($H140=99,"Stopped", $D140)), 0),"Not required") -> 0 | N140: =IF(INTRO!$E$40="Endemic", IF($I140>0, IF($I140=4,"Unknown",IF($I140=99,"Stopped", $D140)), 0),"Not required") -> Unknown | O140: =IF(INTRO!$E$42="Endemic", IF(AND($J140>1,$J140<5), IF($J140=4, "Unknown", E140+F140), 0),"Not required") -> 10690 | P140: =IF(INTRO!$E$44="Endemic", IF(AND($K140>0,$K140<5), IF($K140=4,"Unknown", IF($K140=1, $F140*0.33, IF($K140=2, $F140*0.5+$G140*0.2, SUM(F140:G140)))), 0),"Not required") -> 5963.8 | Q140: 0 | R140: 0 | S140: 0 | T140: 0 | W140: 2180 | X140: LUACANO | Z140: 0 | AA140: 0 | AB140: 0
A141: =IF(INTRO!$E$34<>0,INTRO!$E$34,"") -> Angola | B141: MOXICO | C141: LEUA | D141: 21767.74279 | E141: =IF(INTRO!$E$48="","",ROUND($D141*INTRO!$E$48,0)) -> 3483 | F141: =IF(INTRO!$E$49="","",ROUND($D141*INTRO!$E$49,0)) -> 6073 | G141: =IF(INTRO!$E$50="","",ROUND($D141*INTRO!$E$50,0)) -> 11472 | H141: 0 | I141: 1 | J141: 2 | K141: 2 | L141: 1 | M141: =IF(INTRO!$E$38="Endemic", IF($H141>0, IF($H141=4,"Unknown", IF($H141=99,"Stopped", $D141)), 0),"Not required") -> 0 | N141: =IF(INTRO!$E$40="Endemic", IF($I141>0, IF($I141=4,"Unknown",IF($I141=99,"Stopped", $D141)), 0),"Not required") -> 21767.74279 | O141: =IF(INTRO!$E$42="Endemic", IF(AND($J141>1,$J141<5), IF($J141=4, "Unknown", E141+F141), 0),"Not required") -> 9556 | P141: =IF(INTRO!$E$44="Endemic", IF(AND($K141>0,$K141<5), IF($K141=4,"Unknown", IF($K141=1, $F141*0.33, IF($K141=2, $F141*0.5+$G141*0.2, SUM(F141:G141)))), 0),"Not required") -> 5330.9 | Q141: 0 | R141: 0 | S141: 0 | T141: 0 | W141: 2181 | X141: LUAU | Z141: 0 | AA141: 0 | AB141: 0
A142: =IF(INTRO!$E$34<>0,INTRO!$E$34,"") -> Angola | B142: MOXICO | C142: LUACANO | D142: 16316.4204 | E142: =IF(INTRO!$E$48="","",ROUND($D142*INTRO!$E$48,0)) -> 2611 | F142: =IF(INTRO!$E$49="","",ROUND($D142*INTRO!$E$49,0)) -> 4552 | G142: =IF(INTRO!$E$50="","",ROUND($D142*INTRO!$E$50,0)) -> 8599 | H142: 0 | I142: 1 | J142: 2 | K142: 2 | L142: 4 | M142: =IF(INTRO!$E$38="Endemic", IF($H142>0, IF($H142=4,"Unknown", IF($H142=99,"Stopped", $D142)), 0),"Not required") -> 0 | N142: =IF(INTRO!$E$40="Endemic", IF($I142>0, IF($I142=4,"Unknown",IF($I142=99,"Stopped", $D142)), 0),"Not required") -> 16316.4204 | O142: =IF(INTRO!$E$42="Endemic", IF(AND($J142>1,$J142<5), IF($J142=4, "Unknown", E142+F142), 0),"Not required") -> 7163 | P142: =IF(INTRO!$E$44="Endemic", IF(AND($K142>0,$K142<5), IF($K142=4,"Unknown", IF($K142=1, $F142*0.33, IF($K142=2, $F142*0.5+$G142*0.2, SUM(F142:G142)))), 0),"Not required") -> 3995.8 | Q142: 0 | R142: 0 | S142: 0 | T142: 0 | W142: 2183 | X142: LUCHAZES | Z142: 0 | AA142: 0 | AB142: 0
A143: =IF(INTRO!$E$34<>0,INTRO!$E$34,"") -> Angola | B143: MOXICO | C143: LUAU | D143: 235081.5315 | E143: =IF(INTRO!$E$48="","",ROUND($D143*INTRO!$E$48,0)) -> 37613 | F143: =IF(INTRO!$E$49="","",ROUND($D143*INTRO!$E$49,0)) -> 65588 | G143: =IF(INTRO!$E$50="","",ROUND($D143*INTRO!$E$50,0)) -> 123888 | H143: 0 | I143: 4 | J143: 2 | K143: 2 | L143: 1 | M143: =IF(INTRO!$E$38="Endemic", IF($H143>0, IF($H143=4,"Unknown", IF($H143=99,"Stopped", $D143)), 0),"Not required") -> 0 | N143: =IF(INTRO!$E$40="Endemic", IF($I143>0, IF($I143=4,"Unknown",IF($I143=99,"Stopped", $D143)), 0),"Not required") -> Unknown | O143: =IF(INTRO!$E$42="Endemic", IF(AND($J143>1,$J143<5), IF($J143=4, "Unknown", E143+F143), 0),"Not required") -> 103201 | P143: =IF(INTRO!$E$44="Endemic", IF(AND($K143>0,$K143<5), IF($K143=4,"Unknown", IF($K143=1, $F143*0.33, IF($K143=2, $F143*0.5+$G143*0.2, SUM(F143:G143)))), 0),"Not required") -> 57571.6 | Q143: 0 | R143: 0 | S143: 0 | T143: 0 | W143: 2182 | X143: LUMBALA NGUIMBO | Z143: 0 | AA143: 0 | AB143: 0
A144: =IF(INTRO!$E$34<>0,INTRO!$E$34,"") -> Angola | B144: MOXICO | C144: LUCHAZES | D144: 81542.20856 | E144: =IF(INTRO!$E$48="","",ROUND($D144*INTRO!$E$48,0)) -> 13047 | F144: =IF(INTRO!$E$49="","",ROUND($D144*INTRO!$E$49,0)) -> 22750 | G144: =IF(INTRO!$E$50="","",ROUND($D144*INTRO!$E$50,0)) -> 42973 | H144: 0 | I144: 4 | J144: 2 | K144: 2 | L144: 1 | M144: =IF(INTRO!$E$38="Endemic", IF($H144>0, IF($H144=4,"Unknown", IF($H144=99,"Stopped", $D144)), 0),"Not required") -> 0 | N144: =IF(INTRO!$E$40="Endemic", IF($I144>0, IF($I144=4,"Unknown",IF($I144=99,"Stopped", $D144)), 0),"Not required") -> Unknown | O144: =IF(INTRO!$E$42="Endemic", IF(AND($J144>1,$J144<5), IF($J144=4, "Unknown", E144+F144), 0),"Not required") -> 35797 | P144: =IF(INTRO!$E$44="Endemic", IF(AND($K144>0,$K144<5), IF($K144=4,"Unknown", IF($K144=1, $F144*0.33, IF($K144=2, $F144*0.5+$G144*0.2, SUM(F144:G144)))), 0),"Not required") -> 19969.6 | Q144: 0 | R144: 0 | S144: 0 | T144: 0 | W144: 2220 | X144: LUMEJE | Z144: 0 | AA144: 0 | AB144: 0
A145: =IF(INTRO!$E$34<>0,INTRO!$E$34,"") -> Angola | B145: MOXICO | C145: MOXICO/LUENA | D145: 419365.7964 | E145: =IF(INTRO!$E$48="","",ROUND($D145*INTRO!$E$48,0)) -> 67099 | F145: =IF(INTRO!$E$49="","",ROUND($D145*INTRO!$E$49,0)) -> 117003 | G145: =IF(INTRO!$E$50="","",ROUND($D145*INTRO!$E$50,0)) -> 221006 | H145: 0 | I145: 1 | J145: 2 | K145: 2 | L145: 1 | M145: =IF(INTRO!$E$38="Endemic", IF($H145>0, IF($H145=4,"Unknown", IF($H145=99,"Stopped", $D145)), 0),"Not required") -> 0 | N145: =IF(INTRO!$E$40="Endemic", IF($I145>0, IF($I145=4,"Unknown",IF($I145=99,"Stopped", $D145)), 0),"Not required") -> 419365.7964 | O145: =IF(INTRO!$E$42="Endemic", IF(AND($J145>1,$J145<5), IF($J145=4, "Unknown", E145+F145), 0),"Not required") -> 184102 | P145: =IF(INTRO!$E$44="Endemic", IF(AND($K145>0,$K145<5), IF($K145=4,"Unknown", IF($K145=1, $F145*0.33, IF($K145=2, $F145*0.5+$G145*0.2, SUM(F145:G145)))), 0),"Not required") -> 102702.7 | Q145: 0 | R145: 0 | S145: 0 | T145: 0 | W145: 2184 | X145: MOXICO / LUENA | Z145: 0 | AA145: 0 | AB145: 0
A146: =IF(INTRO!$E$34<>0,INTRO!$E$34,"") -> Angola | B146: NAMIBE | C146: BIBALA | D146: 75684.91166 | E146: =IF(INTRO!$E$48="","",ROUND($D146*INTRO!$E$48,0)) -> 12110 | F146: =IF(INTRO!$E$49="","",ROUND($D146*INTRO!$E$49,0)) -> 21116 | G146: =IF(INTRO!$E$50="","",ROUND($D146*INTRO!$E$50,0)) -> 39886 | H146: 0 | I146: 4 | J146: 2 | K146: 2 | L146: 1 | M146: =IF(INTRO!$E$38="Endemic", IF($H146>0, IF($H146=4,"Unknown", IF($H146=99,"Stopped", $D146)), 0),"Not required") -> 0 | N146: =IF(INTRO!$E$40="Endemic", IF($I146>0, IF($I146=4,"Unknown",IF($I146=99,"Stopped", $D146)), 0),"Not required") -> Unknown | O146: =IF(INTRO!$E$42="Endemic", IF(AND($J146>1,$J146<5), IF($J146=4, "Unknown", E146+F146), 0),"Not required") -> 33226 | P146: =IF(INTRO!$E$44="Endemic", IF(AND($K146>0,$K146<5), IF($K146=4,"Unknown", IF($K146=1, $F146*0.33, IF($K146=2, $F146*0.5+$G146*0.2, SUM(F146:G146)))), 0),"Not required") -> 18535.2 | Q146: 0 | R146: 0 | S146: 0 | T146: 0 | W146: 2185 | X146: BIBALA | Z146: 0 | AA146: 0 | AB146: 0
A147: =IF(INTRO!$E$34<>0,INTRO!$E$34,"") -> Angola | B147: NAMIBE | C147: CAMUCUIO | D147: 59076.33042 | E147: =IF(INTRO!$E$48="","",ROUND($D147*INTRO!$E$48,0)) -> 9452 | F147: =IF(INTRO!$E$49="","",ROUND($D147*INTRO!$E$49,0)) -> 16482 | G147: =IF(INTRO!$E$50="","",ROUND($D147*INTRO!$E$50,0)) -> 31133 | H147: 0 | I147: 4 | J147: 2 | K147: 2 | L147: 4 | M147: =IF(INTRO!$E$38="Endemic", IF($H147>0, IF($H147=4,"Unknown", IF($H147=99,"Stopped", $D147)), 0),"Not required") -> 0 | N147: =IF(INTRO!$E$40="Endemic", IF($I147>0, IF($I147=4,"Unknown",IF($I147=99,"Stopped", $D147)), 0),"Not required") -> Unknown | O147: =IF(INTRO!$E$42="Endemic", IF(AND($J147>1,$J147<5), IF($J147=4, "Unknown", E147+F147), 0),"Not required") -> 25934 | P147: =IF(INTRO!$E$44="Endemic", IF(AND($K147>0,$K147<5), IF($K147=4,"Unknown", IF($K147=1, $F147*0.33, IF($K147=2, $F147*0.5+$G147*0.2, SUM(F147:G147)))), 0),"Not required") -> 14467.6 | Q147: 0 | R147: 0 | S147: 0 | T147: 0 | W147: 2186 | X147: CAMUCUIO | Z147: 0 | AA147: 0 | AB147: 0
A148: =IF(INTRO!$E$34<>0,INTRO!$E$34,"") -> Angola | B148: NAMIBE | C148: NAMIBE | D148: 343242.0568 | E148: =IF(INTRO!$E$48="","",ROUND($D148*INTRO!$E$48,0)) -> 54919 | F148: =IF(INTRO!$E$49="","",ROUND($D148*INTRO!$E$49,0)) -> 95765 | G148: =IF(INTRO!$E$50="","",ROUND($D148*INTRO!$E$50,0)) -> 180889 | H148: 0 | I148: 4 | J148: 2 | K148: 2 | L148: 1 | M148: =IF(INTRO!$E$38="Endemic", IF($H148>0, IF($H148=4,"Unknown", IF($H148=99,"Stopped", $D148)), 0),"Not required") -> 0 | N148: =IF(INTRO!$E$40="Endemic", IF($I148>0, IF($I148=4,"Unknown",IF($I148=99,"Stopped", $D148)), 0),"Not required") -> Unknown | O148: =IF(INTRO!$E$42="Endemic", IF(AND($J148>1,$J148<5), IF($J148=4, "Unknown", E148+F148), 0),"Not required") -> 150684 | P148: =IF(INTRO!$E$44="Endemic", IF(AND($K148>0,$K148<5), IF($K148=4,"Unknown", IF($K148=1, $F148*0.33, IF($K148=2, $F148*0.5+$G148*0.2, SUM(F148:G148)))), 0),"Not required") -> 84060.3 | Q148: 0 | R148: 0 | S148: 0 | T148: 0 | W148: 2187 | X148: NAMIBE | Z148: 0 | AA148: 0 | AB148: 0
A149: =IF(INTRO!$E$34<>0,INTRO!$E$34,"") -> Angola | B149: NAMIBE | C149: TOMBWA | D149: 65113.14783 | E149: =IF(INTRO!$E$48="","",ROUND($D149*INTRO!$E$48,0)) -> 10418 | F149: =IF(INTRO!$E$49="","",ROUND($D149*INTRO!$E$49,0)) -> 18167 | G149: =IF(INTRO!$E$50="","",ROUND($D149*INTRO!$E$50,0)) -> 34315 | H149: 0 | I149: 4 | J149: 2 | K149: 2 | L149: 1 | M149: =IF(INTRO!$E$38="Endemic", IF($H149>0, IF($H149=4,"Unknown", IF($H149=99,"Stopped", $D149)), 0),"Not required") -> 0 | N149: =IF(INTRO!$E$40="Endemic", IF($I149>0, IF($I149=4,"Unknown",IF($I149=99,"Stopped", $D149)), 0),"Not required") -> Unknown | O149: =IF(INTRO!$E$42="Endemic", IF(AND($J149>1,$J149<5), IF($J149=4, "Unknown", E149+F149), 0),"Not required") -> 28585 | P149: =IF(INTRO!$E$44="Endemic", IF(AND($K149>0,$K149<5), IF($K149=4,"Unknown", IF($K149=1, $F149*0.33, IF($K149=2, $F149*0.5+$G149*0.2, SUM(F149:G149)))), 0),"Not required") -> 15946.5 | Q149: 0 | R149: 0 | S149: 0 | T149: 0 | W149: 2188 | X149: TOMBUA | Z149: 0 | AA149: 0 | AB149: 0
A150: =IF(INTRO!$E$34<>0,INTRO!$E$34,"") -> Angola | B150: NAMIBE | C150: VIREI | D150: 38068.90982 | E150: =IF(INTRO!$E$48="","",ROUND($D150*INTRO!$E$48,0)) -> 6091 | F150: =IF(INTRO!$E$49="","",ROUND($D150*INTRO!$E$49,0)) -> 10621 | G150: =IF(INTRO!$E$50="","",ROUND($D150*INTRO!$E$50,0)) -> 20062 | H150: 0 | I150: 4 | J150: 2 | K150: 2 | L150: 1 | M150: =IF(INTRO!$E$38="Endemic", IF($H150>0, IF($H150=4,"Unknown", IF($H150=99,"Stopped", $D150)), 0),"Not required") -> 0 | N150: =IF(INTRO!$E$40="Endemic", IF($I150>0, IF($I150=4,"Unknown",IF($I150=99,"Stopped", $D150)), 0),"Not required") -> Unknown | O150: =IF(INTRO!$E$42="Endemic", IF(AND($J150>1,$J150<5), IF($J150=4, "Unknown", E150+F150), 0),"Not required") -> 16712 | P150: =IF(INTRO!$E$44="Endemic", IF(AND($K150>0,$K150<5), IF($K150=4,"Unknown", IF($K150=1, $F150*0.33, IF($K150=2, $F150*0.5+$G150*0.2, SUM(F150:G150)))), 0),"Not required") -> 9322.9 | Q150: 0 | R150: 0 | S150: 0 | T150: 0 | W150: 2189 | X150: VIREI | Z150: 0 | AA150: 0 | AB150: 0
A151: =IF(INTRO!$E$34<>0,INTRO!$E$34,"") -> Angola | B151: UIGE | C151: AMBUILA | D151: 21258.51466 | E151: =IF(INTRO!$E$48="","",ROUND($D151*INTRO!$E$48,0)) -> 3401 | F151: =IF(INTRO!$E$49="","",ROUND($D151*INTRO!$E$49,0)) -> 5931 | G151: =IF(INTRO!$E$50="","",ROUND($D151*INTRO!$E$50,0)) -> 11203 | H151: 0 | I151: 4 | J151: 2 | K151: 2 | L151: 1 | M151: =IF(INTRO!$E$38="Endemic", IF($H151>0, IF($H151=4,"Unknown", IF($H151=99,"Stopped", $D151)), 0),"Not required") -> 0 | N151: =IF(INTRO!$E$40="Endemic", IF($I151>0, IF($I151=4,"Unknown",IF($I151=99,"Stopped", $D151)), 0),"Not required") -> Unknown | O151: =IF(INTRO!$E$42="Endemic", IF(AND($J151>1,$J151<5), IF($J151=4, "Unknown", E151+F151), 0),"Not required") -> 9332 | P151: =IF(INTRO!$E$44="Endemic", IF(AND($K151>0,$K151<5), IF($K151=4,"Unknown", IF($K151=1, $F151*0.33, IF($K151=2, $F151*0.5+$G151*0.2, SUM(F151:G151)))), 0),"Not required") -> 5206.1 | Q151: 0 | R151: 0 | S151: 2 | T151: 1 | U151: T1 (PZQ+ALB/MBD) | V151: T3 (ALB/MBD) | W151: 2190 | X151: AMBUILA | Z151: 0 | AA151: 6096 | AB151: 0
A152: =IF(INTRO!$E$34<>0,INTRO!$E$34,"") -> Angola | B152: UIGE | C152: BEMBE | D152: 38667.31154 | E152: =IF(INTRO!$E$48="","",ROUND($D152*INTRO!$E$48,0)) -> 6187 | F152: =IF(INTRO!$E$49="","",ROUND($D152*INTRO!$E$49,0)) -> 10788 | G152: =IF(INTRO!$E$50="","",ROUND($D152*INTRO!$E$50,0)) -> 20378 | H152: 0 | I152: 4 | J152: 1 | K152: 2 | L152: 1 | M152: =IF(INTRO!$E$38="Endemic", IF($H152>0, IF($H152=4,"Unknown", IF($H152=99,"Stopped", $D152)), 0),"Not required") -> 0 | N152: =IF(INTRO!$E$40="Endemic", IF($I152>0, IF($I152=4,"Unknown",IF($I152=99,"Stopped", $D152)), 0),"Not required") -> Unknown | O152: =IF(INTRO!$E$42="Endemic", IF(AND($J152>1,$J152<5), IF($J152=4, "Unknown", E152+F152), 0),"Not required") -> 0 | P152: =IF(INTRO!$E$44="Endemic", IF(AND($K152>0,$K152<5), IF($K152=4,"Unknown", IF($K152=1, $F152*0.33, IF($K152=2, $F152*0.5+$G152*0.2, SUM(F152:G152)))), 0),"Not required") -> 9469.6 | Q152: 0 | R152: 0 | S152: 2 | T152: 1 | U152: T1 (PZQ+ALB/MBD) | V152: T3 (ALB/MBD) | W152: 2191 | X152: BEMBE | Z152: 0 | AA152: 10490 | AB152: 0
A153: =IF(INTRO!$E$34<>0,INTRO!$E$34,"") -> Angola | B153: UIGE | C153: BUENGAS | D153: 67171.18044 | E153: =IF(INTRO!$E$48="","",ROUND($D153*INTRO!$E$48,0)) -> 10747 | F153: =IF(INTRO!$E$49="","",ROUND($D153*INTRO!$E$49,0)) -> 18741 | G153: =IF(INTRO!$E$50="","",ROUND($D153*INTRO!$E$50,0)) -> 35399 | H153: 0 | I153: 4 | J153: 3 | K153: 1 | L153: 1 | M153: =IF(INTRO!$E$38="Endemic", IF($H153>0, IF($H153=4,"Unknown", IF($H153=99,"Stopped", $D153)), 0),"Not required") -> 0 | N153: =IF(INTRO!$E$40="Endemic", IF($I153>0, IF($I153=4,"Unknown",IF($I153=99,"Stopped", $D153)), 0),"Not required") -> Unknown | O153: =IF(INTRO!$E$42="Endemic", IF(AND($J153>1,$J153<5), IF($J153=4, "Unknown", E153+F153), 0),"Not required") -> 29488 | P153: =IF(INTRO!$E$44="Endemic", IF(AND($K153>0,$K153<5), IF($K153=4,"Unknown", IF($K153=1, $F153*0.33, IF($K153=2, $F153*0.5+$G153*0.2, SUM(F153:G153)))), 0),"Not required") -> 6184.53 | Q153: 0 | R153: 0 | S153: 2 | T153: 1 | U153: T1 (PZQ+ALB/MBD) | V153: T3 (ALB/MBD) | W153: 2192 | X153: BUENGAS | Z153: 0 | AA153: 19297 | AB153: 0
A154: =IF(INTRO!$E$34<>0,INTRO!$E$34,"") -> Angola | B154: UIGE | C154: BUNGO | D154: 43592.97909 | E154: =IF(INTRO!$E$48="","",ROUND($D154*INTRO!$E$48,0)) -> 6975 | F154: =IF(INTRO!$E$49="","",ROUND($D154*INTRO!$E$49,0)) -> 12162 | G154: =IF(INTRO!$E$50="","",ROUND($D154*INTRO!$E$50,0)) -> 22973 | H154: 0 | I154: 1 | J154: 3 | K154: 2 | L154: 1 | M154: =IF(INTRO!$E$38="Endemic", IF($H154>0, IF($H154=4,"Unknown", IF($H154=99,"Stopped", $D154)), 0),"Not required") -> 0 | N154: =IF(INTRO!$E$40="Endemic", IF($I154>0, IF($I154=4,"Unknown",IF($I154=99,"Stopped", $D154)), 0),"Not required") -> 43592.97909 | O154: =IF(INTRO!$E$42="Endemic", IF(AND($J154>1,$J154<5), IF($J154=4, "Unknown", E154+F154), 0),"Not required") -> 19137 | P154: =IF(INTRO!$E$44="Endemic", IF(AND($K154>0,$K154<5), IF($K154=4,"Unknown", IF($K154=1, $F154*0.33, IF($K154=2, $F154*0.5+$G154*0.2, SUM(F154:G154)))), 0),"Not required") -> 10675.6 | Q154: 0 | R154: 0 | S154: 2 | T154: 1 | U154: T1 (PZQ+ALB/MBD) | V154: T3 (ALB/MBD) | W154: 2193 | X154: BUNGO | Z154: 0 | AA154: 11083 | AB154: 0
A155: =IF(INTRO!$E$34<>0,INTRO!$E$34,"") -> Angola | B155: UIGE | C155: CANGOLA | D155: 63031.6485 | E155: =IF(INTRO!$E$48="","",ROUND($D155*INTRO!$E$48,0)) -> 10085 | F155: =IF(INTRO!$E$49="","",ROUND($D155*INTRO!$E$49,0)) -> 17586 | G155: =IF(INTRO!$E$50="","",ROUND($D155*INTRO!$E$50,0)) -> 33218 | H155: 0 | I155: 4 | J155: 3 | K155: 1 | L155: 1 | M155: =IF(INTRO!$E$38="Endemic", IF($H155>0, IF($H155=4,"Unknown", IF($H155=99,"Stopped", $D155)), 0),"Not required") -> 0 | N155: =IF(INTRO!$E$40="Endemic", IF($I155>0, IF($I155=4,"Unknown",IF($I155=99,"Stopped", $D155)), 0),"Not required") -> Unknown | O155: =IF(INTRO!$E$42="Endemic", IF(AND($J155>1,$J155<5), IF($J155=4, "Unknown", E155+F155), 0),"Not required") -> 27671 | P155: =IF(INTRO!$E$44="Endemic", IF(AND($K155>0,$K155<5), IF($K155=4,"Unknown", IF($K155=1, $F155*0.33, IF($K155=2, $F155*0.5+$G155*0.2, SUM(F155:G155)))), 0),"Not required") -> 5803.38 | Q155: 0 | R155: 0 | S155: 2 | T155: 1 | U155: T1 (PZQ+ALB/MBD) | V155: T3 (ALB/MBD) | W155: 2195 | X155: CANGOLA | Z155: 0 | AA155: 13464 | AB155: 0
A156: =IF(INTRO!$E$34<>0,INTRO!$E$34,"") -> Angola | B156: UIGE | C156: DAMBA | D156: 77994.03833 | E156: =IF(INTRO!$E$48="","",ROUND($D156*INTRO!$E$48,0)) -> 12479 | F156: =IF(INTRO!$E$49="","",ROUND($D156*INTRO!$E$49,0)) -> 21760 | G156: =IF(INTRO!$E$50="","",ROUND($D156*INTRO!$E$50,0)) -> 41103 | H156: 0 | I156: 4 | J156: 3 | K156: 1 | L156: 1 | M156: =IF(INTRO!$E$38="Endemic", IF($H156>0, IF($H156=4,"Unknown", IF($H156=99,"Stopped", $D156)), 0),"Not required") -> 0 | N156: =IF(INTRO!$E$40="Endemic", IF($I156>0, IF($I156=4,"Unknown",IF($I156=99,"Stopped", $D156)), 0),"Not required") -> Unknown | O156: =IF(INTRO!$E$42="Endemic", IF(AND($J156>1,$J156<5), IF($J156=4, "Unknown", E156+F156), 0),"Not required") -> 34239 | P156: =IF(INTRO!$E$44="Endemic", IF(AND($K156>0,$K156<5), IF($K156=4,"Unknown", IF($K156=1, $F156*0.33, IF($K156=2, $F156*0.5+$G156*0.2, SUM(F156:G156)))), 0),"Not required") -> 7180.8 | Q156: 0 | R156: 0 | S156: 2 | T156: 1 | U156: T1 (PZQ+ALB/MBD) | V156: T3 (ALB/MBD) | W156: 2194 | X156: DAMBA | Z156: 0 | AA156: 16519 | AB156: 0
A157: =IF(INTRO!$E$34<>0,INTRO!$E$34,"") -> Angola | B157: UIGE | C157: MAQUELA DO ZOMBO | D157: 149425.6044 | E157: =IF(INTRO!$E$48="","",ROUND($D157*INTRO!$E$48,0)) -> 23908 | F157: =IF(INTRO!$E$49="","",ROUND($D157*INTRO!$E$49,0)) -> 41690 | G157: =IF(INTRO!$E$50="","",ROUND($D157*INTRO!$E$50,0)) -> 78747 | H157: 0 | I157: 4 | J157: 3 | K157: 1 | L157: 1 | M157: =IF(INTRO!$E$38="Endemic", IF($H157>0, IF($H157=4,"Unknown", IF($H157=99,"Stopped", $D157)), 0),"Not required") -> 0 | N157: =IF(INTRO!$E$40="Endemic", IF($I157>0, IF($I157=4,"Unknown",IF($I157=99,"Stopped", $D157)), 0),"Not required") -> Unknown | O157: =IF(INTRO!$E$42="Endemic", IF(AND($J157>1,$J157<5), IF($J157=4, "Unknown", E157+F157), 0),"Not required") -> 65598 | P157: =IF(INTRO!$E$44="Endemic", IF(AND($K157>0,$K157<5), IF($K157=4,"Unknown", IF($K157=1, $F157*0.33, IF($K157=2, $F157*0.5+$G157*0.2, SUM(F157:G157)))), 0),"Not required") -> 13757.7 | Q157: 0 | R157: 0 | S157: 2 | T157: 1 | U157: T1 (PZQ+ALB/MBD) | V157: T3 (ALB/MBD) | W157: 2198 | X157: MAQUELA DO ZOMBO | Z157: 0 | AA157: 30231 | AB157: 0
A158: =IF(INTRO!$E$34<>0,INTRO!$E$34,"") -> Angola | B158: UIGE | C158: MILUNGA | D158: 59366.14459 | E158: =IF(INTRO!$E$48="","",ROUND($D158*INTRO!$E$48,0)) -> 9499 | F158: =IF(INTRO!$E$49="","",ROUND($D158*INTRO!$E$49,0)) -> 16563 | G158: =IF(INTRO!$E$50="","",ROUND($D158*INTRO!$E$50,0)) -> 31286 | H158: 0 | I158: 4 | J158: 3 | K158: 1 | L158: 1 | M158: =IF(INTRO!$E$38="Endemic", IF($H158>0, IF($H158=4,"Unknown", IF($H158=99,"Stopped", $D158)), 0),"Not required") -> 0 | N158: =IF(INTRO!$E$40="Endemic", IF($I158>0, IF($I158=4,"Unknown",IF($I158=99,"Stopped", $D158)), 0),"Not required") -> Unknown | O158: =IF(INTRO!$E$42="Endemic", IF(AND($J158>1,$J158<5), IF($J158=4, "Unknown", E158+F158), 0),"Not required") -> 26062 | P158: =IF(INTRO!$E$44="Endemic", IF(AND($K158>0,$K158<5), IF($K158=4,"Unknown", IF($K158=1, $F158*0.33, IF($K158=2, $F158*0.5+$G158*0.2, SUM(F158:G158)))), 0),"Not required") -> 5465.79 | Q158: 0 | R158: 0 | S158: 2 | T158: 1 | U158: T1 (PZQ+ALB/MBD) | V158: T3 (ALB/MBD) | W158: 2199 | X158: MILUNGA | Z158: 0 | AA158: 18232 | AB158: 0
A159: =IF(INTRO!$E$34<>0,INTRO!$E$34,"") -> Angola | B159: UIGE | C159: MUCABA | D159: 51596.30884 | E159: =IF(INTRO!$E$48="","",ROUND($D159*INTRO!$E$48,0)) -> 8255 | F159: =IF(INTRO!$E$49="","",ROUND($D159*INTRO!$E$49,0)) -> 14395 | G159: =IF(INTRO!$E$50="","",ROUND($D159*INTRO!$E$50,0)) -> 27191 | H159: 0 | I159: 4 | J159: 3 | K159: 1 | L159: 1 | M159: =IF(INTRO!$E$38="Endemic", IF($H159>0, IF($H159=4,"Unknown", IF($H159=99,"Stopped", $D159)), 0),"Not required") -> 0 | N159: =IF(INTRO!$E$40="Endemic", IF($I159>0, IF($I159=4,"Unknown",IF($I159=99,"Stopped", $D159)), 0),"Not required") -> Unknown | O159: =IF(INTRO!$E$42="Endemic", IF(AND($J159>1,$J159<5), IF($J159=4, "Unknown", E159+F159), 0),"Not required") -> 22650 | P159: =IF(INTRO!$E$44="Endemic", IF(AND($K159>0,$K159<5), IF($K159=4,"Unknown", IF($K159=1, $F159*0.33, IF($K159=2, $F159*0.5+$G159*0.2, SUM(F159:G159)))), 0),"Not required") -> 4750.35 | Q159: 0 | R159: 0 | S159: 2 | T159: 1 | U159: T1 (PZQ+ALB/MBD) | V159: T3 (ALB/MBD) | W159: 2200 | X159: MUCABA | Z159: 0 | AA159: 12154 | AB159: 0
A160: =IF(INTRO!$E$34<>0,INTRO!$E$34,"") -> Angola | B160: UIGE | C160: NEGAGE | D160: 161403.0256 | E160: =IF(INTRO!$E$48="","",ROUND($D160*INTRO!$E$48,0)) -> 25824 | F160: =IF(INTRO!$E$49="","",ROUND($D160*INTRO!$E$49,0)) -> 45031 | G160: =IF(INTRO!$E$50="","",ROUND($D160*INTRO!$E$50,0)) -> 85059 | H160: 0 | I160: 1 | J160: 3 | K160: 2 | L160: 1 | M160: =IF(INTRO!$E$38="Endemic", IF($H160>0, IF($H160=4,"Unknown", IF($H160=99,"Stopped", $D160)), 0),"Not required") -> 0 | N160: =IF(INTRO!$E$40="Endemic", IF($I160>0, IF($I160=4,"Unknown",IF($I160=99,"Stopped", $D160)), 0),"Not required") -> 161403.0256 | O160: =IF(INTRO!$E$42="Endemic", IF(AND($J160>1,$J160<5), IF($J160=4, "Unknown", E160+F160), 0),"Not required") -> 70855 | P160: =IF(INTRO!$E$44="Endemic", IF(AND($K160>0,$K160<5), IF($K160=4,"Unknown", IF($K160=1, $F160*0.33, IF($K160=2, $F160*0.5+$G160*0.2, SUM(F160:G160)))), 0),"Not required") -> 39527.3 | Q160: 0 | R160: 0 | S160: 2 | T160: 1 | U160: T1 (PZQ+ALB/MBD) | V160: T3 (ALB/MBD) | W160: 2201 | X160: NEGAGE | Z160: 0 | AA160: 36517 | AB160: 0
A161: =IF(INTRO!$E$34<>0,INTRO!$E$34,"") -> Angola | B161: UIGE | C161: PURI | D161: 44481.19498 | E161: =IF(INTRO!$E$48="","",ROUND($D161*INTRO!$E$48,0)) -> 7117 | F161: =IF(INTRO!$E$49="","",ROUND($D161*INTRO!$E$49,0)) -> 12410 | G161: =IF(INTRO!$E$50="","",ROUND($D161*INTRO!$E$50,0)) -> 23442 | H161: 0 | I161: 1 | J161: 3 | K161: 1 | L161: 1 | M161: =IF(INTRO!$E$38="Endemic", IF($H161>0, IF($H161=4,"Unknown", IF($H161=99,"Stopped", $D161)), 0),"Not required") -> 0 | N161: =IF(INTRO!$E$40="Endemic", IF($I161>0, IF($I161=4,"Unknown",IF($I161=99,"Stopped", $D161)), 0),"Not required") -> 44481.19498 | O161: =IF(INTRO!$E$42="Endemic", IF(AND($J161>1,$J161<5), IF($J161=4, "Unknown", E161+F161), 0),"Not required") -> 19527 | P161: =IF(INTRO!$E$44="Endemic", IF(AND($K161>0,$K161<5), IF($K161=4,"Unknown", IF($K161=1, $F161*0.33, IF($K161=2, $F161*0.5+$G161*0.2, SUM(F161:G161)))), 0),"Not required") -> 4095.3 | Q161: 0 | R161: 0 | S161: 2 | T161: 1 | U161: T1 (PZQ+ALB/MBD) | V161: T3 (ALB/MBD) | W161: 2202 | X161: PURI | Z161: 0 | AA161: 11487 | AB161: 0
A162: =IF(INTRO!$E$34<>0,INTRO!$E$34,"") -> Angola | B162: UIGE | C162: QUIMBELE | D162: 160155.7687 | E162: =IF(INTRO!$E$48="","",ROUND($D162*INTRO!$E$48,0)) -> 25625 | F162: =IF(INTRO!$E$49="","",ROUND($D162*INTRO!$E$49,0)) -> 44683 | G162: =IF(INTRO!$E$50="","",ROUND($D162*INTRO!$E$50,0)) -> 84402 | H162: 0 | I162: 4 | J162: 3 | K162: 1 | L162: 1 | M162: =IF(INTRO!$E$38="Endemic", IF($H162>0, IF($H162=4,"Unknown", IF($H162=99,"Stopped", $D162)), 0),"Not required") -> 0 | N162: =IF(INTRO!$E$40="Endemic", IF($I162>0, IF($I162=4,"Unknown",IF($I162=99,"Stopped", $D162)), 0),"Not required") -> Unknown | O162: =IF(INTRO!$E$42="Endemic", IF(AND($J162>1,$J162<5), IF($J162=4, "Unknown", E162+F162), 0),"Not required") -> 70308 | P162: =IF(INTRO!$E$44="Endemic", IF(AND($K162>0,$K162<5), IF($K162=4,"Unknown", IF($K162=1, $F162*0.33, IF($K162=2, $F162*0.5+$G162*0.2, SUM(F162:G162)))), 0),"Not required") -> 14745.39 | Q162: 0 | R162: 0 | S162: 2 | T162: 1 | U162: T1 (PZQ+ALB/MBD) | V162: T3 (ALB/MBD) | W162: 2196 | X162: QUIMBELE | Z162: 0 | AA162: 35311 | AB162: 0
A163: =IF(INTRO!$E$34<>0,INTRO!$E$34,"") -> Angola | B163: UIGE | C163: QUITEXE | D163: 40241.92942 | E163: =IF(INTRO!$E$48="","",ROUND($D163*INTRO!$E$48,0)) -> 6439 | F163: =IF(INTRO!$E$49="","",ROUND($D163*INTRO!$E$49,0)) -> 11227 | G163: =IF(INTRO!$E$50="","",ROUND($D163*INTRO!$E$50,0)) -> 21207 | H163: 0 | I163: 1 | J163: 3 | K163: 1 | L163: 1 | M163: =IF(INTRO!$E$38="Endemic", IF($H163>0, IF($H163=4,"Unknown", IF($H163=99,"Stopped", $D163)), 0),"Not required") -> 0 | N163: =IF(INTRO!$E$40="Endemic", IF($I163>0, IF($I163=4,"Unknown",IF($I163=99,"Stopped", $D163)), 0),"Not required") -> 40241.92942 | O163: =IF(INTRO!$E$42="Endemic", IF(AND($J163>1,$J163<5), IF($J163=4, "Unknown", E163+F163), 0),"Not required") -> 17666 | P163: =IF(INTRO!$E$44="Endemic", IF(AND($K163>0,$K163<5), IF($K163=4,"Unknown", IF($K163=1, $F163*0.33, IF($K163=2, $F163*0.5+$G163*0.2, SUM(F163:G163)))), 0),"Not required") -> 3704.91 | Q163: 0 | R163: 0 | S163: 2 | T163: 1 | U163: T1 (PZQ+ALB/MBD) | V163: T3 (ALB/MBD) | W163: 2197 | X163: QUITEXE | Z163: 0 | AA163: 10706 | AB163: 0
A164: =IF(INTRO!$E$34<>0,INTRO!$E$34,"") -> Angola | B164: UIGE | C164: SANZA POMBO | D164: 80245.67149 | E164: =IF(INTRO!$E$48="","",ROUND($D164*INTRO!$E$48,0)) -> 12839 | F164: =IF(INTRO!$E$49="","",ROUND($D164*INTRO!$E$49,0)) -> 22389 | G164: =IF(INTRO!$E$50="","",ROUND($D164*INTRO!$E$50,0)) -> 42289 | H164: 0 | I164: 4 | J164: 2 | K164: 1 | L164: 1 | M164: =IF(INTRO!$E$38="Endemic", IF($H164>0, IF($H164=4,"Unknown", IF($H164=99,"Stopped", $D164)), 0),"Not required") -> 0 | N164: =IF(INTRO!$E$40="Endemic", IF($I164>0, IF($I164=4,"Unknown",IF($I164=99,"Stopped", $D164)), 0),"Not required") -> Unknown | O164: =IF(INTRO!$E$42="Endemic", IF(AND($J164>1,$J164<5), IF($J164=4, "Unknown", E164+F164), 0),"Not required") -> 35228 | P164: =IF(INTRO!$E$44="Endemic", IF(AND($K164>0,$K164<5), IF($K164=4,"Unknown", IF($K164=1, $F164*0.33, IF($K164=2, $F164*0.5+$G164*0.2, SUM(F164:G164)))), 0),"Not required") -> 7388.37 | Q164: 0 | R164: 0 | S164: 2 | T164: 1 | U164: T1 (PZQ+ALB/MBD) | V164: T3 (ALB/MBD) | W164: 2203 | X164: SANZA POMBO | Z164: 0 | AA164: 18997 | AB164: 0
A165: =IF(INTRO!$E$34<>0,INTRO!$E$34,"") -> Angola | B165: UIGE | C165: SONGO | D165: 72373.75545 | E165: =IF(INTRO!$E$48="","",ROUND($D165*INTRO!$E$48,0)) -> 11580 | F165: =IF(INTRO!$E$49="","",ROUND($D165*INTRO!$E$49,0)) -> 20192 | G165: =IF(INTRO!$E$50="","",ROUND($D165*INTRO!$E$50,0)) -> 38141 | H165: 1 | I165: 1 | J165: 3 | K165: 3 | L165: 1 | M165: =IF(INTRO!$E$38="Endemic", IF($H165>0, IF($H165=4,"Unknown", IF($H165=99,"Stopped", $D165)), 0),"Not required") -> 72373.75545 | N165: =IF(INTRO!$E$40="Endemic", IF($I165>0, IF($I165=4,"Unknown",IF($I165=99,"Stopped", $D165)), 0),"Not required") -> 72373.75545 | O165: =IF(INTRO!$E$42="Endemic", IF(AND($J165>1,$J165<5), IF($J165=4, "Unknown", E165+F165), 0),"Not required") -> 31772 | P165: =IF(INTRO!$E$44="Endemic", IF(AND($K165>0,$K165<5), IF($K165=4,"Unknown", IF($K165=1, $F165*0.33, IF($K165=2, $F165*0.5+$G165*0.2, SUM(F165:G165)))), 0),"Not required") -> 58333 | Q165: 0 | R165: 0 | S165: 2 | T165: 1 | U165: T1 (PZQ+ALB/MBD) | V165: T3 (ALB/MBD) | W165: 2204 | X165: SONGO | Z165: 15663 | AA165: 16649 | AB165: 16850
A166: =IF(INTRO!$E$34<>0,INTRO!$E$34,"") -> Angola | B166: UIGE | C166: UIGE | D166: 609191.7307 | E166: =IF(INTRO!$E$48="","",ROUND($D166*INTRO!$E$48,0)) -> 97471 | F166: =IF(INTRO!$E$49="","",ROUND($D166*INTRO!$E$49,0)) -> 169964 | G166: =IF(INTRO!$E$50="","",ROUND($D166*INTRO!$E$50,0)) -> 321044 | H166: 1 | I166: 4 | J166: 2 | K166: 2 | L166: 1 | M166: =IF(INTRO!$E$38="Endemic", IF($H166>0, IF($H166=4,"Unknown", IF($H166=99,"Stopped", $D166)), 0),"Not required") -> 609191.7307 | N166: =IF(INTRO!$E$40="Endemic", IF($I166>0, IF($I166=4,"Unknown",IF($I166=99,"Stopped", $D166)), 0),"Not required") -> Unknown | O166: =IF(INTRO!$E$42="Endemic", IF(AND($J166>1,$J166<5), IF($J166=4, "Unknown", E166+F166), 0),"Not required") -> 267435 | P166: =IF(INTRO!$E$44="Endemic", IF(AND($K166>0,$K166<5), IF($K166=4,"Unknown", IF($K166=1, $F166*0.33, IF($K166=2, $F166*0.5+$G166*0.2, SUM(F166:G166)))), 0),"Not required") -> 149190.8 | Q166: 0 | R166: 0 | S166: 2 | T166: 1 | U166: T1 (PZQ+ALB/MBD) | V166: T3 (ALB/MBD) | W166: 2205 | X166: UIGE | Z166: 0 | AA166: 128685 | AB166: 0
A167: =IF(INTRO!$E$34<>0,INTRO!$E$34,"") -> Angola | B167: ZAIRE | C167: CUIMBA | D167: 81187.86087 | E167: =IF(INTRO!$E$48="","",ROUND($D167*INTRO!$E$48,0)) -> 12990 | F167: =IF(INTRO!$E$49="","",ROUND($D167*INTRO!$E$49,0)) -> 22651 | G167: =IF(INTRO!$E$50="","",ROUND($D167*INTRO!$E$50,0)) -> 42786 | H167: 0 | I167: 4 | J167: 2 | K167: 2 | L167: 1 | M167: =IF(INTRO!$E$38="Endemic", IF($H167>0, IF($H167=4,"Unknown", IF($H167=99,"Stopped", $D167)), 0),"Not required") -> 0 | N167: =IF(INTRO!$E$40="Endemic", IF($I167>0, IF($I167=4,"Unknown",IF($I167=99,"Stopped", $D167)), 0),"Not required") -> Unknown | O167: =IF(INTRO!$E$42="Endemic", IF(AND($J167>1,$J167<5), IF($J167=4, "Unknown", E167+F167), 0),"Not required") -> 35641 | P167: =IF(INTRO!$E$44="Endemic", IF(AND($K167>0,$K167<5), IF($K167=4,"Unknown", IF($K167=1, $F167*0.33, IF($K167=2, $F167*0.5+$G167*0.2, SUM(F167:G167)))), 0),"Not required") -> 19882.7 | Q167: 0 | R167: 0 | S167: 1 | T167: 1 | U167: T1 (PZQ+ALB/MBD) | W167: 2206 | X167: CUIMBA | Z167: 0 | AA167: 16983 | AB167: 0
A168: =IF(INTRO!$E$34<>0,INTRO!$E$34,"") -> Angola | B168: ZAIRE | C168: MBANZA KONGO | D168: 211586.637 | E168: =IF(INTRO!$E$48="","",ROUND($D168*INTRO!$E$48,0)) -> 33854 | F168: =IF(INTRO!$E$49="","",ROUND($D168*INTRO!$E$49,0)) -> 59033 | G168: =IF(INTRO!$E$50="","",ROUND($D168*INTRO!$E$50,0)) -> 111506 | H168: 0 | I168: 4 | J168: 1 | K168: 2 | L168: 1 | M168: =IF(INTRO!$E$38="Endemic", IF($H168>0, IF($H168=4,"Unknown", IF($H168=99,"Stopped", $D168)), 0),"Not required") -> 0 | N168: =IF(INTRO!$E$40="Endemic", IF($I168>0, IF($I168=4,"Unknown",IF($I168=99,"Stopped", $D168)), 0),"Not required") -> Unknown | O168: =IF(INTRO!$E$42="Endemic", IF(AND($J168>1,$J168<5), IF($J168=4, "Unknown", E168+F168), 0),"Not required") -> 0 | P168: =IF(INTRO!$E$44="Endemic", IF(AND($K168>0,$K168<5), IF($K168=4,"Unknown", IF($K168=1, $F168*0.33, IF($K168=2, $F168*0.5+$G168*0.2, SUM(F168:G168)))), 0),"Not required") -> 51817.7 | Q168: 0 | R168: 0 | S168: 1 | T168: 1 | U168: T1 (PZQ+ALB/MBD) | W168: 2207 | X168: MBANZA CONGO | Z168: 0 | AA168: 42239 | AB168: 0
A169: =IF(INTRO!$E$34<>0,INTRO!$E$34,"") -> Angola | B169: ZAIRE | C169: NOQUI | D169: 28019.28083 | E169: =IF(INTRO!$E$48="","",ROUND($D169*INTRO!$E$48,0)) -> 4483 | F169: =IF(INTRO!$E$49="","",ROUND($D169*INTRO!$E$49,0)) -> 7817 | G169: =IF(INTRO!$E$50="","",ROUND($D169*INTRO!$E$50,0)) -> 14766 | H169: 0 | I169: 4 | J169: 2 | K169: 2 | L169: 1 | M169: =IF(INTRO!$E$38="Endemic", IF($H169>0, IF($H169=4,"Unknown", IF($H169=99,"Stopped", $D169)), 0),"Not required") -> 0 | N169: =IF(INTRO!$E$40="Endemic", IF($I169>0, IF($I169=4,"Unknown",IF($I169=99,"Stopped", $D169)), 0),"Not required") -> Unknown | O169: =IF(INTRO!$E$42="Endemic", IF(AND($J169>1,$J169<5), IF($J169=4, "Unknown", E169+F169), 0),"Not required") -> 12300 | P169: =IF(INTRO!$E$44="Endemic", IF(AND($K169>0,$K169<5), IF($K169=4,"Unknown", IF($K169=1, $F169*0.33, IF($K169=2, $F169*0.5+$G169*0.2, SUM(F169:G169)))), 0),"Not required") -> 6861.7 | Q169: 0 | R169: 0 | S169: 1 | T169: 1 | U169: T1 (PZQ+ALB/MBD) | W169: 2208 | X169: NOQUI | Z169: 0 | AA169: 7972 | AB169: 0
A170: =IF(INTRO!$E$34<>0,INTRO!$E$34,"") -> Angola | B170: ZAIRE | C170: NZETO | D170: 56113.65521 | E170: =IF(INTRO!$E$48="","",ROUND($D170*INTRO!$E$48,0)) -> 8978 | F170: =IF(INTRO!$E$49="","",ROUND($D170*INTRO!$E$49,0)) -> 15656 | G170: =IF(INTRO!$E$50="","",ROUND($D170*INTRO!$E$50,0)) -> 29572 | H170: 0 | I170: 4 | J170: 1 | K170: 2 | L170: 1 | M170: =IF(INTRO!$E$38="Endemic", IF($H170>0, IF($H170=4,"Unknown", IF($H170=99,"Stopped", $D170)), 0),"Not required") -> 0 | N170: =IF(INTRO!$E$40="Endemic", IF($I170>0, IF($I170=4,"Unknown",IF($I170=99,"Stopped", $D170)), 0),"Not required") -> Unknown | O170: =IF(INTRO!$E$42="Endemic", IF(AND($J170>1,$J170<5), IF($J170=4, "Unknown", E170+F170), 0),"Not required") -> 0 | P170: =IF(INTRO!$E$44="Endemic", IF(AND($K170>0,$K170<5), IF($K170=4,"Unknown", IF($K170=1, $F170*0.33, IF($K170=2, $F170*0.5+$G170*0.2, SUM(F170:G170)))), 0),"Not required") -> 13742.4 | Q170: 0 | R170: 0 | S170: 1 | T170: 1 | U170: T1 (PZQ+ALB/MBD) | W170: 2209 | X170: NZETO | Z170: 0 | AA170: 13423 | AB170: 0
A171: =IF(INTRO!$E$34<>0,INTRO!$E$34,"") -> Angola | B171: ZAIRE | C171: SOYO | D171: 266552.7689 | E171: =IF(INTRO!$E$48="","",ROUND($D171*INTRO!$E$48,0)) -> 42648 | F171: =IF(INTRO!$E$49="","",ROUND($D171*INTRO!$E$49,0)) -> 74368 | G171: =IF(INTRO!$E$50="","",ROUND($D171*INTRO!$E$50,0)) -> 140473 | H171: 0 | I171: 4 | J171: 2 | K171: 1 | L171: 1 | M171: =IF(INTRO!$E$38="Endemic", IF($H171>0, IF($H171=4,"Unknown", IF($H171=99,"Stopped", $D171)), 0),"Not required") -> 0 | N171: =IF(INTRO!$E$40="Endemic", IF($I171>0, IF($I171=4,"Unknown",IF($I171=99,"Stopped", $D171)), 0),"Not required") -> Unknown | O171: =IF(INTRO!$E$42="Endemic", IF(AND($J171>1,$J171<5), IF($J171=4, "Unknown", E171+F171), 0),"Not required") -> 117016 | P171: =IF(INTRO!$E$44="Endemic", IF(AND($K171>0,$K171<5), IF($K171=4,"Unknown", IF($K171=1, $F171*0.33, IF($K171=2, $F171*0.5+$G171*0.2, SUM(F171:G171)))), 0),"Not required") -> 24541.44 | Q171: 0 | R171: 0 | S171: 1 | T171: 1 | U171: T1 (PZQ+ALB/MBD) | W171: 2210 | X171: SOYO | Z171: 0 | AA171: 36093 | AB171: 0
A172: =IF(INTRO!$E$34<>0,INTRO!$E$34,"") -> Angola | B172: ZAIRE | C172: TOMBOCO | D172: 54002.82245 | E172: =IF(INTRO!$E$48="","",ROUND($D172*INTRO!$E$48,0)) -> 8640 | F172: =IF(INTRO!$E$49="","",ROUND($D172*INTRO!$E$49,0)) -> 15067 | G172: =IF(INTRO!$E$50="","",ROUND($D172*INTRO!$E$50,0)) -> 28459 | H172: 0 | I172: 4 | J172: 2 | K172: 1 | L172: 1 | M172: =IF(INTRO!$E$38="Endemic", IF($H172>0, IF($H172=4,"Unknown", IF($H172=99,"Stopped", $D172)), 0),"Not required") -> 0 | N172: =IF(INTRO!$E$40="Endemic", IF($I172>0, IF($I172=4,"Unknown",IF($I172=99,"Stopped", $D172)), 0),"Not required") -> Unknown | O172: =IF(INTRO!$E$42="Endemic", IF(AND($J172>1,$J172<5), IF($J172=4, "Unknown", E172+F172), 0),"Not required") -> 23707 | P172: =IF(INTRO!$E$44="Endemic", IF(AND($K172>0,$K172<5), IF($K172=4,"Unknown", IF($K172=1, $F172*0.33, IF($K172=2, $F172*0.5+$G172*0.2, SUM(F172:G172)))), 0),"Not required") -> 4972.11 | Q172: 0 | R172: 0 | S172: 1 | T172: 1 | U172: T1 (PZQ+ALB/MBD) | W172: 2211 | X172: TOMBOCO | Z172: 0 | AA172: 11811 | AB172: 0
B174: Ambuila | C174: 6906
B175: Bembe | C175: 9793
B176: Buengas | C176: 18599
B177: Bungo | C177: 9992
B178: Cangola | C178: 13093
B179: Damba | C179: 16153
B180: M.do Zombo | C180: 28270
B181: Milunga | C181: 16842
B182: Mucaba | C182: 12434
B183: Negage | C183: 35369
B184: Puri | C184: 11210
B185: Quimbele | C185: 36248
B186: Quitexe | C186: 8594
B187: Sanza Pompo | C187: 18643
B188: Songo | C188: 15055
B189: Uige | C189: 121001

Sheet MDA1
A1: MDA 1 - Ivermectin (IVM) and Albendazole (ALB)
A2: Administrative structure, population requiring PC by age group, population treated by age group and coverage
A4: TOTAL | G4: =SUM(G$9:G$1000) -> 0 | H4: =SUM(H$9:H$1000) -> 0 | I4: =SUM(I$9:I$1000) -> 0 | K4: =SUM(K$9:K$1000) -> 0 | L4: =SUM(L$9:L$1000) -> 0 | M4: =SUM(M$9:M$1000) -> 0 | O4: =IF(G4<>0, IF(K4/G4*100=0, "-", K4/G4*100), " ") ->  | P4: =IF(H4<>0, IF(L4/H4*100=0, "-", L4/H4*100), " ") ->  | Q4: =IF(I4<>0, IF(M4/I4*100=0, "-", M4/I4*100), " ") -> 
D6: PC implemented | E6: Date | F6: Population targeted for MDA 1 | J6: Population treated | N6: Programme coverage (%)
A7: Country | B7: Province/State | C7: District | F7: PreSAC | G7: SAC | H7: Adults | I7: Total | J7: PreSAC | K7: SAC | L7: Adults | M7: Total | N7: PreSAC | O7: SAC | P7: Adults | Q7: Total
A9: =IF(COUNTRY_INFO!A9=0," ",COUNTRY_INFO!A9) -> Angola | B9: =IF(COUNTRY_INFO!B9=0," ",COUNTRY_INFO!B9) -> BENGO | C9: =IF(COUNTRY_INFO!C9=0," ",COUNTRY_INFO!C9) -> AMBRIZ | D9: =IF(COUNTRY_INFO!$U$9:$U$1000="MDA1 (IVM+ALB)", COUNTRY_INFO!$U$9:$U$1000, " ") ->  | I9: =SUM(F9:H9) -> 0 | M9: =SUM(J9:L9) -> 0 | O9: =IF(G9<>0, IF(K9/G9*100=0, "-", K9/G9*100), " ") ->  | P9: =IF(H9<>0, IF(L9/H9*100=0, "-", L9/H9*100), " ") ->  | Q9: =IF(I9<>0, IF(M9/I9*100=0, "-", M9/I9*100), " ") -> 
A10: =IF(COUNTRY_INFO!A10=0," ",COUNTRY_INFO!A10) -> Angola | B10: =IF(COUNTRY_INFO!B10=0," ",COUNTRY_INFO!B10) -> BENGO | C10: =IF(COUNTRY_INFO!C10=0," ",COUNTRY_INFO!C10) -> BULA ATUMBA | D10: =IF(COUNTRY_INFO!$U$9:$U$1000="MDA1 (IVM+ALB)", COUNTRY_INFO!$U$9:$U$1000, " ") ->  | I10: =SUM(F10:H10) -> 0 | M10: =SUM(J10:L10) -> 0 | O10: =IF(G10<>0, IF(K10/G10*100=0, "-", K10/G10*100), " ") ->  | P10: =IF(H10<>0, IF(L10/H10*100=0, "-", L10/H10*100), " ") ->  | Q10: =IF(I10<>0, IF(M10/I10*100=0, "-", M10/I10*100), " ") -> 
A11: =IF(COUNTRY_INFO!A11=0," ",COUNTRY_INFO!A11) -> Angola | B11: =IF(COUNTRY_INFO!B11=0," ",COUNTRY_INFO!B11) -> BENGO | C11: =IF(COUNTRY_INFO!C11=0," ",COUNTRY_INFO!C11) -> DANDE | D11: =IF(COUNTRY_INFO!$U$9:$U$1000="MDA1 (IVM+ALB)", COUNTRY_INFO!$U$9:$U$1000, " ") ->  | I11: 0 | M11: 0
A12: =IF(COUNTRY_INFO!A12=0," ",COUNTRY_INFO!A12) -> Angola | B12: =IF(COUNTRY_INFO!B12=0," ",COUNTRY_INFO!B12) -> BENGO | C12: =IF(COUNTRY_INFO!C12=0," ",COUNTRY_INFO!C12) -> DEMBOS | D12: =IF(COUNTRY_INFO!$U$9:$U$1000="MDA1 (IVM+ALB)", COUNTRY_INFO!$U$9:$U$1000, " ") ->  | I12: 0 | M12: 0
A13: =IF(COUNTRY_INFO!A13=0," ",COUNTRY_INFO!A13) -> Angola | B13: =IF(COUNTRY_INFO!B13=0," ",COUNTRY_INFO!B13) -> BENGO | C13: =IF(COUNTRY_INFO!C13=0," ",COUNTRY_INFO!C13) -> NAMBUANGONGO | D13: =IF(COUNTRY_INFO!$U$9:$U$1000="MDA1 (IVM+ALB)", COUNTRY_INFO!$U$9:$U$1000, " ") ->  | I13: 0 | M13: 0
A14: =IF(COUNTRY_INFO!A14=0," ",COUNTRY_INFO!A14) -> Angola | B14: =IF(COUNTRY_INFO!B14=0," ",COUNTRY_INFO!B14) -> BENGO | C14: =IF(COUNTRY_INFO!C14=0," ",COUNTRY_INFO!C14) -> PANGO ALUQUEM | D14: =IF(COUNTRY_INFO!$U$9:$U$1000="MDA1 (IVM+ALB)", COUNTRY_INFO!$U$9:$U$1000, " ") ->  | I14: 0 | M14: 0
A15: =IF(COUNTRY_INFO!A15=0," ",COUNTRY_INFO!A15) -> Angola | B15: =IF(COUNTRY_INFO!B15=0," ",COUNTRY_INFO!B15) -> BENGUELA | C15: =IF(COUNTRY_INFO!C15=0," ",COUNTRY_INFO!C15) -> BAIA FARTA | D15: =IF(COUNTRY_INFO!$U$9:$U$1000="MDA1 (IVM+ALB)", COUNTRY_INFO!$U$9:$U$1000, " ") ->  | I15: 0 | M15: 0
A16: =IF(COUNTRY_INFO!A16=0," ",COUNTRY_INFO!A16) -> Angola | B16: =IF(COUNTRY_INFO!B16=0," ",COUNTRY_INFO!B16) -> BENGUELA | C16: =IF(COUNTRY_INFO!C16=0," ",COUNTRY_INFO!C16) -> BALOMBO | D16: =IF(COUNTRY_INFO!$U$9:$U$1000="MDA1 (IVM+ALB)", COUNTRY_INFO!$U$9:$U$1000, " ") ->  | I16: 0 | M16: 0
A17: =IF(COUNTRY_INFO!A17=0," ",COUNTRY_INFO!A17) -> Angola | B17: =IF(COUNTRY_INFO!B17=0," ",COUNTRY_INFO!B17) -> BENGUELA | C17: =IF(COUNTRY_INFO!C17=0," ",COUNTRY_INFO!C17) -> BENGUELA | D17: =IF(COUNTRY_INFO!$U$9:$U$1000="MDA1 (IVM+ALB)", COUNTRY_INFO!$U$9:$U$1000, " ") ->  | I17: 0 | M17: 0
A18: =IF(COUNTRY_INFO!A18=0," ",COUNTRY_INFO!A18) -> Angola | B18: =IF(COUNTRY_INFO!B18=0," ",COUNTRY_INFO!B18) -> BENGUELA | C18: =IF(COUNTRY_INFO!C18=0," ",COUNTRY_INFO!C18) -> BOCOIO | D18: =IF(COUNTRY_INFO!$U$9:$U$1000="MDA1 (IVM+ALB)", COUNTRY_INFO!$U$9:$U$1000, " ") ->  | I18: 0 | M18: 0
A19: =IF(COUNTRY_INFO!A19=0," ",COUNTRY_INFO!A19) -> Angola | B19: =IF(COUNTRY_INFO!B19=0," ",COUNTRY_INFO!B19) -> BENGUELA | C19: =IF(COUNTRY_INFO!C19=0," ",COUNTRY_INFO!C19) -> CAIMBAMBO | D19: =IF(COUNTRY_INFO!$U$9:$U$1000="MDA1 (IVM+ALB)", COUNTRY_INFO!$U$9:$U$1000, " ") ->  | I19: 0 | M19: 0
A20: =IF(COUNTRY_INFO!A20=0," ",COUNTRY_INFO!A20) -> Angola | B20: =IF(COUNTRY_INFO!B20=0," ",COUNTRY_INFO!B20) -> BENGUELA | C20: =IF(COUNTRY_INFO!C20=0," ",COUNTRY_INFO!C20) -> CATUMBELA | D20: =IF(COUNTRY_INFO!$U$9:$U$1000="MDA1 (IVM+ALB)", COUNTRY_INFO!$U$9:$U$1000, " ") ->  | I20: 0 | M20: 0
A21: =IF(COUNTRY_INFO!A21=0," ",COUNTRY_INFO!A21) -> Angola | B21: =IF(COUNTRY_INFO!B21=0," ",COUNTRY_INFO!B21) -> BENGUELA | C21: =IF(COUNTRY_INFO!C21=0," ",COUNTRY_INFO!C21) -> CHONGOROI | D21: =IF(COUNTRY_INFO!$U$9:$U$1000="MDA1 (IVM+ALB)", COUNTRY_INFO!$U$9:$U$1000, " ") ->  | I21: 0 | M21: 0
A22: =IF(COUNTRY_INFO!A22=0," ",COUNTRY_INFO!A22) -> Angola | B22: =IF(COUNTRY_INFO!B22=0," ",COUNTRY_INFO!B22) -> BENGUELA | C22: =IF(COUNTRY_INFO!C22=0," ",COUNTRY_INFO!C22) -> CUBAL | D22: =IF(COUNTRY_INFO!$U$9:$U$1000="MDA1 (IVM+ALB)", COUNTRY_INFO!$U$9:$U$1000, " ") ->  | I22: 0 | M22: 0
A23: =IF(COUNTRY_INFO!A23=0," ",COUNTRY_INFO!A23) -> Angola | B23: =IF(COUNTRY_INFO!B23=0," ",COUNTRY_INFO!B23) -> BENGUELA | C23: =IF(COUNTRY_INFO!C23=0," ",COUNTRY_INFO!C23) -> GANDA | D23: =IF(COUNTRY_INFO!$U$9:$U$1000="MDA1 (IVM+ALB)", COUNTRY_INFO!$U$9:$U$1000, " ") ->  | I23: 0 | M23: 0
A24: =IF(COUNTRY_INFO!A24=0," ",COUNTRY_INFO!A24) -> Angola | B24: =IF(COUNTRY_INFO!B24=0," ",COUNTRY_INFO!B24) -> BENGUELA | C24: =IF(COUNTRY_INFO!C24=0," ",COUNTRY_INFO!C24) -> LOBITO | D24: =IF(COUNTRY_INFO!$U$9:$U$1000="MDA1 (IVM+ALB)", COUNTRY_INFO!$U$9:$U$1000, " ") ->  | I24: 0 | M24: 0
A25: =IF(COUNTRY_INFO!A25=0," ",COUNTRY_INFO!A25) -> Angola | B25: =IF(COUNTRY_INFO!B25=0," ",COUNTRY_INFO!B25) -> BIE | C25: =IF(COUNTRY_INFO!C25=0," ",COUNTRY_INFO!C25) -> ANDULO | D25: =IF(COUNTRY_INFO!$U$9:$U$1000="MDA1 (IVM+ALB)", COUNTRY_INFO!$U$9:$U$1000, " ") ->  | I25: 0 | M25: 0
A26: =IF(COUNTRY_INFO!A26=0," ",COUNTRY_INFO!A26) -> Angola | B26: =IF(COUNTRY_INFO!B26=0," ",COUNTRY_INFO!B26) -> BIE | C26: =IF(COUNTRY_INFO!C26=0," ",COUNTRY_INFO!C26) -> CAMACUPA | D26: =IF(COUNTRY_INFO!$U$9:$U$1000="MDA1 (IVM+ALB)", COUNTRY_INFO!$U$9:$U$1000, " ") ->  | I26: 0 | M26: 0
A27: =IF(COUNTRY_INFO!A27=0," ",COUNTRY_INFO!A27) -> Angola | B27: =IF(COUNTRY_INFO!B27=0," ",COUNTRY_INFO!B27) -> BIE | C27: =IF(COUNTRY_INFO!C27=0," ",COUNTRY_INFO!C27) -> CATABOLA | D27: =IF(COUNTRY_INFO!$U$9:$U$1000="MDA1 (IVM+ALB)", COUNTRY_INFO!$U$9:$U$1000, " ") ->  | I27: 0 | M27: 0
A28: =IF(COUNTRY_INFO!A28=0," ",COUNTRY_INFO!A28) -> Angola | B28: =IF(COUNTRY_INFO!B28=0," ",COUNTRY_INFO!B28) -> BIE | C28: =IF(COUNTRY_INFO!C28=0," ",COUNTRY_INFO!C28) -> CHINGUAR | D28: =IF(COUNTRY_INFO!$U$9:$U$1000="MDA1 (IVM+ALB)", COUNTRY_INFO!$U$9:$U$1000, " ") ->  | I28: 0 | M28: 0
A29: =IF(COUNTRY_INFO!A29=0," ",COUNTRY_INFO!A29) -> Angola | B29: =IF(COUNTRY_INFO!B29=0," ",COUNTRY_INFO!B29) -> BIE | C29: =IF(COUNTRY_INFO!C29=0," ",COUNTRY_INFO!C29) -> CHITEMBO | D29: =IF(COUNTRY_INFO!$U$9:$U$1000="MDA1 (IVM+ALB)", COUNTRY_INFO!$U$9:$U$1000, " ") ->  | I29: 0 | M29: 0
A30: =IF(COUNTRY_INFO!A30=0," ",COUNTRY_INFO!A30) -> Angola | B30: =IF(COUNTRY_INFO!B30=0," ",COUNTRY_INFO!B30) -> BIE | C30: =IF(COUNTRY_INFO!C30=0," ",COUNTRY_INFO!C30) -> CUEMBA | D30: =IF(COUNTRY_INFO!$U$9:$U$1000="MDA1 (IVM+ALB)", COUNTRY_INFO!$U$9:$U$1000, " ") ->  | I30: 0 | M30: 0
A31: =IF(COUNTRY_INFO!A31=0," ",COUNTRY_INFO!A31) -> Angola | B31: =IF(COUNTRY_INFO!B31=0," ",COUNTRY_INFO!B31) -> BIE | C31: =IF(COUNTRY_INFO!C31=0," ",COUNTRY_INFO!C31) -> CUITO | D31: =IF(COUNTRY_INFO!$U$9:$U$1000="MDA1 (IVM+ALB)", COUNTRY_INFO!$U$9:$U$1000, " ") ->  | I31: 0 | M31: 0
A32: =IF(COUNTRY_INFO!A32=0," ",COUNTRY_INFO!A32) -> Angola | B32: =IF(COUNTRY_INFO!B32=0," ",COUNTRY_INFO!B32) -> BIE | C32: =IF(COUNTRY_INFO!C32=0," ",COUNTRY_INFO!C32) -> CUNHINGA | D32: =IF(COUNTRY_INFO!$U$9:$U$1000="MDA1 (IVM+ALB)", COUNTRY_INFO!$U$9:$U$1000, " ") ->  | I32: 0 | M32: 0
A33: =IF(COUNTRY_INFO!A33=0," ",COUNTRY_INFO!A33) -> Angola | B33: =IF(COUNTRY_INFO!B33=0," ",COUNTRY_INFO!B33) -> BIE | C33: =IF(COUNTRY_INFO!C33=0," ",COUNTRY_INFO!C33) -> NHAREA | D33: =IF(COUNTRY_INFO!$U$9:$U$1000="MDA1 (IVM+ALB)", COUNTRY_INFO!$U$9:$U$1000, " ") ->  | I33: 0 | M33: 0
A34: =IF(COUNTRY_INFO!A34=0," ",COUNTRY_INFO!A34) -> Angola | B34: =IF(COUNTRY_INFO!B34=0," ",COUNTRY_INFO!B34) -> CABINDA | C34: =IF(COUNTRY_INFO!C34=0," ",COUNTRY_INFO!C34) -> BELIZE | D34: =IF(COUNTRY_INFO!$U$9:$U$1000="MDA1 (IVM+ALB)", COUNTRY_INFO!$U$9:$U$1000, " ") ->  | I34: 0 | M34: 0
A35: =IF(COUNTRY_INFO!A35=0," ",COUNTRY_INFO!A35) -> Angola | B35: =IF(COUNTRY_INFO!B35=0," ",COUNTRY_INFO!B35) -> CABINDA | C35: =IF(COUNTRY_INFO!C35=0," ",COUNTRY_INFO!C35) -> BUCO ZAU | D35: =IF(COUNTRY_INFO!$U$9:$U$1000="MDA1 (IVM+ALB)", COUNTRY_INFO!$U$9:$U$1000, " ") ->  | I35: 0 | M35: 0
A36: =IF(COUNTRY_INFO!A36=0," ",COUNTRY_INFO!A36) -> Angola | B36: =IF(COUNTRY_INFO!B36=0," ",COUNTRY_INFO!B36) -> CABINDA | C36: =IF(COUNTRY_INFO!C36=0," ",COUNTRY_INFO!C36) -> CABINDA | D36: =IF(COUNTRY_INFO!$U$9:$U$1000="MDA1 (IVM+ALB)", COUNTRY_INFO!$U$9:$U$1000, " ") ->  | I36: 0 | M36: 0
A37: =IF(COUNTRY_INFO!A37=0," ",COUNTRY_INFO!A37) -> Angola | B37: =IF(COUNTRY_INFO!B37=0," ",COUNTRY_INFO!B37) -> CABINDA | C37: =IF(COUNTRY_INFO!C37=0," ",COUNTRY_INFO!C37) -> CACONGO | D37: =IF(COUNTRY_INFO!$U$9:$U$1000="MDA1 (IVM+ALB)", COUNTRY_INFO!$U$9:$U$1000, " ") ->  | I37: 0 | M37: 0
A38: =IF(COUNTRY_INFO!A38=0," ",COUNTRY_INFO!A38) -> Angola | B38: =IF(COUNTRY_INFO!B38=0," ",COUNTRY_INFO!B38) -> CUANDO CUBANGO | C38: =IF(COUNTRY_INFO!C38=0," ",COUNTRY_INFO!C38) -> CALAI | D38: =IF(COUNTRY_INFO!$U$9:$U$1000="MDA1 (IVM+ALB)", COUNTRY_INFO!$U$9:$U$1000, " ") ->  | I38: 0 | M38: 0
A39: =IF(COUNTRY_INFO!A39=0," ",COUNTRY_INFO!A39) -> Angola | B39: =IF(COUNTRY_INFO!B39=0," ",COUNTRY_INFO!B39) -> CUANDO CUBANGO | C39: =IF(COUNTRY_INFO!C39=0," ",COUNTRY_INFO!C39) -> CUANGAR | D39: =IF(COUNTRY_INFO!$U$9:$U$1000="MDA1 (IVM+ALB)", COUNTRY_INFO!$U$9:$U$1000, " ") ->  | I39: 0 | M39: 0
A40: =IF(COUNTRY_INFO!A40=0," ",COUNTRY_INFO!A40) -> Angola | B40: =IF(COUNTRY_INFO!B40=0," ",COUNTRY_INFO!B40) -> CUANDO CUBANGO | C40: =IF(COUNTRY_INFO!C40=0," ",COUNTRY_INFO!C40) -> CUCHI | D40: =IF(COUNTRY_INFO!$U$9:$U$1000="MDA1 (IVM+ALB)", COUNTRY_INFO!$U$9:$U$1000, " ") ->  | I40: 0 | M40: 0
A41: =IF(COUNTRY_INFO!A41=0," ",COUNTRY_INFO!A41) -> Angola | B41: =IF(COUNTRY_INFO!B41=0," ",COUNTRY_INFO!B41) -> CUANDO CUBANGO | C41: =IF(COUNTRY_INFO!C41=0," ",COUNTRY_INFO!C41) -> CUITO CUANAVALE | D41: =IF(COUNTRY_INFO!$U$9:$U$1000="MDA1 (IVM+ALB)", COUNTRY_INFO!$U$9:$U$1000, " ") ->  | I41: 0 | M41: 0
A42: =IF(COUNTRY_INFO!A42=0," ",COUNTRY_INFO!A42) -> Angola | B42: =IF(COUNTRY_INFO!B42=0," ",COUNTRY_INFO!B42) -> CUANDO CUBANGO | C42: =IF(COUNTRY_INFO!C42=0," ",COUNTRY_INFO!C42) -> DIRICO | D42: =IF(COUNTRY_INFO!$U$9:$U$1000="MDA1 (IVM+ALB)", COUNTRY_INFO!$U$9:$U$1000, " ") ->  | I42: 0 | M42: 0
A43: =IF(COUNTRY_INFO!A43=0," ",COUNTRY_INFO!A43) -> Angola | B43: =IF(COUNTRY_INFO!B43=0," ",COUNTRY_INFO!B43) -> CUANDO CUBANGO | C43: =IF(COUNTRY_INFO!C43=0," ",COUNTRY_INFO!C43) -> MAVINGA | D43: =IF(COUNTRY_INFO!$U$9:$U$1000="MDA1 (IVM+ALB)", COUNTRY_INFO!$U$9:$U$1000, " ") ->  | I43: 0 | M43: 0
A44: =IF(COUNTRY_INFO!A44=0," ",COUNTRY_INFO!A44) -> Angola | B44: =IF(COUNTRY_INFO!B44=0," ",COUNTRY_INFO!B44) -> CUANDO CUBANGO | C44: =IF(COUNTRY_INFO!C44=0," ",COUNTRY_INFO!C44) -> MENONGUE | D44: =IF(COUNTRY_INFO!$U$9:$U$1000="MDA1 (IVM+ALB)", COUNTRY_INFO!$U$9:$U$1000, " ") ->  | I44: 0 | M44: 0
A45: =IF(COUNTRY_INFO!A45=0," ",COUNTRY_INFO!A45) -> Angola | B45: =IF(COUNTRY_INFO!B45=0," ",COUNTRY_INFO!B45) -> CUANDO CUBANGO | C45: =IF(COUNTRY_INFO!C45=0," ",COUNTRY_INFO!C45) -> NANKOVA | D45: =IF(COUNTRY_INFO!$U$9:$U$1000="MDA1 (IVM+ALB)", COUNTRY_INFO!$U$9:$U$1000, " ") ->  | I45: 0 | M45: 0
A46: =IF(COUNTRY_INFO!A46=0," ",COUNTRY_INFO!A46) -> Angola | B46: =IF(COUNTRY_INFO!B46=0," ",COUNTRY_INFO!B46) -> CUANDO CUBANGO | C46: =IF(COUNTRY_INFO!C46=0," ",COUNTRY_INFO!C46) -> RIVUNGO | D46: =IF(COUNTRY_INFO!$U$9:$U$1000="MDA1 (IVM+ALB)", COUNTRY_INFO!$U$9:$U$1000, " ") ->  | I46: 0 | M46: 0
A47: =IF(COUNTRY_INFO!A47=0," ",COUNTRY_INFO!A47) -> Angola | B47: =IF(COUNTRY_INFO!B47=0," ",COUNTRY_INFO!B47) -> CUANZA NORTE | C47: =IF(COUNTRY_INFO!C47=0," ",COUNTRY_INFO!C47) -> AMBACA | D47: =IF(COUNTRY_INFO!$U$9:$U$1000="MDA1 (IVM+ALB)", COUNTRY_INFO!$U$9:$U$1000, " ") ->  | I47: 0 | M47: 0
A48: =IF(COUNTRY_INFO!A48=0," ",COUNTRY_INFO!A48) -> Angola | B48: =IF(COUNTRY_INFO!B48=0," ",COUNTRY_INFO!B48) -> CUANZA NORTE | C48: =IF(COUNTRY_INFO!C48=0," ",COUNTRY_INFO!C48) -> BANGA | D48: =IF(COUNTRY_INFO!$U$9:$U$1000="MDA1 (IVM+ALB)", COUNTRY_INFO!$U$9:$U$1000, " ") ->  | I48: 0 | M48: 0
A49: =IF(COUNTRY_INFO!A49=0," ",COUNTRY_INFO!A49) -> Angola | B49: =IF(COUNTRY_INFO!B49=0," ",COUNTRY_INFO!B49) -> CUANZA NORTE | C49: =IF(COUNTRY_INFO!C49=0," ",COUNTRY_INFO!C49) -> BOLONGONGO | D49: =IF(COUNTRY_INFO!$U$9:$U$1000="MDA1 (IVM+ALB)", COUNTRY_INFO!$U$9:$U$1000, " ") ->  | I49: 0 | M49: 0
A50: =IF(COUNTRY_INFO!A50=0," ",COUNTRY_INFO!A50) -> Angola | B50: =IF(COUNTRY_INFO!B50=0," ",COUNTRY_INFO!B50) -> CUANZA NORTE | C50: =IF(COUNTRY_INFO!C50=0," ",COUNTRY_INFO!C50) -> CAMBAMBE | D50: =IF(COUNTRY_INFO!$U$9:$U$1000="MDA1 (IVM+ALB)", COUNTRY_INFO!$U$9:$U$1000, " ") ->  | I50: 0 | M50: 0
A51: =IF(COUNTRY_INFO!A51=0," ",COUNTRY_INFO!A51) -> Angola | B51: =IF(COUNTRY_INFO!B51=0," ",COUNTRY_INFO!B51) -> CUANZA NORTE | C51: =IF(COUNTRY_INFO!C51=0," ",COUNTRY_INFO!C51) -> CAZENGO | D51: =IF(COUNTRY_INFO!$U$9:$U$1000="MDA1 (IVM+ALB)", COUNTRY_INFO!$U$9:$U$1000, " ") ->  | I51: 0 | M51: 0
A52: =IF(COUNTRY_INFO!A52=0," ",COUNTRY_INFO!A52) -> Angola | B52: =IF(COUNTRY_INFO!B52=0," ",COUNTRY_INFO!B52) -> CUANZA NORTE | C52: =IF(COUNTRY_INFO!C52=0," ",COUNTRY_INFO!C52) -> GOLUNGO ALTO | D52: =IF(COUNTRY_INFO!$U$9:$U$1000="MDA1 (IVM+ALB)", COUNTRY_INFO!$U$9:$U$1000, " ") ->  | I52: 0 | M52: 0
A53: =IF(COUNTRY_INFO!A53=0," ",COUNTRY_INFO!A53) -> Angola | B53: =IF(COUNTRY_INFO!B53=0," ",COUNTRY_INFO!B53) -> CUANZA NORTE | C53: =IF(COUNTRY_INFO!C53=0," ",COUNTRY_INFO!C53) -> GONGUEMBO | D53: =IF(COUNTRY_INFO!$U$9:$U$1000="MDA1 (IVM+ALB)", COUNTRY_INFO!$U$9:$U$1000, " ") ->  | I53: 0 | M53: 0
A54: =IF(COUNTRY_INFO!A54=0," ",COUNTRY_INFO!A54) -> Angola | B54: =IF(COUNTRY_INFO!B54=0," ",COUNTRY_INFO!B54) -> CUANZA NORTE | C54: =IF(COUNTRY_INFO!C54=0," ",COUNTRY_INFO!C54) -> LUCALA | D54: =IF(COUNTRY_INFO!$U$9:$U$1000="MDA1 (IVM+ALB)", COUNTRY_INFO!$U$9:$U$1000, " ") ->  | I54: 0 | M54: 0
A55: =IF(COUNTRY_INFO!A55=0," ",COUNTRY_INFO!A55) -> Angola | B55: =IF(COUNTRY_INFO!B55=0," ",COUNTRY_INFO!B55) -> CUANZA NORTE | C55: =IF(COUNTRY_INFO!C55=0," ",COUNTRY_INFO!C55) -> QUICULUNGO | D55: =IF(COUNTRY_INFO!$U$9:$U$1000="MDA1 (IVM+ALB)", COUNTRY_INFO!$U$9:$U$1000, " ") ->  | I55: 0 | M55: 0
A56: =IF(COUNTRY_INFO!A56=0," ",COUNTRY_INFO!A56) -> Angola | B56: =IF(COUNTRY_INFO!B56=0," ",COUNTRY_INFO!B56) -> CUANZA NORTE | C56: =IF(COUNTRY_INFO!C56=0," ",COUNTRY_INFO!C56) -> SAMBA CAJU | D56: =IF(COUNTRY_INFO!$U$9:$U$1000="MDA1 (IVM+ALB)", COUNTRY_INFO!$U$9:$U$1000, " ") ->  | I56: 0 | M56: 0
A57: =IF(COUNTRY_INFO!A57=0," ",COUNTRY_INFO!A57) -> Angola | B57: =IF(COUNTRY_INFO!B57=0," ",COUNTRY_INFO!B57) -> CUANZA SUL | C57: =IF(COUNTRY_INFO!C57=0," ",COUNTRY_INFO!C57) -> AMBOIM | D57: =IF(COUNTRY_INFO!$U$9:$U$1000="MDA1 (IVM+ALB)", COUNTRY_INFO!$U$9:$U$1000, " ") ->  | I57: 0 | M57: 0
A58: =IF(COUNTRY_INFO!A58=0," ",COUNTRY_INFO!A58) -> Angola | B58: =IF(COUNTRY_INFO!B58=0," ",COUNTRY_INFO!B58) -> CUANZA SUL | C58: =IF(COUNTRY_INFO!C58=0," ",COUNTRY_INFO!C58) -> CASSONGUE | D58: =IF(COUNTRY_INFO!$U$9:$U$1000="MDA1 (IVM+ALB)", COUNTRY_INFO!$U$9:$U$1000, " ") ->  | I58: 0 | M58: 0
A59: =IF(COUNTRY_INFO!A59=0," ",COUNTRY_INFO!A59) -> Angola | B59: =IF(COUNTRY_INFO!B59=0," ",COUNTRY_INFO!B59) -> CUANZA SUL | C59: =IF(COUNTRY_INFO!C59=0," ",COUNTRY_INFO!C59) -> CELA (Waku Kungo) | D59: =IF(COUNTRY_INFO!$U$9:$U$1000="MDA1 (IVM+ALB)", COUNTRY_INFO!$U$9:$U$1000, " ") ->  | I59: 0 | M59: 0
A60: =IF(COUNTRY_INFO!A60=0," ",COUNTRY_INFO!A60) -> Angola | B60: =IF(COUNTRY_INFO!B60=0," ",COUNTRY_INFO!B60) -> CUANZA SUL | C60: =IF(COUNTRY_INFO!C60=0," ",COUNTRY_INFO!C60) -> CONDA | D60: =IF(COUNTRY_INFO!$U$9:$U$1000="MDA1 (IVM+ALB)", COUNTRY_INFO!$U$9:$U$1000, " ") ->  | I60: 0 | M60: 0
A61: =IF(COUNTRY_INFO!A61=0," ",COUNTRY_INFO!A61) -> Angola | B61: =IF(COUNTRY_INFO!B61=0," ",COUNTRY_INFO!B61) -> CUANZA SUL | C61: =IF(COUNTRY_INFO!C61=0," ",COUNTRY_INFO!C61) -> EBO | D61: =IF(COUNTRY_INFO!$U$9:$U$1000="MDA1 (IVM+ALB)", COUNTRY_INFO!$U$9:$U$1000, " ") ->  | I61: 0 | M61: 0
A62: =IF(COUNTRY_INFO!A62=0," ",COUNTRY_INFO!A62) -> Angola | B62: =IF(COUNTRY_INFO!B62=0," ",COUNTRY_INFO!B62) -> CUANZA SUL | C62: =IF(COUNTRY_INFO!C62=0," ",COUNTRY_INFO!C62) -> LIBOLO | D62: =IF(COUNTRY_INFO!$U$9:$U$1000="MDA1 (IVM+ALB)", COUNTRY_INFO!$U$9:$U$1000, " ") ->  | I62: 0 | M62: 0
A63: =IF(COUNTRY_INFO!A63=0," ",COUNTRY_INFO!A63) -> Angola | B63: =IF(COUNTRY_INFO!B63=0," ",COUNTRY_INFO!B63) -> CUANZA SUL | C63: =IF(COUNTRY_INFO!C63=0," ",COUNTRY_INFO!C63) -> MUSSENDE | D63: =IF(COUNTRY_INFO!$U$9:$U$1000="MDA1 (IVM+ALB)", COUNTRY_INFO!$U$9:$U$1000, " ") ->  | I63: 0 | M63: 0
A64: =IF(COUNTRY_INFO!A64=0," ",COUNTRY_INFO!A64) -> Angola | B64: =IF(COUNTRY_INFO!B64=0," ",COUNTRY_INFO!B64) -> CUANZA SUL | C64: =IF(COUNTRY_INFO!C64=0," ",COUNTRY_INFO!C64) -> PORTO AMBOIM | D64: =IF(COUNTRY_INFO!$U$9:$U$1000="MDA1 (IVM+ALB)", COUNTRY_INFO!$U$9:$U$1000, " ") ->  | I64: 0 | M64: 0
A65: =IF(COUNTRY_INFO!A65=0," ",COUNTRY_INFO!A65) -> Angola | B65: =IF(COUNTRY_INFO!B65=0," ",COUNTRY_INFO!B65) -> CUANZA SUL | C65: =IF(COUNTRY_INFO!C65=0," ",COUNTRY_INFO!C65) -> QUIBALA | D65: =IF(COUNTRY_INFO!$U$9:$U$1000="MDA1 (IVM+ALB)", COUNTRY_INFO!$U$9:$U$1000, " ") ->  | I65: 0 | M65: 0
A66: =IF(COUNTRY_INFO!A66=0," ",COUNTRY_INFO!A66) -> Angola | B66: =IF(COUNTRY_INFO!B66=0," ",COUNTRY_INFO!B66) -> CUANZA SUL | C66: =IF(COUNTRY_INFO!C66=0," ",COUNTRY_INFO!C66) -> QUILENDA | D66: =IF(COUNTRY_INFO!$U$9:$U$1000="MDA1 (IVM+ALB)", COUNTRY_INFO!$U$9:$U$1000, " ") ->  | I66: 0 | M66: 0
A67: =IF(COUNTRY_INFO!A67=0," ",COUNTRY_INFO!A67) -> Angola | B67: =IF(COUNTRY_INFO!B67=0," ",COUNTRY_INFO!B67) -> CUANZA SUL | C67: =IF(COUNTRY_INFO!C67=0," ",COUNTRY_INFO!C67) -> SELES | D67: =IF(COUNTRY_INFO!$U$9:$U$1000="MDA1 (IVM+ALB)", COUNTRY_INFO!$U$9:$U$1000, " ") ->  | I67: 0 | M67: 0
A68: =IF(COUNTRY_INFO!A68=0," ",COUNTRY_INFO!A68) -> Angola | B68: =IF(COUNTRY_INFO!B68=0," ",COUNTRY_INFO!B68) -> CUANZA SUL | C68: =IF(COUNTRY_INFO!C68=0," ",COUNTRY_INFO!C68) -> SUMBE | D68: =IF(COUNTRY_INFO!$U$9:$U$1000="MDA1 (IVM+ALB)", COUNTRY_INFO!$U$9:$U$1000, " ") ->  | I68: 0 | M68: 0
A69: =IF(COUNTRY_INFO!A69=0," ",COUNTRY_INFO!A69) -> Angola | B69: =IF(COUNTRY_INFO!B69=0," ",COUNTRY_INFO!B69) -> CUNENE | C69: =IF(COUNTRY_INFO!C69=0," ",COUNTRY_INFO!C69) -> CAHAMA | D69: =IF(COUNTRY_INFO!$U$9:$U$1000="MDA1 (IVM+ALB)", COUNTRY_INFO!$U$9:$U$1000, " ") ->  | I69: 0 | M69: 0
A70: =IF(COUNTRY_INFO!A70=0," ",COUNTRY_INFO!A70) -> Angola | B70: =IF(COUNTRY_INFO!B70=0," ",COUNTRY_INFO!B70) -> CUNENE | C70: =IF(COUNTRY_INFO!C70=0," ",COUNTRY_INFO!C70) -> CUANHAMA | D70: =IF(COUNTRY_INFO!$U$9:$U$1000="MDA1 (IVM+ALB)", COUNTRY_INFO!$U$9:$U$1000, " ") ->  | I70: 0 | M70: 0
A71: =IF(COUNTRY_INFO!A71=0," ",COUNTRY_INFO!A71) -> Angola | B71: =IF(COUNTRY_INFO!B71=0," ",COUNTRY_INFO!B71) -> CUNENE | C71: =IF(COUNTRY_INFO!C71=0," ",COUNTRY_INFO!C71) -> CUROCA | D71: =IF(COUNTRY_INFO!$U$9:$U$1000="MDA1 (IVM+ALB)", COUNTRY_INFO!$U$9:$U$1000, " ") ->  | I71: 0 | M71: 0
A72: =IF(COUNTRY_INFO!A72=0," ",COUNTRY_INFO!A72) -> Angola | B72: =IF(COUNTRY_INFO!B72=0," ",COUNTRY_INFO!B72) -> CUNENE | C72: =IF(COUNTRY_INFO!C72=0," ",COUNTRY_INFO!C72) -> CUVELAI | D72: =IF(COUNTRY_INFO!$U$9:$U$1000="MDA1 (IVM+ALB)", COUNTRY_INFO!$U$9:$U$1000, " ") ->  | I72: 0 | M72: 0
A73: =IF(COUNTRY_INFO!A73=0," ",COUNTRY_INFO!A73) -> Angola | B73: =IF(COUNTRY_INFO!B73=0," ",COUNTRY_INFO!B73) -> CUNENE | C73: =IF(COUNTRY_INFO!C73=0," ",COUNTRY_INFO!C73) -> NAMACUNDE | D73: =IF(COUNTRY_INFO!$U$9:$U$1000="MDA1 (IVM+ALB)", COUNTRY_INFO!$U$9:$U$1000, " ") ->  | I73: 0 | M73: 0
A74: =IF(COUNTRY_INFO!A74=0," ",COUNTRY_INFO!A74) -> Angola | B74: =IF(COUNTRY_INFO!B74=0," ",COUNTRY_INFO!B74) -> CUNENE | C74: =IF(COUNTRY_INFO!C74=0," ",COUNTRY_INFO!C74) -> OMBADJA | D74: =IF(COUNTRY_INFO!$U$9:$U$1000="MDA1 (IVM+ALB)", COUNTRY_INFO!$U$9:$U$1000, " ") ->  | I74: =SUM(F74:H74) -> 0 | M74: =SUM(J74:L74) -> 0 | O74: =IF(G74<>0, IF(K74/G74*100=0, "-", K74/G74*100), " ") ->  | P74: =IF(H74<>0, IF(L74/H74*100=0, "-", L74/H74*100), " ") ->  | Q74: =IF(I74<>0, IF(M74/I74*100=0, "-", M74/I74*100), " ") -> 
A75: =IF(COUNTRY_INFO!A75=0," ",COUNTRY_INFO!A75) -> Angola | B75: =IF(COUNTRY_INFO!B75=0," ",COUNTRY_INFO!B75) -> HUAMBO | C75: =IF(COUNTRY_INFO!C75=0," ",COUNTRY_INFO!C75) -> BAILUNDO | D75: =IF(COUNTRY_INFO!$U$9:$U$1000="MDA1 (IVM+ALB)", COUNTRY_INFO!$U$9:$U$1000, " ") ->  | I75: 0 | M75: 0
A76: =IF(COUNTRY_INFO!A76=0," ",COUNTRY_INFO!A76) -> Angola | B76: =IF(COUNTRY_INFO!B76=0," ",COUNTRY_INFO!B76) -> HUAMBO | C76: =IF(COUNTRY_INFO!C76=0," ",COUNTRY_INFO!C76) -> CAALA | D76: =IF(COUNTRY_INFO!$U$9:$U$1000="MDA1 (IVM+ALB)", COUNTRY_INFO!$U$9:$U$1000, " ") ->  | I76: 0 | M76: 0
A77: =IF(COUNTRY_INFO!A77=0," ",COUNTRY_INFO!A77) -> Angola | B77: =IF(COUNTRY_INFO!B77=0," ",COUNTRY_INFO!B77) -> HUAMBO | C77: =IF(COUNTRY_INFO!C77=0," ",COUNTRY_INFO!C77) -> CACHIUNGO | D77: =IF(COUNTRY_INFO!$U$9:$U$1000="MDA1 (IVM+ALB)", COUNTRY_INFO!$U$9:$U$1000, " ") ->  | I77: 0 | M77: 0
A78: =IF(COUNTRY_INFO!A78=0," ",COUNTRY_INFO!A78) -> Angola | B78: =IF(COUNTRY_INFO!B78=0," ",COUNTRY_INFO!B78) -> HUAMBO | C78: =IF(COUNTRY_INFO!C78=0," ",COUNTRY_INFO!C78) -> CHICALA CHOLOHANGA | D78: =IF(COUNTRY_INFO!$U$9:$U$1000="MDA1 (IVM+ALB)", COUNTRY_INFO!$U$9:$U$1000, " ") ->  | I78: 0 | M78: 0
A79: =IF(COUNTRY_INFO!A79=0," ",COUNTRY_INFO!A79) -> Angola | B79: =IF(COUNTRY_INFO!B79=0," ",COUNTRY_INFO!B79) -> HUAMBO | C79: =IF(COUNTRY_INFO!C79=0," ",COUNTRY_INFO!C79) -> CHINDJENJE | D79: =IF(COUNTRY_INFO!$U$9:$U$1000="MDA1 (IVM+ALB)", COUNTRY_INFO!$U$9:$U$1000, " ") ->  | I79: 0 | M79: 0
A80: =IF(COUNTRY_INFO!A80=0," ",COUNTRY_INFO!A80) -> Angola | B80: =IF(COUNTRY_INFO!B80=0," ",COUNTRY_INFO!B80) -> HUAMBO | C80: =IF(COUNTRY_INFO!C80=0," ",COUNTRY_INFO!C80) -> ECUNHA | D80: =IF(COUNTRY_INFO!$U$9:$U$1000="MDA1 (IVM+ALB)", COUNTRY_INFO!$U$9:$U$1000, " ") ->  | I80: 0 | M80: 0
A81: =IF(COUNTRY_INFO!A81=0," ",COUNTRY_INFO!A81) -> Angola | B81: =IF(COUNTRY_INFO!B81=0," ",COUNTRY_INFO!B81) -> HUAMBO | C81: =IF(COUNTRY_INFO!C81=0," ",COUNTRY_INFO!C81) -> HUAMBO | D81: =IF(COUNTRY_INFO!$U$9:$U$1000="MDA1 (IVM+ALB)", COUNTRY_INFO!$U$9:$U$1000, " ") ->  | I81: 0 | M81: 0
A82: =IF(COUNTRY_INFO!A82=0," ",COUNTRY_INFO!A82) -> Angola | B82: =IF(COUNTRY_INFO!B82=0," ",COUNTRY_INFO!B82) -> HUAMBO | C82: =IF(COUNTRY_INFO!C82=0," ",COUNTRY_INFO!C82) -> LONDUIMBALI | D82: =IF(COUNTRY_INFO!$U$9:$U$1000="MDA1 (IVM+ALB)", COUNTRY_INFO!$U$9:$U$1000, " ") ->  | I82: 0 | M82: 0
A83: =IF(COUNTRY_INFO!A83=0," ",COUNTRY_INFO!A83) -> Angola | B83: =IF(COUNTRY_INFO!B83=0," ",COUNTRY_INFO!B83) -> HUAMBO | C83: =IF(COUNTRY_INFO!C83=0," ",COUNTRY_INFO!C83) -> LONGONJO | D83: =IF(COUNTRY_INFO!$U$9:$U$1000="MDA1 (IVM+ALB)", COUNTRY_INFO!$U$9:$U$1000, " ") ->  | I83: 0 | M83: 0
A84: =IF(COUNTRY_INFO!A84=0," ",COUNTRY_INFO!A84) -> Angola | B84: =IF(COUNTRY_INFO!B84=0," ",COUNTRY_INFO!B84) -> HUAMBO | C84: =IF(COUNTRY_INFO!C84=0," ",COUNTRY_INFO!C84) -> MUNGO | D84: =IF(COUNTRY_INFO!$U$9:$U$1000="MDA1 (IVM+ALB)", COUNTRY_INFO!$U$9:$U$1000, " ") ->  | I84: 0 | M84: 0
A85: =IF(COUNTRY_INFO!A85=0," ",COUNTRY_INFO!A85) -> Angola | B85: =IF(COUNTRY_INFO!B85=0," ",COUNTRY_INFO!B85) -> HUAMBO | C85: =IF(COUNTRY_INFO!C85=0," ",COUNTRY_INFO!C85) -> UCUMA | D85: =IF(COUNTRY_INFO!$U$9:$U$1000="MDA1 (IVM+ALB)", COUNTRY_INFO!$U$9:$U$1000, " ") ->  | I85: 0 | M85: 0
A86: =IF(COUNTRY_INFO!A86=0," ",COUNTRY_INFO!A86) -> Angola | B86: =IF(COUNTRY_INFO!B86=0," ",COUNTRY_INFO!B86) -> HUILA | C86: =IF(COUNTRY_INFO!C86=0," ",COUNTRY_INFO!C86) -> CACONDA | D86: =IF(COUNTRY_INFO!$U$9:$U$1000="MDA1 (IVM+ALB)", COUNTRY_INFO!$U$9:$U$1000, " ") ->  | I86: 0 | M86: 0
A87: =IF(COUNTRY_INFO!A87=0," ",COUNTRY_INFO!A87) -> Angola | B87: =IF(COUNTRY_INFO!B87=0," ",COUNTRY_INFO!B87) -> HUILA | C87: =IF(COUNTRY_INFO!C87=0," ",COUNTRY_INFO!C87) -> CACULA | D87: =IF(COUNTRY_INFO!$U$9:$U$1000="MDA1 (IVM+ALB)", COUNTRY_INFO!$U$9:$U$1000, " ") ->  | I87: 0 | M87: 0
A88: =IF(COUNTRY_INFO!A88=0," ",COUNTRY_INFO!A88) -> Angola | B88: =IF(COUNTRY_INFO!B88=0," ",COUNTRY_INFO!B88) -> HUILA | C88: =IF(COUNTRY_INFO!C88=0," ",COUNTRY_INFO!C88) -> CALUQUEMBE | D88: =IF(COUNTRY_INFO!$U$9:$U$1000="MDA1 (IVM+ALB)", COUNTRY_INFO!$U$9:$U$1000, " ") ->  | I88: 0 | M88: 0
A89: =IF(COUNTRY_INFO!A89=0," ",COUNTRY_INFO!A89) -> Angola | B89: =IF(COUNTRY_INFO!B89=0," ",COUNTRY_INFO!B89) -> HUILA | C89: =IF(COUNTRY_INFO!C89=0," ",COUNTRY_INFO!C89) -> CHIBIA | D89: =IF(COUNTRY_INFO!$U$9:$U$1000="MDA1 (IVM+ALB)", COUNTRY_INFO!$U$9:$U$1000, " ") ->  | I89: 0 | M89: 0
A90: =IF(COUNTRY_INFO!A90=0," ",COUNTRY_INFO!A90) -> Angola | B90: =IF(COUNTRY_INFO!B90=0," ",COUNTRY_INFO!B90) -> HUILA | C90: =IF(COUNTRY_INFO!C90=0," ",COUNTRY_INFO!C90) -> CHICOMBA | D90: =IF(COUNTRY_INFO!$U$9:$U$1000="MDA1 (IVM+ALB)", COUNTRY_INFO!$U$9:$U$1000, " ") ->  | I90: 0 | M90: 0
A91: =IF(COUNTRY_INFO!A91=0," ",COUNTRY_INFO!A91) -> Angola | B91: =IF(COUNTRY_INFO!B91=0," ",COUNTRY_INFO!B91) -> HUILA | C91: =IF(COUNTRY_INFO!C91=0," ",COUNTRY_INFO!C91) -> CHIPINDO | D91: =IF(COUNTRY_INFO!$U$9:$U$1000="MDA1 (IVM+ALB)", COUNTRY_INFO!$U$9:$U$1000, " ") ->  | I91: 0 | M91: 0
A92: =IF(COUNTRY_INFO!A92=0," ",COUNTRY_INFO!A92) -> Angola | B92: =IF(COUNTRY_INFO!B92=0," ",COUNTRY_INFO!B92) -> HUILA | C92: =IF(COUNTRY_INFO!C92=0," ",COUNTRY_INFO!C92) -> CUVANGO | D92: =IF(COUNTRY_INFO!$U$9:$U$1000="MDA1 (IVM+ALB)", COUNTRY_INFO!$U$9:$U$1000, " ") ->  | I92: 0 | M92: 0
A93: =IF(COUNTRY_INFO!A93=0," ",COUNTRY_INFO!A93) -> Angola | B93: =IF(COUNTRY_INFO!B93=0," ",COUNTRY_INFO!B93) -> HUILA | C93: =IF(COUNTRY_INFO!C93=0," ",COUNTRY_INFO!C93) -> GAMBOS | D93: =IF(COUNTRY_INFO!$U$9:$U$1000="MDA1 (IVM+ALB)", COUNTRY_INFO!$U$9:$U$1000, " ") ->  | I93: 0 | M93: 0
A94: =IF(COUNTRY_INFO!A94=0," ",COUNTRY_INFO!A94) -> Angola | B94: =IF(COUNTRY_INFO!B94=0," ",COUNTRY_INFO!B94) -> HUILA | C94: =IF(COUNTRY_INFO!C94=0," ",COUNTRY_INFO!C94) -> HUMPATA | D94: =IF(COUNTRY_INFO!$U$9:$U$1000="MDA1 (IVM+ALB)", COUNTRY_INFO!$U$9:$U$1000, " ") ->  | I94: 0 | M94: 0
A95: =IF(COUNTRY_INFO!A95=0," ",COUNTRY_INFO!A95) -> Angola | B95: =IF(COUNTRY_INFO!B95=0," ",COUNTRY_INFO!B95) -> HUILA | C95: =IF(COUNTRY_INFO!C95=0," ",COUNTRY_INFO!C95) -> JAMBA | D95: =IF(COUNTRY_INFO!$U$9:$U$1000="MDA1 (IVM+ALB)", COUNTRY_INFO!$U$9:$U$1000, " ") ->  | I95: 0 | M95: 0
A96: =IF(COUNTRY_INFO!A96=0," ",COUNTRY_INFO!A96) -> Angola | B96: =IF(COUNTRY_INFO!B96=0," ",COUNTRY_INFO!B96) -> HUILA | C96: =IF(COUNTRY_INFO!C96=0," ",COUNTRY_INFO!C96) -> LUBANGO | D96: =IF(COUNTRY_INFO!$U$9:$U$1000="MDA1 (IVM+ALB)", COUNTRY_INFO!$U$9:$U$1000, " ") ->  | I96: 0 | M96: 0
A97: =IF(COUNTRY_INFO!A97=0," ",COUNTRY_INFO!A97) -> Angola | B97: =IF(COUNTRY_INFO!B97=0," ",COUNTRY_INFO!B97) -> HUILA | C97: =IF(COUNTRY_INFO!C97=0," ",COUNTRY_INFO!C97) -> MATALA | D97: =IF(COUNTRY_INFO!$U$9:$U$1000="MDA1 (IVM+ALB)", COUNTRY_INFO!$U$9:$U$1000, " ") ->  | I97: 0 | M97: 0
A98: =IF(COUNTRY_INFO!A98=0," ",COUNTRY_INFO!A98) -> Angola | B98: =IF(COUNTRY_INFO!B98=0," ",COUNTRY_INFO!B98) -> HUILA | C98: =IF(COUNTRY_INFO!C98=0," ",COUNTRY_INFO!C98) -> QUILENGUES | D98: =IF(COUNTRY_INFO!$U$9:$U$1000="MDA1 (IVM+ALB)", COUNTRY_INFO!$U$9:$U$1000, " ") ->  | I98: 0 | M98: 0
A99: =IF(COUNTRY_INFO!A99=0," ",COUNTRY_INFO!A99) -> Angola | B99: =IF(COUNTRY_INFO!B99=0," ",COUNTRY_INFO!B99) -> HUILA | C99: =IF(COUNTRY_INFO!C99=0," ",COUNTRY_INFO!C99) -> QUIPUNGO | D99: =IF(COUNTRY_INFO!$U$9:$U$1000="MDA1 (IVM+ALB)", COUNTRY_INFO!$U$9:$U$1000, " ") ->  | I99: 0 | M99: 0
A100: =IF(COUNTRY_INFO!A100=0," ",COUNTRY_INFO!A100) -> Angola | B100: =IF(COUNTRY_INFO!B100=0," ",COUNTRY_INFO!B100) -> LUANDA | C100: =IF(COUNTRY_INFO!C100=0," ",COUNTRY_INFO!C100) -> BELAS | D100: =IF(COUNTRY_INFO!$U$9:$U$1000="MDA1 (IVM+ALB)", COUNTRY_INFO!$U$9:$U$1000, " ") ->  | I100: 0 | M100: 0
A101: =IF(COUNTRY_INFO!A101=0," ",COUNTRY_INFO!A101) -> Angola | B101: =IF(COUNTRY_INFO!B101=0," ",COUNTRY_INFO!B101) -> LUANDA | C101: =IF(COUNTRY_INFO!C101=0," ",COUNTRY_INFO!C101) -> CACUACO | D101: =IF(COUNTRY_INFO!$U$9:$U$1000="MDA1 (IVM+ALB)", COUNTRY_INFO!$U$9:$U$1000, " ") ->  | I101: 0 | M101: 0
A102: =IF(COUNTRY_INFO!A102=0," ",COUNTRY_INFO!A102) -> Angola | B102: =IF(COUNTRY_INFO!B102=0," ",COUNTRY_INFO!B102) -> LUANDA | C102: =IF(COUNTRY_INFO!C102=0," ",COUNTRY_INFO!C102) -> CAZENGA | D102: =IF(COUNTRY_INFO!$U$9:$U$1000="MDA1 (IVM+ALB)", COUNTRY_INFO!$U$9:$U$1000, " ") ->  | I102: 0 | M102: 0
A103: =IF(COUNTRY_INFO!A103=0," ",COUNTRY_INFO!A103) -> Angola | B103: =IF(COUNTRY_INFO!B103=0," ",COUNTRY_INFO!B103) -> LUANDA | C103: =IF(COUNTRY_INFO!C103=0," ",COUNTRY_INFO!C103) -> ICOLO E BENGO | D103: =IF(COUNTRY_INFO!$U$9:$U$1000="MDA1 (IVM+ALB)", COUNTRY_INFO!$U$9:$U$1000, " ") ->  | I103: 0 | M103: 0
A104: =IF(COUNTRY_INFO!A104=0," ",COUNTRY_INFO!A104) -> Angola | B104: =IF(COUNTRY_INFO!B104=0," ",COUNTRY_INFO!B104) -> LUANDA | C104: =IF(COUNTRY_INFO!C104=0," ",COUNTRY_INFO!C104) -> KILAMBA KIAXI | D104: =IF(COUNTRY_INFO!$U$9:$U$1000="MDA1 (IVM+ALB)", COUNTRY_INFO!$U$9:$U$1000, " ") ->  | I104: 0 | M104: 0
A105: =IF(COUNTRY_INFO!A105=0," ",COUNTRY_INFO!A105) -> Angola | B105: =IF(COUNTRY_INFO!B105=0," ",COUNTRY_INFO!B105) -> LUANDA | C105: =IF(COUNTRY_INFO!C105=0," ",COUNTRY_INFO!C105) -> LUANDA | D105: =IF(COUNTRY_INFO!$U$9:$U$1000="MDA1 (IVM+ALB)", COUNTRY_INFO!$U$9:$U$1000, " ") ->  | I105: 0 | M105: 0
A106: =IF(COUNTRY_INFO!A106=0," ",COUNTRY_INFO!A106) -> Angola | B106: =IF(COUNTRY_INFO!B106=0," ",COUNTRY_INFO!B106) -> LUANDA | C106: =IF(COUNTRY_INFO!C106=0," ",COUNTRY_INFO!C106) -> QUISSAMA | D106: =IF(COUNTRY_INFO!$U$9:$U$1000="MDA1 (IVM+ALB)", COUNTRY_INFO!$U$9:$U$1000, " ") ->  | I106: 0 | M106: 0
A107: =IF(COUNTRY_INFO!A107=0," ",COUNTRY_INFO!A107) -> Angola | B107: =IF(COUNTRY_INFO!B107=0," ",COUNTRY_INFO!B107) -> LUANDA | C107: =IF(COUNTRY_INFO!C107=0," ",COUNTRY_INFO!C107) -> TALATONA | D107: =IF(COUNTRY_INFO!$U$9:$U$1000="MDA1 (IVM+ALB)", COUNTRY_INFO!$U$9:$U$1000, " ") ->  | I107: 0 | M107: 0
A108: =IF(COUNTRY_INFO!A108=0," ",COUNTRY_INFO!A108) -> Angola | B108: =IF(COUNTRY_INFO!B108=0," ",COUNTRY_INFO!B108) -> LUANDA | C108: =IF(COUNTRY_INFO!C108=0," ",COUNTRY_INFO!C108) -> VIANA | D108: =IF(COUNTRY_INFO!$U$9:$U$1000="MDA1 (IVM+ALB)", COUNTRY_INFO!$U$9:$U$1000, " ") ->  | I108: 0 | M108: 0
A109: =IF(COUNTRY_INFO!A109=0," ",COUNTRY_INFO!A109) -> Angola | B109: =IF(COUNTRY_INFO!B109=0," ",COUNTRY_INFO!B109) -> LUNDA NORTE | C109: =IF(COUNTRY_INFO!C109=0," ",COUNTRY_INFO!C109) -> CAMBULO | D109: =IF(COUNTRY_INFO!$U$9:$U$1000="MDA1 (IVM+ALB)", COUNTRY_INFO!$U$9:$U$1000, " ") ->  | I109: 0 | M109: 0
A110: =IF(COUNTRY_INFO!A110=0," ",COUNTRY_INFO!A110) -> Angola | B110: =IF(COUNTRY_INFO!B110=0," ",COUNTRY_INFO!B110) -> LUNDA NORTE | C110: =IF(COUNTRY_INFO!C110=0," ",COUNTRY_INFO!C110) -> CAPENDA CAMULEMBA | D110: =IF(COUNTRY_INFO!$U$9:$U$1000="MDA1 (IVM+ALB)", COUNTRY_INFO!$U$9:$U$1000, " ") ->  | I110: 0 | M110: 0
A111: =IF(COUNTRY_INFO!A111=0," ",COUNTRY_INFO!A111) -> Angola | B111: =IF(COUNTRY_INFO!B111=0," ",COUNTRY_INFO!B111) -> LUNDA NORTE | C111: =IF(COUNTRY_INFO!C111=0," ",COUNTRY_INFO!C111) -> CAUNGULA | D111: =IF(COUNTRY_INFO!$U$9:$U$1000="MDA1 (IVM+ALB)", COUNTRY_INFO!$U$9:$U$1000, " ") ->  | I111: 0 | M111: 0
A112: =IF(COUNTRY_INFO!A112=0," ",COUNTRY_INFO!A112) -> Angola | B112: =IF(COUNTRY_INFO!B112=0," ",COUNTRY_INFO!B112) -> LUNDA NORTE | C112: =IF(COUNTRY_INFO!C112=0," ",COUNTRY_INFO!C112) -> CHITATO | D112: =IF(COUNTRY_INFO!$U$9:$U$1000="MDA1 (IVM+ALB)", COUNTRY_INFO!$U$9:$U$1000, " ") ->  | I112: 0 | M112: 0
A113: =IF(COUNTRY_INFO!A113=0," ",COUNTRY_INFO!A113) -> Angola | B113: =IF(COUNTRY_INFO!B113=0," ",COUNTRY_INFO!B113) -> LUNDA NORTE | C113: =IF(COUNTRY_INFO!C113=0," ",COUNTRY_INFO!C113) -> CUANGO | D113: =IF(COUNTRY_INFO!$U$9:$U$1000="MDA1 (IVM+ALB)", COUNTRY_INFO!$U$9:$U$1000, " ") ->  | I113: 0 | M113: 0
A114: =IF(COUNTRY_INFO!A114=0," ",COUNTRY_INFO!A114) -> Angola | B114: =IF(COUNTRY_INFO!B114=0," ",COUNTRY_INFO!B114) -> LUNDA NORTE | C114: =IF(COUNTRY_INFO!C114=0," ",COUNTRY_INFO!C114) -> CUILO | D114: =IF(COUNTRY_INFO!$U$9:$U$1000="MDA1 (IVM+ALB)", COUNTRY_INFO!$U$9:$U$1000, " ") ->  | I114: 0 | M114: 0
A115: =IF(COUNTRY_INFO!A115=0," ",COUNTRY_INFO!A115) -> Angola | B115: =IF(COUNTRY_INFO!B115=0," ",COUNTRY_INFO!B115) -> LUNDA NORTE | C115: =IF(COUNTRY_INFO!C115=0," ",COUNTRY_INFO!C115) -> LOVUA | D115: =IF(COUNTRY_INFO!$U$9:$U$1000="MDA1 (IVM+ALB)", COUNTRY_INFO!$U$9:$U$1000, " ") ->  | I115: 0 | M115: 0
A116: =IF(COUNTRY_INFO!A116=0," ",COUNTRY_INFO!A116) -> Angola | B116: =IF(COUNTRY_INFO!B116=0," ",COUNTRY_INFO!B116) -> LUNDA NORTE | C116: =IF(COUNTRY_INFO!C116=0," ",COUNTRY_INFO!C116) -> LUBALO | D116: =IF(COUNTRY_INFO!$U$9:$U$1000="MDA1 (IVM+ALB)", COUNTRY_INFO!$U$9:$U$1000, " ") ->  | I116: 0 | M116: 0
A117: =IF(COUNTRY_INFO!A117=0," ",COUNTRY_INFO!A117) -> Angola | B117: =IF(COUNTRY_INFO!B117=0," ",COUNTRY_INFO!B117) -> LUNDA NORTE | C117: =IF(COUNTRY_INFO!C117=0," ",COUNTRY_INFO!C117) -> LUCAPA | D117: =IF(COUNTRY_INFO!$U$9:$U$1000="MDA1 (IVM+ALB)", COUNTRY_INFO!$U$9:$U$1000, " ") ->  | I117: 0 | M117: 0
A118: =IF(COUNTRY_INFO!A118=0," ",COUNTRY_INFO!A118) -> Angola | B118: =IF(COUNTRY_INFO!B118=0," ",COUNTRY_INFO!B118) -> LUNDA NORTE | C118: =IF(COUNTRY_INFO!C118=0," ",COUNTRY_INFO!C118) -> XA MUTEBA | D118: =IF(COUNTRY_INFO!$U$9:$U$1000="MDA1 (IVM+ALB)", COUNTRY_INFO!$U$9:$U$1000, " ") ->  | I118: 0 | M118: 0
A119: =IF(COUNTRY_INFO!A119=0," ",COUNTRY_INFO!A119) -> Angola | B119: =IF(COUNTRY_INFO!B119=0," ",COUNTRY_INFO!B119) -> LUNDA SUL | C119: =IF(COUNTRY_INFO!C119=0," ",COUNTRY_INFO!C119) -> CACOLO | D119: =IF(COUNTRY_INFO!$U$9:$U$1000="MDA1 (IVM+ALB)", COUNTRY_INFO!$U$9:$U$1000, " ") ->  | I119: 0 | M119: 0
A120: =IF(COUNTRY_INFO!A120=0," ",COUNTRY_INFO!A120) -> Angola | B120: =IF(COUNTRY_INFO!B120=0," ",COUNTRY_INFO!B120) -> LUNDA SUL | C120: =IF(COUNTRY_INFO!C120=0," ",COUNTRY_INFO!C120) -> DALA | D120: =IF(COUNTRY_INFO!$U$9:$U$1000="MDA1 (IVM+ALB)", COUNTRY_INFO!$U$9:$U$1000, " ") ->  | I120: 0 | M120: 0
A121: =IF(COUNTRY_INFO!A121=0," ",COUNTRY_INFO!A121) -> Angola | B121: =IF(COUNTRY_INFO!B121=0," ",COUNTRY_INFO!B121) -> LUNDA SUL | C121: =IF(COUNTRY_INFO!C121=0," ",COUNTRY_INFO!C121) -> MUCONDA | D121: =IF(COUNTRY_INFO!$U$9:$U$1000="MDA1 (IVM+ALB)", COUNTRY_INFO!$U$9:$U$1000, " ") ->  | I121: 0 | M121: 0
A122: =IF(COUNTRY_INFO!A122=0," ",COUNTRY_INFO!A122) -> Angola | B122: =IF(COUNTRY_INFO!B122=0," ",COUNTRY_INFO!B122) -> LUNDA SUL | C122: =IF(COUNTRY_INFO!C122=0," ",COUNTRY_INFO!C122) -> SAURIMO | D122: =IF(COUNTRY_INFO!$U$9:$U$1000="MDA1 (IVM+ALB)", COUNTRY_INFO!$U$9:$U$1000, " ") ->  | I122: 0 | M122: 0
A123: =IF(COUNTRY_INFO!A123=0," ",COUNTRY_INFO!A123) -> Angola | B123: =IF(COUNTRY_INFO!B123=0," ",COUNTRY_INFO!B123) -> MALANJE | C123: =IF(COUNTRY_INFO!C123=0," ",COUNTRY_INFO!C123) -> CACULAMA (Mukari) | D123: =IF(COUNTRY_INFO!$U$9:$U$1000="MDA1 (IVM+ALB)", COUNTRY_INFO!$U$9:$U$1000, " ") ->  | I123: 0 | M123: 0
A124: =IF(COUNTRY_INFO!A124=0," ",COUNTRY_INFO!A124) -> Angola | B124: =IF(COUNTRY_INFO!B124=0," ",COUNTRY_INFO!B124) -> MALANJE | C124: =IF(COUNTRY_INFO!C124=0," ",COUNTRY_INFO!C124) -> CACUSO | D124: =IF(COUNTRY_INFO!$U$9:$U$1000="MDA1 (IVM+ALB)", COUNTRY_INFO!$U$9:$U$1000, " ") ->  | I124: 0 | M124: 0
A125: =IF(COUNTRY_INFO!A125=0," ",COUNTRY_INFO!A125) -> Angola | B125: =IF(COUNTRY_INFO!B125=0," ",COUNTRY_INFO!B125) -> MALANJE | C125: =IF(COUNTRY_INFO!C125=0," ",COUNTRY_INFO!C125) -> CAHOMBO | D125: =IF(COUNTRY_INFO!$U$9:$U$1000="MDA1 (IVM+ALB)", COUNTRY_INFO!$U$9:$U$1000, " ") ->  | I125: 0 | M125: 0
A126: =IF(COUNTRY_INFO!A126=0," ",COUNTRY_INFO!A126) -> Angola | B126: =IF(COUNTRY_INFO!B126=0," ",COUNTRY_INFO!B126) -> MALANJE | C126: =IF(COUNTRY_INFO!C126=0," ",COUNTRY_INFO!C126) -> CALANDULA | D126: =IF(COUNTRY_INFO!$U$9:$U$1000="MDA1 (IVM+ALB)", COUNTRY_INFO!$U$9:$U$1000, " ") ->  | I126: 0 | M126: 0
A127: =IF(COUNTRY_INFO!A127=0," ",COUNTRY_INFO!A127) -> Angola | B127: =IF(COUNTRY_INFO!B127=0," ",COUNTRY_INFO!B127) -> MALANJE | C127: =IF(COUNTRY_INFO!C127=0," ",COUNTRY_INFO!C127) -> CAMBUNDI CATEMBO | D127: =IF(COUNTRY_INFO!$U$9:$U$1000="MDA1 (IVM+ALB)", COUNTRY_INFO!$U$9:$U$1000, " ") ->  | I127: 0 | M127: 0
A128: =IF(COUNTRY_INFO!A128=0," ",COUNTRY_INFO!A128) -> Angola | B128: =IF(COUNTRY_INFO!B128=0," ",COUNTRY_INFO!B128) -> MALANJE | C128: =IF(COUNTRY_INFO!C128=0," ",COUNTRY_INFO!C128) -> CANGANDALA | D128: =IF(COUNTRY_INFO!$U$9:$U$1000="MDA1 (IVM+ALB)", COUNTRY_INFO!$U$9:$U$1000, " ") ->  | I128: 0 | M128: 0
A129: =IF(COUNTRY_INFO!A129=0," ",COUNTRY_INFO!A129) -> Angola | B129: =IF(COUNTRY_INFO!B129=0," ",COUNTRY_INFO!B129) -> MALANJE | C129: =IF(COUNTRY_INFO!C129=0," ",COUNTRY_INFO!C129) -> KIWABA NZOJI | D129: =IF(COUNTRY_INFO!$U$9:$U$1000="MDA1 (IVM+ALB)", COUNTRY_INFO!$U$9:$U$1000, " ") ->  | I129: 0 | M129: 0
A130: =IF(COUNTRY_INFO!A130=0," ",COUNTRY_INFO!A130) -> Angola | B130: =IF(COUNTRY_INFO!B130=0," ",COUNTRY_INFO!B130) -> MALANJE | C130: =IF(COUNTRY_INFO!C130=0," ",COUNTRY_INFO!C130) -> KUNDA DYA BASE | D130: =IF(COUNTRY_INFO!$U$9:$U$1000="MDA1 (IVM+ALB)", COUNTRY_INFO!$U$9:$U$1000, " ") ->  | I130: 0 | M130: 0
A131: =IF(COUNTRY_INFO!A131=0," ",COUNTRY_INFO!A131) -> Angola | B131: =IF(COUNTRY_INFO!B131=0," ",COUNTRY_INFO!B131) -> MALANJE | C131: =IF(COUNTRY_INFO!C131=0," ",COUNTRY_INFO!C131) -> LUQUEMBO | D131: =IF(COUNTRY_INFO!$U$9:$U$1000="MDA1 (IVM+ALB)", COUNTRY_INFO!$U$9:$U$1000, " ") ->  | I131: 0 | M131: 0
A132: =IF(COUNTRY_INFO!A132=0," ",COUNTRY_INFO!A132) -> Angola | B132: =IF(COUNTRY_INFO!B132=0," ",COUNTRY_INFO!B132) -> MALANJE | C132: =IF(COUNTRY_INFO!C132=0," ",COUNTRY_INFO!C132) -> MALANJE | D132: =IF(COUNTRY_INFO!$U$9:$U$1000="MDA1 (IVM+ALB)", COUNTRY_INFO!$U$9:$U$1000, " ") ->  | I132: 0 | M132: 0
A133: =IF(COUNTRY_INFO!A133=0," ",COUNTRY_INFO!A133) -> Angola | B133: =IF(COUNTRY_INFO!B133=0," ",COUNTRY_INFO!B133) -> MALANJE | C133: =IF(COUNTRY_INFO!C133=0," ",COUNTRY_INFO!C133) -> MARIMBA | D133: =IF(COUNTRY_INFO!$U$9:$U$1000="MDA1 (IVM+ALB)", COUNTRY_INFO!$U$9:$U$1000, " ") ->  | I133: 0 | M133: 0
A134: =IF(COUNTRY_INFO!A134=0," ",COUNTRY_INFO!A134) -> Angola | B134: =IF(COUNTRY_INFO!B134=0," ",COUNTRY_INFO!B134) -> MALANJE | C134: =IF(COUNTRY_INFO!C134=0," ",COUNTRY_INFO!C134) -> MASSANGO | D134: =IF(COUNTRY_INFO!$U$9:$U$1000="MDA1 (IVM+ALB)", COUNTRY_INFO!$U$9:$U$1000, " ") ->  | I134: 0 | M134: 0
A135: =IF(COUNTRY_INFO!A135=0," ",COUNTRY_INFO!A135) -> Angola | B135: =IF(COUNTRY_INFO!B135=0," ",COUNTRY_INFO!B135) -> MALANJE | C135: =IF(COUNTRY_INFO!C135=0," ",COUNTRY_INFO!C135) -> QUELA | D135: =IF(COUNTRY_INFO!$U$9:$U$1000="MDA1 (IVM+ALB)", COUNTRY_INFO!$U$9:$U$1000, " ") ->  | I135: 0 | M135: 0
A136: =IF(COUNTRY_INFO!A136=0," ",COUNTRY_INFO!A136) -> Angola | B136: =IF(COUNTRY_INFO!B136=0," ",COUNTRY_INFO!B136) -> MALANJE | C136: =IF(COUNTRY_INFO!C136=0," ",COUNTRY_INFO!C136) -> QUIRIMA | D136: =IF(COUNTRY_INFO!$U$9:$U$1000="MDA1 (IVM+ALB)", COUNTRY_INFO!$U$9:$U$1000, " ") ->  | I136: 0 | M136: 0
A137: =IF(COUNTRY_INFO!A137=0," ",COUNTRY_INFO!A137) -> Angola | B137: =IF(COUNTRY_INFO!B137=0," ",COUNTRY_INFO!B137) -> MOXICO | C137: =IF(COUNTRY_INFO!C137=0," ",COUNTRY_INFO!C137) -> ALTO ZAMBEZE | D137: =IF(COUNTRY_INFO!$U$9:$U$1000="MDA1 (IVM+ALB)", COUNTRY_INFO!$U$9:$U$1000, " ") ->  | I137: 0 | M137: 0
A138: =IF(COUNTRY_INFO!A138=0," ",COUNTRY_INFO!A138) -> Angola | B138: =IF(COUNTRY_INFO!B138=0," ",COUNTRY_INFO!B138) -> MOXICO | C138: =IF(COUNTRY_INFO!C138=0," ",COUNTRY_INFO!C138) -> BUNDAS (LUMBALA NGUIMBO) | D138: =IF(COUNTRY_INFO!$U$9:$U$1000="MDA1 (IVM+ALB)", COUNTRY_INFO!$U$9:$U$1000, " ") ->  | I138: =SUM(F138:H138) -> 0 | M138: =SUM(J138:L138) -> 0 | O138: =IF(G138<>0, IF(K138/G138*100=0, "-", K138/G138*100), " ") ->  | P138: =IF(H138<>0, IF(L138/H138*100=0, "-", L138/H138*100), " ") ->  | Q138: =IF(I138<>0, IF(M138/I138*100=0, "-", M138/I138*100), " ") -> 
A139: =IF(COUNTRY_INFO!A139=0," ",COUNTRY_INFO!A139) -> Angola | B139: =IF(COUNTRY_INFO!B139=0," ",COUNTRY_INFO!B139) -> MOXICO | C139: =IF(COUNTRY_INFO!C139=0," ",COUNTRY_INFO!C139) -> CAMANONGUE | D139: =IF(COUNTRY_INFO!$U$9:$U$1000="MDA1 (IVM+ALB)", COUNTRY_INFO!$U$9:$U$1000, " ") ->  | I139: 0 | M139: 0
A140: =IF(COUNTRY_INFO!A140=0," ",COUNTRY_INFO!A140) -> Angola | B140: =IF(COUNTRY_INFO!B140=0," ",COUNTRY_INFO!B140) -> MOXICO | C140: =IF(COUNTRY_INFO!C140=0," ",COUNTRY_INFO!C140) -> CAMEIA (LUMEJE) | D140: =IF(COUNTRY_INFO!$U$9:$U$1000="MDA1 (IVM+ALB)", COUNTRY_INFO!$U$9:$U$1000, " ") ->  | I140: 0 | M140: 0
A141: =IF(COUNTRY_INFO!A141=0," ",COUNTRY_INFO!A141) -> Angola | B141: =IF(COUNTRY_INFO!B141=0," ",COUNTRY_INFO!B141) -> MOXICO | C141: =IF(COUNTRY_INFO!C141=0," ",COUNTRY_INFO!C141) -> LEUA | D141: =IF(COUNTRY_INFO!$U$9:$U$1000="MDA1 (IVM+ALB)", COUNTRY_INFO!$U$9:$U$1000, " ") ->  | I141: 0 | M141: 0
A142: =IF(COUNTRY_INFO!A142=0," ",COUNTRY_INFO!A142) -> Angola | B142: =IF(COUNTRY_INFO!B142=0," ",COUNTRY_INFO!B142) -> MOXICO | C142: =IF(COUNTRY_INFO!C142=0," ",COUNTRY_INFO!C142) -> LUACANO | D142: =IF(COUNTRY_INFO!$U$9:$U$1000="MDA1 (IVM+ALB)", COUNTRY_INFO!$U$9:$U$1000, " ") ->  | I142: 0 | M142: 0
A143: =IF(COUNTRY_INFO!A143=0," ",COUNTRY_INFO!A143) -> Angola | B143: =IF(COUNTRY_INFO!B143=0," ",COUNTRY_INFO!B143) -> MOXICO | C143: =IF(COUNTRY_INFO!C143=0," ",COUNTRY_INFO!C143) -> LUAU | D143: =IF(COUNTRY_INFO!$U$9:$U$1000="MDA1 (IVM+ALB)", COUNTRY_INFO!$U$9:$U$1000, " ") ->  | I143: 0 | M143: 0
A144: =IF(COUNTRY_INFO!A144=0," ",COUNTRY_INFO!A144) -> Angola | B144: =IF(COUNTRY_INFO!B144=0," ",COUNTRY_INFO!B144) -> MOXICO | C144: =IF(COUNTRY_INFO!C144=0," ",COUNTRY_INFO!C144) -> LUCHAZES | D144: =IF(COUNTRY_INFO!$U$9:$U$1000="MDA1 (IVM+ALB)", COUNTRY_INFO!$U$9:$U$1000, " ") ->  | I144: 0 | M144: 0
A145: =IF(COUNTRY_INFO!A145=0," ",COUNTRY_INFO!A145) -> Angola | B145: =IF(COUNTRY_INFO!B145=0," ",COUNTRY_INFO!B145) -> MOXICO | C145: =IF(COUNTRY_INFO!C145=0," ",COUNTRY_INFO!C145) -> MOXICO/LUENA | D145: =IF(COUNTRY_INFO!$U$9:$U$1000="MDA1 (IVM+ALB)", COUNTRY_INFO!$U$9:$U$1000, " ") ->  | I145: 0 | M145: 0
A146: =IF(COUNTRY_INFO!A146=0," ",COUNTRY_INFO!A146) -> Angola | B146: =IF(COUNTRY_INFO!B146=0," ",COUNTRY_INFO!B146) -> NAMIBE | C146: =IF(COUNTRY_INFO!C146=0," ",COUNTRY_INFO!C146) -> BIBALA | D146: =IF(COUNTRY_INFO!$U$9:$U$1000="MDA1 (IVM+ALB)", COUNTRY_INFO!$U$9:$U$1000, " ") ->  | I146: 0 | M146: 0
A147: =IF(COUNTRY_INFO!A147=0," ",COUNTRY_INFO!A147) -> Angola | B147: =IF(COUNTRY_INFO!B147=0," ",COUNTRY_INFO!B147) -> NAMIBE | C147: =IF(COUNTRY_INFO!C147=0," ",COUNTRY_INFO!C147) -> CAMUCUIO | D147: =IF(COUNTRY_INFO!$U$9:$U$1000="MDA1 (IVM+ALB)", COUNTRY_INFO!$U$9:$U$1000, " ") ->  | I147: 0 | M147: 0
A148: =IF(COUNTRY_INFO!A148=0," ",COUNTRY_INFO!A148) -> Angola | B148: =IF(COUNTRY_INFO!B148=0," ",COUNTRY_INFO!B148) -> NAMIBE | C148: =IF(COUNTRY_INFO!C148=0," ",COUNTRY_INFO!C148) -> NAMIBE | D148: =IF(COUNTRY_INFO!$U$9:$U$1000="MDA1 (IVM+ALB)", COUNTRY_INFO!$U$9:$U$1000, " ") ->  | I148: 0 | M148: 0
A149: =IF(COUNTRY_INFO!A149=0," ",COUNTRY_INFO!A149) -> Angola | B149: =IF(COUNTRY_INFO!B149=0," ",COUNTRY_INFO!B149) -> NAMIBE | C149: =IF(COUNTRY_INFO!C149=0," ",COUNTRY_INFO!C149) -> TOMBWA | D149: =IF(COUNTRY_INFO!$U$9:$U$1000="MDA1 (IVM+ALB)", COUNTRY_INFO!$U$9:$U$1000, " ") ->  | I149: 0 | M149: 0
A150: =IF(COUNTRY_INFO!A150=0," ",COUNTRY_INFO!A150) -> Angola | B150: =IF(COUNTRY_INFO!B150=0," ",COUNTRY_INFO!B150) -> NAMIBE | C150: =IF(COUNTRY_INFO!C150=0," ",COUNTRY_INFO!C150) -> VIREI | D150: =IF(COUNTRY_INFO!$U$9:$U$1000="MDA1 (IVM+ALB)", COUNTRY_INFO!$U$9:$U$1000, " ") ->  | I150: 0 | M150: 0
A151: =IF(COUNTRY_INFO!A151=0," ",COUNTRY_INFO!A151) -> Angola | B151: =IF(COUNTRY_INFO!B151=0," ",COUNTRY_INFO!B151) -> UIGE | C151: =IF(COUNTRY_INFO!C151=0," ",COUNTRY_INFO!C151) -> AMBUILA | D151: =IF(COUNTRY_INFO!$U$9:$U$1000="MDA1 (IVM+ALB)", COUNTRY_INFO!$U$9:$U$1000, " ") ->  | I151: 0 | M151: 0
A152: =IF(COUNTRY_INFO!A152=0," ",COUNTRY_INFO!A152) -> Angola | B152: =IF(COUNTRY_INFO!B152=0," ",COUNTRY_INFO!B152) -> UIGE | C152: =IF(COUNTRY_INFO!C152=0," ",COUNTRY_INFO!C152) -> BEMBE | D152: =IF(COUNTRY_INFO!$U$9:$U$1000="MDA1 (IVM+ALB)", COUNTRY_INFO!$U$9:$U$1000, " ") ->  | I152: 0 | M152: 0
A153: =IF(COUNTRY_INFO!A153=0," ",COUNTRY_INFO!A153) -> Angola | B153: =IF(COUNTRY_INFO!B153=0," ",COUNTRY_INFO!B153) -> UIGE | C153: =IF(COUNTRY_INFO!C153=0," ",COUNTRY_INFO!C153) -> BUENGAS | D153: =IF(COUNTRY_INFO!$U$9:$U$1000="MDA1 (IVM+ALB)", COUNTRY_INFO!$U$9:$U$1000, " ") ->  | I153: 0 | M153: 0
A154: =IF(COUNTRY_INFO!A154=0," ",COUNTRY_INFO!A154) -> Angola | B154: =IF(COUNTRY_INFO!B154=0," ",COUNTRY_INFO!B154) -> UIGE | C154: =IF(COUNTRY_INFO!C154=0," ",COUNTRY_INFO!C154) -> BUNGO | D154: =IF(COUNTRY_INFO!$U$9:$U$1000="MDA1 (IVM+ALB)", COUNTRY_INFO!$U$9:$U$1000, " ") ->  | I154: 0 | M154: 0
A155: =IF(COUNTRY_INFO!A155=0," ",COUNTRY_INFO!A155) -> Angola | B155: =IF(COUNTRY_INFO!B155=0," ",COUNTRY_INFO!B155) -> UIGE | C155: =IF(COUNTRY_INFO!C155=0," ",COUNTRY_INFO!C155) -> CANGOLA | D155: =IF(COUNTRY_INFO!$U$9:$U$1000="MDA1 (IVM+ALB)", COUNTRY_INFO!$U$9:$U$1000, " ") ->  | I155: 0 | M155: 0
A156: =IF(COUNTRY_INFO!A156=0," ",COUNTRY_INFO!A156) -> Angola | B156: =IF(COUNTRY_INFO!B156=0," ",COUNTRY_INFO!B156) -> UIGE | C156: =IF(COUNTRY_INFO!C156=0," ",COUNTRY_INFO!C156) -> DAMBA | D156: =IF(COUNTRY_INFO!$U$9:$U$1000="MDA1 (IVM+ALB)", COUNTRY_INFO!$U$9:$U$1000, " ") ->  | I156: 0 | M156: 0
A157: =IF(COUNTRY_INFO!A157=0," ",COUNTRY_INFO!A157) -> Angola | B157: =IF(COUNTRY_INFO!B157=0," ",COUNTRY_INFO!B157) -> UIGE | C157: =IF(COUNTRY_INFO!C157=0," ",COUNTRY_INFO!C157) -> MAQUELA DO ZOMBO | D157: =IF(COUNTRY_INFO!$U$9:$U$1000="MDA1 (IVM+ALB)", COUNTRY_INFO!$U$9:$U$1000, " ") ->  | I157: 0 | M157: 0
A158: =IF(COUNTRY_INFO!A158=0," ",COUNTRY_INFO!A158) -> Angola | B158: =IF(COUNTRY_INFO!B158=0," ",COUNTRY_INFO!B158) -> UIGE | C158: =IF(COUNTRY_INFO!C158=0," ",COUNTRY_INFO!C158) -> MILUNGA | D158: =IF(COUNTRY_INFO!$U$9:$U$1000="MDA1 (IVM+ALB)", COUNTRY_INFO!$U$9:$U$1000, " ") ->  | I158: 0 | M158: 0
A159: =IF(COUNTRY_INFO!A159=0," ",COUNTRY_INFO!A159) -> Angola | B159: =IF(COUNTRY_INFO!B159=0," ",COUNTRY_INFO!B159) -> UIGE | C159: =IF(COUNTRY_INFO!C159=0," ",COUNTRY_INFO!C159) -> MUCABA | D159: =IF(COUNTRY_INFO!$U$9:$U$1000="MDA1 (IVM+ALB)", COUNTRY_INFO!$U$9:$U$1000, " ") ->  | I159: 0 | M159: 0
A160: =IF(COUNTRY_INFO!A160=0," ",COUNTRY_INFO!A160) -> Angola | B160: =IF(COUNTRY_INFO!B160=0," ",COUNTRY_INFO!B160) -> UIGE | C160: =IF(COUNTRY_INFO!C160=0," ",COUNTRY_INFO!C160) -> NEGAGE | D160: =IF(COUNTRY_INFO!$U$9:$U$1000="MDA1 (IVM+ALB)", COUNTRY_INFO!$U$9:$U$1000, " ") ->  | I160: 0 | M160: 0
A161: =IF(COUNTRY_INFO!A161=0," ",COUNTRY_INFO!A161) -> Angola | B161: =IF(COUNTRY_INFO!B161=0," ",COUNTRY_INFO!B161) -> UIGE | C161: =IF(COUNTRY_INFO!C161=0," ",COUNTRY_INFO!C161) -> PURI | D161: =IF(COUNTRY_INFO!$U$9:$U$1000="MDA1 (IVM+ALB)", COUNTRY_INFO!$U$9:$U$1000, " ") ->  | I161: 0 | M161: 0
A162: =IF(COUNTRY_INFO!A162=0," ",COUNTRY_INFO!A162) -> Angola | B162: =IF(COUNTRY_INFO!B162=0," ",COUNTRY_INFO!B162) -> UIGE | C162: =IF(COUNTRY_INFO!C162=0," ",COUNTRY_INFO!C162) -> QUIMBELE | D162: =IF(COUNTRY_INFO!$U$9:$U$1000="MDA1 (IVM+ALB)", COUNTRY_INFO!$U$9:$U$1000, " ") ->  | I162: 0 | M162: 0
A163: =IF(COUNTRY_INFO!A163=0," ",COUNTRY_INFO!A163) -> Angola | B163: =IF(COUNTRY_INFO!B163=0," ",COUNTRY_INFO!B163) -> UIGE | C163: =IF(COUNTRY_INFO!C163=0," ",COUNTRY_INFO!C163) -> QUITEXE | D163: =IF(COUNTRY_INFO!$U$9:$U$1000="MDA1 (IVM+ALB)", COUNTRY_INFO!$U$9:$U$1000, " ") ->  | I163: 0 | M163: 0
A164: =IF(COUNTRY_INFO!A164=0," ",COUNTRY_INFO!A164) -> Angola | B164: =IF(COUNTRY_INFO!B164=0," ",COUNTRY_INFO!B164) -> UIGE | C164: =IF(COUNTRY_INFO!C164=0," ",COUNTRY_INFO!C164) -> SANZA POMBO | D164: =IF(COUNTRY_INFO!$U$9:$U$1000="MDA1 (IVM+ALB)", COUNTRY_INFO!$U$9:$U$1000, " ") ->  | I164: 0 | M164: 0
A165: =IF(COUNTRY_INFO!A165=0," ",COUNTRY_INFO!A165) -> Angola | B165: =IF(COUNTRY_INFO!B165=0," ",COUNTRY_INFO!B165) -> UIGE | C165: =IF(COUNTRY_INFO!C165=0," ",COUNTRY_INFO!C165) -> SONGO | D165: =IF(COUNTRY_INFO!$U$9:$U$1000="MDA1 (IVM+ALB)", COUNTRY_INFO!$U$9:$U$1000, " ") ->  | I165: 0 | M165: 0
A166: =IF(COUNTRY_INFO!A166=0," ",COUNTRY_INFO!A166) -> Angola | B166: =IF(COUNTRY_INFO!B166=0," ",COUNTRY_INFO!B166) -> UIGE | C166: =IF(COUNTRY_INFO!C166=0," ",COUNTRY_INFO!C166) -> UIGE | D166: =IF(COUNTRY_INFO!$U$9:$U$1000="MDA1 (IVM+ALB)", COUNTRY_INFO!$U$9:$U$1000, " ") ->  | I166: 0 | M166: 0
A167: =IF(COUNTRY_INFO!A167=0," ",COUNTRY_INFO!A167) -> Angola | B167: =IF(COUNTRY_INFO!B167=0," ",COUNTRY_INFO!B167) -> ZAIRE | C167: =IF(COUNTRY_INFO!C167=0," ",COUNTRY_INFO!C167) -> CUIMBA | D167: =IF(COUNTRY_INFO!$U$9:$U$1000="MDA1 (IVM+ALB)", COUNTRY_INFO!$U$9:$U$1000, " ") ->  | I167: 0 | M167: 0
A168: =IF(COUNTRY_INFO!A168=0," ",COUNTRY_INFO!A168) -> Angola | B168: =IF(COUNTRY_INFO!B168=0," ",COUNTRY_INFO!B168) -> ZAIRE | C168: =IF(COUNTRY_INFO!C168=0," ",COUNTRY_INFO!C168) -> MBANZA KONGO | D168: =IF(COUNTRY_INFO!$U$9:$U$1000="MDA1 (IVM+ALB)", COUNTRY_INFO!$U$9:$U$1000, " ") ->  | I168: 0 | M168: 0
A169: =IF(COUNTRY_INFO!A169=0," ",COUNTRY_INFO!A169) -> Angola | B169: =IF(COUNTRY_INFO!B169=0," ",COUNTRY_INFO!B169) -> ZAIRE | C169: =IF(COUNTRY_INFO!C169=0," ",COUNTRY_INFO!C169) -> NOQUI | D169: =IF(COUNTRY_INFO!$U$9:$U$1000="MDA1 (IVM+ALB)", COUNTRY_INFO!$U$9:$U$1000, " ") ->  | I169: 0 | M169: 0
A170: =IF(COUNTRY_INFO!A170=0," ",COUNTRY_INFO!A170) -> Angola | B170: =IF(COUNTRY_INFO!B170=0," ",COUNTRY_INFO!B170) -> ZAIRE | C170: =IF(COUNTRY_INFO!C170=0," ",COUNTRY_INFO!C170) -> NZETO | D170: =IF(COUNTRY_INFO!$U$9:$U$1000="MDA1 (IVM+ALB)", COUNTRY_INFO!$U$9:$U$1000, " ") ->  | I170: 0 | M170: 0
A171: =IF(COUNTRY_INFO!A171=0," ",COUNTRY_INFO!A171) -> Angola | B171: =IF(COUNTRY_INFO!B171=0," ",COUNTRY_INFO!B171) -> ZAIRE | C171: =IF(COUNTRY_INFO!C171=0," ",COUNTRY_INFO!C171) -> SOYO | D171: =IF(COUNTRY_INFO!$U$9:$U$1000="MDA1 (IVM+ALB)", COUNTRY_INFO!$U$9:$U$1000, " ") ->  | I171: 0 | M171: 0
A172: =IF(COUNTRY_INFO!A172=0," ",COUNTRY_INFO!A172) -> Angola | B172: =IF(COUNTRY_INFO!B172=0," ",COUNTRY_INFO!B172) -> ZAIRE | C172: =IF(COUNTRY_INFO!C172=0," ",COUNTRY_INFO!C172) -> TOMBOCO | D172: =IF(COUNTRY_INFO!$U$9:$U$1000="MDA1 (IVM+ALB)", COUNTRY_INFO!$U$9:$U$1000, " ") ->  | I172: 0 | M172: 0

Sheet MDA4
A1: MDA 4 - Albendazole (ALB) or 2 x Albendazole (ALB)
A2: Administrative structure, population requiring PC by age group, population treated by age group and coverage
A4: TOTAL | F4: =SUM(F$9:F$1000) -> 0 | G4: =SUM(G$9:G$1000) -> 0 | H4: 0 | I4: 0 | J4: 0 | K4: 0 | L4: 0 | M4: 0 | N4: 0 | O4: 0 | P4: 0 | Q4: 0 | R4: 0 | S4: 0 | T4: 0 | U4: 0 | V4: =IF(F4<>0, IF(R4/F4*100=0, "-", R4/F4*100), " ") ->  | W4: =IF(G4<>0, IF(S4/G4*100=0, "-", S4/G4*100), " ") ->  | X4: =IF(H4<>0, IF(T4/H4*100=0, "-", T4/H4*100), " ") ->  | Y4: =IF(I4<>0, IF(U4/I4*100=0, "-", U4/I4*100), " ") -> 
D6: PC implemented | E6: Date | F6: Population targeted for MDA 4 | J6: Population treated - 1st round | N6: Population treated - 2nd round | R6: Population treated | V6: Programme coverage (%)
A7: Country | B7: Province/State | C7: District | F7: PreSAC | G7: SAC | H7: Adults | I7: Total | J7: PreSAC | K7: SAC | L7: Adults | M7: Total | N7: PreSAC | O7: SAC | P7: Adults | Q7: Total | R7: PreSAC | S7: SAC | T7: Adults | U7: Total | V7: PreSAC | W7: SAC | X7: Adults | Y7: Total
A9: =IF(COUNTRY_INFO!A9=0," ",COUNTRY_INFO!A9) -> Angola | B9: =IF(COUNTRY_INFO!B9=0," ",COUNTRY_INFO!B9) -> BENGO | C9: =IF(COUNTRY_INFO!C9=0," ",COUNTRY_INFO!C9) -> AMBRIZ | D9: =IF(COUNTRY_INFO!$U$9:$U$1000="MDA4 (ALB/2*ALB)", COUNTRY_INFO!$U$9:$U$1000, " ") ->  | I9: =SUM(F9:H9) -> 0 | M9: =SUM(J9:L9) -> 0 | Q9: =SUM(N9:P9) -> 0 | R9: =MAX(J9,N9) -> 0 | S9: =MAX(K9,O9) -> 0 | T9: =MAX(L9,P9) -> 0 | U9: =SUM(R9:T9) -> 0 | V9: =IF(F9<>0, IF(R9/F9*100=0, "-", R9/F9*100), " ") ->  | W9: =IF(G9<>0, IF(S9/G9*100=0, "-", S9/G9*100), " ") ->  | X9: =IF(H9<>0, IF(T9/H9*100=0, "-", T9/H9*100), " ") ->  | Y9: =IF(I9<>0, IF(U9/I9*100=0, "-", U9/I9*100), " ") -> 
A10: =IF(COUNTRY_INFO!A10=0," ",COUNTRY_INFO!A10) -> Angola | B10: =IF(COUNTRY_INFO!B10=0," ",COUNTRY_INFO!B10) -> BENGO | C10: =IF(COUNTRY_INFO!C10=0," ",COUNTRY_INFO!C10) -> BULA ATUMBA | D10: =IF(COUNTRY_INFO!$U$9:$U$1000="MDA4 (ALB/2*ALB)", COUNTRY_INFO!$U$9:$U$1000, " ") ->  | I10: =SUM(F10:H10) -> 0 | M10: =SUM(J10:L10) -> 0 | Q10: =SUM(N10:P10) -> 0 | R10: =MAX(J10,N10) -> 0 | S10: =MAX(K10,O10) -> 0 | T10: =MAX(L10,P10) -> 0 | U10: =SUM(R10:T10) -> 0 | V10: =IF(F10<>0, IF(R10/F10*100=0, "-", R10/F10*100), " ") ->  | W10: =IF(G10<>0, IF(S10/G10*100=0, "-", S10/G10*100), " ") ->  | X10: =IF(H10<>0, IF(T10/H10*100=0, "-", T10/H10*100), " ") ->  | Y10: =IF(I10<>0, IF(U10/I10*100=0, "-", U10/I10*100), " ") -> 
A11: =IF(COUNTRY_INFO!A11=0," ",COUNTRY_INFO!A11) -> Angola | B11: =IF(COUNTRY_INFO!B11=0," ",COUNTRY_INFO!B11) -> BENGO | C11: =IF(COUNTRY_INFO!C11=0," ",COUNTRY_INFO!C11) -> DANDE | D11: =IF(COUNTRY_INFO!$U$9:$U$1000="MDA4 (ALB/2*ALB)", COUNTRY_INFO!$U$9:$U$1000, " ") ->  | I11: 0 | M11: 0 | Q11: 0 | R11: 0 | S11: 0 | T11: 0 | U11: 0
A12: =IF(COUNTRY_INFO!A12=0," ",COUNTRY_INFO!A12) -> Angola | B12: =IF(COUNTRY_INFO!B12=0," ",COUNTRY_INFO!B12) -> BENGO | C12: =IF(COUNTRY_INFO!C12=0," ",COUNTRY_INFO!C12) -> DEMBOS | D12: =IF(COUNTRY_INFO!$U$9:$U$1000="MDA4 (ALB/2*ALB)", COUNTRY_INFO!$U$9:$U$1000, " ") ->  | I12: 0 | M12: 0 | Q12: 0 | R12: 0 | S12: 0 | T12: 0 | U12: 0
A13: =IF(COUNTRY_INFO!A13=0," ",COUNTRY_INFO!A13) -> Angola | B13: =IF(COUNTRY_INFO!B13=0," ",COUNTRY_INFO!B13) -> BENGO | C13: =IF(COUNTRY_INFO!C13=0," ",COUNTRY_INFO!C13) -> NAMBUANGONGO | D13: =IF(COUNTRY_INFO!$U$9:$U$1000="MDA4 (ALB/2*ALB)", COUNTRY_INFO!$U$9:$U$1000, " ") ->  | I13: 0 | M13: 0 | Q13: 0 | R13: 0 | S13: 0 | T13: 0 | U13: 0
A14: =IF(COUNTRY_INFO!A14=0," ",COUNTRY_INFO!A14) -> Angola | B14: =IF(COUNTRY_INFO!B14=0," ",COUNTRY_INFO!B14) -> BENGO | C14: =IF(COUNTRY_INFO!C14=0," ",COUNTRY_INFO!C14) -> PANGO ALUQUEM | D14: =IF(COUNTRY_INFO!$U$9:$U$1000="MDA4 (ALB/2*ALB)", COUNTRY_INFO!$U$9:$U$1000, " ") ->  | I14: 0 | M14: 0 | Q14: 0 | R14: 0 | S14: 0 | T14: 0 | U14: 0
A15: =IF(COUNTRY_INFO!A15=0," ",COUNTRY_INFO!A15) -> Angola | B15: =IF(COUNTRY_INFO!B15=0," ",COUNTRY_INFO!B15) -> BENGUELA | C15: =IF(COUNTRY_INFO!C15=0," ",COUNTRY_INFO!C15) -> BAIA FARTA | D15: =IF(COUNTRY_INFO!$U$9:$U$1000="MDA4 (ALB/2*ALB)", COUNTRY_INFO!$U$9:$U$1000, " ") ->  | I15: 0 | M15: 0 | Q15: 0 | R15: 0 | S15: 0 | T15: 0 | U15: 0
A16: =IF(COUNTRY_INFO!A16=0," ",COUNTRY_INFO!A16) -> Angola | B16: =IF(COUNTRY_INFO!B16=0," ",COUNTRY_INFO!B16) -> BENGUELA | C16: =IF(COUNTRY_INFO!C16=0," ",COUNTRY_INFO!C16) -> BALOMBO | D16: =IF(COUNTRY_INFO!$U$9:$U$1000="MDA4 (ALB/2*ALB)", COUNTRY_INFO!$U$9:$U$1000, " ") ->  | I16: 0 | M16: 0 | Q16: 0 | R16: 0 | S16: 0 | T16: 0 | U16: 0
A17: =IF(COUNTRY_INFO!A17=0," ",COUNTRY_INFO!A17) -> Angola | B17: =IF(COUNTRY_INFO!B17=0," ",COUNTRY_INFO!B17) -> BENGUELA | C17: =IF(COUNTRY_INFO!C17=0," ",COUNTRY_INFO!C17) -> BENGUELA | D17: =IF(COUNTRY_INFO!$U$9:$U$1000="MDA4 (ALB/2*ALB)", COUNTRY_INFO!$U$9:$U$1000, " ") ->  | I17: 0 | M17: 0 | Q17: 0 | R17: 0 | S17: 0 | T17: 0 | U17: 0
A18: =IF(COUNTRY_INFO!A18=0," ",COUNTRY_INFO!A18) -> Angola | B18: =IF(COUNTRY_INFO!B18=0," ",COUNTRY_INFO!B18) -> BENGUELA | C18: =IF(COUNTRY_INFO!C18=0," ",COUNTRY_INFO!C18) -> BOCOIO | D18: =IF(COUNTRY_INFO!$U$9:$U$1000="MDA4 (ALB/2*ALB)", COUNTRY_INFO!$U$9:$U$1000, " ") ->  | I18: 0 | M18: 0 | Q18: 0 | R18: 0 | S18: 0 | T18: 0 | U18: 0
A19: =IF(COUNTRY_INFO!A19=0," ",COUNTRY_INFO!A19) -> Angola | B19: =IF(COUNTRY_INFO!B19=0," ",COUNTRY_INFO!B19) -> BENGUELA | C19: =IF(COUNTRY_INFO!C19=0," ",COUNTRY_INFO!C19) -> CAIMBAMBO | D19: =IF(COUNTRY_INFO!$U$9:$U$1000="MDA4 (ALB/2*ALB)", COUNTRY_INFO!$U$9:$U$1000, " ") ->  | I19: 0 | M19: 0 | Q19: 0 | R19: 0 | S19: 0 | T19: 0 | U19: 0
A20: =IF(COUNTRY_INFO!A20=0," ",COUNTRY_INFO!A20) -> Angola | B20: =IF(COUNTRY_INFO!B20=0," ",COUNTRY_INFO!B20) -> BENGUELA | C20: =IF(COUNTRY_INFO!C20=0," ",COUNTRY_INFO!C20) -> CATUMBELA | D20: =IF(COUNTRY_INFO!$U$9:$U$1000="MDA4 (ALB/2*ALB)", COUNTRY_INFO!$U$9:$U$1000, " ") ->  | I20: 0 | M20: 0 | Q20: 0 | R20: 0 | S20: 0 | T20: 0 | U20: 0
A21: =IF(COUNTRY_INFO!A21=0," ",COUNTRY_INFO!A21) -> Angola | B21: =IF(COUNTRY_INFO!B21=0," ",COUNTRY_INFO!B21) -> BENGUELA | C21: =IF(COUNTRY_INFO!C21=0," ",COUNTRY_INFO!C21) -> CHONGOROI | D21: =IF(COUNTRY_INFO!$U$9:$U$1000="MDA4 (ALB/2*ALB)", COUNTRY_INFO!$U$9:$U$1000, " ") ->  | I21: 0 | M21: 0 | Q21: 0 | R21: 0 | S21: 0 | T21: 0 | U21: 0
A22: =IF(COUNTRY_INFO!A22=0," ",COUNTRY_INFO!A22) -> Angola | B22: =IF(COUNTRY_INFO!B22=0," ",COUNTRY_INFO!B22) -> BENGUELA | C22: =IF(COUNTRY_INFO!C22=0," ",COUNTRY_INFO!C22) -> CUBAL | D22: =IF(COUNTRY_INFO!$U$9:$U$1000="MDA4 (ALB/2*ALB)", COUNTRY_INFO!$U$9:$U$1000, " ") ->  | I22: 0 | M22: 0 | Q22: 0 | R22: 0 | S22: 0 | T22: 0 | U22: 0
A23: =IF(COUNTRY_INFO!A23=0," ",COUNTRY_INFO!A23) -> Angola | B23: =IF(COUNTRY_INFO!B23=0," ",COUNTRY_INFO!B23) -> BENGUELA | C23: =IF(COUNTRY_INFO!C23=0," ",COUNTRY_INFO!C23) -> GANDA | D23: =IF(COUNTRY_INFO!$U$9:$U$1000="MDA4 (ALB/2*ALB)", COUNTRY_INFO!$U$9:$U$1000, " ") ->  | I23: 0 | M23: 0 | Q23: 0 | R23: 0 | S23: 0 | T23: 0 | U23: 0
A24: =IF(COUNTRY_INFO!A24=0," ",COUNTRY_INFO!A24) -> Angola | B24: =IF(COUNTRY_INFO!B24=0," ",COUNTRY_INFO!B24) -> BENGUELA | C24: =IF(COUNTRY_INFO!C24=0," ",COUNTRY_INFO!C24) -> LOBITO | D24: =IF(COUNTRY_INFO!$U$9:$U$1000="MDA4 (ALB/2*ALB)", COUNTRY_INFO!$U$9:$U$1000, " ") ->  | I24: 0 | M24: 0 | Q24: 0 | R24: 0 | S24: 0 | T24: 0 | U24: 0
A25: =IF(COUNTRY_INFO!A25=0," ",COUNTRY_INFO!A25) -> Angola | B25: =IF(COUNTRY_INFO!B25=0," ",COUNTRY_INFO!B25) -> BIE | C25: =IF(COUNTRY_INFO!C25=0," ",COUNTRY_INFO!C25) -> ANDULO | D25: =IF(COUNTRY_INFO!$U$9:$U$1000="MDA4 (ALB/2*ALB)", COUNTRY_INFO!$U$9:$U$1000, " ") ->  | I25: 0 | M25: 0 | Q25: 0 | R25: 0 | S25: 0 | T25: 0 | U25: 0
A26: =IF(COUNTRY_INFO!A26=0," ",COUNTRY_INFO!A26) -> Angola | B26: =IF(COUNTRY_INFO!B26=0," ",COUNTRY_INFO!B26) -> BIE | C26: =IF(COUNTRY_INFO!C26=0," ",COUNTRY_INFO!C26) -> CAMACUPA | D26: =IF(COUNTRY_INFO!$U$9:$U$1000="MDA4 (ALB/2*ALB)", COUNTRY_INFO!$U$9:$U$1000, " ") ->  | I26: 0 | M26: 0 | Q26: 0 | R26: 0 | S26: 0 | T26: 0 | U26: 0
A27: =IF(COUNTRY_INFO!A27=0," ",COUNTRY_INFO!A27) -> Angola | B27: =IF(COUNTRY_INFO!B27=0," ",COUNTRY_INFO!B27) -> BIE | C27: =IF(COUNTRY_INFO!C27=0," ",COUNTRY_INFO!C27) -> CATABOLA | D27: =IF(COUNTRY_INFO!$U$9:$U$1000="MDA4 (ALB/2*ALB)", COUNTRY_INFO!$U$9:$U$1000, " ") ->  | I27: 0 | M27: 0 | Q27: 0 | R27: 0 | S27: 0 | T27: 0 | U27: 0
A28: =IF(COUNTRY_INFO!A28=0," ",COUNTRY_INFO!A28) -> Angola | B28: =IF(COUNTRY_INFO!B28=0," ",COUNTRY_INFO!B28) -> BIE | C28: =IF(COUNTRY_INFO!C28=0," ",COUNTRY_INFO!C28) -> CHINGUAR | D28: =IF(COUNTRY_INFO!$U$9:$U$1000="MDA4 (ALB/2*ALB)", COUNTRY_INFO!$U$9:$U$1000, " ") ->  | I28: 0 | M28: 0 | Q28: 0 | R28: 0 | S28: 0 | T28: 0 | U28: 0
A29: =IF(COUNTRY_INFO!A29=0," ",COUNTRY_INFO!A29) -> Angola | B29: =IF(COUNTRY_INFO!B29=0," ",COUNTRY_INFO!B29) -> BIE | C29: =IF(COUNTRY_INFO!C29=0," ",COUNTRY_INFO!C29) -> CHITEMBO | D29: =IF(COUNTRY_INFO!$U$9:$U$1000="MDA4 (ALB/2*ALB)", COUNTRY_INFO!$U$9:$U$1000, " ") ->  | I29: 0 | M29: 0 | Q29: 0 | R29: 0 | S29: 0 | T29: 0 | U29: 0
A30: =IF(COUNTRY_INFO!A30=0," ",COUNTRY_INFO!A30) -> Angola | B30: =IF(COUNTRY_INFO!B30=0," ",COUNTRY_INFO!B30) -> BIE | C30: =IF(COUNTRY_INFO!C30=0," ",COUNTRY_INFO!C30) -> CUEMBA | D30: =IF(COUNTRY_INFO!$U$9:$U$1000="MDA4 (ALB/2*ALB)", COUNTRY_INFO!$U$9:$U$1000, " ") ->  | I30: 0 | M30: 0 | Q30: 0 | R30: 0 | S30: 0 | T30: 0 | U30: 0
A31: =IF(COUNTRY_INFO!A31=0," ",COUNTRY_INFO!A31) -> Angola | B31: =IF(COUNTRY_INFO!B31=0," ",COUNTRY_INFO!B31) -> BIE | C31: =IF(COUNTRY_INFO!C31=0," ",COUNTRY_INFO!C31) -> CUITO | D31: =IF(COUNTRY_INFO!$U$9:$U$1000="MDA4 (ALB/2*ALB)", COUNTRY_INFO!$U$9:$U$1000, " ") ->  | I31: 0 | M31: 0 | Q31: 0 | R31: 0 | S31: 0 | T31: 0 | U31: 0
A32: =IF(COUNTRY_INFO!A32=0," ",COUNTRY_INFO!A32) -> Angola | B32: =IF(COUNTRY_INFO!B32=0," ",COUNTRY_INFO!B32) -> BIE | C32: =IF(COUNTRY_INFO!C32=0," ",COUNTRY_INFO!C32) -> CUNHINGA | D32: =IF(COUNTRY_INFO!$U$9:$U$1000="MDA4 (ALB/2*ALB)", COUNTRY_INFO!$U$9:$U$1000, " ") ->  | I32: 0 | M32: 0 | Q32: 0 | R32: 0 | S32: 0 | T32: 0 | U32: 0
A33: =IF(COUNTRY_INFO!A33=0," ",COUNTRY_INFO!A33) -> Angola | B33: =IF(COUNTRY_INFO!B33=0," ",COUNTRY_INFO!B33) -> BIE | C33: =IF(COUNTRY_INFO!C33=0," ",COUNTRY_INFO!C33) -> NHAREA | D33: =IF(COUNTRY_INFO!$U$9:$U$1000="MDA4 (ALB/2*ALB)", COUNTRY_INFO!$U$9:$U$1000, " ") ->  | I33: 0 | M33: 0 | Q33: 0 | R33: 0 | S33: 0 | T33: 0 | U33: 0
A34: =IF(COUNTRY_INFO!A34=0," ",COUNTRY_INFO!A34) -> Angola | B34: =IF(COUNTRY_INFO!B34=0," ",COUNTRY_INFO!B34) -> CABINDA | C34: =IF(COUNTRY_INFO!C34=0," ",COUNTRY_INFO!C34) -> BELIZE | D34: =IF(COUNTRY_INFO!$U$9:$U$1000="MDA4 (ALB/2*ALB)", COUNTRY_INFO!$U$9:$U$1000, " ") ->  | I34: 0 | M34: 0 | Q34: 0 | R34: 0 | S34: 0 | T34: 0 | U34: 0
A35: =IF(COUNTRY_INFO!A35=0," ",COUNTRY_INFO!A35) -> Angola | B35: =IF(COUNTRY_INFO!B35=0," ",COUNTRY_INFO!B35) -> CABINDA | C35: =IF(COUNTRY_INFO!C35=0," ",COUNTRY_INFO!C35) -> BUCO ZAU | D35: =IF(COUNTRY_INFO!$U$9:$U$1000="MDA4 (ALB/2*ALB)", COUNTRY_INFO!$U$9:$U$1000, " ") ->  | I35: 0 | M35: 0 | Q35: 0 | R35: 0 | S35: 0 | T35: 0 | U35: 0
A36: =IF(COUNTRY_INFO!A36=0," ",COUNTRY_INFO!A36) -> Angola | B36: =IF(COUNTRY_INFO!B36=0," ",COUNTRY_INFO!B36) -> CABINDA | C36: =IF(COUNTRY_INFO!C36=0," ",COUNTRY_INFO!C36) -> CABINDA | D36: =IF(COUNTRY_INFO!$U$9:$U$1000="MDA4 (ALB/2*ALB)", COUNTRY_INFO!$U$9:$U$1000, " ") ->  | I36: 0 | M36: 0 | Q36: 0 | R36: 0 | S36: 0 | T36: 0 | U36: 0
A37: =IF(COUNTRY_INFO!A37=0," ",COUNTRY_INFO!A37) -> Angola | B37: =IF(COUNTRY_INFO!B37=0," ",COUNTRY_INFO!B37) -> CABINDA | C37: =IF(COUNTRY_INFO!C37=0," ",COUNTRY_INFO!C37) -> CACONGO | D37: =IF(COUNTRY_INFO!$U$9:$U$1000="MDA4 (ALB/2*ALB)", COUNTRY_INFO!$U$9:$U$1000, " ") ->  | I37: 0 | M37: 0 | Q37: 0 | R37: 0 | S37: 0 | T37: 0 | U37: 0
A38: =IF(COUNTRY_INFO!A38=0," ",COUNTRY_INFO!A38) -> Angola | B38: =IF(COUNTRY_INFO!B38=0," ",COUNTRY_INFO!B38) -> CUANDO CUBANGO | C38: =IF(COUNTRY_INFO!C38=0," ",COUNTRY_INFO!C38) -> CALAI | D38: =IF(COUNTRY_INFO!$U$9:$U$1000="MDA4 (ALB/2*ALB)", COUNTRY_INFO!$U$9:$U$1000, " ") ->  | I38: 0 | M38: 0 | Q38: 0 | R38: 0 | S38: 0 | T38: 0 | U38: 0
A39: =IF(COUNTRY_INFO!A39=0," ",COUNTRY_INFO!A39) -> Angola | B39: =IF(COUNTRY_INFO!B39=0," ",COUNTRY_INFO!B39) -> CUANDO CUBANGO | C39: =IF(COUNTRY_INFO!C39=0," ",COUNTRY_INFO!C39) -> CUANGAR | D39: =IF(COUNTRY_INFO!$U$9:$U$1000="MDA4 (ALB/2*ALB)", COUNTRY_INFO!$U$9:$U$1000, " ") ->  | I39: 0 | M39: 0 | Q39: 0 | R39: 0 | S39: 0 | T39: 0 | U39: 0
A40: =IF(COUNTRY_INFO!A40=0," ",COUNTRY_INFO!A40) -> Angola | B40: =IF(COUNTRY_INFO!B40=0," ",COUNTRY_INFO!B40) -> CUANDO CUBANGO | C40: =IF(COUNTRY_INFO!C40=0," ",COUNTRY_INFO!C40) -> CUCHI | D40: =IF(COUNTRY_INFO!$U$9:$U$1000="MDA4 (ALB/2*ALB)", COUNTRY_INFO!$U$9:$U$1000, " ") ->  | I40: 0 | M40: 0 | Q40: 0 | R40: 0 | S40: 0 | T40: 0 | U40: 0
A41: =IF(COUNTRY_INFO!A41=0," ",COUNTRY_INFO!A41) -> Angola | B41: =IF(COUNTRY_INFO!B41=0," ",COUNTRY_INFO!B41) -> CUANDO CUBANGO | C41: =IF(COUNTRY_INFO!C41=0," ",COUNTRY_INFO!C41) -> CUITO CUANAVALE | D41: =IF(COUNTRY_INFO!$U$9:$U$1000="MDA4 (ALB/2*ALB)", COUNTRY_INFO!$U$9:$U$1000, " ") ->  | I41: 0 | M41: 0 | Q41: 0 | R41: 0 | S41: 0 | T41: 0 | U41: 0
A42: =IF(COUNTRY_INFO!A42=0," ",COUNTRY_INFO!A42) -> Angola | B42: =IF(COUNTRY_INFO!B42=0," ",COUNTRY_INFO!B42) -> CUANDO CUBANGO | C42: =IF(COUNTRY_INFO!C42=0," ",COUNTRY_INFO!C42) -> DIRICO | D42: =IF(COUNTRY_INFO!$U$9:$U$1000="MDA4 (ALB/2*ALB)", COUNTRY_INFO!$U$9:$U$1000, " ") ->  | I42: 0 | M42: 0 | Q42: 0 | R42: 0 | S42: 0 | T42: 0 | U42: 0
A43: =IF(COUNTRY_INFO!A43=0," ",COUNTRY_INFO!A43) -> Angola | B43: =IF(COUNTRY_INFO!B43=0," ",COUNTRY_INFO!B43) -> CUANDO CUBANGO | C43: =IF(COUNTRY_INFO!C43=0," ",COUNTRY_INFO!C43) -> MAVINGA | D43: =IF(COUNTRY_INFO!$U$9:$U$1000="MDA4 (ALB/2*ALB)", COUNTRY_INFO!$U$9:$U$1000, " ") ->  | I43: 0 | M43: 0 | Q43: 0 | R43: 0 | S43: 0 | T43: 0 | U43: 0
A44: =IF(COUNTRY_INFO!A44=0," ",COUNTRY_INFO!A44) -> Angola | B44: =IF(COUNTRY_INFO!B44=0," ",COUNTRY_INFO!B44) -> CUANDO CUBANGO | C44: =IF(COUNTRY_INFO!C44=0," ",COUNTRY_INFO!C44) -> MENONGUE | D44: =IF(COUNTRY_INFO!$U$9:$U$1000="MDA4 (ALB/2*ALB)", COUNTRY_INFO!$U$9:$U$1000, " ") ->  | I44: 0 | M44: 0 | Q44: 0 | R44: 0 | S44: 0 | T44: 0 | U44: 0
A45: =IF(COUNTRY_INFO!A45=0," ",COUNTRY_INFO!A45) -> Angola | B45: =IF(COUNTRY_INFO!B45=0," ",COUNTRY_INFO!B45) -> CUANDO CUBANGO | C45: =IF(COUNTRY_INFO!C45=0," ",COUNTRY_INFO!C45) -> NANKOVA | D45: =IF(COUNTRY_INFO!$U$9:$U$1000="MDA4 (ALB/2*ALB)", COUNTRY_INFO!$U$9:$U$1000, " ") ->  | I45: 0 | M45: 0 | Q45: 0 | R45: 0 | S45: 0 | T45: 0 | U45: 0
A46: =IF(COUNTRY_INFO!A46=0," ",COUNTRY_INFO!A46) -> Angola | B46: =IF(COUNTRY_INFO!B46=0," ",COUNTRY_INFO!B46) -> CUANDO CUBANGO | C46: =IF(COUNTRY_INFO!C46=0," ",COUNTRY_INFO!C46) -> RIVUNGO | D46: =IF(COUNTRY_INFO!$U$9:$U$1000="MDA4 (ALB/2*ALB)", COUNTRY_INFO!$U$9:$U$1000, " ") ->  | I46: 0 | M46: 0 | Q46: 0 | R46: 0 | S46: 0 | T46: 0 | U46: 0
A47: =IF(COUNTRY_INFO!A47=0," ",COUNTRY_INFO!A47) -> Angola | B47: =IF(COUNTRY_INFO!B47=0," ",COUNTRY_INFO!B47) -> CUANZA NORTE | C47: =IF(COUNTRY_INFO!C47=0," ",COUNTRY_INFO!C47) -> AMBACA | D47: =IF(COUNTRY_INFO!$U$9:$U$1000="MDA4 (ALB/2*ALB)", COUNTRY_INFO!$U$9:$U$1000, " ") ->  | I47: 0 | M47: 0 | Q47: 0 | R47: 0 | S47: 0 | T47: 0 | U47: 0
A48: =IF(COUNTRY_INFO!A48=0," ",COUNTRY_INFO!A48) -> Angola | B48: =IF(COUNTRY_INFO!B48=0," ",COUNTRY_INFO!B48) -> CUANZA NORTE | C48: =IF(COUNTRY_INFO!C48=0," ",COUNTRY_INFO!C48) -> BANGA | D48: =IF(COUNTRY_INFO!$U$9:$U$1000="MDA4 (ALB/2*ALB)", COUNTRY_INFO!$U$9:$U$1000, " ") ->  | I48: 0 | M48: 0 | Q48: 0 | R48: 0 | S48: 0 | T48: 0 | U48: 0
A49: =IF(COUNTRY_INFO!A49=0," ",COUNTRY_INFO!A49) -> Angola | B49: =IF(COUNTRY_INFO!B49=0," ",COUNTRY_INFO!B49) -> CUANZA NORTE | C49: =IF(COUNTRY_INFO!C49=0," ",COUNTRY_INFO!C49) -> BOLONGONGO | D49: =IF(COUNTRY_INFO!$U$9:$U$1000="MDA4 (ALB/2*ALB)", COUNTRY_INFO!$U$9:$U$1000, " ") ->  | I49: 0 | M49: 0 | Q49: 0 | R49: 0 | S49: 0 | T49: 0 | U49: 0
A50: =IF(COUNTRY_INFO!A50=0," ",COUNTRY_INFO!A50) -> Angola | B50: =IF(COUNTRY_INFO!B50=0," ",COUNTRY_INFO!B50) -> CUANZA NORTE | C50: =IF(COUNTRY_INFO!C50=0," ",COUNTRY_INFO!C50) -> CAMBAMBE | D50: =IF(COUNTRY_INFO!$U$9:$U$1000="MDA4 (ALB/2*ALB)", COUNTRY_INFO!$U$9:$U$1000, " ") ->  | I50: 0 | M50: 0 | Q50: 0 | R50: 0 | S50: 0 | T50: 0 | U50: 0
A51: =IF(COUNTRY_INFO!A51=0," ",COUNTRY_INFO!A51) -> Angola | B51: =IF(COUNTRY_INFO!B51=0," ",COUNTRY_INFO!B51) -> CUANZA NORTE | C51: =IF(COUNTRY_INFO!C51=0," ",COUNTRY_INFO!C51) -> CAZENGO | D51: =IF(COUNTRY_INFO!$U$9:$U$1000="MDA4 (ALB/2*ALB)", COUNTRY_INFO!$U$9:$U$1000, " ") ->  | I51: 0 | M51: 0 | Q51: 0 | R51: 0 | S51: 0 | T51: 0 | U51: 0
A52: =IF(COUNTRY_INFO!A52=0," ",COUNTRY_INFO!A52) -> Angola | B52: =IF(COUNTRY_INFO!B52=0," ",COUNTRY_INFO!B52) -> CUANZA NORTE | C52: =IF(COUNTRY_INFO!C52=0," ",COUNTRY_INFO!C52) -> GOLUNGO ALTO | D52: =IF(COUNTRY_INFO!$U$9:$U$1000="MDA4 (ALB/2*ALB)", COUNTRY_INFO!$U$9:$U$1000, " ") ->  | I52: 0 | M52: 0 | Q52: 0 | R52: 0 | S52: 0 | T52: 0 | U52: 0
A53: =IF(COUNTRY_INFO!A53=0," ",COUNTRY_INFO!A53) -> Angola | B53: =IF(COUNTRY_INFO!B53=0," ",COUNTRY_INFO!B53) -> CUANZA NORTE | C53: =IF(COUNTRY_INFO!C53=0," ",COUNTRY_INFO!C53) -> GONGUEMBO | D53: =IF(COUNTRY_INFO!$U$9:$U$1000="MDA4 (ALB/2*ALB)", COUNTRY_INFO!$U$9:$U$1000, " ") ->  | I53: 0 | M53: 0 | Q53: 0 | R53: 0 | S53: 0 | T53: 0 | U53: 0
A54: =IF(COUNTRY_INFO!A54=0," ",COUNTRY_INFO!A54) -> Angola | B54: =IF(COUNTRY_INFO!B54=0," ",COUNTRY_INFO!B54) -> CUANZA NORTE | C54: =IF(COUNTRY_INFO!C54=0," ",COUNTRY_INFO!C54) -> LUCALA | D54: =IF(COUNTRY_INFO!$U$9:$U$1000="MDA4 (ALB/2*ALB)", COUNTRY_INFO!$U$9:$U$1000, " ") ->  | I54: 0 | M54: 0 | Q54: 0 | R54: 0 | S54: 0 | T54: 0 | U54: 0
A55: =IF(COUNTRY_INFO!A55=0," ",COUNTRY_INFO!A55) -> Angola | B55: =IF(COUNTRY_INFO!B55=0," ",COUNTRY_INFO!B55) -> CUANZA NORTE | C55: =IF(COUNTRY_INFO!C55=0," ",COUNTRY_INFO!C55) -> QUICULUNGO | D55: =IF(COUNTRY_INFO!$U$9:$U$1000="MDA4 (ALB/2*ALB)", COUNTRY_INFO!$U$9:$U$1000, " ") ->  | I55: 0 | M55: 0 | Q55: 0 | R55: 0 | S55: 0 | T55: 0 | U55: 0
A56: =IF(COUNTRY_INFO!A56=0," ",COUNTRY_INFO!A56) -> Angola | B56: =IF(COUNTRY_INFO!B56=0," ",COUNTRY_INFO!B56) -> CUANZA NORTE | C56: =IF(COUNTRY_INFO!C56=0," ",COUNTRY_INFO!C56) -> SAMBA CAJU | D56: =IF(COUNTRY_INFO!$U$9:$U$1000="MDA4 (ALB/2*ALB)", COUNTRY_INFO!$U$9:$U$1000, " ") ->  | I56: 0 | M56: 0 | Q56: 0 | R56: 0 | S56: 0 | T56: 0 | U56: 0
A57: =IF(COUNTRY_INFO!A57=0," ",COUNTRY_INFO!A57) -> Angola | B57: =IF(COUNTRY_INFO!B57=0," ",COUNTRY_INFO!B57) -> CUANZA SUL | C57: =IF(COUNTRY_INFO!C57=0," ",COUNTRY_INFO!C57) -> AMBOIM | D57: =IF(COUNTRY_INFO!$U$9:$U$1000="MDA4 (ALB/2*ALB)", COUNTRY_INFO!$U$9:$U$1000, " ") ->  | I57: 0 | M57: 0 | Q57: 0 | R57: 0 | S57: 0 | T57: 0 | U57: 0
A58: =IF(COUNTRY_INFO!A58=0," ",COUNTRY_INFO!A58) -> Angola | B58: =IF(COUNTRY_INFO!B58=0," ",COUNTRY_INFO!B58) -> CUANZA SUL | C58: =IF(COUNTRY_INFO!C58=0," ",COUNTRY_INFO!C58) -> CASSONGUE | D58: =IF(COUNTRY_INFO!$U$9:$U$1000="MDA4 (ALB/2*ALB)", COUNTRY_INFO!$U$9:$U$1000, " ") ->  | I58: 0 | M58: 0 | Q58: 0 | R58: 0 | S58: 0 | T58: 0 | U58: 0
A59: =IF(COUNTRY_INFO!A59=0," ",COUNTRY_INFO!A59) -> Angola | B59: =IF(COUNTRY_INFO!B59=0," ",COUNTRY_INFO!B59) -> CUANZA SUL | C59: =IF(COUNTRY_INFO!C59=0," ",COUNTRY_INFO!C59) -> CELA (Waku Kungo) | D59: =IF(COUNTRY_INFO!$U$9:$U$1000="MDA4 (ALB/2*ALB)", COUNTRY_INFO!$U$9:$U$1000, " ") ->  | I59: 0 | M59: 0 | Q59: 0 | R59: 0 | S59: 0 | T59: 0 | U59: 0
A60: =IF(COUNTRY_INFO!A60=0," ",COUNTRY_INFO!A60) -> Angola | B60: =IF(COUNTRY_INFO!B60=0," ",COUNTRY_INFO!B60) -> CUANZA SUL | C60: =IF(COUNTRY_INFO!C60=0," ",COUNTRY_INFO!C60) -> CONDA | D60: =IF(COUNTRY_INFO!$U$9:$U$1000="MDA4 (ALB/2*ALB)", COUNTRY_INFO!$U$9:$U$1000, " ") ->  | I60: 0 | M60: 0 | Q60: 0 | R60: 0 | S60: 0 | T60: 0 | U60: 0
A61: =IF(COUNTRY_INFO!A61=0," ",COUNTRY_INFO!A61) -> Angola | B61: =IF(COUNTRY_INFO!B61=0," ",COUNTRY_INFO!B61) -> CUANZA SUL | C61: =IF(COUNTRY_INFO!C61=0," ",COUNTRY_INFO!C61) -> EBO | D61: =IF(COUNTRY_INFO!$U$9:$U$1000="MDA4 (ALB/2*ALB)", COUNTRY_INFO!$U$9:$U$1000, " ") ->  | I61: 0 | M61: 0 | Q61: 0 | R61: 0 | S61: 0 | T61: 0 | U61: 0
A62: =IF(COUNTRY_INFO!A62=0," ",COUNTRY_INFO!A62) -> Angola | B62: =IF(COUNTRY_INFO!B62=0," ",COUNTRY_INFO!B62) -> CUANZA SUL | C62: =IF(COUNTRY_INFO!C62=0," ",COUNTRY_INFO!C62) -> LIBOLO | D62: =IF(COUNTRY_INFO!$U$9:$U$1000="MDA4 (ALB/2*ALB)", COUNTRY_INFO!$U$9:$U$1000, " ") ->  | I62: 0 | M62: 0 | Q62: 0 | R62: 0 | S62: 0 | T62: 0 | U62: 0
A63: =IF(COUNTRY_INFO!A63=0," ",COUNTRY_INFO!A63) -> Angola | B63: =IF(COUNTRY_INFO!B63=0," ",COUNTRY_INFO!B63) -> CUANZA SUL | C63: =IF(COUNTRY_INFO!C63=0," ",COUNTRY_INFO!C63) -> MUSSENDE | D63: =IF(COUNTRY_INFO!$U$9:$U$1000="MDA4 (ALB/2*ALB)", COUNTRY_INFO!$U$9:$U$1000, " ") ->  | I63: 0 | M63: 0 | Q63: 0 | R63: 0 | S63: 0 | T63: 0 | U63: 0
A64: =IF(COUNTRY_INFO!A64=0," ",COUNTRY_INFO!A64) -> Angola | B64: =IF(COUNTRY_INFO!B64=0," ",COUNTRY_INFO!B64) -> CUANZA SUL | C64: =IF(COUNTRY_INFO!C64=0," ",COUNTRY_INFO!C64) -> PORTO AMBOIM | D64: =IF(COUNTRY_INFO!$U$9:$U$1000="MDA4 (ALB/2*ALB)", COUNTRY_INFO!$U$9:$U$1000, " ") ->  | I64: 0 | M64: 0 | Q64: 0 | R64: 0 | S64: 0 | T64: 0 | U64: 0
A65: =IF(COUNTRY_INFO!A65=0," ",COUNTRY_INFO!A65) -> Angola | B65: =IF(COUNTRY_INFO!B65=0," ",COUNTRY_INFO!B65) -> CUANZA SUL | C65: =IF(COUNTRY_INFO!C65=0," ",COUNTRY_INFO!C65) -> QUIBALA | D65: =IF(COUNTRY_INFO!$U$9:$U$1000="MDA4 (ALB/2*ALB)", COUNTRY_INFO!$U$9:$U$1000, " ") ->  | I65: 0 | M65: 0 | Q65: 0 | R65: 0 | S65: 0 | T65: 0 | U65: 0
A66: =IF(COUNTRY_INFO!A66=0," ",COUNTRY_INFO!A66) -> Angola | B66: =IF(COUNTRY_INFO!B66=0," ",COUNTRY_INFO!B66) -> CUANZA SUL | C66: =IF(COUNTRY_INFO!C66=0," ",COUNTRY_INFO!C66) -> QUILENDA | D66: =IF(COUNTRY_INFO!$U$9:$U$1000="MDA4 (ALB/2*ALB)", COUNTRY_INFO!$U$9:$U$1000, " ") ->  | I66: 0 | M66: 0 | Q66: 0 | R66: 0 | S66: 0 | T66: 0 | U66: 0
A67: =IF(COUNTRY_INFO!A67=0," ",COUNTRY_INFO!A67) -> Angola | B67: =IF(COUNTRY_INFO!B67=0," ",COUNTRY_INFO!B67) -> CUANZA SUL | C67: =IF(COUNTRY_INFO!C67=0," ",COUNTRY_INFO!C67) -> SELES | D67: =IF(COUNTRY_INFO!$U$9:$U$1000="MDA4 (ALB/2*ALB)", COUNTRY_INFO!$U$9:$U$1000, " ") ->  | I67: 0 | M67: 0 | Q67: 0 | R67: 0 | S67: 0 | T67: 0 | U67: 0
A68: =IF(COUNTRY_INFO!A68=0," ",COUNTRY_INFO!A68) -> Angola | B68: =IF(COUNTRY_INFO!B68=0," ",COUNTRY_INFO!B68) -> CUANZA SUL | C68: =IF(COUNTRY_INFO!C68=0," ",COUNTRY_INFO!C68) -> SUMBE | D68: =IF(COUNTRY_INFO!$U$9:$U$1000="MDA4 (ALB/2*ALB)", COUNTRY_INFO!$U$9:$U$1000, " ") ->  | I68: 0 | M68: 0 | Q68: 0 | R68: 0 | S68: 0 | T68: 0 | U68: 0
A69: =IF(COUNTRY_INFO!A69=0," ",COUNTRY_INFO!A69) -> Angola | B69: =IF(COUNTRY_INFO!B69=0," ",COUNTRY_INFO!B69) -> CUNENE | C69: =IF(COUNTRY_INFO!C69=0," ",COUNTRY_INFO!C69) -> CAHAMA | D69: =IF(COUNTRY_INFO!$U$9:$U$1000="MDA4 (ALB/2*ALB)", COUNTRY_INFO!$U$9:$U$1000, " ") ->  | I69: 0 | M69: 0 | Q69: 0 | R69: 0 | S69: 0 | T69: 0 | U69: 0
A70: =IF(COUNTRY_INFO!A70=0," ",COUNTRY_INFO!A70) -> Angola | B70: =IF(COUNTRY_INFO!B70=0," ",COUNTRY_INFO!B70) -> CUNENE | C70: =IF(COUNTRY_INFO!C70=0," ",COUNTRY_INFO!C70) -> CUANHAMA | D70: =IF(COUNTRY_INFO!$U$9:$U$1000="MDA4 (ALB/2*ALB)", COUNTRY_INFO!$U$9:$U$1000, " ") ->  | I70: 0 | M70: 0 | Q70: 0 | R70: 0 | S70: 0 | T70: 0 | U70: 0
A71: =IF(COUNTRY_INFO!A71=0," ",COUNTRY_INFO!A71) -> Angola | B71: =IF(COUNTRY_INFO!B71=0," ",COUNTRY_INFO!B71) -> CUNENE | C71: =IF(COUNTRY_INFO!C71=0," ",COUNTRY_INFO!C71) -> CUROCA | D71: =IF(COUNTRY_INFO!$U$9:$U$1000="MDA4 (ALB/2*ALB)", COUNTRY_INFO!$U$9:$U$1000, " ") ->  | I71: 0 | M71: 0 | Q71: 0 | R71: 0 | S71: 0 | T71: 0 | U71: 0
A72: =IF(COUNTRY_INFO!A72=0," ",COUNTRY_INFO!A72) -> Angola | B72: =IF(COUNTRY_INFO!B72=0," ",COUNTRY_INFO!B72) -> CUNENE | C72: =IF(COUNTRY_INFO!C72=0," ",COUNTRY_INFO!C72) -> CUVELAI | D72: =IF(COUNTRY_INFO!$U$9:$U$1000="MDA4 (ALB/2*ALB)", COUNTRY_INFO!$U$9:$U$1000, " ") ->  | I72: 0 | M72: 0 | Q72: 0 | R72: 0 | S72: 0 | T72: 0 | U72: 0
A73: =IF(COUNTRY_INFO!A73=0," ",COUNTRY_INFO!A73) -> Angola | B73: =IF(COUNTRY_INFO!B73=0," ",COUNTRY_INFO!B73) -> CUNENE | C73: =IF(COUNTRY_INFO!C73=0," ",COUNTRY_INFO!C73) -> NAMACUNDE | D73: =IF(COUNTRY_INFO!$U$9:$U$1000="MDA4 (ALB/2*ALB)", COUNTRY_INFO!$U$9:$U$1000, " ") ->  | I73: 0 | M73: 0 | Q73: 0 | R73: 0 | S73: 0 | T73: 0 | U73: 0
A74: =IF(COUNTRY_INFO!A74=0," ",COUNTRY_INFO!A74) -> Angola | B74: =IF(COUNTRY_INFO!B74=0," ",COUNTRY_INFO!B74) -> CUNENE | C74: =IF(COUNTRY_INFO!C74=0," ",COUNTRY_INFO!C74) -> OMBADJA | D74: =IF(COUNTRY_INFO!$U$9:$U$1000="MDA4 (ALB/2*ALB)", COUNTRY_INFO!$U$9:$U$1000, " ") ->  | I74: =SUM(F74:H74) -> 0 | M74: =SUM(J74:L74) -> 0 | Q74: =SUM(N74:P74) -> 0 | R74: =MAX(J74,N74) -> 0 | S74: =MAX(K74,O74) -> 0 | T74: =MAX(L74,P74) -> 0 | U74: =SUM(R74:T74) -> 0 | V74: =IF(F74<>0, IF(R74/F74*100=0, "-", R74/F74*100), " ") ->  | W74: =IF(G74<>0, IF(S74/G74*100=0, "-", S74/G74*100), " ") ->  | X74: =IF(H74<>0, IF(T74/H74*100=0, "-", T74/H74*100), " ") ->  | Y74: =IF(I74<>0, IF(U74/I74*100=0, "-", U74/I74*100), " ") -> 
A75: =IF(COUNTRY_INFO!A75=0," ",COUNTRY_INFO!A75) -> Angola | B75: =IF(COUNTRY_INFO!B75=0," ",COUNTRY_INFO!B75) -> HUAMBO | C75: =IF(COUNTRY_INFO!C75=0," ",COUNTRY_INFO!C75) -> BAILUNDO | D75: =IF(COUNTRY_INFO!$U$9:$U$1000="MDA4 (ALB/2*ALB)", COUNTRY_INFO!$U$9:$U$1000, " ") ->  | I75: 0 | M75: 0 | Q75: 0 | R75: 0 | S75: 0 | T75: 0 | U75: 0
A76: =IF(COUNTRY_INFO!A76=0," ",COUNTRY_INFO!A76) -> Angola | B76: =IF(COUNTRY_INFO!B76=0," ",COUNTRY_INFO!B76) -> HUAMBO | C76: =IF(COUNTRY_INFO!C76=0," ",COUNTRY_INFO!C76) -> CAALA | D76: =IF(COUNTRY_INFO!$U$9:$U$1000="MDA4 (ALB/2*ALB)", COUNTRY_INFO!$U$9:$U$1000, " ") ->  | I76: 0 | M76: 0 | Q76: 0 | R76: 0 | S76: 0 | T76: 0 | U76: 0
A77: =IF(COUNTRY_INFO!A77=0," ",COUNTRY_INFO!A77) -> Angola | B77: =IF(COUNTRY_INFO!B77=0," ",COUNTRY_INFO!B77) -> HUAMBO | C77: =IF(COUNTRY_INFO!C77=0," ",COUNTRY_INFO!C77) -> CACHIUNGO | D77: =IF(COUNTRY_INFO!$U$9:$U$1000="MDA4 (ALB/2*ALB)", COUNTRY_INFO!$U$9:$U$1000, " ") ->  | I77: 0 | M77: 0 | Q77: 0 | R77: 0 | S77: 0 | T77: 0 | U77: 0
A78: =IF(COUNTRY_INFO!A78=0," ",COUNTRY_INFO!A78) -> Angola | B78: =IF(COUNTRY_INFO!B78=0," ",COUNTRY_INFO!B78) -> HUAMBO | C78: =IF(COUNTRY_INFO!C78=0," ",COUNTRY_INFO!C78) -> CHICALA CHOLOHANGA | D78: =IF(COUNTRY_INFO!$U$9:$U$1000="MDA4 (ALB/2*ALB)", COUNTRY_INFO!$U$9:$U$1000, " ") ->  | I78: 0 | M78: 0 | Q78: 0 | R78: 0 | S78: 0 | T78: 0 | U78: 0
A79: =IF(COUNTRY_INFO!A79=0," ",COUNTRY_INFO!A79) -> Angola | B79: =IF(COUNTRY_INFO!B79=0," ",COUNTRY_INFO!B79) -> HUAMBO | C79: =IF(COUNTRY_INFO!C79=0," ",COUNTRY_INFO!C79) -> CHINDJENJE | D79: =IF(COUNTRY_INFO!$U$9:$U$1000="MDA4 (ALB/2*ALB)", COUNTRY_INFO!$U$9:$U$1000, " ") ->  | I79: 0 | M79: 0 | Q79: 0 | R79: 0 | S79: 0 | T79: 0 | U79: 0
A80: =IF(COUNTRY_INFO!A80=0," ",COUNTRY_INFO!A80) -> Angola | B80: =IF(COUNTRY_INFO!B80=0," ",COUNTRY_INFO!B80) -> HUAMBO | C80: =IF(COUNTRY_INFO!C80=0," ",COUNTRY_INFO!C80) -> ECUNHA | D80: =IF(COUNTRY_INFO!$U$9:$U$1000="MDA4 (ALB/2*ALB)", COUNTRY_INFO!$U$9:$U$1000, " ") ->  | I80: 0 | M80: 0 | Q80: 0 | R80: 0 | S80: 0 | T80: 0 | U80: 0
A81: =IF(COUNTRY_INFO!A81=0," ",COUNTRY_INFO!A81) -> Angola | B81: =IF(COUNTRY_INFO!B81=0," ",COUNTRY_INFO!B81) -> HUAMBO | C81: =IF(COUNTRY_INFO!C81=0," ",COUNTRY_INFO!C81) -> HUAMBO | D81: =IF(COUNTRY_INFO!$U$9:$U$1000="MDA4 (ALB/2*ALB)", COUNTRY_INFO!$U$9:$U$1000, " ") ->  | I81: 0 | M81: 0 | Q81: 0 | R81: 0 | S81: 0 | T81: 0 | U81: 0
A82: =IF(COUNTRY_INFO!A82=0," ",COUNTRY_INFO!A82) -> Angola | B82: =IF(COUNTRY_INFO!B82=0," ",COUNTRY_INFO!B82) -> HUAMBO | C82: =IF(COUNTRY_INFO!C82=0," ",COUNTRY_INFO!C82) -> LONDUIMBALI | D82: =IF(COUNTRY_INFO!$U$9:$U$1000="MDA4 (ALB/2*ALB)", COUNTRY_INFO!$U$9:$U$1000, " ") ->  | I82: 0 | M82: 0 | Q82: 0 | R82: 0 | S82: 0 | T82: 0 | U82: 0
A83: =IF(COUNTRY_INFO!A83=0," ",COUNTRY_INFO!A83) -> Angola | B83: =IF(COUNTRY_INFO!B83=0," ",COUNTRY_INFO!B83) -> HUAMBO | C83: =IF(COUNTRY_INFO!C83=0," ",COUNTRY_INFO!C83) -> LONGONJO | D83: =IF(COUNTRY_INFO!$U$9:$U$1000="MDA4 (ALB/2*ALB)", COUNTRY_INFO!$U$9:$U$1000, " ") ->  | I83: 0 | M83: 0 | Q83: 0 | R83: 0 | S83: 0 | T83: 0 | U83: 0
A84: =IF(COUNTRY_INFO!A84=0," ",COUNTRY_INFO!A84) -> Angola | B84: =IF(COUNTRY_INFO!B84=0," ",COUNTRY_INFO!B84) -> HUAMBO | C84: =IF(COUNTRY_INFO!C84=0," ",COUNTRY_INFO!C84) -> MUNGO | D84: =IF(COUNTRY_INFO!$U$9:$U$1000="MDA4 (ALB/2*ALB)", COUNTRY_INFO!$U$9:$U$1000, " ") ->  | I84: 0 | M84: 0 | Q84: 0 | R84: 0 | S84: 0 | T84: 0 | U84: 0
A85: =IF(COUNTRY_INFO!A85=0," ",COUNTRY_INFO!A85) -> Angola | B85: =IF(COUNTRY_INFO!B85=0," ",COUNTRY_INFO!B85) -> HUAMBO | C85: =IF(COUNTRY_INFO!C85=0," ",COUNTRY_INFO!C85) -> UCUMA | D85: =IF(COUNTRY_INFO!$U$9:$U$1000="MDA4 (ALB/2*ALB)", COUNTRY_INFO!$U$9:$U$1000, " ") ->  | I85: 0 | M85: 0 | Q85: 0 | R85: 0 | S85: 0 | T85: 0 | U85: 0
A86: =IF(COUNTRY_INFO!A86=0," ",COUNTRY_INFO!A86) -> Angola | B86: =IF(COUNTRY_INFO!B86=0," ",COUNTRY_INFO!B86) -> HUILA | C86: =IF(COUNTRY_INFO!C86=0," ",COUNTRY_INFO!C86) -> CACONDA | D86: =IF(COUNTRY_INFO!$U$9:$U$1000="MDA4 (ALB/2*ALB)", COUNTRY_INFO!$U$9:$U$1000, " ") ->  | I86: 0 | M86: 0 | Q86: 0 | R86: 0 | S86: 0 | T86: 0 | U86: 0
A87: =IF(COUNTRY_INFO!A87=0," ",COUNTRY_INFO!A87) -> Angola | B87: =IF(COUNTRY_INFO!B87=0," ",COUNTRY_INFO!B87) -> HUILA | C87: =IF(COUNTRY_INFO!C87=0," ",COUNTRY_INFO!C87) -> CACULA | D87: =IF(COUNTRY_INFO!$U$9:$U$1000="MDA4 (ALB/2*ALB)", COUNTRY_INFO!$U$9:$U$1000, " ") ->  | I87: 0 | M87: 0 | Q87: 0 | R87: 0 | S87: 0 | T87: 0 | U87: 0
A88: =IF(COUNTRY_INFO!A88=0," ",COUNTRY_INFO!A88) -> Angola | B88: =IF(COUNTRY_INFO!B88=0," ",COUNTRY_INFO!B88) -> HUILA | C88: =IF(COUNTRY_INFO!C88=0," ",COUNTRY_INFO!C88) -> CALUQUEMBE | D88: =IF(COUNTRY_INFO!$U$9:$U$1000="MDA4 (ALB/2*ALB)", COUNTRY_INFO!$U$9:$U$1000, " ") ->  | I88: 0 | M88: 0 | Q88: 0 | R88: 0 | S88: 0 | T88: 0 | U88: 0
A89: =IF(COUNTRY_INFO!A89=0," ",COUNTRY_INFO!A89) -> Angola | B89: =IF(COUNTRY_INFO!B89=0," ",COUNTRY_INFO!B89) -> HUILA | C89: =IF(COUNTRY_INFO!C89=0," ",COUNTRY_INFO!C89) -> CHIBIA | D89: =IF(COUNTRY_INFO!$U$9:$U$1000="MDA4 (ALB/2*ALB)", COUNTRY_INFO!$U$9:$U$1000, " ") ->  | I89: 0 | M89: 0 | Q89: 0 | R89: 0 | S89: 0 | T89: 0 | U89: 0
A90: =IF(COUNTRY_INFO!A90=0," ",COUNTRY_INFO!A90) -> Angola | B90: =IF(COUNTRY_INFO!B90=0," ",COUNTRY_INFO!B90) -> HUILA | C90: =IF(COUNTRY_INFO!C90=0," ",COUNTRY_INFO!C90) -> CHICOMBA | D90: =IF(COUNTRY_INFO!$U$9:$U$1000="MDA4 (ALB/2*ALB)", COUNTRY_INFO!$U$9:$U$1000, " ") ->  | I90: 0 | M90: 0 | Q90: 0 | R90: 0 | S90: 0 | T90: 0 | U90: 0
A91: =IF(COUNTRY_INFO!A91=0," ",COUNTRY_INFO!A91) -> Angola | B91: =IF(COUNTRY_INFO!B91=0," ",COUNTRY_INFO!B91) -> HUILA | C91: =IF(COUNTRY_INFO!C91=0," ",COUNTRY_INFO!C91) -> CHIPINDO | D91: =IF(COUNTRY_INFO!$U$9:$U$1000="MDA4 (ALB/2*ALB)", COUNTRY_INFO!$U$9:$U$1000, " ") ->  | I91: 0 | M91: 0 | Q91: 0 | R91: 0 | S91: 0 | T91: 0 | U91: 0
A92: =IF(COUNTRY_INFO!A92=0," ",COUNTRY_INFO!A92) -> Angola | B92: =IF(COUNTRY_INFO!B92=0," ",COUNTRY_INFO!B92) -> HUILA | C92: =IF(COUNTRY_INFO!C92=0," ",COUNTRY_INFO!C92) -> CUVANGO | D92: =IF(COUNTRY_INFO!$U$9:$U$1000="MDA4 (ALB/2*ALB)", COUNTRY_INFO!$U$9:$U$1000, " ") ->  | I92: 0 | M92: 0 | Q92: 0 | R92: 0 | S92: 0 | T92: 0 | U92: 0
A93: =IF(COUNTRY_INFO!A93=0," ",COUNTRY_INFO!A93) -> Angola | B93: =IF(COUNTRY_INFO!B93=0," ",COUNTRY_INFO!B93) -> HUILA | C93: =IF(COUNTRY_INFO!C93=0," ",COUNTRY_INFO!C93) -> GAMBOS | D93: =IF(COUNTRY_INFO!$U$9:$U$1000="MDA4 (ALB/2*ALB)", COUNTRY_INFO!$U$9:$U$1000, " ") ->  | I93: 0 | M93: 0 | Q93: 0 | R93: 0 | S93: 0 | T93: 0 | U93: 0
A94: =IF(COUNTRY_INFO!A94=0," ",COUNTRY_INFO!A94) -> Angola | B94: =IF(COUNTRY_INFO!B94=0," ",COUNTRY_INFO!B94) -> HUILA | C94: =IF(COUNTRY_INFO!C94=0," ",COUNTRY_INFO!C94) -> HUMPATA | D94: =IF(COUNTRY_INFO!$U$9:$U$1000="MDA4 (ALB/2*ALB)", COUNTRY_INFO!$U$9:$U$1000, " ") ->  | I94: 0 | M94: 0 | Q94: 0 | R94: 0 | S94: 0 | T94: 0 | U94: 0
A95: =IF(COUNTRY_INFO!A95=0," ",COUNTRY_INFO!A95) -> Angola | B95: =IF(COUNTRY_INFO!B95=0," ",COUNTRY_INFO!B95) -> HUILA | C95: =IF(COUNTRY_INFO!C95=0," ",COUNTRY_INFO!C95) -> JAMBA | D95: =IF(COUNTRY_INFO!$U$9:$U$1000="MDA4 (ALB/2*ALB)", COUNTRY_INFO!$U$9:$U$1000, " ") ->  | I95: 0 | M95: 0 | Q95: 0 | R95: 0 | S95: 0 | T95: 0 | U95: 0
A96: =IF(COUNTRY_INFO!A96=0," ",COUNTRY_INFO!A96) -> Angola | B96: =IF(COUNTRY_INFO!B96=0," ",COUNTRY_INFO!B96) -> HUILA | C96: =IF(COUNTRY_INFO!C96=0," ",COUNTRY_INFO!C96) -> LUBANGO | D96: =IF(COUNTRY_INFO!$U$9:$U$1000="MDA4 (ALB/2*ALB)", COUNTRY_INFO!$U$9:$U$1000, " ") ->  | I96: 0 | M96: 0 | Q96: 0 | R96: 0 | S96: 0 | T96: 0 | U96: 0
A97: =IF(COUNTRY_INFO!A97=0," ",COUNTRY_INFO!A97) -> Angola | B97: =IF(COUNTRY_INFO!B97=0," ",COUNTRY_INFO!B97) -> HUILA | C97: =IF(COUNTRY_INFO!C97=0," ",COUNTRY_INFO!C97) -> MATALA | D97: =IF(COUNTRY_INFO!$U$9:$U$1000="MDA4 (ALB/2*ALB)", COUNTRY_INFO!$U$9:$U$1000, " ") ->  | I97: 0 | M97: 0 | Q97: 0 | R97: 0 | S97: 0 | T97: 0 | U97: 0
A98: =IF(COUNTRY_INFO!A98=0," ",COUNTRY_INFO!A98) -> Angola | B98: =IF(COUNTRY_INFO!B98=0," ",COUNTRY_INFO!B98) -> HUILA | C98: =IF(COUNTRY_INFO!C98=0," ",COUNTRY_INFO!C98) -> QUILENGUES | D98: =IF(COUNTRY_INFO!$U$9:$U$1000="MDA4 (ALB/2*ALB)", COUNTRY_INFO!$U$9:$U$1000, " ") ->  | I98: 0 | M98: 0 | Q98: 0 | R98: 0 | S98: 0 | T98: 0 | U98: 0
A99: =IF(COUNTRY_INFO!A99=0," ",COUNTRY_INFO!A99) -> Angola | B99: =IF(COUNTRY_INFO!B99=0," ",COUNTRY_INFO!B99) -> HUILA | C99: =IF(COUNTRY_INFO!C99=0," ",COUNTRY_INFO!C99) -> QUIPUNGO | D99: =IF(COUNTRY_INFO!$U$9:$U$1000="MDA4 (ALB/2*ALB)", COUNTRY_INFO!$U$9:$U$1000, " ") ->  | I99: 0 | M99: 0 | Q99: 0 | R99: 0 | S99: 0 | T99: 0 | U99: 0
A100: =IF(COUNTRY_INFO!A100=0," ",COUNTRY_INFO!A100) -> Angola | B100: =IF(COUNTRY_INFO!B100=0," ",COUNTRY_INFO!B100) -> LUANDA | C100: =IF(COUNTRY_INFO!C100=0," ",COUNTRY_INFO!C100) -> BELAS | D100: =IF(COUNTRY_INFO!$U$9:$U$1000="MDA4 (ALB/2*ALB)", COUNTRY_INFO!$U$9:$U$1000, " ") ->  | I100: 0 | M100: 0 | Q100: 0 | R100: 0 | S100: 0 | T100: 0 | U100: 0
A101: =IF(COUNTRY_INFO!A101=0," ",COUNTRY_INFO!A101) -> Angola | B101: =IF(COUNTRY_INFO!B101=0," ",COUNTRY_INFO!B101) -> LUANDA | C101: =IF(COUNTRY_INFO!C101=0," ",COUNTRY_INFO!C101) -> CACUACO | D101: =IF(COUNTRY_INFO!$U$9:$U$1000="MDA4 (ALB/2*ALB)", COUNTRY_INFO!$U$9:$U$1000, " ") ->  | I101: 0 | M101: 0 | Q101: 0 | R101: 0 | S101: 0 | T101: 0 | U101: 0
A102: =IF(COUNTRY_INFO!A102=0," ",COUNTRY_INFO!A102) -> Angola | B102: =IF(COUNTRY_INFO!B102=0," ",COUNTRY_INFO!B102) -> LUANDA | C102: =IF(COUNTRY_INFO!C102=0," ",COUNTRY_INFO!C102) -> CAZENGA | D102: =IF(COUNTRY_INFO!$U$9:$U$1000="MDA4 (ALB/2*ALB)", COUNTRY_INFO!$U$9:$U$1000, " ") ->  | I102: 0 | M102: 0 | Q102: 0 | R102: 0 | S102: 0 | T102: 0 | U102: 0
A103: =IF(COUNTRY_INFO!A103=0," ",COUNTRY_INFO!A103) -> Angola | B103: =IF(COUNTRY_INFO!B103=0," ",COUNTRY_INFO!B103) -> LUANDA | C103: =IF(COUNTRY_INFO!C103=0," ",COUNTRY_INFO!C103) -> ICOLO E BENGO | D103: =IF(COUNTRY_INFO!$U$9:$U$1000="MDA4 (ALB/2*ALB)", COUNTRY_INFO!$U$9:$U$1000, " ") ->  | I103: 0 | M103: 0 | Q103: 0 | R103: 0 | S103: 0 | T103: 0 | U103: 0
A104: =IF(COUNTRY_INFO!A104=0," ",COUNTRY_INFO!A104) -> Angola | B104: =IF(COUNTRY_INFO!B104=0," ",COUNTRY_INFO!B104) -> LUANDA | C104: =IF(COUNTRY_INFO!C104=0," ",COUNTRY_INFO!C104) -> KILAMBA KIAXI | D104: =IF(COUNTRY_INFO!$U$9:$U$1000="MDA4 (ALB/2*ALB)", COUNTRY_INFO!$U$9:$U$1000, " ") ->  | I104: 0 | M104: 0 | Q104: 0 | R104: 0 | S104: 0 | T104: 0 | U104: 0
A105: =IF(COUNTRY_INFO!A105=0," ",COUNTRY_INFO!A105) -> Angola | B105: =IF(COUNTRY_INFO!B105=0," ",COUNTRY_INFO!B105) -> LUANDA | C105: =IF(COUNTRY_INFO!C105=0," ",COUNTRY_INFO!C105) -> LUANDA | D105: =IF(COUNTRY_INFO!$U$9:$U$1000="MDA4 (ALB/2*ALB)", COUNTRY_INFO!$U$9:$U$1000, " ") ->  | I105: 0 | M105: 0 | Q105: 0 | R105: 0 | S105: 0 | T105: 0 | U105: 0
A106: =IF(COUNTRY_INFO!A106=0," ",COUNTRY_INFO!A106) -> Angola | B106: =IF(COUNTRY_INFO!B106=0," ",COUNTRY_INFO!B106) -> LUANDA | C106: =IF(COUNTRY_INFO!C106=0," ",COUNTRY_INFO!C106) -> QUISSAMA | D106: =IF(COUNTRY_INFO!$U$9:$U$1000="MDA4 (ALB/2*ALB)", COUNTRY_INFO!$U$9:$U$1000, " ") ->  | I106: 0 | M106: 0 | Q106: 0 | R106: 0 | S106: 0 | T106: 0 | U106: 0
A107: =IF(COUNTRY_INFO!A107=0," ",COUNTRY_INFO!A107) -> Angola | B107: =IF(COUNTRY_INFO!B107=0," ",COUNTRY_INFO!B107) -> LUANDA | C107: =IF(COUNTRY_INFO!C107=0," ",COUNTRY_INFO!C107) -> TALATONA | D107: =IF(COUNTRY_INFO!$U$9:$U$1000="MDA4 (ALB/2*ALB)", COUNTRY_INFO!$U$9:$U$1000, " ") ->  | I107: 0 | M107: 0 | Q107: 0 | R107: 0 | S107: 0 | T107: 0 | U107: 0
A108: =IF(COUNTRY_INFO!A108=0," ",COUNTRY_INFO!A108) -> Angola | B108: =IF(COUNTRY_INFO!B108=0," ",COUNTRY_INFO!B108) -> LUANDA | C108: =IF(COUNTRY_INFO!C108=0," ",COUNTRY_INFO!C108) -> VIANA | D108: =IF(COUNTRY_INFO!$U$9:$U$1000="MDA4 (ALB/2*ALB)", COUNTRY_INFO!$U$9:$U$1000, " ") ->  | I108: 0 | M108: 0 | Q108: 0 | R108: 0 | S108: 0 | T108: 0 | U108: 0
A109: =IF(COUNTRY_INFO!A109=0," ",COUNTRY_INFO!A109) -> Angola | B109: =IF(COUNTRY_INFO!B109=0," ",COUNTRY_INFO!B109) -> LUNDA NORTE | C109: =IF(COUNTRY_INFO!C109=0," ",COUNTRY_INFO!C109) -> CAMBULO | D109: =IF(COUNTRY_INFO!$U$9:$U$1000="MDA4 (ALB/2*ALB)", COUNTRY_INFO!$U$9:$U$1000, " ") ->  | I109: 0 | M109: 0 | Q109: 0 | R109: 0 | S109: 0 | T109: 0 | U109: 0
A110: =IF(COUNTRY_INFO!A110=0," ",COUNTRY_INFO!A110) -> Angola | B110: =IF(COUNTRY_INFO!B110=0," ",COUNTRY_INFO!B110) -> LUNDA NORTE | C110: =IF(COUNTRY_INFO!C110=0," ",COUNTRY_INFO!C110) -> CAPENDA CAMULEMBA | D110: =IF(COUNTRY_INFO!$U$9:$U$1000="MDA4 (ALB/2*ALB)", COUNTRY_INFO!$U$9:$U$1000, " ") ->  | I110: 0 | M110: 0 | Q110: 0 | R110: 0 | S110: 0 | T110: 0 | U110: 0
A111: =IF(COUNTRY_INFO!A111=0," ",COUNTRY_INFO!A111) -> Angola | B111: =IF(COUNTRY_INFO!B111=0," ",COUNTRY_INFO!B111) -> LUNDA NORTE | C111: =IF(COUNTRY_INFO!C111=0," ",COUNTRY_INFO!C111) -> CAUNGULA | D111: =IF(COUNTRY_INFO!$U$9:$U$1000="MDA4 (ALB/2*ALB)", COUNTRY_INFO!$U$9:$U$1000, " ") ->  | I111: 0 | M111: 0 | Q111: 0 | R111: 0 | S111: 0 | T111: 0 | U111: 0
A112: =IF(COUNTRY_INFO!A112=0," ",COUNTRY_INFO!A112) -> Angola | B112: =IF(COUNTRY_INFO!B112=0," ",COUNTRY_INFO!B112) -> LUNDA NORTE | C112: =IF(COUNTRY_INFO!C112=0," ",COUNTRY_INFO!C112) -> CHITATO | D112: =IF(COUNTRY_INFO!$U$9:$U$1000="MDA4 (ALB/2*ALB)", COUNTRY_INFO!$U$9:$U$1000, " ") ->  | I112: 0 | M112: 0 | Q112: 0 | R112: 0 | S112: 0 | T112: 0 | U112: 0
A113: =IF(COUNTRY_INFO!A113=0," ",COUNTRY_INFO!A113) -> Angola | B113: =IF(COUNTRY_INFO!B113=0," ",COUNTRY_INFO!B113) -> LUNDA NORTE | C113: =IF(COUNTRY_INFO!C113=0," ",COUNTRY_INFO!C113) -> CUANGO | D113: =IF(COUNTRY_INFO!$U$9:$U$1000="MDA4 (ALB/2*ALB)", COUNTRY_INFO!$U$9:$U$1000, " ") ->  | I113: 0 | M113: 0 | Q113: 0 | R113: 0 | S113: 0 | T113: 0 | U113: 0
A114: =IF(COUNTRY_INFO!A114=0," ",COUNTRY_INFO!A114) -> Angola | B114: =IF(COUNTRY_INFO!B114=0," ",COUNTRY_INFO!B114) -> LUNDA NORTE | C114: =IF(COUNTRY_INFO!C114=0," ",COUNTRY_INFO!C114) -> CUILO | D114: =IF(COUNTRY_INFO!$U$9:$U$1000="MDA4 (ALB/2*ALB)", COUNTRY_INFO!$U$9:$U$1000, " ") ->  | I114: 0 | M114: 0 | Q114: 0 | R114: 0 | S114: 0 | T114: 0 | U114: 0
A115: =IF(COUNTRY_INFO!A115=0," ",COUNTRY_INFO!A115) -> Angola | B115: =IF(COUNTRY_INFO!B115=0," ",COUNTRY_INFO!B115) -> LUNDA NORTE | C115: =IF(COUNTRY_INFO!C115=0," ",COUNTRY_INFO!C115) -> LOVUA | D115: =IF(COUNTRY_INFO!$U$9:$U$1000="MDA4 (ALB/2*ALB)", COUNTRY_INFO!$U$9:$U$1000, " ") ->  | I115: 0 | M115: 0 | Q115: 0 | R115: 0 | S115: 0 | T115: 0 | U115: 0
A116: =IF(COUNTRY_INFO!A116=0," ",COUNTRY_INFO!A116) -> Angola | B116: =IF(COUNTRY_INFO!B116=0," ",COUNTRY_INFO!B116) -> LUNDA NORTE | C116: =IF(COUNTRY_INFO!C116=0," ",COUNTRY_INFO!C116) -> LUBALO | D116: =IF(COUNTRY_INFO!$U$9:$U$1000="MDA4 (ALB/2*ALB)", COUNTRY_INFO!$U$9:$U$1000, " ") ->  | I116: 0 | M116: 0 | Q116: 0 | R116: 0 | S116: 0 | T116: 0 | U116: 0
A117: =IF(COUNTRY_INFO!A117=0," ",COUNTRY_INFO!A117) -> Angola | B117: =IF(COUNTRY_INFO!B117=0," ",COUNTRY_INFO!B117) -> LUNDA NORTE | C117: =IF(COUNTRY_INFO!C117=0," ",COUNTRY_INFO!C117) -> LUCAPA | D117: =IF(COUNTRY_INFO!$U$9:$U$1000="MDA4 (ALB/2*ALB)", COUNTRY_INFO!$U$9:$U$1000, " ") ->  | I117: 0 | M117: 0 | Q117: 0 | R117: 0 | S117: 0 | T117: 0 | U117: 0
A118: =IF(COUNTRY_INFO!A118=0," ",COUNTRY_INFO!A118) -> Angola | B118: =IF(COUNTRY_INFO!B118=0," ",COUNTRY_INFO!B118) -> LUNDA NORTE | C118: =IF(COUNTRY_INFO!C118=0," ",COUNTRY_INFO!C118) -> XA MUTEBA | D118: =IF(COUNTRY_INFO!$U$9:$U$1000="MDA4 (ALB/2*ALB)", COUNTRY_INFO!$U$9:$U$1000, " ") ->  | I118: 0 | M118: 0 | Q118: 0 | R118: 0 | S118: 0 | T118: 0 | U118: 0
A119: =IF(COUNTRY_INFO!A119=0," ",COUNTRY_INFO!A119) -> Angola | B119: =IF(COUNTRY_INFO!B119=0," ",COUNTRY_INFO!B119) -> LUNDA SUL | C119: =IF(COUNTRY_INFO!C119=0," ",COUNTRY_INFO!C119) -> CACOLO | D119: =IF(COUNTRY_INFO!$U$9:$U$1000="MDA4 (ALB/2*ALB)", COUNTRY_INFO!$U$9:$U$1000, " ") ->  | I119: 0 | M119: 0 | Q119: 0 | R119: 0 | S119: 0 | T119: 0 | U119: 0
A120: =IF(COUNTRY_INFO!A120=0," ",COUNTRY_INFO!A120) -> Angola | B120: =IF(COUNTRY_INFO!B120=0," ",COUNTRY_INFO!B120) -> LUNDA SUL | C120: =IF(COUNTRY_INFO!C120=0," ",COUNTRY_INFO!C120) -> DALA | D120: =IF(COUNTRY_INFO!$U$9:$U$1000="MDA4 (ALB/2*ALB)", COUNTRY_INFO!$U$9:$U$1000, " ") ->  | I120: 0 | M120: 0 | Q120: 0 | R120: 0 | S120: 0 | T120: 0 | U120: 0
A121: =IF(COUNTRY_INFO!A121=0," ",COUNTRY_INFO!A121) -> Angola | B121: =IF(COUNTRY_INFO!B121=0," ",COUNTRY_INFO!B121) -> LUNDA SUL | C121: =IF(COUNTRY_INFO!C121=0," ",COUNTRY_INFO!C121) -> MUCONDA | D121: =IF(COUNTRY_INFO!$U$9:$U$1000="MDA4 (ALB/2*ALB)", COUNTRY_INFO!$U$9:$U$1000, " ") ->  | I121: 0 | M121: 0 | Q121: 0 | R121: 0 | S121: 0 | T121: 0 | U121: 0
A122: =IF(COUNTRY_INFO!A122=0," ",COUNTRY_INFO!A122) -> Angola | B122: =IF(COUNTRY_INFO!B122=0," ",COUNTRY_INFO!B122) -> LUNDA SUL | C122: =IF(COUNTRY_INFO!C122=0," ",COUNTRY_INFO!C122) -> SAURIMO | D122: =IF(COUNTRY_INFO!$U$9:$U$1000="MDA4 (ALB/2*ALB)", COUNTRY_INFO!$U$9:$U$1000, " ") ->  | I122: 0 | M122: 0 | Q122: 0 | R122: 0 | S122: 0 | T122: 0 | U122: 0
A123: =IF(COUNTRY_INFO!A123=0," ",COUNTRY_INFO!A123) -> Angola | B123: =IF(COUNTRY_INFO!B123=0," ",COUNTRY_INFO!B123) -> MALANJE | C123: =IF(COUNTRY_INFO!C123=0," ",COUNTRY_INFO!C123) -> CACULAMA (Mukari) | D123: =IF(COUNTRY_INFO!$U$9:$U$1000="MDA4 (ALB/2*ALB)", COUNTRY_INFO!$U$9:$U$1000, " ") ->  | I123: 0 | M123: 0 | Q123: 0 | R123: 0 | S123: 0 | T123: 0 | U123: 0
A124: =IF(COUNTRY_INFO!A124=0," ",COUNTRY_INFO!A124) -> Angola | B124: =IF(COUNTRY_INFO!B124=0," ",COUNTRY_INFO!B124) -> MALANJE | C124: =IF(COUNTRY_INFO!C124=0," ",COUNTRY_INFO!C124) -> CACUSO | D124: =IF(COUNTRY_INFO!$U$9:$U$1000="MDA4 (ALB/2*ALB)", COUNTRY_INFO!$U$9:$U$1000, " ") ->  | I124: 0 | M124: 0 | Q124: 0 | R124: 0 | S124: 0 | T124: 0 | U124: 0
A125: =IF(COUNTRY_INFO!A125=0," ",COUNTRY_INFO!A125) -> Angola | B125: =IF(COUNTRY_INFO!B125=0," ",COUNTRY_INFO!B125) -> MALANJE | C125: =IF(COUNTRY_INFO!C125=0," ",COUNTRY_INFO!C125) -> CAHOMBO | D125: =IF(COUNTRY_INFO!$U$9:$U$1000="MDA4 (ALB/2*ALB)", COUNTRY_INFO!$U$9:$U$1000, " ") ->  | I125: 0 | M125: 0 | Q125: 0 | R125: 0 | S125: 0 | T125: 0 | U125: 0
A126: =IF(COUNTRY_INFO!A126=0," ",COUNTRY_INFO!A126) -> Angola | B126: =IF(COUNTRY_INFO!B126=0," ",COUNTRY_INFO!B126) -> MALANJE | C126: =IF(COUNTRY_INFO!C126=0," ",COUNTRY_INFO!C126) -> CALANDULA | D126: =IF(COUNTRY_INFO!$U$9:$U$1000="MDA4 (ALB/2*ALB)", COUNTRY_INFO!$U$9:$U$1000, " ") ->  | I126: 0 | M126: 0 | Q126: 0 | R126: 0 | S126: 0 | T126: 0 | U126: 0
A127: =IF(COUNTRY_INFO!A127=0," ",COUNTRY_INFO!A127) -> Angola | B127: =IF(COUNTRY_INFO!B127=0," ",COUNTRY_INFO!B127) -> MALANJE | C127: =IF(COUNTRY_INFO!C127=0," ",COUNTRY_INFO!C127) -> CAMBUNDI CATEMBO | D127: =IF(COUNTRY_INFO!$U$9:$U$1000="MDA4 (ALB/2*ALB)", COUNTRY_INFO!$U$9:$U$1000, " ") ->  | I127: 0 | M127: 0 | Q127: 0 | R127: 0 | S127: 0 | T127: 0 | U127: 0
A128: =IF(COUNTRY_INFO!A128=0," ",COUNTRY_INFO!A128) -> Angola | B128: =IF(COUNTRY_INFO!B128=0," ",COUNTRY_INFO!B128) -> MALANJE | C128: =IF(COUNTRY_INFO!C128=0," ",COUNTRY_INFO!C128) -> CANGANDALA | D128: =IF(COUNTRY_INFO!$U$9:$U$1000="MDA4 (ALB/2*ALB)", COUNTRY_INFO!$U$9:$U$1000, " ") ->  | I128: 0 | M128: 0 | Q128: 0 | R128: 0 | S128: 0 | T128: 0 | U128: 0
A129: =IF(COUNTRY_INFO!A129=0," ",COUNTRY_INFO!A129) -> Angola | B129: =IF(COUNTRY_INFO!B129=0," ",COUNTRY_INFO!B129) -> MALANJE | C129: =IF(COUNTRY_INFO!C129=0," ",COUNTRY_INFO!C129) -> KIWABA NZOJI | D129: =IF(COUNTRY_INFO!$U$9:$U$1000="MDA4 (ALB/2*ALB)", COUNTRY_INFO!$U$9:$U$1000, " ") ->  | I129: 0 | M129: 0 | Q129: 0 | R129: 0 | S129: 0 | T129: 0 | U129: 0
A130: =IF(COUNTRY_INFO!A130=0," ",COUNTRY_INFO!A130) -> Angola | B130: =IF(COUNTRY_INFO!B130=0," ",COUNTRY_INFO!B130) -> MALANJE | C130: =IF(COUNTRY_INFO!C130=0," ",COUNTRY_INFO!C130) -> KUNDA DYA BASE | D130: =IF(COUNTRY_INFO!$U$9:$U$1000="MDA4 (ALB/2*ALB)", COUNTRY_INFO!$U$9:$U$1000, " ") ->  | I130: 0 | M130: 0 | Q130: 0 | R130: 0 | S130: 0 | T130: 0 | U130: 0
A131: =IF(COUNTRY_INFO!A131=0," ",COUNTRY_INFO!A131) -> Angola | B131: =IF(COUNTRY_INFO!B131=0," ",COUNTRY_INFO!B131) -> MALANJE | C131: =IF(COUNTRY_INFO!C131=0," ",COUNTRY_INFO!C131) -> LUQUEMBO | D131: =IF(COUNTRY_INFO!$U$9:$U$1000="MDA4 (ALB/2*ALB)", COUNTRY_INFO!$U$9:$U$1000, " ") ->  | I131: 0 | M131: 0 | Q131: 0 | R131: 0 | S131: 0 | T131: 0 | U131: 0
A132: =IF(COUNTRY_INFO!A132=0," ",COUNTRY_INFO!A132) -> Angola | B132: =IF(COUNTRY_INFO!B132=0," ",COUNTRY_INFO!B132) -> MALANJE | C132: =IF(COUNTRY_INFO!C132=0," ",COUNTRY_INFO!C132) -> MALANJE | D132: =IF(COUNTRY_INFO!$U$9:$U$1000="MDA4 (ALB/2*ALB)", COUNTRY_INFO!$U$9:$U$1000, " ") ->  | I132: 0 | M132: 0 | Q132: 0 | R132: 0 | S132: 0 | T132: 0 | U132: 0
A133: =IF(COUNTRY_INFO!A133=0," ",COUNTRY_INFO!A133) -> Angola | B133: =IF(COUNTRY_INFO!B133=0," ",COUNTRY_INFO!B133) -> MALANJE | C133: =IF(COUNTRY_INFO!C133=0," ",COUNTRY_INFO!C133) -> MARIMBA | D133: =IF(COUNTRY_INFO!$U$9:$U$1000="MDA4 (ALB/2*ALB)", COUNTRY_INFO!$U$9:$U$1000, " ") ->  | I133: 0 | M133: 0 | Q133: 0 | R133: 0 | S133: 0 | T133: 0 | U133: 0
A134: =IF(COUNTRY_INFO!A134=0," ",COUNTRY_INFO!A134) -> Angola | B134: =IF(COUNTRY_INFO!B134=0," ",COUNTRY_INFO!B134) -> MALANJE | C134: =IF(COUNTRY_INFO!C134=0," ",COUNTRY_INFO!C134) -> MASSANGO | D134: =IF(COUNTRY_INFO!$U$9:$U$1000="MDA4 (ALB/2*ALB)", COUNTRY_INFO!$U$9:$U$1000, " ") ->  | I134: 0 | M134: 0 | Q134: 0 | R134: 0 | S134: 0 | T134: 0 | U134: 0
A135: =IF(COUNTRY_INFO!A135=0," ",COUNTRY_INFO!A135) -> Angola | B135: =IF(COUNTRY_INFO!B135=0," ",COUNTRY_INFO!B135) -> MALANJE | C135: =IF(COUNTRY_INFO!C135=0," ",COUNTRY_INFO!C135) -> QUELA | D135: =IF(COUNTRY_INFO!$U$9:$U$1000="MDA4 (ALB/2*ALB)", COUNTRY_INFO!$U$9:$U$1000, " ") ->  | I135: 0 | M135: 0 | Q135: 0 | R135: 0 | S135: 0 | T135: 0 | U135: 0
A136: =IF(COUNTRY_INFO!A136=0," ",COUNTRY_INFO!A136) -> Angola | B136: =IF(COUNTRY_INFO!B136=0," ",COUNTRY_INFO!B136) -> MALANJE | C136: =IF(COUNTRY_INFO!C136=0," ",COUNTRY_INFO!C136) -> QUIRIMA | D136: =IF(COUNTRY_INFO!$U$9:$U$1000="MDA4 (ALB/2*ALB)", COUNTRY_INFO!$U$9:$U$1000, " ") ->  | I136: 0 | M136: 0 | Q136: 0 | R136: 0 | S136: 0 | T136: 0 | U136: 0
A137: =IF(COUNTRY_INFO!A137=0," ",COUNTRY_INFO!A137) -> Angola | B137: =IF(COUNTRY_INFO!B137=0," ",COUNTRY_INFO!B137) -> MOXICO | C137: =IF(COUNTRY_INFO!C137=0," ",COUNTRY_INFO!C137) -> ALTO ZAMBEZE | D137: =IF(COUNTRY_INFO!$U$9:$U$1000="MDA4 (ALB/2*ALB)", COUNTRY_INFO!$U$9:$U$1000, " ") ->  | I137: 0 | M137: 0 | Q137: 0 | R137: 0 | S137: 0 | T137: 0 | U137: 0
A138: =IF(COUNTRY_INFO!A138=0," ",COUNTRY_INFO!A138) -> Angola | B138: =IF(COUNTRY_INFO!B138=0," ",COUNTRY_INFO!B138) -> MOXICO | C138: =IF(COUNTRY_INFO!C138=0," ",COUNTRY_INFO!C138) -> BUNDAS (LUMBALA NGUIMBO) | D138: =IF(COUNTRY_INFO!$U$9:$U$1000="MDA4 (ALB/2*ALB)", COUNTRY_INFO!$U$9:$U$1000, " ") ->  | I138: =SUM(F138:H138) -> 0 | M138: =SUM(J138:L138) -> 0 | Q138: =SUM(N138:P138) -> 0 | R138: =MAX(J138,N138) -> 0 | S138: =MAX(K138,O138) -> 0 | T138: =MAX(L138,P138) -> 0 | U138: =SUM(R138:T138) -> 0 | V138: =IF(F138<>0, IF(R138/F138*100=0, "-", R138/F138*100), " ") ->  | W138: =IF(G138<>0, IF(S138/G138*100=0, "-", S138/G138*100), " ") ->  | X138: =IF(H138<>0, IF(T138/H138*100=0, "-", T138/H138*100), " ") ->  | Y138: =IF(I138<>0, IF(U138/I138*100=0, "-", U138/I138*100), " ") -> 
A139: =IF(COUNTRY_INFO!A139=0," ",COUNTRY_INFO!A139) -> Angola | B139: =IF(COUNTRY_INFO!B139=0," ",COUNTRY_INFO!B139) -> MOXICO | C139: =IF(COUNTRY_INFO!C139=0," ",COUNTRY_INFO!C139) -> CAMANONGUE | D139: =IF(COUNTRY_INFO!$U$9:$U$1000="MDA4 (ALB/2*ALB)", COUNTRY_INFO!$U$9:$U$1000, " ") ->  | I139: 0 | M139: 0 | Q139: 0 | R139: 0 | S139: 0 | T139: 0 | U139: 0
A140: =IF(COUNTRY_INFO!A140=0," ",COUNTRY_INFO!A140) -> Angola | B140: =IF(COUNTRY_INFO!B140=0," ",COUNTRY_INFO!B140) -> MOXICO | C140: =IF(COUNTRY_INFO!C140=0," ",COUNTRY_INFO!C140) -> CAMEIA (LUMEJE) | D140: =IF(COUNTRY_INFO!$U$9:$U$1000="MDA4 (ALB/2*ALB)", COUNTRY_INFO!$U$9:$U$1000, " ") ->  | I140: 0 | M140: 0 | Q140: 0 | R140: 0 | S140: 0 | T140: 0 | U140: 0
A141: =IF(COUNTRY_INFO!A141=0," ",COUNTRY_INFO!A141) -> Angola | B141: =IF(COUNTRY_INFO!B141=0," ",COUNTRY_INFO!B141) -> MOXICO | C141: =IF(COUNTRY_INFO!C141=0," ",COUNTRY_INFO!C141) -> LEUA | D141: =IF(COUNTRY_INFO!$U$9:$U$1000="MDA4 (ALB/2*ALB)", COUNTRY_INFO!$U$9:$U$1000, " ") ->  | I141: 0 | M141: 0 | Q141: 0 | R141: 0 | S141: 0 | T141: 0 | U141: 0
A142: =IF(COUNTRY_INFO!A142=0," ",COUNTRY_INFO!A142) -> Angola | B142: =IF(COUNTRY_INFO!B142=0," ",COUNTRY_INFO!B142) -> MOXICO | C142: =IF(COUNTRY_INFO!C142=0," ",COUNTRY_INFO!C142) -> LUACANO | D142: =IF(COUNTRY_INFO!$U$9:$U$1000="MDA4 (ALB/2*ALB)", COUNTRY_INFO!$U$9:$U$1000, " ") ->  | I142: 0 | M142: 0 | Q142: 0 | R142: 0 | S142: 0 | T142: 0 | U142: 0
A143: =IF(COUNTRY_INFO!A143=0," ",COUNTRY_INFO!A143) -> Angola | B143: =IF(COUNTRY_INFO!B143=0," ",COUNTRY_INFO!B143) -> MOXICO | C143: =IF(COUNTRY_INFO!C143=0," ",COUNTRY_INFO!C143) -> LUAU | D143: =IF(COUNTRY_INFO!$U$9:$U$1000="MDA4 (ALB/2*ALB)", COUNTRY_INFO!$U$9:$U$1000, " ") ->  | I143: 0 | M143: 0 | Q143: 0 | R143: 0 | S143: 0 | T143: 0 | U143: 0
A144: =IF(COUNTRY_INFO!A144=0," ",COUNTRY_INFO!A144) -> Angola | B144: =IF(COUNTRY_INFO!B144=0," ",COUNTRY_INFO!B144) -> MOXICO | C144: =IF(COUNTRY_INFO!C144=0," ",COUNTRY_INFO!C144) -> LUCHAZES | D144: =IF(COUNTRY_INFO!$U$9:$U$1000="MDA4 (ALB/2*ALB)", COUNTRY_INFO!$U$9:$U$1000, " ") ->  | I144: 0 | M144: 0 | Q144: 0 | R144: 0 | S144: 0 | T144: 0 | U144: 0
A145: =IF(COUNTRY_INFO!A145=0," ",COUNTRY_INFO!A145) -> Angola | B145: =IF(COUNTRY_INFO!B145=0," ",COUNTRY_INFO!B145) -> MOXICO | C145: =IF(COUNTRY_INFO!C145=0," ",COUNTRY_INFO!C145) -> MOXICO/LUENA | D145: =IF(COUNTRY_INFO!$U$9:$U$1000="MDA4 (ALB/2*ALB)", COUNTRY_INFO!$U$9:$U$1000, " ") ->  | I145: 0 | M145: 0 | Q145: 0 | R145: 0 | S145: 0 | T145: 0 | U145: 0
A146: =IF(COUNTRY_INFO!A146=0," ",COUNTRY_INFO!A146) -> Angola | B146: =IF(COUNTRY_INFO!B146=0," ",COUNTRY_INFO!B146) -> NAMIBE | C146: =IF(COUNTRY_INFO!C146=0," ",COUNTRY_INFO!C146) -> BIBALA | D146: =IF(COUNTRY_INFO!$U$9:$U$1000="MDA4 (ALB/2*ALB)", COUNTRY_INFO!$U$9:$U$1000, " ") ->  | I146: 0 | M146: 0 | Q146: 0 | R146: 0 | S146: 0 | T146: 0 | U146: 0
A147: =IF(COUNTRY_INFO!A147=0," ",COUNTRY_INFO!A147) -> Angola | B147: =IF(COUNTRY_INFO!B147=0," ",COUNTRY_INFO!B147) -> NAMIBE | C147: =IF(COUNTRY_INFO!C147=0," ",COUNTRY_INFO!C147) -> CAMUCUIO | D147: =IF(COUNTRY_INFO!$U$9:$U$1000="MDA4 (ALB/2*ALB)", COUNTRY_INFO!$U$9:$U$1000, " ") ->  | I147: 0 | M147: 0 | Q147: 0 | R147: 0 | S147: 0 | T147: 0 | U147: 0
A148: =IF(COUNTRY_INFO!A148=0," ",COUNTRY_INFO!A148) -> Angola | B148: =IF(COUNTRY_INFO!B148=0," ",COUNTRY_INFO!B148) -> NAMIBE | C148: =IF(COUNTRY_INFO!C148=0," ",COUNTRY_INFO!C148) -> NAMIBE | D148: =IF(COUNTRY_INFO!$U$9:$U$1000="MDA4 (ALB/2*ALB)", COUNTRY_INFO!$U$9:$U$1000, " ") ->  | I148: 0 | M148: 0 | Q148: 0 | R148: 0 | S148: 0 | T148: 0 | U148: 0
A149: =IF(COUNTRY_INFO!A149=0," ",COUNTRY_INFO!A149) -> Angola | B149: =IF(COUNTRY_INFO!B149=0," ",COUNTRY_INFO!B149) -> NAMIBE | C149: =IF(COUNTRY_INFO!C149=0," ",COUNTRY_INFO!C149) -> TOMBWA | D149: =IF(COUNTRY_INFO!$U$9:$U$1000="MDA4 (ALB/2*ALB)", COUNTRY_INFO!$U$9:$U$1000, " ") ->  | I149: 0 | M149: 0 | Q149: 0 | R149: 0 | S149: 0 | T149: 0 | U149: 0
A150: =IF(COUNTRY_INFO!A150=0," ",COUNTRY_INFO!A150) -> Angola | B150: =IF(COUNTRY_INFO!B150=0," ",COUNTRY_INFO!B150) -> NAMIBE | C150: =IF(COUNTRY_INFO!C150=0," ",COUNTRY_INFO!C150) -> VIREI | D150: =IF(COUNTRY_INFO!$U$9:$U$1000="MDA4 (ALB/2*ALB)", COUNTRY_INFO!$U$9:$U$1000, " ") ->  | I150: 0 | M150: 0 | Q150: 0 | R150: 0 | S150: 0 | T150: 0 | U150: 0
A151: =IF(COUNTRY_INFO!A151=0," ",COUNTRY_INFO!A151) -> Angola | B151: =IF(COUNTRY_INFO!B151=0," ",COUNTRY_INFO!B151) -> UIGE | C151: =IF(COUNTRY_INFO!C151=0," ",COUNTRY_INFO!C151) -> AMBUILA | D151: =IF(COUNTRY_INFO!$U$9:$U$1000="MDA4 (ALB/2*ALB)", COUNTRY_INFO!$U$9:$U$1000, " ") ->  | I151: 0 | M151: 0 | Q151: 0 | R151: 0 | S151: 0 | T151: 0 | U151: 0
A152: =IF(COUNTRY_INFO!A152=0," ",COUNTRY_INFO!A152) -> Angola | B152: =IF(COUNTRY_INFO!B152=0," ",COUNTRY_INFO!B152) -> UIGE | C152: =IF(COUNTRY_INFO!C152=0," ",COUNTRY_INFO!C152) -> BEMBE | D152: =IF(COUNTRY_INFO!$U$9:$U$1000="MDA4 (ALB/2*ALB)", COUNTRY_INFO!$U$9:$U$1000, " ") ->  | I152: 0 | M152: 0 | Q152: 0 | R152: 0 | S152: 0 | T152: 0 | U152: 0
A153: =IF(COUNTRY_INFO!A153=0," ",COUNTRY_INFO!A153) -> Angola | B153: =IF(COUNTRY_INFO!B153=0," ",COUNTRY_INFO!B153) -> UIGE | C153: =IF(COUNTRY_INFO!C153=0," ",COUNTRY_INFO!C153) -> BUENGAS | D153: =IF(COUNTRY_INFO!$U$9:$U$1000="MDA4 (ALB/2*ALB)", COUNTRY_INFO!$U$9:$U$1000, " ") ->  | I153: 0 | M153: 0 | Q153: 0 | R153: 0 | S153: 0 | T153: 0 | U153: 0
A154: =IF(COUNTRY_INFO!A154=0," ",COUNTRY_INFO!A154) -> Angola | B154: =IF(COUNTRY_INFO!B154=0," ",COUNTRY_INFO!B154) -> UIGE | C154: =IF(COUNTRY_INFO!C154=0," ",COUNTRY_INFO!C154) -> BUNGO | D154: =IF(COUNTRY_INFO!$U$9:$U$1000="MDA4 (ALB/2*ALB)", COUNTRY_INFO!$U$9:$U$1000, " ") ->  | I154: 0 | M154: 0 | Q154: 0 | R154: 0 | S154: 0 | T154: 0 | U154: 0
A155: =IF(COUNTRY_INFO!A155=0," ",COUNTRY_INFO!A155) -> Angola | B155: =IF(COUNTRY_INFO!B155=0," ",COUNTRY_INFO!B155) -> UIGE | C155: =IF(COUNTRY_INFO!C155=0," ",COUNTRY_INFO!C155) -> CANGOLA | D155: =IF(COUNTRY_INFO!$U$9:$U$1000="MDA4 (ALB/2*ALB)", COUNTRY_INFO!$U$9:$U$1000, " ") ->  | I155: 0 | M155: 0 | Q155: 0 | R155: 0 | S155: 0 | T155: 0 | U155: 0
A156: =IF(COUNTRY_INFO!A156=0," ",COUNTRY_INFO!A156) -> Angola | B156: =IF(COUNTRY_INFO!B156=0," ",COUNTRY_INFO!B156) -> UIGE | C156: =IF(COUNTRY_INFO!C156=0," ",COUNTRY_INFO!C156) -> DAMBA | D156: =IF(COUNTRY_INFO!$U$9:$U$1000="MDA4 (ALB/2*ALB)", COUNTRY_INFO!$U$9:$U$1000, " ") ->  | I156: 0 | M156: 0 | Q156: 0 | R156: 0 | S156: 0 | T156: 0 | U156: 0
A157: =IF(COUNTRY_INFO!A157=0," ",COUNTRY_INFO!A157) -> Angola | B157: =IF(COUNTRY_INFO!B157=0," ",COUNTRY_INFO!B157) -> UIGE | C157: =IF(COUNTRY_INFO!C157=0," ",COUNTRY_INFO!C157) -> MAQUELA DO ZOMBO | D157: =IF(COUNTRY_INFO!$U$9:$U$1000="MDA4 (ALB/2*ALB)", COUNTRY_INFO!$U$9:$U$1000, " ") ->  | I157: 0 | M157: 0 | Q157: 0 | R157: 0 | S157: 0 | T157: 0 | U157: 0
A158: =IF(COUNTRY_INFO!A158=0," ",COUNTRY_INFO!A158) -> Angola | B158: =IF(COUNTRY_INFO!B158=0," ",COUNTRY_INFO!B158) -> UIGE | C158: =IF(COUNTRY_INFO!C158=0," ",COUNTRY_INFO!C158) -> MILUNGA | D158: =IF(COUNTRY_INFO!$U$9:$U$1000="MDA4 (ALB/2*ALB)", COUNTRY_INFO!$U$9:$U$1000, " ") ->  | I158: 0 | M158: 0 | Q158: 0 | R158: 0 | S158: 0 | T158: 0 | U158: 0
A159: =IF(COUNTRY_INFO!A159=0," ",COUNTRY_INFO!A159) -> Angola | B159: =IF(COUNTRY_INFO!B159=0," ",COUNTRY_INFO!B159) -> UIGE | C159: =IF(COUNTRY_INFO!C159=0," ",COUNTRY_INFO!C159) -> MUCABA | D159: =IF(COUNTRY_INFO!$U$9:$U$1000="MDA4 (ALB/2*ALB)", COUNTRY_INFO!$U$9:$U$1000, " ") ->  | I159: 0 | M159: 0 | Q159: 0 | R159: 0 | S159: 0 | T159: 0 | U159: 0
A160: =IF(COUNTRY_INFO!A160=0," ",COUNTRY_INFO!A160) -> Angola | B160: =IF(COUNTRY_INFO!B160=0," ",COUNTRY_INFO!B160) -> UIGE | C160: =IF(COUNTRY_INFO!C160=0," ",COUNTRY_INFO!C160) -> NEGAGE | D160: =IF(COUNTRY_INFO!$U$9:$U$1000="MDA4 (ALB/2*ALB)", COUNTRY_INFO!$U$9:$U$1000, " ") ->  | I160: 0 | M160: 0 | Q160: 0 | R160: 0 | S160: 0 | T160: 0 | U160: 0
A161: =IF(COUNTRY_INFO!A161=0," ",COUNTRY_INFO!A161) -> Angola | B161: =IF(COUNTRY_INFO!B161=0," ",COUNTRY_INFO!B161) -> UIGE | C161: =IF(COUNTRY_INFO!C161=0," ",COUNTRY_INFO!C161) -> PURI | D161: =IF(COUNTRY_INFO!$U$9:$U$1000="MDA4 (ALB/2*ALB)", COUNTRY_INFO!$U$9:$U$1000, " ") ->  | I161: 0 | M161: 0 | Q161: 0 | R161: 0 | S161: 0 | T161: 0 | U161: 0
A162: =IF(COUNTRY_INFO!A162=0," ",COUNTRY_INFO!A162) -> Angola | B162: =IF(COUNTRY_INFO!B162=0," ",COUNTRY_INFO!B162) -> UIGE | C162: =IF(COUNTRY_INFO!C162=0," ",COUNTRY_INFO!C162) -> QUIMBELE | D162: =IF(COUNTRY_INFO!$U$9:$U$1000="MDA4 (ALB/2*ALB)", COUNTRY_INFO!$U$9:$U$1000, " ") ->  | I162: 0 | M162: 0 | Q162: 0 | R162: 0 | S162: 0 | T162: 0 | U162: 0
A163: =IF(COUNTRY_INFO!A163=0," ",COUNTRY_INFO!A163) -> Angola | B163: =IF(COUNTRY_INFO!B163=0," ",COUNTRY_INFO!B163) -> UIGE | C163: =IF(COUNTRY_INFO!C163=0," ",COUNTRY_INFO!C163) -> QUITEXE | D163: =IF(COUNTRY_INFO!$U$9:$U$1000="MDA4 (ALB/2*ALB)", COUNTRY_INFO!$U$9:$U$1000, " ") ->  | I163: 0 | M163: 0 | Q163: 0 | R163: 0 | S163: 0 | T163: 0 | U163: 0
A164: =IF(COUNTRY_INFO!A164=0," ",COUNTRY_INFO!A164) -> Angola | B164: =IF(COUNTRY_INFO!B164=0," ",COUNTRY_INFO!B164) -> UIGE | C164: =IF(COUNTRY_INFO!C164=0," ",COUNTRY_INFO!C164) -> SANZA POMBO | D164: =IF(COUNTRY_INFO!$U$9:$U$1000="MDA4 (ALB/2*ALB)", COUNTRY_INFO!$U$9:$U$1000, " ") ->  | I164: 0 | M164: 0 | Q164: 0 | R164: 0 | S164: 0 | T164: 0 | U164: 0
A165: =IF(COUNTRY_INFO!A165=0," ",COUNTRY_INFO!A165) -> Angola | B165: =IF(COUNTRY_INFO!B165=0," ",COUNTRY_INFO!B165) -> UIGE | C165: =IF(COUNTRY_INFO!C165=0," ",COUNTRY_INFO!C165) -> SONGO | D165: =IF(COUNTRY_INFO!$U$9:$U$1000="MDA4 (ALB/2*ALB)", COUNTRY_INFO!$U$9:$U$1000, " ") ->  | I165: 0 | M165: 0 | Q165: 0 | R165: 0 | S165: 0 | T165: 0 | U165: 0
A166: =IF(COUNTRY_INFO!A166=0," ",COUNTRY_INFO!A166) -> Angola | B166: =IF(COUNTRY_INFO!B166=0," ",COUNTRY_INFO!B166) -> UIGE | C166: =IF(COUNTRY_INFO!C166=0," ",COUNTRY_INFO!C166) -> UIGE | D166: =IF(COUNTRY_INFO!$U$9:$U$1000="MDA4 (ALB/2*ALB)", COUNTRY_INFO!$U$9:$U$1000, " ") ->  | I166: 0 | M166: 0 | Q166: 0 | R166: 0 | S166: 0 | T166: 0 | U166: 0
A167: =IF(COUNTRY_INFO!A167=0," ",COUNTRY_INFO!A167) -> Angola | B167: =IF(COUNTRY_INFO!B167=0," ",COUNTRY_INFO!B167) -> ZAIRE | C167: =IF(COUNTRY_INFO!C167=0," ",COUNTRY_INFO!C167) -> CUIMBA | D167: =IF(COUNTRY_INFO!$U$9:$U$1000="MDA4 (ALB/2*ALB)", COUNTRY_INFO!$U$9:$U$1000, " ") ->  | I167: 0 | M167: 0 | Q167: 0 | R167: 0 | S167: 0 | T167: 0 | U167: 0
A168: =IF(COUNTRY_INFO!A168=0," ",COUNTRY_INFO!A168) -> Angola | B168: =IF(COUNTRY_INFO!B168=0," ",COUNTRY_INFO!B168) -> ZAIRE | C168: =IF(COUNTRY_INFO!C168=0," ",COUNTRY_INFO!C168) -> MBANZA KONGO | D168: =IF(COUNTRY_INFO!$U$9:$U$1000="MDA4 (ALB/2*ALB)", COUNTRY_INFO!$U$9:$U$1000, " ") ->  | I168: 0 | M168: 0 | Q168: 0 | R168: 0 | S168: 0 | T168: 0 | U168: 0
A169: =IF(COUNTRY_INFO!A169=0," ",COUNTRY_INFO!A169) -> Angola | B169: =IF(COUNTRY_INFO!B169=0," ",COUNTRY_INFO!B169) -> ZAIRE | C169: =IF(COUNTRY_INFO!C169=0," ",COUNTRY_INFO!C169) -> NOQUI | D169: =IF(COUNTRY_INFO!$U$9:$U$1000="MDA4 (ALB/2*ALB)", COUNTRY_INFO!$U$9:$U$1000, " ") ->  | I169: 0 | M169: 0 | Q169: 0 | R169: 0 | S169: 0 | T169: 0 | U169: 0
A170: =IF(COUNTRY_INFO!A170=0," ",COUNTRY_INFO!A170) -> Angola | B170: =IF(COUNTRY_INFO!B170=0," ",COUNTRY_INFO!B170) -> ZAIRE | C170: =IF(COUNTRY_INFO!C170=0," ",COUNTRY_INFO!C170) -> NZETO | D170: =IF(COUNTRY_INFO!$U$9:$U$1000="MDA4 (ALB/2*ALB)", COUNTRY_INFO!$U$9:$U$1000, " ") ->  | I170: 0 | M170: 0 | Q170: 0 | R170: 0 | S170: 0 | T170: 0 | U170: 0
A171: =IF(COUNTRY_INFO!A171=0," ",COUNTRY_INFO!A171) -> Angola | B171: =IF(COUNTRY_INFO!B171=0," ",COUNTRY_INFO!B171) -> ZAIRE | C171: =IF(COUNTRY_INFO!C171=0," ",COUNTRY_INFO!C171) -> SOYO | D171: =IF(COUNTRY_INFO!$U$9:$U$1000="MDA4 (ALB/2*ALB)", COUNTRY_INFO!$U$9:$U$1000, " ") ->  | I171: 0 | M171: 0 | Q171: 0 | R171: 0 | S171: 0 | T171: 0 | U171: 0
A172: =IF(COUNTRY_INFO!A172=0," ",COUNTRY_INFO!A172) -> Angola | B172: =IF(COUNTRY_INFO!B172=0," ",COUNTRY_INFO!B172) -> ZAIRE | C172: =IF(COUNTRY_INFO!C172=0," ",COUNTRY_INFO!C172) -> TOMBOCO | D172: =IF(COUNTRY_INFO!$U$9:$U$1000="MDA4 (ALB/2*ALB)", COUNTRY_INFO!$U$9:$U$1000, " ") ->  | I172: 0 | M172: 0 | Q172: 0 | R172: 0 | S172: 0 | T172: 0 | U172: 0

Sheet MDA3
A1: MDA 3 - Ivermectin (IVM)
A2: Administrative structure, population requiring PC by age group, population treated by age group and coverage
A4: TOTAL | F4: =SUM(F$9:F$1000) -> 0 | G4: 0 | H4: 0 | I4: 0 | J4: 0 | K4: 0 | L4: 0 | M4: 0 | N4: 0 | O4: 0 | P4: 0 | Q4: 0 | R4: =IF(F4<>0, IF(O4/F4*100=0, "-", O4/F4*100), " ") ->  | S4: =IF(G4<>0, IF(P4/G4*100=0, "-", P4/G4*100), " ") ->  | T4: =IF(H4<>0, IF(Q4/H4*100=0, "-", Q4/H4*100), " ") -> 
D6: PC implemented | E6: Date | F6: Population targeted for MDA 3 | I6: Population treated - 1st round | L6: Population treated - 2nd round | O6: Population treated | R6: Programme coverage (%)
A7: Country | B7: Province/State | C7: District | F7: SAC | G7: Adults | H7: Total | I7: SAC | J7: Adults | K7: Total | L7: SAC | M7: Adults | N7: Total | O7: SAC | P7: Adults | Q7: Total | R7: SAC | S7: Adults | T7: Total
A9: =IF(COUNTRY_INFO!A9=0," ",COUNTRY_INFO!A9) -> Angola | B9: =IF(COUNTRY_INFO!B9=0," ",COUNTRY_INFO!B9) -> BENGO | C9: =IF(COUNTRY_INFO!C9=0," ",COUNTRY_INFO!C9) -> AMBRIZ | D9: =IF(COUNTRY_INFO!$U$9:$U$1000="MDA3 (IVM)", COUNTRY_INFO!$U$9:$U$1000, " ") ->  | H9: =SUM(F9:G9) -> 0 | K9: =SUM(I9:J9) -> 0 | N9: =SUM(L9:M9) -> 0 | O9: =MAX(I9,L9) -> 0 | P9: =MAX(J9,M9) -> 0 | Q9: =SUM(O9:P9) -> 0 | R9: =IF(F9<>0, IF(MAX(I9,L9)/F9*100=0, "-", MAX(I9,L9)/F9*100), " ") ->  | S9: =IF(G9<>0, IF(MAX(J9,M9)/G9*100=0, "-", MAX(J9,M9)/G9*100), " ") ->  | T9: =IF(H9<>0, IF((MAX(I9,L9)+MAX(J9,M9))/H9*100=0, "-",(MAX(I9,L9)+MAX(J9,M9))/H9*100), " ") -> 
A10: =IF(COUNTRY_INFO!A10=0," ",COUNTRY_INFO!A10) -> Angola | B10: =IF(COUNTRY_INFO!B10=0," ",COUNTRY_INFO!B10) -> BENGO | C10: =IF(COUNTRY_INFO!C10=0," ",COUNTRY_INFO!C10) -> BULA ATUMBA | D10: =IF(COUNTRY_INFO!$U$9:$U$1000="MDA3 (IVM)", COUNTRY_INFO!$U$9:$U$1000, " ") ->  | H10: =SUM(F10:G10) -> 0 | K10: =SUM(I10:J10) -> 0 | N10: =SUM(L10:M10) -> 0 | O10: =MAX(I10,L10) -> 0 | P10: =MAX(J10,M10) -> 0 | Q10: =SUM(O10:P10) -> 0 | R10: =IF(F10<>0, IF(MAX(I10,L10)/F10*100=0, "-", MAX(I10,L10)/F10*100), " ") ->  | S10: =IF(G10<>0, IF(MAX(J10,M10)/G10*100=0, "-", MAX(J10,M10)/G10*100), " ") ->  | T10: =IF(H10<>0, IF((MAX(I10,L10)+MAX(J10,M10))/H10*100=0, "-",(MAX(I10,L10)+MAX(J10,M10))/H10*100), " ") -> 
A11: =IF(COUNTRY_INFO!A11=0," ",COUNTRY_INFO!A11) -> Angola | B11: =IF(COUNTRY_INFO!B11=0," ",COUNTRY_INFO!B11) -> BENGO | C11: =IF(COUNTRY_INFO!C11=0," ",COUNTRY_INFO!C11) -> DANDE | D11: =IF(COUNTRY_INFO!$U$9:$U$1000="MDA3 (IVM)", COUNTRY_INFO!$U$9:$U$1000, " ") ->  | H11: 0 | K11: 0 | N11: 0 | O11: 0 | P11: 0 | Q11: 0
A12: =IF(COUNTRY_INFO!A12=0," ",COUNTRY_INFO!A12) -> Angola | B12: =IF(COUNTRY_INFO!B12=0," ",COUNTRY_INFO!B12) -> BENGO | C12: =IF(COUNTRY_INFO!C12=0," ",COUNTRY_INFO!C12) -> DEMBOS | D12: =IF(COUNTRY_INFO!$U$9:$U$1000="MDA3 (IVM)", COUNTRY_INFO!$U$9:$U$1000, " ") ->  | H12: 0 | K12: 0 | N12: 0 | O12: 0 | P12: 0 | Q12: 0
A13: =IF(COUNTRY_INFO!A13=0," ",COUNTRY_INFO!A13) -> Angola | B13: =IF(COUNTRY_INFO!B13=0," ",COUNTRY_INFO!B13) -> BENGO | C13: =IF(COUNTRY_INFO!C13=0," ",COUNTRY_INFO!C13) -> NAMBUANGONGO | D13: =IF(COUNTRY_INFO!$U$9:$U$1000="MDA3 (IVM)", COUNTRY_INFO!$U$9:$U$1000, " ") ->  | H13: 0 | K13: 0 | N13: 0 | O13: 0 | P13: 0 | Q13: 0
A14: =IF(COUNTRY_INFO!A14=0," ",COUNTRY_INFO!A14) -> Angola | B14: =IF(COUNTRY_INFO!B14=0," ",COUNTRY_INFO!B14) -> BENGO | C14: =IF(COUNTRY_INFO!C14=0," ",COUNTRY_INFO!C14) -> PANGO ALUQUEM | D14: =IF(COUNTRY_INFO!$U$9:$U$1000="MDA3 (IVM)", COUNTRY_INFO!$U$9:$U$1000, " ") ->  | H14: 0 | K14: 0 | N14: 0 | O14: 0 | P14: 0 | Q14: 0
A15: =IF(COUNTRY_INFO!A15=0," ",COUNTRY_INFO!A15) -> Angola | B15: =IF(COUNTRY_INFO!B15=0," ",COUNTRY_INFO!B15) -> BENGUELA | C15: =IF(COUNTRY_INFO!C15=0," ",COUNTRY_INFO!C15) -> BAIA FARTA | D15: =IF(COUNTRY_INFO!$U$9:$U$1000="MDA3 (IVM)", COUNTRY_INFO!$U$9:$U$1000, " ") ->  | H15: 0 | K15: 0 | N15: 0 | O15: 0 | P15: 0 | Q15: 0
A16: =IF(COUNTRY_INFO!A16=0," ",COUNTRY_INFO!A16) -> Angola | B16: =IF(COUNTRY_INFO!B16=0," ",COUNTRY_INFO!B16) -> BENGUELA | C16: =IF(COUNTRY_INFO!C16=0," ",COUNTRY_INFO!C16) -> BALOMBO | D16: =IF(COUNTRY_INFO!$U$9:$U$1000="MDA3 (IVM)", COUNTRY_INFO!$U$9:$U$1000, " ") ->  | H16: 0 | K16: 0 | N16: 0 | O16: 0 | P16: 0 | Q16: 0
A17: =IF(COUNTRY_INFO!A17=0," ",COUNTRY_INFO!A17) -> Angola | B17: =IF(COUNTRY_INFO!B17=0," ",COUNTRY_INFO!B17) -> BENGUELA | C17: =IF(COUNTRY_INFO!C17=0," ",COUNTRY_INFO!C17) -> BENGUELA | D17: =IF(COUNTRY_INFO!$U$9:$U$1000="MDA3 (IVM)", COUNTRY_INFO!$U$9:$U$1000, " ") ->  | H17: 0 | K17: 0 | N17: 0 | O17: 0 | P17: 0 | Q17: 0
A18: =IF(COUNTRY_INFO!A18=0," ",COUNTRY_INFO!A18) -> Angola | B18: =IF(COUNTRY_INFO!B18=0," ",COUNTRY_INFO!B18) -> BENGUELA | C18: =IF(COUNTRY_INFO!C18=0," ",COUNTRY_INFO!C18) -> BOCOIO | D18: =IF(COUNTRY_INFO!$U$9:$U$1000="MDA3 (IVM)", COUNTRY_INFO!$U$9:$U$1000, " ") ->  | H18: 0 | K18: 0 | N18: 0 | O18: 0 | P18: 0 | Q18: 0
A19: =IF(COUNTRY_INFO!A19=0," ",COUNTRY_INFO!A19) -> Angola | B19: =IF(COUNTRY_INFO!B19=0," ",COUNTRY_INFO!B19) -> BENGUELA | C19: =IF(COUNTRY_INFO!C19=0," ",COUNTRY_INFO!C19) -> CAIMBAMBO | D19: =IF(COUNTRY_INFO!$U$9:$U$1000="MDA3 (IVM)", COUNTRY_INFO!$U$9:$U$1000, " ") ->  | H19: 0 | K19: 0 | N19: 0 | O19: 0 | P19: 0 | Q19: 0
A20: =IF(COUNTRY_INFO!A20=0," ",COUNTRY_INFO!A20) -> Angola | B20: =IF(COUNTRY_INFO!B20=0," ",COUNTRY_INFO!B20) -> BENGUELA | C20: =IF(COUNTRY_INFO!C20=0," ",COUNTRY_INFO!C20) -> CATUMBELA | D20: =IF(COUNTRY_INFO!$U$9:$U$1000="MDA3 (IVM)", COUNTRY_INFO!$U$9:$U$1000, " ") ->  | H20: 0 | K20: 0 | N20: 0 | O20: 0 | P20: 0 | Q20: 0
A21: =IF(COUNTRY_INFO!A21=0," ",COUNTRY_INFO!A21) -> Angola | B21: =IF(COUNTRY_INFO!B21=0," ",COUNTRY_INFO!B21) -> BENGUELA | C21: =IF(COUNTRY_INFO!C21=0," ",COUNTRY_INFO!C21) -> CHONGOROI | D21: =IF(COUNTRY_INFO!$U$9:$U$1000="MDA3 (IVM)", COUNTRY_INFO!$U$9:$U$1000, " ") ->  | H21: 0 | K21: 0 | N21: 0 | O21: 0 | P21: 0 | Q21: 0
A22: =IF(COUNTRY_INFO!A22=0," ",COUNTRY_INFO!A22) -> Angola | B22: =IF(COUNTRY_INFO!B22=0," ",COUNTRY_INFO!B22) -> BENGUELA | C22: =IF(COUNTRY_INFO!C22=0," ",COUNTRY_INFO!C22) -> CUBAL | D22: =IF(COUNTRY_INFO!$U$9:$U$1000="MDA3 (IVM)", COUNTRY_INFO!$U$9:$U$1000, " ") ->  | H22: 0 | K22: 0 | N22: 0 | O22: 0 | P22: 0 | Q22: 0
A23: =IF(COUNTRY_INFO!A23=0," ",COUNTRY_INFO!A23) -> Angola | B23: =IF(COUNTRY_INFO!B23=0," ",COUNTRY_INFO!B23) -> BENGUELA | C23: =IF(COUNTRY_INFO!C23=0," ",COUNTRY_INFO!C23) -> GANDA | D23: =IF(COUNTRY_INFO!$U$9:$U$1000="MDA3 (IVM)", COUNTRY_INFO!$U$9:$U$1000, " ") ->  | H23: 0 | K23: 0 | N23: 0 | O23: 0 | P23: 0 | Q23: 0
A24: =IF(COUNTRY_INFO!A24=0," ",COUNTRY_INFO!A24) -> Angola | B24: =IF(COUNTRY_INFO!B24=0," ",COUNTRY_INFO!B24) -> BENGUELA | C24: =IF(COUNTRY_INFO!C24=0," ",COUNTRY_INFO!C24) -> LOBITO | D24: =IF(COUNTRY_INFO!$U$9:$U$1000="MDA3 (IVM)", COUNTRY_INFO!$U$9:$U$1000, " ") ->  | H24: 0 | K24: 0 | N24: 0 | O24: 0 | P24: 0 | Q24: 0
A25: =IF(COUNTRY_INFO!A25=0," ",COUNTRY_INFO!A25) -> Angola | B25: =IF(COUNTRY_INFO!B25=0," ",COUNTRY_INFO!B25) -> BIE | C25: =IF(COUNTRY_INFO!C25=0," ",COUNTRY_INFO!C25) -> ANDULO | D25: =IF(COUNTRY_INFO!$U$9:$U$1000="MDA3 (IVM)", COUNTRY_INFO!$U$9:$U$1000, " ") ->  | H25: 0 | K25: 0 | N25: 0 | O25: 0 | P25: 0 | Q25: 0
A26: =IF(COUNTRY_INFO!A26=0," ",COUNTRY_INFO!A26) -> Angola | B26: =IF(COUNTRY_INFO!B26=0," ",COUNTRY_INFO!B26) -> BIE | C26: =IF(COUNTRY_INFO!C26=0," ",COUNTRY_INFO!C26) -> CAMACUPA | D26: =IF(COUNTRY_INFO!$U$9:$U$1000="MDA3 (IVM)", COUNTRY_INFO!$U$9:$U$1000, " ") ->  | H26: 0 | K26: 0 | N26: 0 | O26: 0 | P26: 0 | Q26: 0
A27: =IF(COUNTRY_INFO!A27=0," ",COUNTRY_INFO!A27) -> Angola | B27: =IF(COUNTRY_INFO!B27=0," ",COUNTRY_INFO!B27) -> BIE | C27: =IF(COUNTRY_INFO!C27=0," ",COUNTRY_INFO!C27) -> CATABOLA | D27: =IF(COUNTRY_INFO!$U$9:$U$1000="MDA3 (IVM)", COUNTRY_INFO!$U$9:$U$1000, " ") ->  | H27: 0 | K27: 0 | N27: 0 | O27: 0 | P27: 0 | Q27: 0
A28: =IF(COUNTRY_INFO!A28=0," ",COUNTRY_INFO!A28) -> Angola | B28: =IF(COUNTRY_INFO!B28=0," ",COUNTRY_INFO!B28) -> BIE | C28: =IF(COUNTRY_INFO!C28=0," ",COUNTRY_INFO!C28) -> CHINGUAR | D28: =IF(COUNTRY_INFO!$U$9:$U$1000="MDA3 (IVM)", COUNTRY_INFO!$U$9:$U$1000, " ") ->  | H28: 0 | K28: 0 | N28: 0 | O28: 0 | P28: 0 | Q28: 0
A29: =IF(COUNTRY_INFO!A29=0," ",COUNTRY_INFO!A29) -> Angola | B29: =IF(COUNTRY_INFO!B29=0," ",COUNTRY_INFO!B29) -> BIE | C29: =IF(COUNTRY_INFO!C29=0," ",COUNTRY_INFO!C29) -> CHITEMBO | D29: =IF(COUNTRY_INFO!$U$9:$U$1000="MDA3 (IVM)", COUNTRY_INFO!$U$9:$U$1000, " ") ->  | H29: 0 | K29: 0 | N29: 0 | O29: 0 | P29: 0 | Q29: 0
A30: =IF(COUNTRY_INFO!A30=0," ",COUNTRY_INFO!A30) -> Angola | B30: =IF(COUNTRY_INFO!B30=0," ",COUNTRY_INFO!B30) -> BIE | C30: =IF(COUNTRY_INFO!C30=0," ",COUNTRY_INFO!C30) -> CUEMBA | D30: =IF(COUNTRY_INFO!$U$9:$U$1000="MDA3 (IVM)", COUNTRY_INFO!$U$9:$U$1000, " ") ->  | H30: 0 | K30: 0 | N30: 0 | O30: 0 | P30: 0 | Q30: 0
A31: =IF(COUNTRY_INFO!A31=0," ",COUNTRY_INFO!A31) -> Angola | B31: =IF(COUNTRY_INFO!B31=0," ",COUNTRY_INFO!B31) -> BIE | C31: =IF(COUNTRY_INFO!C31=0," ",COUNTRY_INFO!C31) -> CUITO | D31: =IF(COUNTRY_INFO!$U$9:$U$1000="MDA3 (IVM)", COUNTRY_INFO!$U$9:$U$1000, " ") ->  | H31: 0 | K31: 0 | N31: 0 | O31: 0 | P31: 0 | Q31: 0
A32: =IF(COUNTRY_INFO!A32=0," ",COUNTRY_INFO!A32) -> Angola | B32: =IF(COUNTRY_INFO!B32=0," ",COUNTRY_INFO!B32) -> BIE | C32: =IF(COUNTRY_INFO!C32=0," ",COUNTRY_INFO!C32) -> CUNHINGA | D32: =IF(COUNTRY_INFO!$U$9:$U$1000="MDA3 (IVM)", COUNTRY_INFO!$U$9:$U$1000, " ") ->  | H32: 0 | K32: 0 | N32: 0 | O32: 0 | P32: 0 | Q32: 0
A33: =IF(COUNTRY_INFO!A33=0," ",COUNTRY_INFO!A33) -> Angola | B33: =IF(COUNTRY_INFO!B33=0," ",COUNTRY_INFO!B33) -> BIE | C33: =IF(COUNTRY_INFO!C33=0," ",COUNTRY_INFO!C33) -> NHAREA | D33: =IF(COUNTRY_INFO!$U$9:$U$1000="MDA3 (IVM)", COUNTRY_INFO!$U$9:$U$1000, " ") ->  | H33: 0 | K33: 0 | N33: 0 | O33: 0 | P33: 0 | Q33: 0
A34: =IF(COUNTRY_INFO!A34=0," ",COUNTRY_INFO!A34) -> Angola | B34: =IF(COUNTRY_INFO!B34=0," ",COUNTRY_INFO!B34) -> CABINDA | C34: =IF(COUNTRY_INFO!C34=0," ",COUNTRY_INFO!C34) -> BELIZE | D34: =IF(COUNTRY_INFO!$U$9:$U$1000="MDA3 (IVM)", COUNTRY_INFO!$U$9:$U$1000, " ") ->  | H34: 0 | K34: 0 | N34: 0 | O34: 0 | P34: 0 | Q34: 0
A35: =IF(COUNTRY_INFO!A35=0," ",COUNTRY_INFO!A35) -> Angola | B35: =IF(COUNTRY_INFO!B35=0," ",COUNTRY_INFO!B35) -> CABINDA | C35: =IF(COUNTRY_INFO!C35=0," ",COUNTRY_INFO!C35) -> BUCO ZAU | D35: =IF(COUNTRY_INFO!$U$9:$U$1000="MDA3 (IVM)", COUNTRY_INFO!$U$9:$U$1000, " ") ->  | H35: 0 | K35: 0 | N35: 0 | O35: 0 | P35: 0 | Q35: 0
A36: =IF(COUNTRY_INFO!A36=0," ",COUNTRY_INFO!A36) -> Angola | B36: =IF(COUNTRY_INFO!B36=0," ",COUNTRY_INFO!B36) -> CABINDA | C36: =IF(COUNTRY_INFO!C36=0," ",COUNTRY_INFO!C36) -> CABINDA | D36: =IF(COUNTRY_INFO!$U$9:$U$1000="MDA3 (IVM)", COUNTRY_INFO!$U$9:$U$1000, " ") ->  | H36: 0 | K36: 0 | N36: 0 | O36: 0 | P36: 0 | Q36: 0
A37: =IF(COUNTRY_INFO!A37=0," ",COUNTRY_INFO!A37) -> Angola | B37: =IF(COUNTRY_INFO!B37=0," ",COUNTRY_INFO!B37) -> CABINDA | C37: =IF(COUNTRY_INFO!C37=0," ",COUNTRY_INFO!C37) -> CACONGO | D37: =IF(COUNTRY_INFO!$U$9:$U$1000="MDA3 (IVM)", COUNTRY_INFO!$U$9:$U$1000, " ") ->  | H37: 0 | K37: 0 | N37: 0 | O37: 0 | P37: 0 | Q37: 0
A38: =IF(COUNTRY_INFO!A38=0," ",COUNTRY_INFO!A38) -> Angola | B38: =IF(COUNTRY_INFO!B38=0," ",COUNTRY_INFO!B38) -> CUANDO CUBANGO | C38: =IF(COUNTRY_INFO!C38=0," ",COUNTRY_INFO!C38) -> CALAI | D38: =IF(COUNTRY_INFO!$U$9:$U$1000="MDA3 (IVM)", COUNTRY_INFO!$U$9:$U$1000, " ") ->  | H38: 0 | K38: 0 | N38: 0 | O38: 0 | P38: 0 | Q38: 0
A39: =IF(COUNTRY_INFO!A39=0," ",COUNTRY_INFO!A39) -> Angola | B39: =IF(COUNTRY_INFO!B39=0," ",COUNTRY_INFO!B39) -> CUANDO CUBANGO | C39: =IF(COUNTRY_INFO!C39=0," ",COUNTRY_INFO!C39) -> CUANGAR | D39: =IF(COUNTRY_INFO!$U$9:$U$1000="MDA3 (IVM)", COUNTRY_INFO!$U$9:$U$1000, " ") ->  | H39: 0 | K39: 0 | N39: 0 | O39: 0 | P39: 0 | Q39: 0
A40: =IF(COUNTRY_INFO!A40=0," ",COUNTRY_INFO!A40) -> Angola | B40: =IF(COUNTRY_INFO!B40=0," ",COUNTRY_INFO!B40) -> CUANDO CUBANGO | C40: =IF(COUNTRY_INFO!C40=0," ",COUNTRY_INFO!C40) -> CUCHI | D40: =IF(COUNTRY_INFO!$U$9:$U$1000="MDA3 (IVM)", COUNTRY_INFO!$U$9:$U$1000, " ") ->  | H40: 0 | K40: 0 | N40: 0 | O40: 0 | P40: 0 | Q40: 0
A41: =IF(COUNTRY_INFO!A41=0," ",COUNTRY_INFO!A41) -> Angola | B41: =IF(COUNTRY_INFO!B41=0," ",COUNTRY_INFO!B41) -> CUANDO CUBANGO | C41: =IF(COUNTRY_INFO!C41=0," ",COUNTRY_INFO!C41) -> CUITO CUANAVALE | D41: =IF(COUNTRY_INFO!$U$9:$U$1000="MDA3 (IVM)", COUNTRY_INFO!$U$9:$U$1000, " ") ->  | H41: 0 | K41: 0 | N41: 0 | O41: 0 | P41: 0 | Q41: 0
A42: =IF(COUNTRY_INFO!A42=0," ",COUNTRY_INFO!A42) -> Angola | B42: =IF(COUNTRY_INFO!B42=0," ",COUNTRY_INFO!B42) -> CUANDO CUBANGO | C42: =IF(COUNTRY_INFO!C42=0," ",COUNTRY_INFO!C42) -> DIRICO | D42: =IF(COUNTRY_INFO!$U$9:$U$1000="MDA3 (IVM)", COUNTRY_INFO!$U$9:$U$1000, " ") ->  | H42: 0 | K42: 0 | N42: 0 | O42: 0 | P42: 0 | Q42: 0
A43: =IF(COUNTRY_INFO!A43=0," ",COUNTRY_INFO!A43) -> Angola | B43: =IF(COUNTRY_INFO!B43=0," ",COUNTRY_INFO!B43) -> CUANDO CUBANGO | C43: =IF(COUNTRY_INFO!C43=0," ",COUNTRY_INFO!C43) -> MAVINGA | D43: =IF(COUNTRY_INFO!$U$9:$U$1000="MDA3 (IVM)", COUNTRY_INFO!$U$9:$U$1000, " ") ->  | H43: 0 | K43: 0 | N43: 0 | O43: 0 | P43: 0 | Q43: 0
A44: =IF(COUNTRY_INFO!A44=0," ",COUNTRY_INFO!A44) -> Angola | B44: =IF(COUNTRY_INFO!B44=0," ",COUNTRY_INFO!B44) -> CUANDO CUBANGO | C44: =IF(COUNTRY_INFO!C44=0," ",COUNTRY_INFO!C44) -> MENONGUE | D44: =IF(COUNTRY_INFO!$U$9:$U$1000="MDA3 (IVM)", COUNTRY_INFO!$U$9:$U$1000, " ") ->  | H44: 0 | K44: 0 | N44: 0 | O44: 0 | P44: 0 | Q44: 0
A45: =IF(COUNTRY_INFO!A45=0," ",COUNTRY_INFO!A45) -> Angola | B45: =IF(COUNTRY_INFO!B45=0," ",COUNTRY_INFO!B45) -> CUANDO CUBANGO | C45: =IF(COUNTRY_INFO!C45=0," ",COUNTRY_INFO!C45) -> NANKOVA | D45: =IF(COUNTRY_INFO!$U$9:$U$1000="MDA3 (IVM)", COUNTRY_INFO!$U$9:$U$1000, " ") ->  | H45: 0 | K45: 0 | N45: 0 | O45: 0 | P45: 0 | Q45: 0
A46: =IF(COUNTRY_INFO!A46=0," ",COUNTRY_INFO!A46) -> Angola | B46: =IF(COUNTRY_INFO!B46=0," ",COUNTRY_INFO!B46) -> CUANDO CUBANGO | C46: =IF(COUNTRY_INFO!C46=0," ",COUNTRY_INFO!C46) -> RIVUNGO | D46: =IF(COUNTRY_INFO!$U$9:$U$1000="MDA3 (IVM)", COUNTRY_INFO!$U$9:$U$1000, " ") ->  | H46: 0 | K46: 0 | N46: 0 | O46: 0 | P46: 0 | Q46: 0
A47: =IF(COUNTRY_INFO!A47=0," ",COUNTRY_INFO!A47) -> Angola | B47: =IF(COUNTRY_INFO!B47=0," ",COUNTRY_INFO!B47) -> CUANZA NORTE | C47: =IF(COUNTRY_INFO!C47=0," ",COUNTRY_INFO!C47) -> AMBACA | D47: =IF(COUNTRY_INFO!$U$9:$U$1000="MDA3 (IVM)", COUNTRY_INFO!$U$9:$U$1000, " ") ->  | H47: 0 | K47: 0 | N47: 0 | O47: 0 | P47: 0 | Q47: 0
A48: =IF(COUNTRY_INFO!A48=0," ",COUNTRY_INFO!A48) -> Angola | B48: =IF(COUNTRY_INFO!B48=0," ",COUNTRY_INFO!B48) -> CUANZA NORTE | C48: =IF(COUNTRY_INFO!C48=0," ",COUNTRY_INFO!C48) -> BANGA | D48: =IF(COUNTRY_INFO!$U$9:$U$1000="MDA3 (IVM)", COUNTRY_INFO!$U$9:$U$1000, " ") ->  | H48: 0 | K48: 0 | N48: 0 | O48: 0 | P48: 0 | Q48: 0
A49: =IF(COUNTRY_INFO!A49=0," ",COUNTRY_INFO!A49) -> Angola | B49: =IF(COUNTRY_INFO!B49=0," ",COUNTRY_INFO!B49) -> CUANZA NORTE | C49: =IF(COUNTRY_INFO!C49=0," ",COUNTRY_INFO!C49) -> BOLONGONGO | D49: =IF(COUNTRY_INFO!$U$9:$U$1000="MDA3 (IVM)", COUNTRY_INFO!$U$9:$U$1000, " ") ->  | H49: 0 | K49: 0 | N49: 0 | O49: 0 | P49: 0 | Q49: 0
A50: =IF(COUNTRY_INFO!A50=0," ",COUNTRY_INFO!A50) -> Angola | B50: =IF(COUNTRY_INFO!B50=0," ",COUNTRY_INFO!B50) -> CUANZA NORTE | C50: =IF(COUNTRY_INFO!C50=0," ",COUNTRY_INFO!C50) -> CAMBAMBE | D50: =IF(COUNTRY_INFO!$U$9:$U$1000="MDA3 (IVM)", COUNTRY_INFO!$U$9:$U$1000, " ") ->  | H50: 0 | K50: 0 | N50: 0 | O50: 0 | P50: 0 | Q50: 0
A51: =IF(COUNTRY_INFO!A51=0," ",COUNTRY_INFO!A51) -> Angola | B51: =IF(COUNTRY_INFO!B51=0," ",COUNTRY_INFO!B51) -> CUANZA NORTE | C51: =IF(COUNTRY_INFO!C51=0," ",COUNTRY_INFO!C51) -> CAZENGO | D51: =IF(COUNTRY_INFO!$U$9:$U$1000="MDA3 (IVM)", COUNTRY_INFO!$U$9:$U$1000, " ") ->  | H51: 0 | K51: 0 | N51: 0 | O51: 0 | P51: 0 | Q51: 0
A52: =IF(COUNTRY_INFO!A52=0," ",COUNTRY_INFO!A52) -> Angola | B52: =IF(COUNTRY_INFO!B52=0," ",COUNTRY_INFO!B52) -> CUANZA NORTE | C52: =IF(COUNTRY_INFO!C52=0," ",COUNTRY_INFO!C52) -> GOLUNGO ALTO | D52: =IF(COUNTRY_INFO!$U$9:$U$1000="MDA3 (IVM)", COUNTRY_INFO!$U$9:$U$1000, " ") ->  | H52: 0 | K52: 0 | N52: 0 | O52: 0 | P52: 0 | Q52: 0
A53: =IF(COUNTRY_INFO!A53=0," ",COUNTRY_INFO!A53) -> Angola | B53: =IF(COUNTRY_INFO!B53=0," ",COUNTRY_INFO!B53) -> CUANZA NORTE | C53: =IF(COUNTRY_INFO!C53=0," ",COUNTRY_INFO!C53) -> GONGUEMBO | D53: =IF(COUNTRY_INFO!$U$9:$U$1000="MDA3 (IVM)", COUNTRY_INFO!$U$9:$U$1000, " ") ->  | H53: 0 | K53: 0 | N53: 0 | O53: 0 | P53: 0 | Q53: 0
A54: =IF(COUNTRY_INFO!A54=0," ",COUNTRY_INFO!A54) -> Angola | B54: =IF(COUNTRY_INFO!B54=0," ",COUNTRY_INFO!B54) -> CUANZA NORTE | C54: =IF(COUNTRY_INFO!C54=0," ",COUNTRY_INFO!C54) -> LUCALA | D54: =IF(COUNTRY_INFO!$U$9:$U$1000="MDA3 (IVM)", COUNTRY_INFO!$U$9:$U$1000, " ") ->  | H54: 0 | K54: 0 | N54: 0 | O54: 0 | P54: 0 | Q54: 0
A55: =IF(COUNTRY_INFO!A55=0," ",COUNTRY_INFO!A55) -> Angola | B55: =IF(COUNTRY_INFO!B55=0," ",COUNTRY_INFO!B55) -> CUANZA NORTE | C55: =IF(COUNTRY_INFO!C55=0," ",COUNTRY_INFO!C55) -> QUICULUNGO | D55: =IF(COUNTRY_INFO!$U$9:$U$1000="MDA3 (IVM)", COUNTRY_INFO!$U$9:$U$1000, " ") ->  | H55: 0 | K55: 0 | N55: 0 | O55: 0 | P55: 0 | Q55: 0
A56: =IF(COUNTRY_INFO!A56=0," ",COUNTRY_INFO!A56) -> Angola | B56: =IF(COUNTRY_INFO!B56=0," ",COUNTRY_INFO!B56) -> CUANZA NORTE | C56: =IF(COUNTRY_INFO!C56=0," ",COUNTRY_INFO!C56) -> SAMBA CAJU | D56: =IF(COUNTRY_INFO!$U$9:$U$1000="MDA3 (IVM)", COUNTRY_INFO!$U$9:$U$1000, " ") ->  | H56: 0 | K56: 0 | N56: 0 | O56: 0 | P56: 0 | Q56: 0
A57: =IF(COUNTRY_INFO!A57=0," ",COUNTRY_INFO!A57) -> Angola | B57: =IF(COUNTRY_INFO!B57=0," ",COUNTRY_INFO!B57) -> CUANZA SUL | C57: =IF(COUNTRY_INFO!C57=0," ",COUNTRY_INFO!C57) -> AMBOIM | D57: =IF(COUNTRY_INFO!$U$9:$U$1000="MDA3 (IVM)", COUNTRY_INFO!$U$9:$U$1000, " ") ->  | H57: 0 | K57: 0 | N57: 0 | O57: 0 | P57: 0 | Q57: 0
